Workbook

Sheet Rangliste
A1: Stand: | B1: =NOW() -> 2024-07-14T23:25:18.330 | G1: Stand: | H1: 2024-07-14T22:55:37.330
B2: =CONCATENATE(Punktestand!Q7,Punktestand!P7,Punktestand!Q8) -> nach 51 von 51 Spielen | H2: nach 51 von 51 Spielen
A4: Rang | B4: Name | C4: Punkte | D4: +/- | E4: Rang Hilf | G4: Rang | H4: Name | I4: Punkte | J4: Rang Hilf | P4: Europameister ausgeschieden
A5: =IF(C5="","",IF(C5>0,1,"")) -> 1 | B5: Bartholet Andi | C5: 2096 | D5: =IFERROR(VLOOKUP(B5,$H$5:$J$104,3,FALSE)-E5,"") -> 1 | E5: =IFERROR(_xlfn.RANK.EQ(C5,$C$5:$C$104,0),"") -> 1 | G5: =IF(I5="","",IF(I5>=0,1,"")) -> 1 | H5: Gygli Stefan | I5: 1682 | J5: =IFERROR(_xlfn.RANK.EQ(I5,$I$5:$I$104,0),"") -> 1 | P5: Antonelli Marco
A6: =IF(C6="","",IF(C6=C5,"",2)) -> 2 | B6: Wälti Christoph | C6: 1796 | D6: 3 | E6: 2 | G6: =IF(I6="","",IF(I6=I5,"",2)) -> 2 | H6: Bartholet Andi | I6: 1596 | J6: =IFERROR(_xlfn.RANK.EQ(I6,$I$5:$I$104,0),"") -> 2 | P6: Antonelli Ruben
A7: =IF(C7="","",IF(C7=C6,"",3)) -> 3 | B7: Gygli Stefan | C7: 1682 | D7: -2 | E7: 3 | G7: =IF(I7="","",IF(I7=I6,"",3)) -> 3 | H7: Jones Aiden | I7: 1568 | J7: 3 | P7: Brunner Philip
A8: =IF(C8="","",IF(C8=C7,"",4)) -> 4 | B8: Jones Aiden | C8: 1568 | D8: -1 | E8: 4 | G8: =IF(I8="","",IF(I8=I7,"",4)) -> 4 | H8: Lütolf Marc | I8: 1564 | J8: 4 | P8: Burkart André
A9: =IF(C9="","",IF(C9=C8,"",5)) -> 5 | B9: Lütolf Marc | C9: 1564 | D9: -1 | E9: 5 | G9: =IF(I9="","",IF(I9=I8,"",5)) -> 5 | H9: Wälti Christoph | I9: 1496 | J9: 5 | P9: Cadonau Daniel
A10: =IF(C10="","",IF(C10=C9,"",6)) -> 6 | B10: Pietzke Jannis | C10: 1549 | D10: 14 | E10: 6 | G10: =IF(I10="","",IF(I10=I9,"",6)) -> 6 | H10: Bartholet Nott | I10: 1480 | J10: 6 | P10: Da Costa Leonardo
A11: =IF(C11="","",IF(C11=C10,"",7)) -> 7 | B11: Kalinci Murat | C11: 1525 | D11: 19 | E11: 7 | G11: =IF(I11="","",IF(I11=I10,"",7)) -> 7 | H11: Thormann Julia | I11: 1395 | J11: 7 | P11: D'Acunto Niva
A12: =IF(C12="","",IF(C12=C11,"",8)) -> 8 | B12: Bartholet Nott | C12: 1480 | D12: -2 | E12: 8 | G12: =IF(I12="","",IF(I12=I11,"",8)) -> 8 | H12: Grosse Laurent | I12: 1355 | J12: 8 | P12: D'Acunto Vinci
A13: =IF(C13="","",IF(C13=C12,"",9)) -> 9 | B13: Isenschmid Agnes | C13: 1396 | D13: 30 | E13: 9 | G13: =IF(I13="","",IF(I13=I12,"",9)) -> 9 | H13: D'Acunto Vinci | I13: 1347 | J13: 9 | P13: Figaro Marlon
A14: =IF(C14="","",IF(C14=C13,"",10)) -> 10 | B14: Thormann Julia | C14: 1395 | D14: -3 | E14: 10 | G14: =IF(I14="","",IF(I14=I13,"",10)) -> 10 | H14: Isenschmid Andreas | I14: 1341 | J14: 10 | P14: Foscaldi Maurizio
A15: =IF(C15="","",IF(C15=C14,"",11)) -> 11 | B15: Grosse Laurent | C15: 1355 | D15: -3 | E15: 11 | G15: =IF(I15="","",IF(I15=I14,"",11)) -> 11 | H15: Keller Pascal | I15: 1339 | J15: 11 | P15: Giuralarocca Roberto
A16: =IF(C16="","",IF(C16=C15,"",12)) -> 12 | B16: D'Acunto Vinci | C16: 1347 | D16: -3 | E16: 12 | G16: =IF(I16="","",IF(I16=I15,"",12)) -> 12 | H16: Marthaler Martin | I16: 1332 | J16: 12 | P16: Gomes Rui
A17: =IF(C17="","",IF(C17=C16,"",13)) -> 13 | B17: Isenschmid Andreas | C17: 1341 | D17: -3 | E17: 13 | G17: =IF(I17="","",IF(I17=I16,"",13)) ->  | H17: Burkart Louis | I17: 1332 | J17: 12 | P17: Grosse Laurent
A18: =IF(C18="","",IF(C18=C17,"",14)) -> 14 | B18: Keller Pascal | C18: 1339 | D18: -3 | E18: 14 | G18: =IF(I18="","",IF(I18=I17,"",14)) -> 14 | H18: Gygli Reto | I18: 1317 | J18: 14 | P18: Gygli Reto
A19: =IF(C19="","",IF(C19=C18,"",15)) -> 15 | B19: Marthaler Martin | C19: 1332 | D19: -3 | E19: 15 | G19: =IF(I19="","",IF(I19=I18,"",15)) -> 15 | H19: D'Acunto Lisa | I19: 1315 | J19: 15 | P19: Haab Florian
A20: =IF(C20="","",IF(C20=C19,"",16)) ->  | B20: Burkart Louis | C20: 1332 | D20: -3 | E20: 15 | G20: =IF(I20="","",IF(I20=I19,"",16)) -> 16 | H20: Gygli Timothy | I20: 1287 | J20: 16 | P20: Handanagic Djuma
A21: =IF(C21="","",IF(C21=C20,"",17)) -> 17 | B21: Gygli Reto | C21: 1317 | D21: -3 | E21: 17 | G21: =IF(I21="","",IF(I21=I20,"",17)) -> 17 | H21: Thormann Armando | I21: 1281 | J21: 17 | P21: Lanz André
A22: =IF(C22="","",IF(C22=C21,"",18)) -> 18 | B22: D'Acunto Lisa | C22: 1315 | D22: -3 | E22: 18 | G22: =IF(I22="","",IF(I22=I21,"",18)) -> 18 | H22: Cadonau Florian | I22: 1265 | J22: 18 | P22: Marini Mauro
A23: =IF(C23="","",IF(C23=C22,"",19)) -> 19 | B23: Gygli Timothy | C23: 1287 | D23: -3 | E23: 19 | G23: =IF(I23="","",IF(I23=I22,"",19)) -> 19 | H23: Bartholet Philippe | I23: 1252 | J23: 19 | P23: Oliveira Telmo
A24: =IF(C24="","",IF(C24=C23,"",20)) -> 20 | B24: Thormann Armando | C24: 1281 | D24: -3 | E24: 20 | G24: =IF(I24="","",IF(I24=I23,"",20)) -> 20 | H24: Pietzke Jannis | I24: 1249 | J24: 20 | P24: Palma Luigi
A25: =IF(C25="","",IF(C25=C24,"",21)) -> 21 | B25: Cadonau Florian | C25: 1265 | D25: -3 | E25: 21 | G25: =IF(I25="","",IF(I25=I24,"",21)) -> 21 | H25: Walser Stefan | I25: 1246 | J25: 21 | P25: Pek Lechena
A26: =IF(C26="","",IF(C26=C25,"",22)) -> 22 | B26: Bartholet Philippe | C26: 1252 | D26: -3 | E26: 22 | G26: =IF(I26="","",IF(I26=I25,"",22)) -> 22 | H26: Treichler Lea | I26: 1238 | J26: 22 | P26: Rüegg Lynn
A27: =IF(C27="","",IF(C27=C26,"",23)) -> 23 | B27: Walser Stefan | C27: 1246 | D27: -2 | E27: 23 | G27: =IF(I27="","",IF(I27=I26,"",23)) ->  | H27: Brunner Nicolas | I27: 1238 | J27: 22 | P27: Schommarz Erich
A28: =IF(C28="","",IF(C28=C27,"",24)) -> 24 | B28: Treichler Lea | C28: 1238 | D28: -2 | E28: 24 | G28: =IF(I28="","",IF(I28=I27,"",24)) -> 24 | H28: Duvnjak Dino | I28: 1231 | J28: 24 | P28: Schuster Ralph
A29: =IF(C29="","",IF(C29=C28,"",25)) ->  | B29: Brunner Nicolas | C29: 1238 | D29: -2 | E29: 24 | G29: =IF(I29="","",IF(I29=I28,"",25)) -> 25 | H29: Lanz André | I29: 1228 | J29: 25 | P29: Schwitter Corinne
A30: =IF(C30="","",IF(C30=C29,"",26)) -> 26 | B30: Duvnjak Dino | C30: 1231 | D30: -2 | E30: 26 | G30: =IF(I30="","",IF(I30=I29,"",26)) -> 26 | H30: Kalinci Murat | I30: 1225 | J30: 26 | P30: Sotelo Yermany
A31: =IF(C31="","",IF(C31=C30,"",27)) -> 27 | B31: Lanz André | C31: 1228 | D31: -2 | E31: 27 | G31: =IF(I31="","",IF(I31=I30,"",27)) -> 27 | H31: Lischer Franz | I31: 1216 | J31: 27 | P31: Thormann Armando
A32: =IF(C32="","",IF(C32=C31,"",28)) -> 28 | B32: Lischer Franz | C32: 1216 | D32: -1 | E32: 28 | G32: =IF(I32="","",IF(I32=I31,"",28)) -> 28 | H32: Wang Jingwen | I32: 1199 | J32: 28 | P32: Treichler Lea
A33: =IF(C33="","",IF(C33=C32,"",29)) -> 29 | B33: Wang Jingwen | C33: 1199 | D33: -1 | E33: 29 | G33: =IF(I33="","",IF(I33=I32,"",29)) -> 29 | H33: Agorastos Panos | I33: 1198 | J33: 29 | P33: Walser Stefan
A34: =IF(C34="","",IF(C34=C33,"",30)) -> 30 | B34: Agorastos Panos | C34: 1198 | D34: -1 | E34: 30 | G34: =IF(I34="","",IF(I34=I33,"",30)) -> 30 | H34: Pek Lechena | I34: 1195 | J34: 30 | P34: Zachmann Jasmine
A35: =IF(C35="","",IF(C35=C34,"",31)) -> 31 | B35: Pek Lechena | C35: 1195 | D35: -1 | E35: 31 | G35: =IF(I35="","",IF(I35=I34,"",31)) -> 31 | H35: Dukic Goran | I35: 1189 | J35: 31 | P35: Zachmann Stefan
A36: =IF(C36="","",IF(C36=C35,"",32)) -> 32 | B36: Dukic Goran | C36: 1189 | D36: -1 | E36: 32 | G36: =IF(I36="","",IF(I36=I35,"",32)) -> 32 | H36: Rohner Martin | I36: 1188 | J36: 32 | P36: Babic Mario
A37: =IF(C37="","",IF(C37=C36,"",33)) -> 33 | B37: Rohner Martin | C37: 1188 | D37: -1 | E37: 33 | G37: =IF(I37="","",IF(I37=I36,"",33)) -> 33 | H37: Handanagic Djuma | I37: 1172 | J37: 33 | P37: Bartholet Roger
A38: =IF(C38="","",IF(C38=C37,"",34)) -> 34 | B38: Handanagic Djuma | C38: 1172 | D38: -1 | E38: 34 | G38: =IF(I38="","",IF(I38=I37,"",34)) -> 34 | H38: Silva Bruno | I38: 1152 | J38: 34 | P38: Bartholet Nott
A39: =IF(C39="","",IF(C39=C38,"",35)) -> 35 | B39: Silva Bruno | C39: 1152 | D39: -1 | E39: 35 | G39: =IF(I39="","",IF(I39=I38,"",35)) -> 35 | H39: Gygli Gregory | I39: 1135 | J39: 35 | P39: Bartholet Philippe
A40: =IF(C40="","",IF(C40=C39,"",36)) -> 36 | B40: Gygli Gregory | C40: 1135 | D40: -1 | E40: 36 | G40: =IF(I40="","",IF(I40=I39,"",36)) -> 36 | H40: Cadonau Daniel | I40: 1127 | J40: 36 | P40: Beck Mara
A41: =IF(C41="","",IF(C41=C40,"",37)) -> 37 | B41: Cadonau Daniel | C41: 1127 | D41: -1 | E41: 37 | G41: =IF(I41="","",IF(I41=I40,"",37)) -> 37 | H41: Treichler Reto | I41: 1118 | J41: 37 | P41: Blöchlinger/Edri Lara/Yaniv
A42: =IF(C42="","",IF(C42=C41,"",38)) -> 38 | B42: Treichler Reto | C42: 1118 | D42: -1 | E42: 38 | G42: =IF(I42="","",IF(I42=I41,"",38)) -> 38 | H42: Brunner Manuel | I42: 1116 | J42: 38 | P42: Brunner Manuel
A43: =IF(C43="","",IF(C43=C42,"",39)) -> 39 | B43: Brunner Manuel | C43: 1116 | D43: -1 | E43: 39 | G43: =IF(I43="","",IF(I43=I42,"",39)) -> 39 | H43: Schommarz Erich | I43: 1096 | J43: 39 | P43: Brunner Nicolas
A44: =IF(C44="","",IF(C44=C43,"",40)) -> 40 | B44: Schommarz Erich | C44: 1096 | D44: -1 | E44: 40 | G44: =IF(I44="","",IF(I44=I43,"",40)) ->  | H44: Isenschmid Agnes | I44: 1096 | J44: 39 | P44: Burkart Louis
A45: =IF(C45="","",IF(C45=C44,"",41)) -> 41 | B45: Zachmann Jasmine | C45: 1094 | D45: 0 | E45: 41 | G45: =IF(I45="","",IF(I45=I44,"",41)) -> 41 | H45: Zachmann Jasmine | I45: 1094 | J45: 41 | P45: Cadonau Deliz
A46: =IF(C46="","",IF(C46=C45,"",42)) ->  | B46: Beck Mara | C46: 1094 | D46: 0 | E46: 41 | G46: =IF(I46="","",IF(I46=I45,"",42)) ->  | H46: Beck Mara | I46: 1094 | J46: 41 | P46: Christiansen Olo
A47: =IF(C47="","",IF(C47=C46,"",43)) -> 43 | B47: Bosshart Michael | C47: 1086 | D47: 0 | E47: 43 | G47: =IF(I47="","",IF(I47=I46,"",43)) -> 43 | H47: Bosshart Michael | I47: 1086 | J47: 43 | P47: D'Acunto Lisa
A48: =IF(C48="","",IF(C48=C47,"",44)) -> 44 | B48: Rüegg Michael | C48: 1084 | D48: 0 | E48: 44 | G48: =IF(I48="","",IF(I48=I47,"",44)) -> 44 | H48: Rüegg Michael | I48: 1084 | J48: 44 | P48: Dukic Goran
A49: =IF(C49="","",IF(C49=C48,"",45)) -> 45 | B49: Babic Mario | C49: 1083 | D49: 0 | E49: 45 | G49: =IF(I49="","",IF(I49=I48,"",45)) -> 45 | H49: Babic Mario | I49: 1083 | J49: 45 | P49: Gygli Gregory
A50: =IF(C50="","",IF(C50=C49,"",46)) ->  | B50: Schuster Ralph | C50: 1083 | D50: 0 | E50: 45 | G50: =IF(I50="","",IF(I50=I49,"",46)) ->  | H50: Schuster Ralph | I50: 1083 | J50: 45 | P50: Gygli Sarina
A51: =IF(C51="","",IF(C51=C50,"",47)) ->  | B51: Gomes Rui | C51: 1083 | D51: 0 | E51: 45 | G51: =IF(I51="","",IF(I51=I50,"",47)) ->  | H51: Gomes Rui | I51: 1083 | J51: 45 | P51: Gygli Timothy
A52: =IF(C52="","",IF(C52=C51,"",48)) -> 48 | B52: Haab Florian | C52: 1068 | D52: 0 | E52: 48 | G52: =IF(I52="","",IF(I52=I51,"",48)) -> 48 | H52: Haab Florian | I52: 1068 | J52: 48 | P52: Isenschmid Andreas
A53: =IF(C53="","",IF(C53=C52,"",49)) -> 49 | B53: Wullschleger Stefan | C53: 1064 | D53: 0 | E53: 49 | G53: =IF(I53="","",IF(I53=I52,"",49)) -> 49 | H53: Wullschleger Stefan | I53: 1064 | J53: 49 | P53: Isenschmid Michi
A54: =IF(C54="","",IF(C54=C53,"",50)) -> 50 | B54: Gygli Sarina | C54: 1056 | D54: 0 | E54: 50 | G54: =IF(I54="","",IF(I54=I53,"",50)) -> 50 | H54: Gygli Sarina | I54: 1056 | J54: 50 | P54: Keller Pascal
A55: =IF(C55="","",IF(C55=C54,"",51)) -> 51 | B55: Burkart André | C55: 1042 | D55: 0 | E55: 51 | G55: =IF(I55="","",IF(I55=I54,"",51)) -> 51 | H55: Burkart André | I55: 1042 | J55: 51 | P55: Lischer Franz
A56: =IF(C56="","",IF(C56=C55,"",52)) -> 52 | B56: Brunner Philip | C56: 1036 | D56: 0 | E56: 52 | G56: =IF(I56="","",IF(I56=I55,"",52)) -> 52 | H56: Brunner Philip | I56: 1036 | J56: 52 | P56: Rauscher Petra
A57: =IF(C57="","",IF(C57=C56,"",53)) -> 53 | B57: Blöchlinger/Edri Lara/Yaniv | C57: 1034 | D57: 0 | E57: 53 | G57: =IF(I57="","",IF(I57=I56,"",53)) -> 53 | H57: Blöchlinger/Edri Lara/Yaniv | I57: 1034 | J57: 53 | P57: Rüegg Sabine
A58: =IF(C58="","",IF(C58=C57,"",54)) -> 54 | B58: Rauscher Petra | C58: 1025 | D58: 0 | E58: 54 | G58: =IF(I58="","",IF(I58=I57,"",54)) -> 54 | H58: Rauscher Petra | I58: 1025 | J58: 54 | P58: Wagner Markus
A59: =IF(C59="","",IF(C59=C58,"",55)) -> 55 | B59: Schwitter Corinne | C59: 1007 | D59: 0 | E59: 55 | G59: =IF(I59="","",IF(I59=I58,"",55)) -> 55 | H59: Schwitter Corinne | I59: 1007 | J59: 55 | P59: Wang Jingwen
A60: =IF(C60="","",IF(C60=C59,"",56)) -> 56 | B60: Megdiche Nidhal | C60: 998 | D60: 0 | E60: 56 | G60: =IF(I60="","",IF(I60=I59,"",56)) -> 56 | H60: Megdiche Nidhal | I60: 998 | J60: 56 | P60: Wullschleger Stefan
A61: =IF(C61="","",IF(C61=C60,"",57)) -> 57 | B61: D'Acunto Niva | C61: 988 | D61: 0 | E61: 57 | G61: =IF(I61="","",IF(I61=I60,"",57)) -> 57 | H61: D'Acunto Niva | I61: 988 | J61: 57 | P61: Megdiche Nidhal
A62: =IF(C62="","",IF(C62=C61,"",58)) -> 58 | B62: Wagner Markus | C62: 986 | D62: 0 | E62: 58 | G62: =IF(I62="","",IF(I62=I61,"",58)) -> 58 | H62: Wagner Markus | I62: 986 | J62: 58 | P62: Städelin Hanspeter
A63: =IF(C63="","",IF(C63=C62,"",59)) -> 59 | B63: Oliveira Telmo | C63: 979 | D63: 0 | E63: 59 | G63: =IF(I63="","",IF(I63=I62,"",59)) -> 59 | H63: Oliveira Telmo | I63: 979 | J63: 59 | P63: Agorastos Panos
A64: =IF(C64="","",IF(C64=C63,"",60)) -> 60 | B64: Rüegg Lynn | C64: 967 | D64: 0 | E64: 60 | G64: =IF(I64="","",IF(I64=I63,"",60)) -> 60 | H64: Rüegg Lynn | I64: 967 | J64: 60 | P64: Bosshart Michael
A65: =IF(C65="","",IF(C65=C64,"",61)) -> 61 | B65: Isenschmid Michi | C65: 965 | D65: 0 | E65: 61 | G65: =IF(I65="","",IF(I65=I64,"",61)) -> 61 | H65: Isenschmid Michi | I65: 965 | J65: 61 | P65: Cadonau Florian
A66: =IF(C66="","",IF(C66=C65,"",62)) -> 62 | B66: Städelin Hanspeter | C66: 963 | D66: 0 | E66: 62 | G66: =IF(I66="","",IF(I66=I65,"",62)) -> 62 | H66: Städelin Hanspeter | I66: 963 | J66: 62 | P66: Duvnjak Dino
A67: =IF(C67="","",IF(C67=C66,"",63)) ->  | B67: Da Costa Leonardo | C67: 963 | D67: 0 | E67: 62 | G67: =IF(I67="","",IF(I67=I66,"",63)) ->  | H67: Da Costa Leonardo | I67: 963 | J67: 62 | P67: Gygli Stefan
A68: =IF(C68="","",IF(C68=C67,"",64)) -> 64 | B68: Cadonau Deliz | C68: 961 | D68: 0 | E68: 64 | G68: =IF(I68="","",IF(I68=I67,"",64)) -> 64 | H68: Cadonau Deliz | I68: 961 | J68: 64 | P68: Jones Aiden
A69: =IF(C69="","",IF(C69=C68,"",65)) -> 65 | B69: Christiansen Olo | C69: 959 | D69: =IFERROR(VLOOKUP(B69,$H$5:$J$104,3,FALSE)-E69,"") -> 0 | E69: =IFERROR(_xlfn.RANK.EQ(C69,$C$5:$C$104,0),"") -> 65 | G69: =IF(I69="","",IF(I69=I68,"",65)) -> 65 | H69: Christiansen Olo | I69: 959 | J69: 65 | P69: Lütolf Marc
A70: =IF(C70="","",IF(C70=C69,"",66)) -> 66 | B70: Giuralarocca Roberto | C70: 949 | D70: 0 | E70: 66 | G70: =IF(I70="","",IF(I70=I69,"",66)) -> 66 | H70: Giuralarocca Roberto | I70: 949 | J70: =IFERROR(_xlfn.RANK.EQ(I70,$I$5:$I$104,0),"") -> 66 | P70: Marthaler Martin
A71: =IF(C71="","",IF(C71=C70,"",67)) -> 67 | B71: Foscaldi Maurizio | C71: 938 | D71: 0 | E71: 67 | G71: =IF(I71="","",IF(I71=I70,"",67)) -> 67 | H71: Foscaldi Maurizio | I71: 938 | J71: 67 | P71: Rohner Martin
A72: =IF(C72="","",IF(C72=C71,"",68)) -> 68 | B72: Palma Luigi | C72: 929 | D72: 0 | E72: 68 | G72: =IF(I72="","",IF(I72=I71,"",68)) -> 68 | H72: Palma Luigi | I72: 929 | J72: 68 | P72: Rüegg Michael
A73: =IF(C73="","",IF(C73=C72,"",69)) -> 69 | B73: Bartholet Roger | C73: 922 | D73: 0 | E73: 69 | G73: =IF(I73="","",IF(I73=I72,"",69)) -> 69 | H73: Bartholet Roger | I73: 922 | J73: 69 | P73: Silva Bruno
A74: =IF(C74="","",IF(C74=C73,"",70)) -> 70 | B74: Rüegg Sabine | C74: 907 | D74: 0 | E74: 70 | G74: =IF(I74="","",IF(I74=I73,"",70)) -> 70 | H74: Rüegg Sabine | I74: 907 | J74: 70 | P74: Thormann Julia
A75: =IF(C75="","",IF(C75=C74,"",71)) -> 71 | B75: Antonelli Ruben | C75: 873 | D75: 0 | E75: 71 | G75: =IF(I75="","",IF(I75=I74,"",71)) -> 71 | H75: Antonelli Ruben | I75: 873 | J75: 71 | P75: Treichler Reto
A76: =IF(C76="","",IF(C76=C75,"",72)) -> 72 | B76: Sotelo Yermany | C76: 859 | D76: 0 | E76: 72 | G76: =IF(I76="","",IF(I76=I75,"",72)) -> 72 | H76: Sotelo Yermany | I76: 859 | J76: 72
A77: =IF(C77="","",IF(C77=C76,"",73)) -> 73 | B77: Antonelli Marco | C77: 803 | D77: 0 | E77: 73 | G77: =IF(I77="","",IF(I77=I76,"",73)) -> 73 | H77: Antonelli Marco | I77: 803 | J77: 73
A78: =IF(C78="","",IF(C78=C77,"",74)) -> 74 | B78: Marini Mauro | C78: 802 | D78: 0 | E78: 74 | G78: =IF(I78="","",IF(I78=I77,"",74)) -> 74 | H78: Marini Mauro | I78: 802 | J78: 74
A79: =IF(C79="","",IF(C79=C78,"",75)) -> 75 | B79: Figaro Marlon | C79: 735 | D79: 0 | E79: 75 | G79: =IF(I79="","",IF(I79=I78,"",75)) -> 75 | H79: Figaro Marlon | I79: 735 | J79: 75
A80: =IF(C80="","",IF(C80=C79,"",76)) -> 76 | B80: Zachmann Stefan | C80: 690 | D80: 0 | E80: 76 | G80: =IF(I80="","",IF(I80=I79,"",76)) -> 76 | H80: Zachmann Stefan | I80: 690 | J80: 76
A81: =IF(C81="","",IF(C81=C80,"",77)) ->  | G81: =IF(I81="","",IF(I81=I80,"",77)) -> 
A82: =IF(C82="","",IF(C82=C81,"",78)) ->  | G82: =IF(I82="","",IF(I82=I81,"",78)) -> 
A83: =IF(C83="","",IF(C83=C82,"",79)) ->  | G83: =IF(I83="","",IF(I83=I82,"",79)) -> 
A84: =IF(C84="","",IF(C84=C83,"",80)) ->  | G84: =IF(I84="","",IF(I84=I83,"",80)) -> 
A85: =IF(C85="","",IF(C85=C84,"",81)) ->  | G85: =IF(I85="","",IF(I85=I84,"",81)) -> 
A86: =IF(C86="","",IF(C86=C85,"",82)) ->  | G86: =IF(I86="","",IF(I86=I85,"",82)) -> 
A87: =IF(C87="","",IF(C87=C86,"",83)) ->  | G87: =IF(I87="","",IF(I87=I86,"",83)) -> 
A88: =IF(C88="","",IF(C88=C87,"",84)) ->  | G88: =IF(I88="","",IF(I88=I87,"",84)) -> 
A89: =IF(C89="","",IF(C89=C88,"",85)) ->  | G89: =IF(I89="","",IF(I89=I88,"",85)) -> 
A90: =IF(C90="","",IF(C90=C89,"",86)) ->  | G90: =IF(I90="","",IF(I90=I89,"",86)) -> 
A91: =IF(C91="","",IF(C91=C90,"",87)) ->  | G91: =IF(I91="","",IF(I91=I90,"",87)) -> 
A92: =IF(C92="","",IF(C92=C91,"",88)) ->  | G92: =IF(I92="","",IF(I92=I91,"",88)) -> 
A93: =IF(C93="","",IF(C93=C92,"",89)) ->  | G93: =IF(I93="","",IF(I93=I92,"",89)) -> 
A94: =IF(C94="","",IF(C94=C93,"",90)) ->  | G94: =IF(I94="","",IF(I94=I93,"",90)) -> 
A95: =IF(C95="","",IF(C95=C94,"",91)) ->  | G95: =IF(I95="","",IF(I95=I94,"",91)) -> 
A96: =IF(C96="","",IF(C96=C95,"",92)) ->  | G96: =IF(I96="","",IF(I96=I95,"",92)) -> 
A97: =IF(C97="","",IF(C97=C96,"",93)) ->  | G97: =IF(I97="","",IF(I97=I96,"",93)) -> 
A98: =IF(C98="","",IF(C98=C97,"",94)) ->  | G98: =IF(I98="","",IF(I98=I97,"",94)) -> 
A99: =IF(C99="","",IF(C99=C98,"",95)) ->  | G99: =IF(I99="","",IF(I99=I98,"",95)) -> 
A100: =IF(C100="","",IF(C100=C99,"",96)) ->  | G100: =IF(I100="","",IF(I100=I99,"",96)) -> 
A101: =IF(C101="","",IF(C101=C100,"",97)) ->  | G101: =IF(I101="","",IF(I101=I100,"",97)) -> 
A102: =IF(C102="","",IF(C102=C101,"",98)) ->  | G102: =IF(I102="","",IF(I102=I101,"",98)) -> 
A103: =IF(C103="","",IF(C103=C102,"",99)) ->  | G103: =IF(I103="","",IF(I103=I102,"",99)) -> 
A104: =IF(C104="","",IF(C104=C103,"",100)) ->  | G104: =IF(I104="","",IF(I104=I103,"",100)) -> 

Sheet Punktestand
A1: =Teams!$B$30 -> EM 2024 by Rogerinho (www.fcbouncer.ch)
A3: Punktestand | C3: Spieler 1 - 100 | E3: Anzahl Spieler: | F3: =COUNTIF(B7:B106,"??*") -> 76
C5: Punkte | D5: Punkte | E5: Punkte | F5: Punkte | H5: Rang | J5: Rang | L5: Punkte | O5: Spiel
A6: Nr. | B6: Name | C6: Vorrunde | D6: Endplatzierung | E6: Finalrunde | F6: Total | H6: Zeile | J6: Tabelle | L6: Total | O6: Nr.
A7: =Teilnehmerliste!A6 -> 1 | B7: =Teilnehmerliste!B6 &" "&Teilnehmerliste!C6 -> Agorastos Panos | C7: =Vorrunde!$K$45 -> 128 | D7: =Endplatzierung!$F$34 -> 120 | E7: =Finalrunde!$N$31 -> 950 | F7: =IF(Teilnehmerliste!B6="","",SUM(C7:E7)) -> 1198 | H7: =IFERROR(_xlfn.RANK.EQ(F7,$F$7:$F$106,0),"") -> 30 | J7: =IF(ROWS($J$7:J7)<=$F$3,SMALL($H$7:$H$106,ROWS($J$7:J7)),"") -> 1 | K7: =IF($H7="","",INDEX($B$7:$H$106,_xlfn.AGGREGATE(14,6,ROW($H$7:$H$106)-ROW($H$7)+1/($H$7:$H$106=J7),COUNTIF($J$7:J7,J7)),1)) -> Bartholet Andi | L7: =IF($H7="","",INDEX($B$7:$H$106,_xlfn.AGGREGATE(14,6,ROW($H$7:$H$106)-ROW($H$7)+1/($H$7:$H$106=J7),COUNTIF($J$7:J7,J7)),5)) -> 2096 | N7: =ISBLANK(Vorrunde!F9) -> FALSE | O7: 1 | P7: =COUNTIF(N7:N106,FALSE) -> 51 | Q7: nach
A8: =Teilnehmerliste!A7 -> 2 | B8: =Teilnehmerliste!B7 &" "&Teilnehmerliste!C7 -> Antonelli Marco | C8: =Vorrunde!$O$45 -> 133 | D8: =Endplatzierung!$H$34 -> 80 | E8: =Finalrunde!$U$31 -> 590 | F8: =IF(Teilnehmerliste!B7="","",SUM(C8:E8)) -> 803 | H8: =IFERROR(_xlfn.RANK.EQ(F8,$F$7:$F$106,0),"") -> 73 | J8: =IF(ROWS($J$7:$J$7)<=$F$3,SMALL($H$7:$H$106,ROWS($J$7:J8)),"") -> 2 | K8: =IF($H8="","",INDEX($B$7:$H$106,_xlfn.AGGREGATE(14,6,ROW($H$7:$H$106)-ROW($H$7)+1/($H$7:$H$106=J8),COUNTIF($J$7:J8,J8)),1)) -> Wälti Christoph | L8: =IF($H8="","",INDEX($B$7:$H$106,_xlfn.AGGREGATE(14,6,ROW($H$7:$H$106)-ROW($H$7)+1/($H$7:$H$106=J8),COUNTIF($J$7:J8,J8)),5)) -> 1796 | N8: =ISBLANK(Vorrunde!F10) -> FALSE | O8: 2 | Q8: von 51 Spielen
A9: =Teilnehmerliste!A8 -> 3 | B9: =Teilnehmerliste!B8 &" "&Teilnehmerliste!C8 -> Antonelli Ruben | C9: =Vorrunde!$S$45 -> 93 | D9: =Endplatzierung!$J$34 -> 100 | E9: =Finalrunde!$AB$31 -> 680 | F9: =IF(Teilnehmerliste!B8="","",SUM(C9:E9)) -> 873 | H9: 71 | J9: =IF(ROWS($J$7:$J$7)<=$F$3,SMALL($H$7:$H$106,ROWS($J$7:J9)),"") -> 3 | K9: =IF($H9="","",INDEX($B$7:$H$106,_xlfn.AGGREGATE(14,6,ROW($H$7:$H$106)-ROW($H$7)+1/($H$7:$H$106=J9),COUNTIF($J$7:J9,J9)),1)) -> Gygli Stefan | L9: =IF($H9="","",INDEX($B$7:$H$106,_xlfn.AGGREGATE(14,6,ROW($H$7:$H$106)-ROW($H$7)+1/($H$7:$H$106=J9),COUNTIF($J$7:J9,J9)),5)) -> 1682 | N9: =ISBLANK(Vorrunde!F11) -> FALSE | O9: 3
A10: =Teilnehmerliste!A9 -> 4 | B10: =Teilnehmerliste!B9 &" "&Teilnehmerliste!C9 -> Bartholet Andi | C10: =Vorrunde!$W$45 -> 126 | D10: =Endplatzierung!$L$34 -> 100 | E10: =Finalrunde!$AI$31 -> 1870 | F10: =IF(Teilnehmerliste!B9="","",SUM(C10:E10)) -> 2096 | H10: 1 | J10: =IF(ROWS($J$7:$J$7)<=$F$3,SMALL($H$7:$H$106,ROWS($J$7:J10)),"") -> 4 | K10: =IF($H10="","",INDEX($B$7:$H$106,_xlfn.AGGREGATE(14,6,ROW($H$7:$H$106)-ROW($H$7)+1/($H$7:$H$106=J10),COUNTIF($J$7:J10,J10)),1)) -> Jones Aiden | L10: =IF($H10="","",INDEX($B$7:$H$106,_xlfn.AGGREGATE(14,6,ROW($H$7:$H$106)-ROW($H$7)+1/($H$7:$H$106=J10),COUNTIF($J$7:J10,J10)),5)) -> 1568 | N10: =ISBLANK(Vorrunde!F12) -> FALSE | O10: 4
A11: =Teilnehmerliste!A10 -> 5 | B11: =Teilnehmerliste!B10 &" "&Teilnehmerliste!C10 -> Bartholet Nott | C11: =Vorrunde!$AA$45 -> 120 | D11: =Endplatzierung!$N$34 -> 60 | E11: =Finalrunde!$AP$31 -> 1300 | F11: =IF(Teilnehmerliste!B10="","",SUM(C11:E11)) -> 1480 | H11: 8 | J11: =IF(ROWS($J$7:$J$7)<=$F$3,SMALL($H$7:$H$106,ROWS($J$7:J11)),"") -> 5 | K11: =IF($H11="","",INDEX($B$7:$H$106,_xlfn.AGGREGATE(14,6,ROW($H$7:$H$106)-ROW($H$7)+1/($H$7:$H$106=J11),COUNTIF($J$7:J11,J11)),1)) -> Lütolf Marc | L11: =IF($H11="","",INDEX($B$7:$H$106,_xlfn.AGGREGATE(14,6,ROW($H$7:$H$106)-ROW($H$7)+1/($H$7:$H$106=J11),COUNTIF($J$7:J11,J11)),5)) -> 1564 | N11: =ISBLANK(Vorrunde!F13) -> FALSE | O11: 5
A12: =Teilnehmerliste!A11 -> 6 | B12: =Teilnehmerliste!B11 &" "&Teilnehmerliste!C11 -> Bartholet Philippe | C12: =Vorrunde!$AE$45 -> 142 | D12: =Endplatzierung!$P$34 -> 100 | E12: =Finalrunde!$AW$31 -> 1010 | F12: =IF(Teilnehmerliste!B11="","",SUM(C12:E12)) -> 1252 | H12: 22 | J12: =IF(ROWS($J$7:$J$7)<=$F$3,SMALL($H$7:$H$106,ROWS($J$7:J12)),"") -> 6 | K12: =IF($H12="","",INDEX($B$7:$H$106,_xlfn.AGGREGATE(14,6,ROW($H$7:$H$106)-ROW($H$7)+1/($H$7:$H$106=J12),COUNTIF($J$7:J12,J12)),1)) -> Pietzke Jannis | L12: =IF($H12="","",INDEX($B$7:$H$106,_xlfn.AGGREGATE(14,6,ROW($H$7:$H$106)-ROW($H$7)+1/($H$7:$H$106=J12),COUNTIF($J$7:J12,J12)),5)) -> 1549 | N12: =ISBLANK(Vorrunde!F14) -> FALSE | O12: 6
A13: =Teilnehmerliste!A12 -> 7 | B13: =Teilnehmerliste!B12 &" "&Teilnehmerliste!C12 -> Bartholet Roger | C13: =Vorrunde!$AI$45 -> 132 | D13: =Endplatzierung!$R$34 -> 140 | E13: =Finalrunde!$BD$31 -> 650 | F13: =IF(Teilnehmerliste!B12="","",SUM(C13:E13)) -> 922 | H13: 69 | J13: =IF(ROWS($J$7:$J$7)<=$F$3,SMALL($H$7:$H$106,ROWS($J$7:J13)),"") -> 7 | K13: =IF($H13="","",INDEX($B$7:$H$106,_xlfn.AGGREGATE(14,6,ROW($H$7:$H$106)-ROW($H$7)+1/($H$7:$H$106=J13),COUNTIF($J$7:J13,J13)),1)) -> Kalinci Murat | L13: =IF($H13="","",INDEX($B$7:$H$106,_xlfn.AGGREGATE(14,6,ROW($H$7:$H$106)-ROW($H$7)+1/($H$7:$H$106=J13),COUNTIF($J$7:J13,J13)),5)) -> 1525 | N13: =ISBLANK(Vorrunde!F15) -> FALSE | O13: 7
A14: =Teilnehmerliste!A13 -> 8 | B14: =Teilnehmerliste!B13 &" "&Teilnehmerliste!C13 -> Beck Mara | C14: =Vorrunde!$AM$45 -> 84 | D14: =Endplatzierung!$T$34 -> 100 | E14: =Finalrunde!$BK$31 -> 910 | F14: =IF(Teilnehmerliste!B13="","",SUM(C14:E14)) -> 1094 | H14: 41 | J14: =IF(ROWS($J$7:$J$7)<=$F$3,SMALL($H$7:$H$106,ROWS($J$7:J14)),"") -> 8 | K14: =IF($H14="","",INDEX($B$7:$H$106,_xlfn.AGGREGATE(14,6,ROW($H$7:$H$106)-ROW($H$7)+1/($H$7:$H$106=J14),COUNTIF($J$7:J14,J14)),1)) -> Bartholet Nott | L14: =IF($H14="","",INDEX($B$7:$H$106,_xlfn.AGGREGATE(14,6,ROW($H$7:$H$106)-ROW($H$7)+1/($H$7:$H$106=J14),COUNTIF($J$7:J14,J14)),5)) -> 1480 | N14: =ISBLANK(Vorrunde!F16) -> FALSE | O14: 8
A15: =Teilnehmerliste!A14 -> 9 | B15: =Teilnehmerliste!B14 &" "&Teilnehmerliste!C14 -> Blöchlinger/Edri Lara/Yaniv | C15: =Vorrunde!$AQ$45 -> 114 | D15: =Endplatzierung!$V$34 -> 100 | E15: =Finalrunde!$BR$31 -> 820 | F15: =IF(Teilnehmerliste!B14="","",SUM(C15:E15)) -> 1034 | H15: 53 | J15: =IF(ROWS($J$7:$J$7)<=$F$3,SMALL($H$7:$H$106,ROWS($J$7:J15)),"") -> 9 | K15: =IF($H15="","",INDEX($B$7:$H$106,_xlfn.AGGREGATE(14,6,ROW($H$7:$H$106)-ROW($H$7)+1/($H$7:$H$106=J15),COUNTIF($J$7:J15,J15)),1)) -> Isenschmid Agnes | L15: =IF($H15="","",INDEX($B$7:$H$106,_xlfn.AGGREGATE(14,6,ROW($H$7:$H$106)-ROW($H$7)+1/($H$7:$H$106=J15),COUNTIF($J$7:J15,J15)),5)) -> 1396 | N15: =ISBLANK(Vorrunde!F17) -> FALSE | O15: 9
A16: =Teilnehmerliste!A15 -> 10 | B16: =Teilnehmerliste!B15 &" "&Teilnehmerliste!C15 -> Bosshart Michael | C16: =Vorrunde!$AU$45 -> 106 | D16: =Endplatzierung!$X$34 -> 60 | E16: =Finalrunde!$BY$31 -> 920 | F16: =IF(Teilnehmerliste!B15="","",SUM(C16:E16)) -> 1086 | H16: 43 | J16: =IF(ROWS($J$7:$J$7)<=$F$3,SMALL($H$7:$H$106,ROWS($J$7:J16)),"") -> 10 | K16: =IF($H16="","",INDEX($B$7:$H$106,_xlfn.AGGREGATE(14,6,ROW($H$7:$H$106)-ROW($H$7)+1/($H$7:$H$106=J16),COUNTIF($J$7:J16,J16)),1)) -> Thormann Julia | L16: =IF($H16="","",INDEX($B$7:$H$106,_xlfn.AGGREGATE(14,6,ROW($H$7:$H$106)-ROW($H$7)+1/($H$7:$H$106=J16),COUNTIF($J$7:J16,J16)),5)) -> 1395 | N16: =ISBLANK(Vorrunde!F18) -> FALSE | O16: 10
A17: =Teilnehmerliste!A16 -> 11 | B17: =Teilnehmerliste!B16 &" "&Teilnehmerliste!C16 -> Brunner Manuel | C17: =Vorrunde!$AY$45 -> 106 | D17: =Endplatzierung!$Z$34 -> 140 | E17: =Finalrunde!$CF$31 -> 870 | F17: =IF(Teilnehmerliste!B16="","",SUM(C17:E17)) -> 1116 | H17: 39 | J17: =IF(ROWS($J$7:$J$7)<=$F$3,SMALL($H$7:$H$106,ROWS($J$7:J17)),"") -> 11 | K17: =IF($H17="","",INDEX($B$7:$H$106,_xlfn.AGGREGATE(14,6,ROW($H$7:$H$106)-ROW($H$7)+1/($H$7:$H$106=J17),COUNTIF($J$7:J17,J17)),1)) -> Grosse Laurent | L17: =IF($H17="","",INDEX($B$7:$H$106,_xlfn.AGGREGATE(14,6,ROW($H$7:$H$106)-ROW($H$7)+1/($H$7:$H$106=J17),COUNTIF($J$7:J17,J17)),5)) -> 1355 | N17: =ISBLANK(Vorrunde!F19) -> FALSE | O17: 11
A18: =Teilnehmerliste!A17 -> 12 | B18: =Teilnehmerliste!B17 &" "&Teilnehmerliste!C17 -> Brunner Nicolas | C18: =Vorrunde!$BC$45 -> 108 | D18: =Endplatzierung!$AB$34 -> 100 | E18: =Finalrunde!$CM$31 -> 1030 | F18: =IF(Teilnehmerliste!B17="","",SUM(C18:E18)) -> 1238 | H18: 24 | J18: =IF(ROWS($J$7:$J$7)<=$F$3,SMALL($H$7:$H$106,ROWS($J$7:J18)),"") -> 12 | K18: =IF($H18="","",INDEX($B$7:$H$106,_xlfn.AGGREGATE(14,6,ROW($H$7:$H$106)-ROW($H$7)+1/($H$7:$H$106=J18),COUNTIF($J$7:J18,J18)),1)) -> D'Acunto Vinci | L18: =IF($H18="","",INDEX($B$7:$H$106,_xlfn.AGGREGATE(14,6,ROW($H$7:$H$106)-ROW($H$7)+1/($H$7:$H$106=J18),COUNTIF($J$7:J18,J18)),5)) -> 1347 | N18: =ISBLANK(Vorrunde!F20) -> FALSE | O18: 12
A19: =Teilnehmerliste!A18 -> 13 | B19: =Teilnehmerliste!B18 &" "&Teilnehmerliste!C18 -> Brunner Philip | C19: =Vorrunde!$BG$45 -> 146 | D19: =Endplatzierung!$AD$34 -> 40 | E19: =Finalrunde!$CT$31 -> 850 | F19: =IF(Teilnehmerliste!B18="","",SUM(C19:E19)) -> 1036 | H19: 52 | J19: =IF(ROWS($J$7:$J$7)<=$F$3,SMALL($H$7:$H$106,ROWS($J$7:J19)),"") -> 13 | K19: =IF($H19="","",INDEX($B$7:$H$106,_xlfn.AGGREGATE(14,6,ROW($H$7:$H$106)-ROW($H$7)+1/($H$7:$H$106=J19),COUNTIF($J$7:J19,J19)),1)) -> Isenschmid Andreas | L19: =IF($H19="","",INDEX($B$7:$H$106,_xlfn.AGGREGATE(14,6,ROW($H$7:$H$106)-ROW($H$7)+1/($H$7:$H$106=J19),COUNTIF($J$7:J19,J19)),5)) -> 1341 | N19: =ISBLANK(Vorrunde!F21) -> FALSE | O19: 13
A20: =Teilnehmerliste!A19 -> 14 | B20: =Teilnehmerliste!B19 &" "&Teilnehmerliste!C19 -> Burkart André | C20: =Vorrunde!$BK$45 -> 102 | D20: =Endplatzierung!$AF$34 -> 60 | E20: =Finalrunde!$DA$31 -> 880 | F20: =IF(Teilnehmerliste!B19="","",SUM(C20:E20)) -> 1042 | H20: 51 | J20: =IF(ROWS($J$7:$J$7)<=$F$3,SMALL($H$7:$H$106,ROWS($J$7:J20)),"") -> 14 | K20: =IF($H20="","",INDEX($B$7:$H$106,_xlfn.AGGREGATE(14,6,ROW($H$7:$H$106)-ROW($H$7)+1/($H$7:$H$106=J20),COUNTIF($J$7:J20,J20)),1)) -> Keller Pascal | L20: =IF($H20="","",INDEX($B$7:$H$106,_xlfn.AGGREGATE(14,6,ROW($H$7:$H$106)-ROW($H$7)+1/($H$7:$H$106=J20),COUNTIF($J$7:J20,J20)),5)) -> 1339 | N20: =ISBLANK(Vorrunde!F22) -> FALSE | O20: 14
A21: =Teilnehmerliste!A20 -> 15 | B21: =Teilnehmerliste!B20 &" "&Teilnehmerliste!C20 -> Burkart Louis | C21: =Vorrunde!$BO$45 -> 122 | D21: =Endplatzierung!$AH$34 -> 120 | E21: =Finalrunde!$DH$31 -> 1090 | F21: =IF(Teilnehmerliste!B20="","",SUM(C21:E21)) -> 1332 | H21: 15 | J21: =IF(ROWS($J$7:$J$7)<=$F$3,SMALL($H$7:$H$106,ROWS($J$7:J21)),"") -> 15 | K21: =IF($H21="","",INDEX($B$7:$H$106,_xlfn.AGGREGATE(14,6,ROW($H$7:$H$106)-ROW($H$7)+1/($H$7:$H$106=J21),COUNTIF($J$7:J21,J21)),1)) -> Marthaler Martin | L21: =IF($H21="","",INDEX($B$7:$H$106,_xlfn.AGGREGATE(14,6,ROW($H$7:$H$106)-ROW($H$7)+1/($H$7:$H$106=J21),COUNTIF($J$7:J21,J21)),5)) -> 1332 | N21: =ISBLANK(Vorrunde!F23) -> FALSE | O21: 15
A22: =Teilnehmerliste!A21 -> 16 | B22: =Teilnehmerliste!B21 &" "&Teilnehmerliste!C21 -> Cadonau Daniel | C22: =Vorrunde!$BS$45 -> 117 | D22: =Endplatzierung!$AJ$34 -> 60 | E22: =Finalrunde!$DO$31 -> 950 | F22: =IF(Teilnehmerliste!B21="","",SUM(C22:E22)) -> 1127 | H22: 37 | J22: =IF(ROWS($J$7:$J$7)<=$F$3,SMALL($H$7:$H$106,ROWS($J$7:J22)),"") -> 15 | K22: =IF($H22="","",INDEX($B$7:$H$106,_xlfn.AGGREGATE(14,6,ROW($H$7:$H$106)-ROW($H$7)+1/($H$7:$H$106=J22),COUNTIF($J$7:J22,J22)),1)) -> Burkart Louis | L22: =IF($H22="","",INDEX($B$7:$H$106,_xlfn.AGGREGATE(14,6,ROW($H$7:$H$106)-ROW($H$7)+1/($H$7:$H$106=J22),COUNTIF($J$7:J22,J22)),5)) -> 1332 | N22: =ISBLANK(Vorrunde!F24) -> FALSE | O22: 16
A23: =Teilnehmerliste!A22 -> 17 | B23: =Teilnehmerliste!B22 &" "&Teilnehmerliste!C22 -> Cadonau Deliz | C23: =Vorrunde!$BW$45 -> 101 | D23: =Endplatzierung!$AL$34 -> 60 | E23: =Finalrunde!$DV$31 -> 800 | F23: =IF(Teilnehmerliste!B22="","",SUM(C23:E23)) -> 961 | H23: 64 | J23: =IF(ROWS($J$7:$J$7)<=$F$3,SMALL($H$7:$H$106,ROWS($J$7:J23)),"") -> 17 | K23: =IF($H23="","",INDEX($B$7:$H$106,_xlfn.AGGREGATE(14,6,ROW($H$7:$H$106)-ROW($H$7)+1/($H$7:$H$106=J23),COUNTIF($J$7:J23,J23)),1)) -> Gygli Reto | L23: =IF($H23="","",INDEX($B$7:$H$106,_xlfn.AGGREGATE(14,6,ROW($H$7:$H$106)-ROW($H$7)+1/($H$7:$H$106=J23),COUNTIF($J$7:J23,J23)),5)) -> 1317 | N23: =ISBLANK(Vorrunde!F25) -> FALSE | O23: 17
A24: =Teilnehmerliste!A23 -> 18 | B24: =Teilnehmerliste!B23 &" "&Teilnehmerliste!C23 -> Cadonau Florian | C24: =Vorrunde!$CA$45 -> 125 | D24: =Endplatzierung!$AN$34 -> 120 | E24: =Finalrunde!$EC$31 -> 1020 | F24: =IF(Teilnehmerliste!B23="","",SUM(C24:E24)) -> 1265 | H24: 21 | J24: =IF(ROWS($J$7:$J$7)<=$F$3,SMALL($H$7:$H$106,ROWS($J$7:J24)),"") -> 18 | K24: =IF($H24="","",INDEX($B$7:$H$106,_xlfn.AGGREGATE(14,6,ROW($H$7:$H$106)-ROW($H$7)+1/($H$7:$H$106=J24),COUNTIF($J$7:J24,J24)),1)) -> D'Acunto Lisa | L24: =IF($H24="","",INDEX($B$7:$H$106,_xlfn.AGGREGATE(14,6,ROW($H$7:$H$106)-ROW($H$7)+1/($H$7:$H$106=J24),COUNTIF($J$7:J24,J24)),5)) -> 1315 | N24: =ISBLANK(Vorrunde!F26) -> FALSE | O24: 18
A25: =Teilnehmerliste!A24 -> 19 | B25: =Teilnehmerliste!B24 &" "&Teilnehmerliste!C24 -> Christiansen Olo | C25: =Vorrunde!$CE$45 -> 109 | D25: =Endplatzierung!$AP$34 -> 160 | E25: =Finalrunde!$EJ$31 -> 690 | F25: =IF(Teilnehmerliste!B24="","",SUM(C25:E25)) -> 959 | H25: 65 | J25: =IF(ROWS($J$7:$J$7)<=$F$3,SMALL($H$7:$H$106,ROWS($J$7:J25)),"") -> 19 | K25: =IF($H25="","",INDEX($B$7:$H$106,_xlfn.AGGREGATE(14,6,ROW($H$7:$H$106)-ROW($H$7)+1/($H$7:$H$106=J25),COUNTIF($J$7:J25,J25)),1)) -> Gygli Timothy | L25: =IF($H25="","",INDEX($B$7:$H$106,_xlfn.AGGREGATE(14,6,ROW($H$7:$H$106)-ROW($H$7)+1/($H$7:$H$106=J25),COUNTIF($J$7:J25,J25)),5)) -> 1287 | N25: =ISBLANK(Vorrunde!F27) -> FALSE | O25: 19
A26: =Teilnehmerliste!A25 -> 20 | B26: =Teilnehmerliste!B25 &" "&Teilnehmerliste!C25 -> Da Costa Leonardo | C26: =Vorrunde!$CI$45 -> 113 | D26: =Endplatzierung!$AR$34 -> 80 | E26: =Finalrunde!$EQ$31 -> 770 | F26: =IF(Teilnehmerliste!B25="","",SUM(C26:E26)) -> 963 | H26: 62 | J26: =IF(ROWS($J$7:$J$7)<=$F$3,SMALL($H$7:$H$106,ROWS($J$7:J26)),"") -> 20 | K26: =IF($H26="","",INDEX($B$7:$H$106,_xlfn.AGGREGATE(14,6,ROW($H$7:$H$106)-ROW($H$7)+1/($H$7:$H$106=J26),COUNTIF($J$7:J26,J26)),1)) -> Thormann Armando | L26: =IF($H26="","",INDEX($B$7:$H$106,_xlfn.AGGREGATE(14,6,ROW($H$7:$H$106)-ROW($H$7)+1/($H$7:$H$106=J26),COUNTIF($J$7:J26,J26)),5)) -> 1281 | N26: =ISBLANK(Vorrunde!F28) -> FALSE | O26: 20
A27: =Teilnehmerliste!A26 -> 21 | B27: =Teilnehmerliste!B26 &" "&Teilnehmerliste!C26 -> D'Acunto Lisa | C27: =Vorrunde!$CM$45 -> 165 | D27: =Endplatzierung!$AT$34 -> 80 | E27: =Finalrunde!$N$62 -> 1070 | F27: =IF(Teilnehmerliste!B26="","",SUM(C27:E27)) -> 1315 | H27: 18 | J27: =IF(ROWS($J$7:$J$7)<=$F$3,SMALL($H$7:$H$106,ROWS($J$7:J27)),"") -> 21 | K27: =IF($H27="","",INDEX($B$7:$H$106,_xlfn.AGGREGATE(14,6,ROW($H$7:$H$106)-ROW($H$7)+1/($H$7:$H$106=J27),COUNTIF($J$7:J27,J27)),1)) -> Cadonau Florian | L27: =IF($H27="","",INDEX($B$7:$H$106,_xlfn.AGGREGATE(14,6,ROW($H$7:$H$106)-ROW($H$7)+1/($H$7:$H$106=J27),COUNTIF($J$7:J27,J27)),5)) -> 1265 | N27: =ISBLANK(Vorrunde!F29) -> FALSE | O27: 21
A28: =Teilnehmerliste!A27 -> 22 | B28: =Teilnehmerliste!B27 &" "&Teilnehmerliste!C27 -> D'Acunto Niva | C28: =Vorrunde!$CQ$45 -> 108 | D28: =Endplatzierung!$AV$34 -> 80 | E28: =Finalrunde!$U$62 -> 800 | F28: =IF(Teilnehmerliste!B27="","",SUM(C28:E28)) -> 988 | H28: 57 | J28: =IF(ROWS($J$7:$J$7)<=$F$3,SMALL($H$7:$H$106,ROWS($J$7:J28)),"") -> 22 | K28: =IF($H28="","",INDEX($B$7:$H$106,_xlfn.AGGREGATE(14,6,ROW($H$7:$H$106)-ROW($H$7)+1/($H$7:$H$106=J28),COUNTIF($J$7:J28,J28)),1)) -> Bartholet Philippe | L28: =IF($H28="","",INDEX($B$7:$H$106,_xlfn.AGGREGATE(14,6,ROW($H$7:$H$106)-ROW($H$7)+1/($H$7:$H$106=J28),COUNTIF($J$7:J28,J28)),5)) -> 1252 | N28: =ISBLANK(Vorrunde!F30) -> FALSE | O28: 22
A29: =Teilnehmerliste!A28 -> 23 | B29: =Teilnehmerliste!B28 &" "&Teilnehmerliste!C28 -> D'Acunto Vinci | C29: =Vorrunde!$CU$45 -> 117 | D29: =Endplatzierung!$AX$34 -> 100 | E29: =Finalrunde!$AB$62 -> 1130 | F29: =IF(Teilnehmerliste!B28="","",SUM(C29:E29)) -> 1347 | H29: 12 | J29: =IF(ROWS($J$7:$J$7)<=$F$3,SMALL($H$7:$H$106,ROWS($J$7:J29)),"") -> 23 | K29: =IF($H29="","",INDEX($B$7:$H$106,_xlfn.AGGREGATE(14,6,ROW($H$7:$H$106)-ROW($H$7)+1/($H$7:$H$106=J29),COUNTIF($J$7:J29,J29)),1)) -> Walser Stefan | L29: =IF($H29="","",INDEX($B$7:$H$106,_xlfn.AGGREGATE(14,6,ROW($H$7:$H$106)-ROW($H$7)+1/($H$7:$H$106=J29),COUNTIF($J$7:J29,J29)),5)) -> 1246 | N29: =ISBLANK(Vorrunde!F31) -> FALSE | O29: 23
A30: =Teilnehmerliste!A29 -> 24 | B30: =Teilnehmerliste!B29 &" "&Teilnehmerliste!C29 -> Dukic Goran | C30: =Vorrunde!$CY$45 -> 99 | D30: =Endplatzierung!$AZ$34 -> 140 | E30: =Finalrunde!$AI$62 -> 950 | F30: =IF(Teilnehmerliste!B29="","",SUM(C30:E30)) -> 1189 | H30: 32 | J30: =IF(ROWS($J$7:$J$7)<=$F$3,SMALL($H$7:$H$106,ROWS($J$7:J30)),"") -> 24 | K30: =IF($H30="","",INDEX($B$7:$H$106,_xlfn.AGGREGATE(14,6,ROW($H$7:$H$106)-ROW($H$7)+1/($H$7:$H$106=J30),COUNTIF($J$7:J30,J30)),1)) -> Treichler Lea | L30: =IF($H30="","",INDEX($B$7:$H$106,_xlfn.AGGREGATE(14,6,ROW($H$7:$H$106)-ROW($H$7)+1/($H$7:$H$106=J30),COUNTIF($J$7:J30,J30)),5)) -> 1238 | N30: =ISBLANK(Vorrunde!F32) -> FALSE | O30: 24
A31: =Teilnehmerliste!A30 -> 25 | B31: =Teilnehmerliste!B30 &" "&Teilnehmerliste!C30 -> Duvnjak Dino | C31: =Vorrunde!$DC$45 -> 141 | D31: =Endplatzierung!$BB$34 -> 120 | E31: =Finalrunde!$AP$62 -> 970 | F31: =IF(Teilnehmerliste!B30="","",SUM(C31:E31)) -> 1231 | H31: 26 | J31: =IF(ROWS($J$7:$J$7)<=$F$3,SMALL($H$7:$H$106,ROWS($J$7:J31)),"") -> 24 | K31: =IF($H31="","",INDEX($B$7:$H$106,_xlfn.AGGREGATE(14,6,ROW($H$7:$H$106)-ROW($H$7)+1/($H$7:$H$106=J31),COUNTIF($J$7:J31,J31)),1)) -> Brunner Nicolas | L31: =IF($H31="","",INDEX($B$7:$H$106,_xlfn.AGGREGATE(14,6,ROW($H$7:$H$106)-ROW($H$7)+1/($H$7:$H$106=J31),COUNTIF($J$7:J31,J31)),5)) -> 1238 | N31: =ISBLANK(Vorrunde!F33) -> FALSE | O31: 25
A32: =Teilnehmerliste!A31 -> 26 | B32: =Teilnehmerliste!B31 &" "&Teilnehmerliste!C31 -> Figaro Marlon | C32: =Vorrunde!$DG$45 -> 75 | D32: =Endplatzierung!$BD$34 -> 120 | E32: =Finalrunde!$AW$62 -> 540 | F32: =IF(Teilnehmerliste!B31="","",SUM(C32:E32)) -> 735 | H32: 75 | J32: =IF(ROWS($J$7:$J$7)<=$F$3,SMALL($H$7:$H$106,ROWS($J$7:J32)),"") -> 26 | K32: =IF($H32="","",INDEX($B$7:$H$106,_xlfn.AGGREGATE(14,6,ROW($H$7:$H$106)-ROW($H$7)+1/($H$7:$H$106=J32),COUNTIF($J$7:J32,J32)),1)) -> Duvnjak Dino | L32: =IF($H32="","",INDEX($B$7:$H$106,_xlfn.AGGREGATE(14,6,ROW($H$7:$H$106)-ROW($H$7)+1/($H$7:$H$106=J32),COUNTIF($J$7:J32,J32)),5)) -> 1231 | N32: =ISBLANK(Vorrunde!F34) -> FALSE | O32: 26
A33: =Teilnehmerliste!A32 -> 27 | B33: =Teilnehmerliste!B32 &" "&Teilnehmerliste!C32 -> Foscaldi Maurizio | C33: =Vorrunde!$DK$45 -> 128 | D33: =Endplatzierung!$BF$34 -> 120 | E33: =Finalrunde!$BD$62 -> 690 | F33: =IF(Teilnehmerliste!B32="","",SUM(C33:E33)) -> 938 | H33: 67 | J33: =IF(ROWS($J$7:$J$7)<=$F$3,SMALL($H$7:$H$106,ROWS($J$7:J33)),"") -> 27 | K33: =IF($H33="","",INDEX($B$7:$H$106,_xlfn.AGGREGATE(14,6,ROW($H$7:$H$106)-ROW($H$7)+1/($H$7:$H$106=J33),COUNTIF($J$7:J33,J33)),1)) -> Lanz André | L33: =IF($H33="","",INDEX($B$7:$H$106,_xlfn.AGGREGATE(14,6,ROW($H$7:$H$106)-ROW($H$7)+1/($H$7:$H$106=J33),COUNTIF($J$7:J33,J33)),5)) -> 1228 | N33: =ISBLANK(Vorrunde!F35) -> FALSE | O33: 27
A34: =Teilnehmerliste!A33 -> 28 | B34: =Teilnehmerliste!B33 &" "&Teilnehmerliste!C33 -> Giuralarocca Roberto | C34: =Vorrunde!$DO$45 -> 109 | D34: =Endplatzierung!$BH$34 -> 100 | E34: =Finalrunde!$BK$62 -> 740 | F34: =IF(Teilnehmerliste!B33="","",SUM(C34:E34)) -> 949 | H34: 66 | J34: =IF(ROWS($J$7:$J$7)<=$F$3,SMALL($H$7:$H$106,ROWS($J$7:J34)),"") -> 28 | K34: =IF($H34="","",INDEX($B$7:$H$106,_xlfn.AGGREGATE(14,6,ROW($H$7:$H$106)-ROW($H$7)+1/($H$7:$H$106=J34),COUNTIF($J$7:J34,J34)),1)) -> Lischer Franz | L34: =IF($H34="","",INDEX($B$7:$H$106,_xlfn.AGGREGATE(14,6,ROW($H$7:$H$106)-ROW($H$7)+1/($H$7:$H$106=J34),COUNTIF($J$7:J34,J34)),5)) -> 1216 | N34: =ISBLANK(Vorrunde!F36) -> FALSE | O34: 28
A35: =Teilnehmerliste!A34 -> 29 | B35: =Teilnehmerliste!B34 &" "&Teilnehmerliste!C34 -> Gomes Rui | C35: =Vorrunde!$DS$45 -> 103 | D35: =Endplatzierung!$BJ$34 -> 40 | E35: =Finalrunde!$BR$62 -> 940 | F35: =IF(Teilnehmerliste!B34="","",SUM(C35:E35)) -> 1083 | H35: 45 | J35: =IF(ROWS($J$7:$J$7)<=$F$3,SMALL($H$7:$H$106,ROWS($J$7:J35)),"") -> 29 | K35: =IF($H35="","",INDEX($B$7:$H$106,_xlfn.AGGREGATE(14,6,ROW($H$7:$H$106)-ROW($H$7)+1/($H$7:$H$106=J35),COUNTIF($J$7:J35,J35)),1)) -> Wang Jingwen | L35: =IF($H35="","",INDEX($B$7:$H$106,_xlfn.AGGREGATE(14,6,ROW($H$7:$H$106)-ROW($H$7)+1/($H$7:$H$106=J35),COUNTIF($J$7:J35,J35)),5)) -> 1199 | N35: =ISBLANK(Vorrunde!F37) -> FALSE | O35: 29
A36: =Teilnehmerliste!A35 -> 30 | B36: =Teilnehmerliste!B35 &" "&Teilnehmerliste!C35 -> Grosse Laurent | C36: =Vorrunde!$DW$45 -> 125 | D36: =Endplatzierung!$BL$34 -> 160 | E36: =Finalrunde!$BY$62 -> 1070 | F36: =IF(Teilnehmerliste!B35="","",SUM(C36:E36)) -> 1355 | H36: 11 | J36: =IF(ROWS($J$7:$J$7)<=$F$3,SMALL($H$7:$H$106,ROWS($J$7:J36)),"") -> 30 | K36: =IF($H36="","",INDEX($B$7:$H$106,_xlfn.AGGREGATE(14,6,ROW($H$7:$H$106)-ROW($H$7)+1/($H$7:$H$106=J36),COUNTIF($J$7:J36,J36)),1)) -> Agorastos Panos | L36: =IF($H36="","",INDEX($B$7:$H$106,_xlfn.AGGREGATE(14,6,ROW($H$7:$H$106)-ROW($H$7)+1/($H$7:$H$106=J36),COUNTIF($J$7:J36,J36)),5)) -> 1198 | N36: =ISBLANK(Vorrunde!F38) -> FALSE | O36: 30
A37: =Teilnehmerliste!A36 -> 31 | B37: =Teilnehmerliste!B36 &" "&Teilnehmerliste!C36 -> Gygli Gregory | C37: =Vorrunde!$EA$45 -> 95 | D37: =Endplatzierung!$BN$34 -> 220 | E37: =Finalrunde!$CF$62 -> 820 | F37: =IF(Teilnehmerliste!B36="","",SUM(C37:E37)) -> 1135 | H37: 36 | J37: =IF(ROWS($J$7:$J$7)<=$F$3,SMALL($H$7:$H$106,ROWS($J$7:J37)),"") -> 31 | K37: =IF($H37="","",INDEX($B$7:$H$106,_xlfn.AGGREGATE(14,6,ROW($H$7:$H$106)-ROW($H$7)+1/($H$7:$H$106=J37),COUNTIF($J$7:J37,J37)),1)) -> Pek Lechena | L37: =IF($H37="","",INDEX($B$7:$H$106,_xlfn.AGGREGATE(14,6,ROW($H$7:$H$106)-ROW($H$7)+1/($H$7:$H$106=J37),COUNTIF($J$7:J37,J37)),5)) -> 1195 | N37: =ISBLANK(Vorrunde!F39) -> FALSE | O37: 31
A38: =Teilnehmerliste!A37 -> 32 | B38: =Teilnehmerliste!B37 &" "&Teilnehmerliste!C37 -> Gygli Reto | C38: =Vorrunde!$EE$45 -> 117 | D38: =Endplatzierung!$BP$34 -> 100 | E38: =Finalrunde!$CM$62 -> 1100 | F38: =IF(Teilnehmerliste!B37="","",SUM(C38:E38)) -> 1317 | H38: 17 | J38: =IF(ROWS($J$7:$J$7)<=$F$3,SMALL($H$7:$H$106,ROWS($J$7:J38)),"") -> 32 | K38: =IF($H38="","",INDEX($B$7:$H$106,_xlfn.AGGREGATE(14,6,ROW($H$7:$H$106)-ROW($H$7)+1/($H$7:$H$106=J38),COUNTIF($J$7:J38,J38)),1)) -> Dukic Goran | L38: =IF($H38="","",INDEX($B$7:$H$106,_xlfn.AGGREGATE(14,6,ROW($H$7:$H$106)-ROW($H$7)+1/($H$7:$H$106=J38),COUNTIF($J$7:J38,J38)),5)) -> 1189 | N38: =ISBLANK(Vorrunde!F40) -> FALSE | O38: 32
A39: =Teilnehmerliste!A38 -> 33 | B39: =Teilnehmerliste!B38 &" "&Teilnehmerliste!C38 -> Gygli Sarina | C39: =Vorrunde!$EI$45 -> 116 | D39: =Endplatzierung!$BR$34 -> 140 | E39: =Finalrunde!$CT$62 -> 800 | F39: =IF(Teilnehmerliste!B38="","",SUM(C39:E39)) -> 1056 | H39: 50 | J39: =IF(ROWS($J$7:$J$7)<=$F$3,SMALL($H$7:$H$106,ROWS($J$7:J39)),"") -> 33 | K39: =IF($H39="","",INDEX($B$7:$H$106,_xlfn.AGGREGATE(14,6,ROW($H$7:$H$106)-ROW($H$7)+1/($H$7:$H$106=J39),COUNTIF($J$7:J39,J39)),1)) -> Rohner Martin | L39: =IF($H39="","",INDEX($B$7:$H$106,_xlfn.AGGREGATE(14,6,ROW($H$7:$H$106)-ROW($H$7)+1/($H$7:$H$106=J39),COUNTIF($J$7:J39,J39)),5)) -> 1188 | N39: =ISBLANK(Vorrunde!F41) -> FALSE | O39: 33
A40: =Teilnehmerliste!A39 -> 34 | B40: =Teilnehmerliste!B39 &" "&Teilnehmerliste!C39 -> Gygli Stefan | C40: =Vorrunde!$EM$45 -> 132 | D40: =Endplatzierung!$BT$34 -> 140 | E40: =Finalrunde!$DA$62 -> 1410 | F40: =IF(Teilnehmerliste!B39="","",SUM(C40:E40)) -> 1682 | H40: 3 | J40: =IF(ROWS($J$7:$J$7)<=$F$3,SMALL($H$7:$H$106,ROWS($J$7:J40)),"") -> 34 | K40: =IF($H40="","",INDEX($B$7:$H$106,_xlfn.AGGREGATE(14,6,ROW($H$7:$H$106)-ROW($H$7)+1/($H$7:$H$106=J40),COUNTIF($J$7:J40,J40)),1)) -> Handanagic Djuma | L40: =IF($H40="","",INDEX($B$7:$H$106,_xlfn.AGGREGATE(14,6,ROW($H$7:$H$106)-ROW($H$7)+1/($H$7:$H$106=J40),COUNTIF($J$7:J40,J40)),5)) -> 1172 | N40: =ISBLANK(Vorrunde!F42) -> FALSE | O40: 34
A41: =Teilnehmerliste!A40 -> 35 | B41: =Teilnehmerliste!B40 &" "&Teilnehmerliste!C40 -> Gygli Timothy | C41: =Vorrunde!$EQ$45 -> 137 | D41: =Endplatzierung!$BV$34 -> 100 | E41: =Finalrunde!$DH$62 -> 1050 | F41: =IF(Teilnehmerliste!B40="","",SUM(C41:E41)) -> 1287 | H41: 19 | J41: =IF(ROWS($J$7:$J$7)<=$F$3,SMALL($H$7:$H$106,ROWS($J$7:J41)),"") -> 35 | K41: =IF($H41="","",INDEX($B$7:$H$106,_xlfn.AGGREGATE(14,6,ROW($H$7:$H$106)-ROW($H$7)+1/($H$7:$H$106=J41),COUNTIF($J$7:J41,J41)),1)) -> Silva Bruno | L41: =IF($H41="","",INDEX($B$7:$H$106,_xlfn.AGGREGATE(14,6,ROW($H$7:$H$106)-ROW($H$7)+1/($H$7:$H$106=J41),COUNTIF($J$7:J41,J41)),5)) -> 1152 | N41: =ISBLANK(Vorrunde!F43) -> FALSE | O41: 35
A42: =Teilnehmerliste!A41 -> 36 | B42: =Teilnehmerliste!B41 &" "&Teilnehmerliste!C41 -> Haab Florian | C42: =Vorrunde!$EU$45 -> 128 | D42: =Endplatzierung!$BX$34 -> 120 | E42: =Finalrunde!$DO$62 -> 820 | F42: =IF(Teilnehmerliste!B41="","",SUM(C42:E42)) -> 1068 | H42: 48 | J42: =IF(ROWS($J$7:$J$7)<=$F$3,SMALL($H$7:$H$106,ROWS($J$7:J42)),"") -> 36 | K42: =IF($H42="","",INDEX($B$7:$H$106,_xlfn.AGGREGATE(14,6,ROW($H$7:$H$106)-ROW($H$7)+1/($H$7:$H$106=J42),COUNTIF($J$7:J42,J42)),1)) -> Gygli Gregory | L42: =IF($H42="","",INDEX($B$7:$H$106,_xlfn.AGGREGATE(14,6,ROW($H$7:$H$106)-ROW($H$7)+1/($H$7:$H$106=J42),COUNTIF($J$7:J42,J42)),5)) -> 1135 | N42: =ISBLANK(Vorrunde!F44) -> FALSE | O42: 36
A43: =Teilnehmerliste!A42 -> 37 | B43: =Teilnehmerliste!B42 &" "&Teilnehmerliste!C42 -> Handanagic Djuma | C43: =Vorrunde!$EY$45 -> 112 | D43: =Endplatzierung!$BZ$34 -> 100 | E43: =Finalrunde!$DV$62 -> 960 | F43: =IF(Teilnehmerliste!B42="","",SUM(C43:E43)) -> 1172 | H43: 34 | J43: =IF(ROWS($J$7:$J$7)<=$F$3,SMALL($H$7:$H$106,ROWS($J$7:J43)),"") -> 37 | K43: =IF($H43="","",INDEX($B$7:$H$106,_xlfn.AGGREGATE(14,6,ROW($H$7:$H$106)-ROW($H$7)+1/($H$7:$H$106=J43),COUNTIF($J$7:J43,J43)),1)) -> Cadonau Daniel | L43: =IF($H43="","",INDEX($B$7:$H$106,_xlfn.AGGREGATE(14,6,ROW($H$7:$H$106)-ROW($H$7)+1/($H$7:$H$106=J43),COUNTIF($J$7:J43,J43)),5)) -> 1127 | N43: =ISBLANK(Finalrunde!F11) -> FALSE | O43: 37
A44: =Teilnehmerliste!A43 -> 38 | B44: =Teilnehmerliste!B43 &" "&Teilnehmerliste!C43 -> Isenschmid Agnes | C44: =Vorrunde!$FC$45 -> 136 | D44: =Endplatzierung!$CB$34 -> 100 | E44: =Finalrunde!$EC$62 -> 1160 | F44: =IF(Teilnehmerliste!B43="","",SUM(C44:E44)) -> 1396 | H44: 9 | J44: =IF(ROWS($J$7:$J$7)<=$F$3,SMALL($H$7:$H$106,ROWS($J$7:J44)),"") -> 38 | K44: =IF($H44="","",INDEX($B$7:$H$106,_xlfn.AGGREGATE(14,6,ROW($H$7:$H$106)-ROW($H$7)+1/($H$7:$H$106=J44),COUNTIF($J$7:J44,J44)),1)) -> Treichler Reto | L44: =IF($H44="","",INDEX($B$7:$H$106,_xlfn.AGGREGATE(14,6,ROW($H$7:$H$106)-ROW($H$7)+1/($H$7:$H$106=J44),COUNTIF($J$7:J44,J44)),5)) -> 1118 | N44: =ISBLANK(Finalrunde!F12) -> FALSE | O44: 38
A45: =Teilnehmerliste!A44 -> 39 | B45: =Teilnehmerliste!B44 &" "&Teilnehmerliste!C44 -> Isenschmid Andreas | C45: =Vorrunde!$FG$45 -> 131 | D45: =Endplatzierung!$CD$34 -> 160 | E45: =Finalrunde!$EJ$62 -> 1050 | F45: =IF(Teilnehmerliste!B44="","",SUM(C45:E45)) -> 1341 | H45: 13 | J45: =IF(ROWS($J$7:$J$7)<=$F$3,SMALL($H$7:$H$106,ROWS($J$7:J45)),"") -> 39 | K45: =IF($H45="","",INDEX($B$7:$H$106,_xlfn.AGGREGATE(14,6,ROW($H$7:$H$106)-ROW($H$7)+1/($H$7:$H$106=J45),COUNTIF($J$7:J45,J45)),1)) -> Brunner Manuel | L45: =IF($H45="","",INDEX($B$7:$H$106,_xlfn.AGGREGATE(14,6,ROW($H$7:$H$106)-ROW($H$7)+1/($H$7:$H$106=J45),COUNTIF($J$7:J45,J45)),5)) -> 1116 | N45: =ISBLANK(Finalrunde!F13) -> FALSE | O45: 39
A46: =Teilnehmerliste!A45 -> 40 | B46: =Teilnehmerliste!B45 &" "&Teilnehmerliste!C45 -> Isenschmid Michi | C46: =Vorrunde!$FK$45 -> 125 | D46: =Endplatzierung!$CF$34 -> 40 | E46: =Finalrunde!$EQ$62 -> 800 | F46: =IF(Teilnehmerliste!B45="","",SUM(C46:E46)) -> 965 | H46: 61 | J46: =IF(ROWS($J$7:$J$7)<=$F$3,SMALL($H$7:$H$106,ROWS($J$7:J46)),"") -> 40 | K46: =IF($H46="","",INDEX($B$7:$H$106,_xlfn.AGGREGATE(14,6,ROW($H$7:$H$106)-ROW($H$7)+1/($H$7:$H$106=J46),COUNTIF($J$7:J46,J46)),1)) -> Schommarz Erich | L46: =IF($H46="","",INDEX($B$7:$H$106,_xlfn.AGGREGATE(14,6,ROW($H$7:$H$106)-ROW($H$7)+1/($H$7:$H$106=J46),COUNTIF($J$7:J46,J46)),5)) -> 1096 | N46: =ISBLANK(Finalrunde!F14) -> FALSE | O46: 40
A47: =Teilnehmerliste!A46 -> 41 | B47: =Teilnehmerliste!B46 &" "&Teilnehmerliste!C46 -> Jones Aiden | C47: =Vorrunde!$FO$45 -> 108 | D47: =Endplatzierung!$CH$34 -> 120 | E47: =Finalrunde!$N$93 -> 1340 | F47: =IF(Teilnehmerliste!B46="","",SUM(C47:E47)) -> 1568 | H47: 4 | J47: =IF(ROWS($J$7:$J$7)<=$F$3,SMALL($H$7:$H$106,ROWS($J$7:J47)),"") -> 41 | K47: =IF($H47="","",INDEX($B$7:$H$106,_xlfn.AGGREGATE(14,6,ROW($H$7:$H$106)-ROW($H$7)+1/($H$7:$H$106=J47),COUNTIF($J$7:J47,J47)),1)) -> Zachmann Jasmine | L47: =IF($H47="","",INDEX($B$7:$H$106,_xlfn.AGGREGATE(14,6,ROW($H$7:$H$106)-ROW($H$7)+1/($H$7:$H$106=J47),COUNTIF($J$7:J47,J47)),5)) -> 1094 | N47: =ISBLANK(Finalrunde!F15) -> FALSE | O47: 41
A48: =Teilnehmerliste!A47 -> 42 | B48: =Teilnehmerliste!B47 &" "&Teilnehmerliste!C47 -> Kalinci Murat | C48: =Vorrunde!$FS$45 -> 115 | D48: =Endplatzierung!$CJ$34 -> 100 | E48: =Finalrunde!$U$93 -> 1310 | F48: =IF(Teilnehmerliste!B47="","",SUM(C48:E48)) -> 1525 | H48: 7 | J48: =IF(ROWS($J$7:$J$7)<=$F$3,SMALL($H$7:$H$106,ROWS($J$7:J48)),"") -> 41 | K48: =IF($H48="","",INDEX($B$7:$H$106,_xlfn.AGGREGATE(14,6,ROW($H$7:$H$106)-ROW($H$7)+1/($H$7:$H$106=J48),COUNTIF($J$7:J48,J48)),1)) -> Beck Mara | L48: =IF($H48="","",INDEX($B$7:$H$106,_xlfn.AGGREGATE(14,6,ROW($H$7:$H$106)-ROW($H$7)+1/($H$7:$H$106=J48),COUNTIF($J$7:J48,J48)),5)) -> 1094 | N48: =ISBLANK(Finalrunde!F16) -> FALSE | O48: 42
A49: =Teilnehmerliste!A48 -> 43 | B49: =Teilnehmerliste!B48 &" "&Teilnehmerliste!C48 -> Keller Pascal | C49: =Vorrunde!$FW$45 -> 139 | D49: =Endplatzierung!$CL$34 -> 80 | E49: =Finalrunde!$AB$93 -> 1120 | F49: =IF(Teilnehmerliste!B48="","",SUM(C49:E49)) -> 1339 | H49: 14 | J49: =IF(ROWS($J$7:$J$7)<=$F$3,SMALL($H$7:$H$106,ROWS($J$7:J49)),"") -> 43 | K49: =IF($H49="","",INDEX($B$7:$H$106,_xlfn.AGGREGATE(14,6,ROW($H$7:$H$106)-ROW($H$7)+1/($H$7:$H$106=J49),COUNTIF($J$7:J49,J49)),1)) -> Bosshart Michael | L49: =IF($H49="","",INDEX($B$7:$H$106,_xlfn.AGGREGATE(14,6,ROW($H$7:$H$106)-ROW($H$7)+1/($H$7:$H$106=J49),COUNTIF($J$7:J49,J49)),5)) -> 1086 | N49: =ISBLANK(Finalrunde!F17) -> FALSE | O49: 43
A50: =Teilnehmerliste!A49 -> 44 | B50: =Teilnehmerliste!B49 &" "&Teilnehmerliste!C49 -> Lanz André | C50: =Vorrunde!$GA$45 -> 88 | D50: =Endplatzierung!$CN$34 -> 60 | E50: =Finalrunde!$AI$93 -> 1080 | F50: =IF(Teilnehmerliste!B49="","",SUM(C50:E50)) -> 1228 | H50: 27 | J50: =IF(ROWS($J$7:$J$7)<=$F$3,SMALL($H$7:$H$106,ROWS($J$7:J50)),"") -> 44 | K50: =IF($H50="","",INDEX($B$7:$H$106,_xlfn.AGGREGATE(14,6,ROW($H$7:$H$106)-ROW($H$7)+1/($H$7:$H$106=J50),COUNTIF($J$7:J50,J50)),1)) -> Rüegg Michael | L50: =IF($H50="","",INDEX($B$7:$H$106,_xlfn.AGGREGATE(14,6,ROW($H$7:$H$106)-ROW($H$7)+1/($H$7:$H$106=J50),COUNTIF($J$7:J50,J50)),5)) -> 1084 | N50: =ISBLANK(Finalrunde!F18) -> FALSE | O50: 44
A51: =Teilnehmerliste!A50 -> 45 | B51: =Teilnehmerliste!B50 &" "&Teilnehmerliste!C50 -> Lischer Franz | C51: =Vorrunde!$GE$45 -> 106 | D51: =Endplatzierung!$CP$34 -> 160 | E51: =Finalrunde!$AP$93 -> 950 | F51: =IF(Teilnehmerliste!B50="","",SUM(C51:E51)) -> 1216 | H51: 28 | J51: =IF(ROWS($J$7:$J$7)<=$F$3,SMALL($H$7:$H$106,ROWS($J$7:J51)),"") -> 45 | K51: =IF($H51="","",INDEX($B$7:$H$106,_xlfn.AGGREGATE(14,6,ROW($H$7:$H$106)-ROW($H$7)+1/($H$7:$H$106=J51),COUNTIF($J$7:J51,J51)),1)) -> Babic Mario | L51: =IF($H51="","",INDEX($B$7:$H$106,_xlfn.AGGREGATE(14,6,ROW($H$7:$H$106)-ROW($H$7)+1/($H$7:$H$106=J51),COUNTIF($J$7:J51,J51)),5)) -> 1083 | N51: =ISBLANK(Finalrunde!F20) -> FALSE | O51: 45
A52: =Teilnehmerliste!A51 -> 46 | B52: =Teilnehmerliste!B51 &" "&Teilnehmerliste!C51 -> Lütolf Marc | C52: =Vorrunde!$GI$45 -> 104 | D52: =Endplatzierung!$CR$34 -> 100 | E52: =Finalrunde!$AW$93 -> 1360 | F52: =IF(Teilnehmerliste!B51="","",SUM(C52:E52)) -> 1564 | H52: 5 | J52: =IF(ROWS($J$7:$J$7)<=$F$3,SMALL($H$7:$H$106,ROWS($J$7:J52)),"") -> 45 | K52: =IF($H52="","",INDEX($B$7:$H$106,_xlfn.AGGREGATE(14,6,ROW($H$7:$H$106)-ROW($H$7)+1/($H$7:$H$106=J52),COUNTIF($J$7:J52,J52)),1)) -> Schuster Ralph | L52: =IF($H52="","",INDEX($B$7:$H$106,_xlfn.AGGREGATE(14,6,ROW($H$7:$H$106)-ROW($H$7)+1/($H$7:$H$106=J52),COUNTIF($J$7:J52,J52)),5)) -> 1083 | N52: =ISBLANK(Finalrunde!F21) -> FALSE | O52: 46
A53: =Teilnehmerliste!A52 -> 47 | B53: =Teilnehmerliste!B52 &" "&Teilnehmerliste!C52 -> Marini Mauro | C53: =Vorrunde!$GM$45 -> 102 | D53: =Endplatzierung!$CT$34 -> 100 | E53: =Finalrunde!$BD$93 -> 600 | F53: =IF(Teilnehmerliste!B52="","",SUM(C53:E53)) -> 802 | H53: 74 | J53: =IF(ROWS($J$7:$J$7)<=$F$3,SMALL($H$7:$H$106,ROWS($J$7:J53)),"") -> 45 | K53: =IF($H53="","",INDEX($B$7:$H$106,_xlfn.AGGREGATE(14,6,ROW($H$7:$H$106)-ROW($H$7)+1/($H$7:$H$106=J53),COUNTIF($J$7:J53,J53)),1)) -> Gomes Rui | L53: =IF($H53="","",INDEX($B$7:$H$106,_xlfn.AGGREGATE(14,6,ROW($H$7:$H$106)-ROW($H$7)+1/($H$7:$H$106=J53),COUNTIF($J$7:J53,J53)),5)) -> 1083 | N53: =ISBLANK(Finalrunde!F22) -> FALSE | O53: 47
A54: =Teilnehmerliste!A53 -> 48 | B54: =Teilnehmerliste!B53 &" "&Teilnehmerliste!C53 -> Marthaler Martin | C54: =Vorrunde!$GQ$45 -> 112 | D54: =Endplatzierung!$CV$34 -> 60 | E54: =Finalrunde!$BK$93 -> 1160 | F54: =IF(Teilnehmerliste!B53="","",SUM(C54:E54)) -> 1332 | H54: 15 | J54: =IF(ROWS($J$7:$J$7)<=$F$3,SMALL($H$7:$H$106,ROWS($J$7:J54)),"") -> 48 | K54: =IF($H54="","",INDEX($B$7:$H$106,_xlfn.AGGREGATE(14,6,ROW($H$7:$H$106)-ROW($H$7)+1/($H$7:$H$106=J54),COUNTIF($J$7:J54,J54)),1)) -> Haab Florian | L54: =IF($H54="","",INDEX($B$7:$H$106,_xlfn.AGGREGATE(14,6,ROW($H$7:$H$106)-ROW($H$7)+1/($H$7:$H$106=J54),COUNTIF($J$7:J54,J54)),5)) -> 1068 | N54: =ISBLANK(Finalrunde!F23) -> FALSE | O54: 48
A55: =Teilnehmerliste!A54 -> 49 | B55: =Teilnehmerliste!B54 &" "&Teilnehmerliste!C54 -> Oliveira Telmo | C55: =Vorrunde!$GU$45 -> 99 | D55: =Endplatzierung!$CX$34 -> 80 | E55: =Finalrunde!$BR$93 -> 800 | F55: =IF(Teilnehmerliste!B54="","",SUM(C55:E55)) -> 979 | H55: 59 | J55: =IF(ROWS($J$7:$J$7)<=$F$3,SMALL($H$7:$H$106,ROWS($J$7:J55)),"") -> 49 | K55: =IF($H55="","",INDEX($B$7:$H$106,_xlfn.AGGREGATE(14,6,ROW($H$7:$H$106)-ROW($H$7)+1/($H$7:$H$106=J55),COUNTIF($J$7:J55,J55)),1)) -> Wullschleger Stefan | L55: =IF($H55="","",INDEX($B$7:$H$106,_xlfn.AGGREGATE(14,6,ROW($H$7:$H$106)-ROW($H$7)+1/($H$7:$H$106=J55),COUNTIF($J$7:J55,J55)),5)) -> 1064 | N55: =ISBLANK(Finalrunde!F25) -> FALSE | O55: 49
A56: =Teilnehmerliste!A55 -> 50 | B56: =Teilnehmerliste!B55 &" "&Teilnehmerliste!C55 -> Palma Luigi | C56: =Vorrunde!$GY$45 -> 69 | D56: =Endplatzierung!$CZ$34 -> 60 | E56: =Finalrunde!$BY$93 -> 800 | F56: =IF(Teilnehmerliste!B55="","",SUM(C56:E56)) -> 929 | H56: 68 | J56: =IF(ROWS($J$7:$J$7)<=$F$3,SMALL($H$7:$H$106,ROWS($J$7:J56)),"") -> 50 | K56: =IF($H56="","",INDEX($B$7:$H$106,_xlfn.AGGREGATE(14,6,ROW($H$7:$H$106)-ROW($H$7)+1/($H$7:$H$106=J56),COUNTIF($J$7:J56,J56)),1)) -> Gygli Sarina | L56: =IF($H56="","",INDEX($B$7:$H$106,_xlfn.AGGREGATE(14,6,ROW($H$7:$H$106)-ROW($H$7)+1/($H$7:$H$106=J56),COUNTIF($J$7:J56,J56)),5)) -> 1056 | N56: =ISBLANK(Finalrunde!F26) -> FALSE | O56: 50
A57: =Teilnehmerliste!A56 -> 51 | B57: =Teilnehmerliste!B56 &" "&Teilnehmerliste!C56 -> Pek Lechena | C57: =Vorrunde!$K$90 -> 95 | D57: =Endplatzierung!$F$68 -> 80 | E57: =Finalrunde!$CF$93 -> 1020 | F57: =IF(Teilnehmerliste!B56="","",SUM(C57:E57)) -> 1195 | H57: 31 | J57: =IF(ROWS($J$7:$J$7)<=$F$3,SMALL($H$7:$H$106,ROWS($J$7:J57)),"") -> 51 | K57: =IF($H57="","",INDEX($B$7:$H$106,_xlfn.AGGREGATE(14,6,ROW($H$7:$H$106)-ROW($H$7)+1/($H$7:$H$106=J57),COUNTIF($J$7:J57,J57)),1)) -> Burkart André | L57: =IF($H57="","",INDEX($B$7:$H$106,_xlfn.AGGREGATE(14,6,ROW($H$7:$H$106)-ROW($H$7)+1/($H$7:$H$106=J57),COUNTIF($J$7:J57,J57)),5)) -> 1042 | N57: =ISBLANK(Finalrunde!F28) -> FALSE | O57: 51
A58: =Teilnehmerliste!A57 -> 52 | B58: =Teilnehmerliste!B57 &" "&Teilnehmerliste!C57 -> Pietzke Jannis | C58: =Vorrunde!$O$90 -> 109 | D58: =Endplatzierung!$H$68 -> 120 | E58: =Finalrunde!$CM$93 -> 1320 | F58: =IF(Teilnehmerliste!B57="","",SUM(C58:E58)) -> 1549 | H58: 6 | J58: =IF(ROWS($J$7:$J$7)<=$F$3,SMALL($H$7:$H$106,ROWS($J$7:J58)),"") -> 52 | K58: =IF($H58="","",INDEX($B$7:$H$106,_xlfn.AGGREGATE(14,6,ROW($H$7:$H$106)-ROW($H$7)+1/($H$7:$H$106=J58),COUNTIF($J$7:J58,J58)),1)) -> Brunner Philip | L58: =IF($H58="","",INDEX($B$7:$H$106,_xlfn.AGGREGATE(14,6,ROW($H$7:$H$106)-ROW($H$7)+1/($H$7:$H$106=J58),COUNTIF($J$7:J58,J58)),5)) -> 1036 | N58: =ISBLANK(Finalrunde!F29) -> TRUE | O58: 52
A59: =Teilnehmerliste!A58 -> 53 | B59: =Teilnehmerliste!B58 &" "&Teilnehmerliste!C58 -> Rauscher Petra | C59: =Vorrunde!$S$90 -> 125 | D59: =Endplatzierung!$J$68 -> 120 | E59: =Finalrunde!$CT$93 -> 780 | F59: =IF(Teilnehmerliste!B58="","",SUM(C59:E59)) -> 1025 | H59: 54 | J59: =IF(ROWS($J$7:$J$7)<=$F$3,SMALL($H$7:$H$106,ROWS($J$7:J59)),"") -> 53 | K59: =IF($H59="","",INDEX($B$7:$H$106,_xlfn.AGGREGATE(14,6,ROW($H$7:$H$106)-ROW($H$7)+1/($H$7:$H$106=J59),COUNTIF($J$7:J59,J59)),1)) -> Blöchlinger/Edri Lara/Yaniv | L59: =IF($H59="","",INDEX($B$7:$H$106,_xlfn.AGGREGATE(14,6,ROW($H$7:$H$106)-ROW($H$7)+1/($H$7:$H$106=J59),COUNTIF($J$7:J59,J59)),5)) -> 1034
A60: =Teilnehmerliste!A59 -> 54 | B60: =Teilnehmerliste!B59 &" "&Teilnehmerliste!C59 -> Rohner Martin | C60: =Vorrunde!$W$90 -> 128 | D60: =Endplatzierung!$L$68 -> 60 | E60: =Finalrunde!$DA$93 -> 1000 | F60: =IF(Teilnehmerliste!B59="","",SUM(C60:E60)) -> 1188 | H60: 33 | J60: =IF(ROWS($J$7:$J$7)<=$F$3,SMALL($H$7:$H$106,ROWS($J$7:J60)),"") -> 54 | K60: =IF($H60="","",INDEX($B$7:$H$106,_xlfn.AGGREGATE(14,6,ROW($H$7:$H$106)-ROW($H$7)+1/($H$7:$H$106=J60),COUNTIF($J$7:J60,J60)),1)) -> Rauscher Petra | L60: =IF($H60="","",INDEX($B$7:$H$106,_xlfn.AGGREGATE(14,6,ROW($H$7:$H$106)-ROW($H$7)+1/($H$7:$H$106=J60),COUNTIF($J$7:J60,J60)),5)) -> 1025
A61: =Teilnehmerliste!A60 -> 55 | B61: =Teilnehmerliste!B60 &" "&Teilnehmerliste!C60 -> Rüegg Lynn | C61: =Vorrunde!$AA$90 -> 117 | D61: =Endplatzierung!$N$68 -> 120 | E61: =Finalrunde!$DH$93 -> 730 | F61: =IF(Teilnehmerliste!B60="","",SUM(C61:E61)) -> 967 | H61: 60 | J61: =IF(ROWS($J$7:$J$7)<=$F$3,SMALL($H$7:$H$106,ROWS($J$7:J61)),"") -> 55 | K61: =IF($H61="","",INDEX($B$7:$H$106,_xlfn.AGGREGATE(14,6,ROW($H$7:$H$106)-ROW($H$7)+1/($H$7:$H$106=J61),COUNTIF($J$7:J61,J61)),1)) -> Schwitter Corinne | L61: =IF($H61="","",INDEX($B$7:$H$106,_xlfn.AGGREGATE(14,6,ROW($H$7:$H$106)-ROW($H$7)+1/($H$7:$H$106=J61),COUNTIF($J$7:J61,J61)),5)) -> 1007
A62: =Teilnehmerliste!A61 -> 56 | B62: =Teilnehmerliste!B61 &" "&Teilnehmerliste!C61 -> Rüegg Michael | C62: =Vorrunde!$AE$90 -> 104 | D62: =Endplatzierung!$P$68 -> 60 | E62: =Finalrunde!$DO$93 -> 920 | F62: =IF(Teilnehmerliste!B61="","",SUM(C62:E62)) -> 1084 | H62: 44 | J62: =IF(ROWS($J$7:$J$7)<=$F$3,SMALL($H$7:$H$106,ROWS($J$7:J62)),"") -> 56 | K62: =IF($H62="","",INDEX($B$7:$H$106,_xlfn.AGGREGATE(14,6,ROW($H$7:$H$106)-ROW($H$7)+1/($H$7:$H$106=J62),COUNTIF($J$7:J62,J62)),1)) -> Megdiche Nidhal | L62: =IF($H62="","",INDEX($B$7:$H$106,_xlfn.AGGREGATE(14,6,ROW($H$7:$H$106)-ROW($H$7)+1/($H$7:$H$106=J62),COUNTIF($J$7:J62,J62)),5)) -> 998
A63: =Teilnehmerliste!A62 -> 57 | B63: =Teilnehmerliste!B62 &" "&Teilnehmerliste!C62 -> Rüegg Sabine | C63: =Vorrunde!$AI$90 -> 87 | D63: =Endplatzierung!$R$68 -> 40 | E63: =Finalrunde!$DV$93 -> 780 | F63: =IF(Teilnehmerliste!B62="","",SUM(C63:E63)) -> 907 | H63: 70 | J63: =IF(ROWS($J$7:$J$7)<=$F$3,SMALL($H$7:$H$106,ROWS($J$7:J63)),"") -> 57 | K63: =IF($H63="","",INDEX($B$7:$H$106,_xlfn.AGGREGATE(14,6,ROW($H$7:$H$106)-ROW($H$7)+1/($H$7:$H$106=J63),COUNTIF($J$7:J63,J63)),1)) -> D'Acunto Niva | L63: =IF($H63="","",INDEX($B$7:$H$106,_xlfn.AGGREGATE(14,6,ROW($H$7:$H$106)-ROW($H$7)+1/($H$7:$H$106=J63),COUNTIF($J$7:J63,J63)),5)) -> 988
A64: =Teilnehmerliste!A63 -> 58 | B64: =Teilnehmerliste!B63 &" "&Teilnehmerliste!C63 -> Schommarz Erich | C64: =Vorrunde!$AM$90 -> 106 | D64: =Endplatzierung!$T$68 -> 60 | E64: =Finalrunde!$EC$93 -> 930 | F64: =IF(Teilnehmerliste!B63="","",SUM(C64:E64)) -> 1096 | H64: 40 | J64: =IF(ROWS($J$7:$J$7)<=$F$3,SMALL($H$7:$H$106,ROWS($J$7:J64)),"") -> 58 | K64: =IF($H64="","",INDEX($B$7:$H$106,_xlfn.AGGREGATE(14,6,ROW($H$7:$H$106)-ROW($H$7)+1/($H$7:$H$106=J64),COUNTIF($J$7:J64,J64)),1)) -> Wagner Markus | L64: =IF($H64="","",INDEX($B$7:$H$106,_xlfn.AGGREGATE(14,6,ROW($H$7:$H$106)-ROW($H$7)+1/($H$7:$H$106=J64),COUNTIF($J$7:J64,J64)),5)) -> 986
A65: =Teilnehmerliste!A64 -> 59 | B65: =Teilnehmerliste!B64 &" "&Teilnehmerliste!C64 -> Schuster Ralph | C65: =Vorrunde!$AQ$90 -> 93 | D65: =Endplatzierung!$V$68 -> 80 | E65: =Finalrunde!$EJ$93 -> 910 | F65: =IF(Teilnehmerliste!B64="","",SUM(C65:E65)) -> 1083 | H65: 45 | J65: =IF(ROWS($J$7:$J$7)<=$F$3,SMALL($H$7:$H$106,ROWS($J$7:J65)),"") -> 59 | K65: =IF($H65="","",INDEX($B$7:$H$106,_xlfn.AGGREGATE(14,6,ROW($H$7:$H$106)-ROW($H$7)+1/($H$7:$H$106=J65),COUNTIF($J$7:J65,J65)),1)) -> Oliveira Telmo | L65: =IF($H65="","",INDEX($B$7:$H$106,_xlfn.AGGREGATE(14,6,ROW($H$7:$H$106)-ROW($H$7)+1/($H$7:$H$106=J65),COUNTIF($J$7:J65,J65)),5)) -> 979
A66: =Teilnehmerliste!A65 -> 60 | B66: =Teilnehmerliste!B65 &" "&Teilnehmerliste!C65 -> Schwitter Corinne | C66: =Vorrunde!$AU$90 -> 87 | D66: =Endplatzierung!$X$68 -> 100 | E66: =Finalrunde!$EQ$93 -> 820 | F66: =IF(Teilnehmerliste!B65="","",SUM(C66:E66)) -> 1007 | H66: 55 | J66: =IF(ROWS($J$7:$J$7)<=$F$3,SMALL($H$7:$H$106,ROWS($J$7:J66)),"") -> 60 | K66: =IF($H66="","",INDEX($B$7:$H$106,_xlfn.AGGREGATE(14,6,ROW($H$7:$H$106)-ROW($H$7)+1/($H$7:$H$106=J66),COUNTIF($J$7:J66,J66)),1)) -> Rüegg Lynn | L66: =IF($H66="","",INDEX($B$7:$H$106,_xlfn.AGGREGATE(14,6,ROW($H$7:$H$106)-ROW($H$7)+1/($H$7:$H$106=J66),COUNTIF($J$7:J66,J66)),5)) -> 967
A67: =Teilnehmerliste!A66 -> 61 | B67: =Teilnehmerliste!B66 &" "&Teilnehmerliste!C66 -> Silva Bruno | C67: =Vorrunde!$AY$90 -> 142 | D67: =Endplatzierung!$Z$68 -> 100 | E67: =Finalrunde!$N$124 -> 910 | F67: =IF(Teilnehmerliste!B66="","",SUM(C67:E67)) -> 1152 | H67: 35 | J67: =IF(ROWS($J$7:$J$7)<=$F$3,SMALL($H$7:$H$106,ROWS($J$7:J67)),"") -> 61 | K67: =IF($H67="","",INDEX($B$7:$H$106,_xlfn.AGGREGATE(14,6,ROW($H$7:$H$106)-ROW($H$7)+1/($H$7:$H$106=J67),COUNTIF($J$7:J67,J67)),1)) -> Isenschmid Michi | L67: =IF($H67="","",INDEX($B$7:$H$106,_xlfn.AGGREGATE(14,6,ROW($H$7:$H$106)-ROW($H$7)+1/($H$7:$H$106=J67),COUNTIF($J$7:J67,J67)),5)) -> 965
A68: =Teilnehmerliste!A67 -> 62 | B68: =Teilnehmerliste!B67 &" "&Teilnehmerliste!C67 -> Sotelo Yermany | C68: =Vorrunde!$BC$90 -> 99 | D68: =Endplatzierung!$AB$68 -> 60 | E68: =Finalrunde!$U$124 -> 700 | F68: =IF(Teilnehmerliste!B67="","",SUM(C68:E68)) -> 859 | H68: 72 | J68: =IF(ROWS($J$7:$J$7)<=$F$3,SMALL($H$7:$H$106,ROWS($J$7:J68)),"") -> 62 | K68: =IF($H68="","",INDEX($B$7:$H$106,_xlfn.AGGREGATE(14,6,ROW($H$7:$H$106)-ROW($H$7)+1/($H$7:$H$106=J68),COUNTIF($J$7:J68,J68)),1)) -> Städelin Hanspeter | L68: =IF($H68="","",INDEX($B$7:$H$106,_xlfn.AGGREGATE(14,6,ROW($H$7:$H$106)-ROW($H$7)+1/($H$7:$H$106=J68),COUNTIF($J$7:J68,J68)),5)) -> 963
A69: =Teilnehmerliste!A68 -> 63 | B69: =Teilnehmerliste!B68 &" "&Teilnehmerliste!C68 -> Thormann Armando | C69: =Vorrunde!$BG$90 -> 121 | D69: =Endplatzierung!$AD$68 -> 120 | E69: =Finalrunde!$AB$124 -> 1040 | F69: =IF(Teilnehmerliste!B68="","",SUM(C69:E69)) -> 1281 | H69: 20 | J69: =IF(ROWS($J$7:$J$7)<=$F$3,SMALL($H$7:$H$106,ROWS($J$7:J69)),"") -> 62 | K69: =IF($H69="","",INDEX($B$7:$H$106,_xlfn.AGGREGATE(14,6,ROW($H$7:$H$106)-ROW($H$7)+1/($H$7:$H$106=J69),COUNTIF($J$7:J69,J69)),1)) -> Da Costa Leonardo | L69: =IF($H69="","",INDEX($B$7:$H$106,_xlfn.AGGREGATE(14,6,ROW($H$7:$H$106)-ROW($H$7)+1/($H$7:$H$106=J69),COUNTIF($J$7:J69,J69)),5)) -> 963
A70: =Teilnehmerliste!A69 -> 64 | B70: =Teilnehmerliste!B69 &" "&Teilnehmerliste!C69 -> Thormann Julia | C70: =Vorrunde!$BK$90 -> 155 | D70: =Endplatzierung!$AF$68 -> 120 | E70: =Finalrunde!$AI$124 -> 1120 | F70: =IF(Teilnehmerliste!B69="","",SUM(C70:E70)) -> 1395 | H70: 10 | J70: =IF(ROWS($J$7:$J$7)<=$F$3,SMALL($H$7:$H$106,ROWS($J$7:J70)),"") -> 64 | K70: =IF($H70="","",INDEX($B$7:$H$106,_xlfn.AGGREGATE(14,6,ROW($H$7:$H$106)-ROW($H$7)+1/($H$7:$H$106=J70),COUNTIF($J$7:J70,J70)),1)) -> Cadonau Deliz | L70: =IF($H70="","",INDEX($B$7:$H$106,_xlfn.AGGREGATE(14,6,ROW($H$7:$H$106)-ROW($H$7)+1/($H$7:$H$106=J70),COUNTIF($J$7:J70,J70)),5)) -> 961
A71: =Teilnehmerliste!A70 -> 65 | B71: =Teilnehmerliste!B70 &" "&Teilnehmerliste!C70 -> Treichler Lea | C71: =Vorrunde!$BO$90 -> 138 | D71: =Endplatzierung!$AH$68 -> 160 | E71: =Finalrunde!$AP$124 -> 940 | F71: =IF(Teilnehmerliste!B70="","",SUM(C71:E71)) -> 1238 | H71: 24 | J71: =IF(ROWS($J$7:$J$7)<=$F$3,SMALL($H$7:$H$106,ROWS($J$7:J71)),"") -> 65 | K71: =IF($H71="","",INDEX($B$7:$H$106,_xlfn.AGGREGATE(14,6,ROW($H$7:$H$106)-ROW($H$7)+1/($H$7:$H$106=J71),COUNTIF($J$7:J71,J71)),1)) -> Christiansen Olo | L71: =IF($H71="","",INDEX($B$7:$H$106,_xlfn.AGGREGATE(14,6,ROW($H$7:$H$106)-ROW($H$7)+1/($H$7:$H$106=J71),COUNTIF($J$7:J71,J71)),5)) -> 959
A72: =Teilnehmerliste!A71 -> 66 | B72: =Teilnehmerliste!B71 &" "&Teilnehmerliste!C71 -> Treichler Reto | C72: =Vorrunde!$BS$90 -> 118 | D72: =Endplatzierung!$AJ$68 -> 60 | E72: =Finalrunde!$AW$124 -> 940 | F72: =IF(Teilnehmerliste!B71="","",SUM(C72:E72)) -> 1118 | H72: =IFERROR(_xlfn.RANK.EQ(F72,$F$7:$F$106,0),"") -> 38 | J72: =IF(ROWS($J$7:$J$7)<=$F$3,SMALL($H$7:$H$106,ROWS($J$7:J72)),"") -> 66 | K72: =IF($H72="","",INDEX($B$7:$H$106,_xlfn.AGGREGATE(14,6,ROW($H$7:$H$106)-ROW($H$7)+1/($H$7:$H$106=J72),COUNTIF($J$7:J72,J72)),1)) -> Giuralarocca Roberto | L72: =IF($H72="","",INDEX($B$7:$H$106,_xlfn.AGGREGATE(14,6,ROW($H$7:$H$106)-ROW($H$7)+1/($H$7:$H$106=J72),COUNTIF($J$7:J72,J72)),5)) -> 949
A73: =Teilnehmerliste!A72 -> 67 | B73: =Teilnehmerliste!B72 &" "&Teilnehmerliste!C72 -> Wälti Christoph | C73: =Vorrunde!$BW$90 -> 106 | D73: =Endplatzierung!$AL$68 -> 60 | E73: =Finalrunde!$BD$124 -> 1630 | F73: =IF(Teilnehmerliste!B72="","",SUM(C73:E73)) -> 1796 | H73: 2 | J73: =IF(ROWS($J$7:$J$7)<=$F$3,SMALL($H$7:$H$106,ROWS($J$7:J73)),"") -> 67 | K73: =IF($H73="","",INDEX($B$7:$H$106,_xlfn.AGGREGATE(14,6,ROW($H$7:$H$106)-ROW($H$7)+1/($H$7:$H$106=J73),COUNTIF($J$7:J73,J73)),1)) -> Foscaldi Maurizio | L73: =IF($H73="","",INDEX($B$7:$H$106,_xlfn.AGGREGATE(14,6,ROW($H$7:$H$106)-ROW($H$7)+1/($H$7:$H$106=J73),COUNTIF($J$7:J73,J73)),5)) -> 938
A74: =Teilnehmerliste!A73 -> 68 | B74: =Teilnehmerliste!B73 &" "&Teilnehmerliste!C73 -> Wagner Markus | C74: =Vorrunde!$CA$90 -> 106 | D74: =Endplatzierung!$AN$68 -> 120 | E74: =Finalrunde!$BK$124 -> 760 | F74: =IF(Teilnehmerliste!B73="","",SUM(C74:E74)) -> 986 | H74: 58 | J74: =IF(ROWS($J$7:$J$7)<=$F$3,SMALL($H$7:$H$106,ROWS($J$7:J74)),"") -> 68 | K74: =IF($H74="","",INDEX($B$7:$H$106,_xlfn.AGGREGATE(14,6,ROW($H$7:$H$106)-ROW($H$7)+1/($H$7:$H$106=J74),COUNTIF($J$7:J74,J74)),1)) -> Palma Luigi | L74: =IF($H74="","",INDEX($B$7:$H$106,_xlfn.AGGREGATE(14,6,ROW($H$7:$H$106)-ROW($H$7)+1/($H$7:$H$106=J74),COUNTIF($J$7:J74,J74)),5)) -> 929
A75: =Teilnehmerliste!A74 -> 69 | B75: =Teilnehmerliste!B74 &" "&Teilnehmerliste!C74 -> Walser Stefan | C75: =Vorrunde!$CE$90 -> 96 | D75: =Endplatzierung!$AP$68 -> 100 | E75: =Finalrunde!$BR$124 -> 1050 | F75: =IF(Teilnehmerliste!B74="","",SUM(C75:E75)) -> 1246 | H75: 23 | J75: =IF(ROWS($J$7:$J$7)<=$F$3,SMALL($H$7:$H$106,ROWS($J$7:J75)),"") -> 69 | K75: =IF($H75="","",INDEX($B$7:$H$106,_xlfn.AGGREGATE(14,6,ROW($H$7:$H$106)-ROW($H$7)+1/($H$7:$H$106=J75),COUNTIF($J$7:J75,J75)),1)) -> Bartholet Roger | L75: =IF($H75="","",INDEX($B$7:$H$106,_xlfn.AGGREGATE(14,6,ROW($H$7:$H$106)-ROW($H$7)+1/($H$7:$H$106=J75),COUNTIF($J$7:J75,J75)),5)) -> 922
A76: =Teilnehmerliste!A75 -> 70 | B76: =Teilnehmerliste!B75 &" "&Teilnehmerliste!C75 -> Wang Jingwen | C76: =Vorrunde!$CI$90 -> 99 | D76: =Endplatzierung!$AR$68 -> 120 | E76: =Finalrunde!$BY$124 -> 980 | F76: =IF(Teilnehmerliste!B75="","",SUM(C76:E76)) -> 1199 | H76: 29 | J76: =IF(ROWS($J$7:$J$7)<=$F$3,SMALL($H$7:$H$106,ROWS($J$7:J76)),"") -> 70 | K76: =IF($H76="","",INDEX($B$7:$H$106,_xlfn.AGGREGATE(14,6,ROW($H$7:$H$106)-ROW($H$7)+1/($H$7:$H$106=J76),COUNTIF($J$7:J76,J76)),1)) -> Rüegg Sabine | L76: =IF($H76="","",INDEX($B$7:$H$106,_xlfn.AGGREGATE(14,6,ROW($H$7:$H$106)-ROW($H$7)+1/($H$7:$H$106=J76),COUNTIF($J$7:J76,J76)),5)) -> 907
A77: =Teilnehmerliste!A76 -> 71 | B77: =Teilnehmerliste!B76 &" "&Teilnehmerliste!C76 -> Wullschleger Stefan | C77: =Vorrunde!$CM$90 -> 144 | D77: =Endplatzierung!$AT$68 -> 100 | E77: =Finalrunde!$CF$124 -> 820 | F77: =IF(Teilnehmerliste!B76="","",SUM(C77:E77)) -> 1064 | H77: 49 | J77: =IF(ROWS($J$7:$J$7)<=$F$3,SMALL($H$7:$H$106,ROWS($J$7:J77)),"") -> 71 | K77: =IF($H77="","",INDEX($B$7:$H$106,_xlfn.AGGREGATE(14,6,ROW($H$7:$H$106)-ROW($H$7)+1/($H$7:$H$106=J77),COUNTIF($J$7:J77,J77)),1)) -> Antonelli Ruben | L77: =IF($H77="","",INDEX($B$7:$H$106,_xlfn.AGGREGATE(14,6,ROW($H$7:$H$106)-ROW($H$7)+1/($H$7:$H$106=J77),COUNTIF($J$7:J77,J77)),5)) -> 873
A78: =Teilnehmerliste!A77 -> 72 | B78: =Teilnehmerliste!B77 &" "&Teilnehmerliste!C77 -> Zachmann Jasmine | C78: =Vorrunde!$CQ$90 -> 114 | D78: =Endplatzierung!$AV$68 -> 140 | E78: =Finalrunde!$CM$124 -> 840 | F78: =IF(Teilnehmerliste!B77="","",SUM(C78:E78)) -> 1094 | H78: 41 | J78: =IF(ROWS($J$7:$J$7)<=$F$3,SMALL($H$7:$H$106,ROWS($J$7:J78)),"") -> 72 | K78: =IF($H78="","",INDEX($B$7:$H$106,_xlfn.AGGREGATE(14,6,ROW($H$7:$H$106)-ROW($H$7)+1/($H$7:$H$106=J78),COUNTIF($J$7:J78,J78)),1)) -> Sotelo Yermany | L78: =IF($H78="","",INDEX($B$7:$H$106,_xlfn.AGGREGATE(14,6,ROW($H$7:$H$106)-ROW($H$7)+1/($H$7:$H$106=J78),COUNTIF($J$7:J78,J78)),5)) -> 859
A79: =Teilnehmerliste!A78 -> 73 | B79: =Teilnehmerliste!B78 &" "&Teilnehmerliste!C78 -> Zachmann Stefan | C79: =Vorrunde!$CU$90 -> 80 | D79: =Endplatzierung!$AX$68 -> 80 | E79: =Finalrunde!$CT$124 -> 530 | F79: =IF(Teilnehmerliste!B78="","",SUM(C79:E79)) -> 690 | H79: 76 | J79: =IF(ROWS($J$7:$J$7)<=$F$3,SMALL($H$7:$H$106,ROWS($J$7:J79)),"") -> 73 | K79: =IF($H79="","",INDEX($B$7:$H$106,_xlfn.AGGREGATE(14,6,ROW($H$7:$H$106)-ROW($H$7)+1/($H$7:$H$106=J79),COUNTIF($J$7:J79,J79)),1)) -> Antonelli Marco | L79: =IF($H79="","",INDEX($B$7:$H$106,_xlfn.AGGREGATE(14,6,ROW($H$7:$H$106)-ROW($H$7)+1/($H$7:$H$106=J79),COUNTIF($J$7:J79,J79)),5)) -> 803
A80: =Teilnehmerliste!A79 -> 74 | B80: =Teilnehmerliste!B79 &" "&Teilnehmerliste!C79 -> Babic Mario | C80: =Vorrunde!$CY$90 -> 113 | D80: =Endplatzierung!$AZ$68 -> 120 | E80: =Finalrunde!$DA$124 -> 850 | F80: =IF(Teilnehmerliste!B79="","",SUM(C80:E80)) -> 1083 | H80: 45 | J80: =IF(ROWS($J$7:$J$7)<=$F$3,SMALL($H$7:$H$106,ROWS($J$7:J80)),"") -> 74 | K80: =IF($H80="","",INDEX($B$7:$H$106,_xlfn.AGGREGATE(14,6,ROW($H$7:$H$106)-ROW($H$7)+1/($H$7:$H$106=J80),COUNTIF($J$7:J80,J80)),1)) -> Marini Mauro | L80: =IF($H80="","",INDEX($B$7:$H$106,_xlfn.AGGREGATE(14,6,ROW($H$7:$H$106)-ROW($H$7)+1/($H$7:$H$106=J80),COUNTIF($J$7:J80,J80)),5)) -> 802
A81: =Teilnehmerliste!A80 -> 75 | B81: =Teilnehmerliste!B80 &" "&Teilnehmerliste!C80 -> Megdiche Nidhal | C81: =Vorrunde!$DC$90 -> 108 | D81: =Endplatzierung!$BB$68 -> 80 | E81: =Finalrunde!$DH$124 -> 810 | F81: =IF(Teilnehmerliste!B80="","",SUM(C81:E81)) -> 998 | H81: 56 | J81: =IF(ROWS($J$7:$J$7)<=$F$3,SMALL($H$7:$H$106,ROWS($J$7:J81)),"") -> 75 | K81: =IF($H81="","",INDEX($B$7:$H$106,_xlfn.AGGREGATE(14,6,ROW($H$7:$H$106)-ROW($H$7)+1/($H$7:$H$106=J81),COUNTIF($J$7:J81,J81)),1)) -> Figaro Marlon | L81: =IF($H81="","",INDEX($B$7:$H$106,_xlfn.AGGREGATE(14,6,ROW($H$7:$H$106)-ROW($H$7)+1/($H$7:$H$106=J81),COUNTIF($J$7:J81,J81)),5)) -> 735
A82: =Teilnehmerliste!A81 -> 76 | B82: =Teilnehmerliste!B81 &" "&Teilnehmerliste!C81 -> Städelin Hanspeter | C82: =Vorrunde!$DG$90 -> 93 | D82: =Endplatzierung!$BD$68 -> 140 | E82: =Finalrunde!$DO$124 -> 730 | F82: =IF(Teilnehmerliste!B81="","",SUM(C82:E82)) -> 963 | H82: 62 | J82: =IF(ROWS($J$7:$J$7)<=$F$3,SMALL($H$7:$H$106,ROWS($J$7:J82)),"") -> 76 | K82: =IF($H82="","",INDEX($B$7:$H$106,_xlfn.AGGREGATE(14,6,ROW($H$7:$H$106)-ROW($H$7)+1/($H$7:$H$106=J82),COUNTIF($J$7:J82,J82)),1)) -> Zachmann Stefan | L82: =IF($H82="","",INDEX($B$7:$H$106,_xlfn.AGGREGATE(14,6,ROW($H$7:$H$106)-ROW($H$7)+1/($H$7:$H$106=J82),COUNTIF($J$7:J82,J82)),5)) -> 690
A83: =Teilnehmerliste!A82 -> 77 | B83: =Teilnehmerliste!B82 &" "&Teilnehmerliste!C82 ->  | C83: =Vorrunde!$DK$90 -> 0 | D83: =Endplatzierung!$BF$68 -> 0 | E83: =Finalrunde!$DV$124 -> 0 | F83: =IF(Teilnehmerliste!B82="","",SUM(C83:E83)) ->  | J83: =IF(ROWS($J$7:$J$7)<=$F$3,SMALL($H$7:$H$106,ROWS($J$7:J83)),"") ->  | K83: =IF($H83="","",INDEX($B$7:$H$106,_xlfn.AGGREGATE(14,6,ROW($H$7:$H$106)-ROW($H$7)+1/($H$7:$H$106=J83),COUNTIF($J$7:J83,J83)),1)) ->  | L83: =IF($H83="","",INDEX($B$7:$H$106,_xlfn.AGGREGATE(14,6,ROW($H$7:$H$106)-ROW($H$7)+1/($H$7:$H$106=J83),COUNTIF($J$7:J83,J83)),5)) -> 
A84: =Teilnehmerliste!A83 -> 78 | B84: =Teilnehmerliste!B83 &" "&Teilnehmerliste!C83 ->  | C84: =Vorrunde!$DO$90 -> 0 | D84: =Endplatzierung!$BH$68 -> 0 | E84: =Finalrunde!$EC$124 -> 0 | F84: =IF(Teilnehmerliste!B83="","",SUM(C84:E84)) ->  | J84: =IF(ROWS($J$7:$J$7)<=$F$3,SMALL($H$7:$H$106,ROWS($J$7:J84)),"") ->  | K84: =IF($H84="","",INDEX($B$7:$H$106,_xlfn.AGGREGATE(14,6,ROW($H$7:$H$106)-ROW($H$7)+1/($H$7:$H$106=J84),COUNTIF($J$7:J84,J84)),1)) ->  | L84: =IF($H84="","",INDEX($B$7:$H$106,_xlfn.AGGREGATE(14,6,ROW($H$7:$H$106)-ROW($H$7)+1/($H$7:$H$106=J84),COUNTIF($J$7:J84,J84)),5)) -> 
A85: =Teilnehmerliste!A84 -> 79 | B85: =Teilnehmerliste!B84 &" "&Teilnehmerliste!C84 ->  | C85: =Vorrunde!$DS$90 -> 0 | D85: =Endplatzierung!$BJ$68 -> 0 | E85: =Finalrunde!$EJ$124 -> 0 | F85: =IF(Teilnehmerliste!B84="","",SUM(C85:E85)) ->  | J85: =IF(ROWS($J$7:$J$7)<=$F$3,SMALL($H$7:$H$106,ROWS($J$7:J85)),"") ->  | K85: =IF($H85="","",INDEX($B$7:$H$106,_xlfn.AGGREGATE(14,6,ROW($H$7:$H$106)-ROW($H$7)+1/($H$7:$H$106=J85),COUNTIF($J$7:J85,J85)),1)) ->  | L85: =IF($H85="","",INDEX($B$7:$H$106,_xlfn.AGGREGATE(14,6,ROW($H$7:$H$106)-ROW($H$7)+1/($H$7:$H$106=J85),COUNTIF($J$7:J85,J85)),5)) -> 
A86: =Teilnehmerliste!A85 -> 80 | B86: =Teilnehmerliste!B85 &" "&Teilnehmerliste!C85 ->  | C86: =Vorrunde!$DW$90 -> 0 | D86: =Endplatzierung!$BL$68 -> 0 | E86: =Finalrunde!$EQ$124 -> 0 | F86: =IF(Teilnehmerliste!B85="","",SUM(C86:E86)) ->  | J86: =IF(ROWS($J$7:$J$7)<=$F$3,SMALL($H$7:$H$106,ROWS($J$7:J86)),"") ->  | K86: =IF($H86="","",INDEX($B$7:$H$106,_xlfn.AGGREGATE(14,6,ROW($H$7:$H$106)-ROW($H$7)+1/($H$7:$H$106=J86),COUNTIF($J$7:J86,J86)),1)) ->  | L86: =IF($H86="","",INDEX($B$7:$H$106,_xlfn.AGGREGATE(14,6,ROW($H$7:$H$106)-ROW($H$7)+1/($H$7:$H$106=J86),COUNTIF($J$7:J86,J86)),5)) -> 
A87: =Teilnehmerliste!A86 -> 81 | B87: =Teilnehmerliste!B86 &" "&Teilnehmerliste!C86 ->  | C87: =Vorrunde!$EA$90 -> 0 | D87: =Endplatzierung!$BN$68 -> 0 | E87: =Finalrunde!$N$155 -> 0 | F87: =IF(Teilnehmerliste!B86="","",SUM(C87:E87)) ->  | J87: =IF(ROWS($J$7:$J$7)<=$F$3,SMALL($H$7:$H$106,ROWS($J$7:J87)),"") ->  | K87: =IF($H87="","",INDEX($B$7:$H$106,_xlfn.AGGREGATE(14,6,ROW($H$7:$H$106)-ROW($H$7)+1/($H$7:$H$106=J87),COUNTIF($J$7:J87,J87)),1)) ->  | L87: =IF($H87="","",INDEX($B$7:$H$106,_xlfn.AGGREGATE(14,6,ROW($H$7:$H$106)-ROW($H$7)+1/($H$7:$H$106=J87),COUNTIF($J$7:J87,J87)),5)) -> 
A88: =Teilnehmerliste!A87 -> 82 | B88: =Teilnehmerliste!B87 &" "&Teilnehmerliste!C87 ->  | C88: =Vorrunde!$EE$90 -> 0 | D88: =Endplatzierung!$BP$68 -> 0 | E88: =Finalrunde!$U$155 -> 0 | F88: =IF(Teilnehmerliste!B87="","",SUM(C88:E88)) ->  | J88: =IF(ROWS($J$7:$J$7)<=$F$3,SMALL($H$7:$H$106,ROWS($J$7:J88)),"") ->  | K88: =IF($H88="","",INDEX($B$7:$H$106,_xlfn.AGGREGATE(14,6,ROW($H$7:$H$106)-ROW($H$7)+1/($H$7:$H$106=J88),COUNTIF($J$7:J88,J88)),1)) ->  | L88: =IF($H88="","",INDEX($B$7:$H$106,_xlfn.AGGREGATE(14,6,ROW($H$7:$H$106)-ROW($H$7)+1/($H$7:$H$106=J88),COUNTIF($J$7:J88,J88)),5)) -> 
A89: =Teilnehmerliste!A88 -> 83 | B89: =Teilnehmerliste!B88 &" "&Teilnehmerliste!C88 ->  | C89: =Vorrunde!$EI$90 -> 0 | D89: =Endplatzierung!$BR$68 -> 0 | E89: =Finalrunde!$AB$155 -> 0 | F89: =IF(Teilnehmerliste!B88="","",SUM(C89:E89)) ->  | J89: =IF(ROWS($J$7:$J$7)<=$F$3,SMALL($H$7:$H$106,ROWS($J$7:J89)),"") ->  | K89: =IF($H89="","",INDEX($B$7:$H$106,_xlfn.AGGREGATE(14,6,ROW($H$7:$H$106)-ROW($H$7)+1/($H$7:$H$106=J89),COUNTIF($J$7:J89,J89)),1)) ->  | L89: =IF($H89="","",INDEX($B$7:$H$106,_xlfn.AGGREGATE(14,6,ROW($H$7:$H$106)-ROW($H$7)+1/($H$7:$H$106=J89),COUNTIF($J$7:J89,J89)),5)) -> 
A90: =Teilnehmerliste!A89 -> 84 | B90: =Teilnehmerliste!B89 &" "&Teilnehmerliste!C89 ->  | C90: =Vorrunde!$EM$90 -> 0 | D90: =Endplatzierung!$BT$68 -> 0 | E90: =Finalrunde!$AI$155 -> 0 | F90: =IF(Teilnehmerliste!B89="","",SUM(C90:E90)) ->  | J90: =IF(ROWS($J$7:$J$7)<=$F$3,SMALL($H$7:$H$106,ROWS($J$7:J90)),"") ->  | K90: =IF($H90="","",INDEX($B$7:$H$106,_xlfn.AGGREGATE(14,6,ROW($H$7:$H$106)-ROW($H$7)+1/($H$7:$H$106=J90),COUNTIF($J$7:J90,J90)),1)) ->  | L90: =IF($H90="","",INDEX($B$7:$H$106,_xlfn.AGGREGATE(14,6,ROW($H$7:$H$106)-ROW($H$7)+1/($H$7:$H$106=J90),COUNTIF($J$7:J90,J90)),5)) -> 
A91: =Teilnehmerliste!A90 -> 85 | B91: =Teilnehmerliste!B90 &" "&Teilnehmerliste!C90 ->  | C91: =Vorrunde!$EQ$90 -> 0 | D91: =Endplatzierung!$BV$68 -> 0 | E91: =Finalrunde!$AP$155 -> 0 | F91: =IF(Teilnehmerliste!B90="","",SUM(C91:E91)) ->  | J91: =IF(ROWS($J$7:$J$7)<=$F$3,SMALL($H$7:$H$106,ROWS($J$7:J91)),"") ->  | K91: =IF($H91="","",INDEX($B$7:$H$106,_xlfn.AGGREGATE(14,6,ROW($H$7:$H$106)-ROW($H$7)+1/($H$7:$H$106=J91),COUNTIF($J$7:J91,J91)),1)) ->  | L91: =IF($H91="","",INDEX($B$7:$H$106,_xlfn.AGGREGATE(14,6,ROW($H$7:$H$106)-ROW($H$7)+1/($H$7:$H$106=J91),COUNTIF($J$7:J91,J91)),5)) -> 
A92: =Teilnehmerliste!A91 -> 86 | B92: =Teilnehmerliste!B91 &" "&Teilnehmerliste!C91 ->  | C92: =Vorrunde!$EU$90 -> 0 | D92: =Endplatzierung!$BX$68 -> 0 | E92: =Finalrunde!$AW$155 -> 0 | F92: =IF(Teilnehmerliste!B91="","",SUM(C92:E92)) ->  | J92: =IF(ROWS($J$7:$J$7)<=$F$3,SMALL($H$7:$H$106,ROWS($J$7:J92)),"") ->  | K92: =IF($H92="","",INDEX($B$7:$H$106,_xlfn.AGGREGATE(14,6,ROW($H$7:$H$106)-ROW($H$7)+1/($H$7:$H$106=J92),COUNTIF($J$7:J92,J92)),1)) ->  | L92: =IF($H92="","",INDEX($B$7:$H$106,_xlfn.AGGREGATE(14,6,ROW($H$7:$H$106)-ROW($H$7)+1/($H$7:$H$106=J92),COUNTIF($J$7:J92,J92)),5)) -> 
A93: =Teilnehmerliste!A92 -> 87 | B93: =Teilnehmerliste!B92 &" "&Teilnehmerliste!C92 ->  | C93: =Vorrunde!$EY$90 -> 0 | D93: =Endplatzierung!$BZ$68 -> 0 | E93: =Finalrunde!$BD$155 -> 0 | F93: =IF(Teilnehmerliste!B92="","",SUM(C93:E93)) ->  | J93: =IF(ROWS($J$7:$J$7)<=$F$3,SMALL($H$7:$H$106,ROWS($J$7:J93)),"") ->  | K93: =IF($H93="","",INDEX($B$7:$H$106,_xlfn.AGGREGATE(14,6,ROW($H$7:$H$106)-ROW($H$7)+1/($H$7:$H$106=J93),COUNTIF($J$7:J93,J93)),1)) ->  | L93: =IF($H93="","",INDEX($B$7:$H$106,_xlfn.AGGREGATE(14,6,ROW($H$7:$H$106)-ROW($H$7)+1/($H$7:$H$106=J93),COUNTIF($J$7:J93,J93)),5)) -> 
A94: =Teilnehmerliste!A93 -> 88 | B94: =Teilnehmerliste!B93 &" "&Teilnehmerliste!C93 ->  | C94: =Vorrunde!$FC$90 -> 0 | D94: =Endplatzierung!$CB$68 -> 0 | E94: =Finalrunde!$BK$155 -> 0 | F94: =IF(Teilnehmerliste!B93="","",SUM(C94:E94)) ->  | J94: =IF(ROWS($J$7:$J$7)<=$F$3,SMALL($H$7:$H$106,ROWS($J$7:J94)),"") ->  | K94: =IF($H94="","",INDEX($B$7:$H$106,_xlfn.AGGREGATE(14,6,ROW($H$7:$H$106)-ROW($H$7)+1/($H$7:$H$106=J94),COUNTIF($J$7:J94,J94)),1)) ->  | L94: =IF($H94="","",INDEX($B$7:$H$106,_xlfn.AGGREGATE(14,6,ROW($H$7:$H$106)-ROW($H$7)+1/($H$7:$H$106=J94),COUNTIF($J$7:J94,J94)),5)) -> 
A95: =Teilnehmerliste!A94 -> 89 | B95: =Teilnehmerliste!B94 &" "&Teilnehmerliste!C94 ->  | C95: =Vorrunde!$FG$90 -> 0 | D95: =Endplatzierung!$CD$68 -> 0 | E95: =Finalrunde!$BR$155 -> 0 | F95: =IF(Teilnehmerliste!B94="","",SUM(C95:E95)) ->  | J95: =IF(ROWS($J$7:$J$7)<=$F$3,SMALL($H$7:$H$106,ROWS($J$7:J95)),"") ->  | K95: =IF($H95="","",INDEX($B$7:$H$106,_xlfn.AGGREGATE(14,6,ROW($H$7:$H$106)-ROW($H$7)+1/($H$7:$H$106=J95),COUNTIF($J$7:J95,J95)),1)) ->  | L95: =IF($H95="","",INDEX($B$7:$H$106,_xlfn.AGGREGATE(14,6,ROW($H$7:$H$106)-ROW($H$7)+1/($H$7:$H$106=J95),COUNTIF($J$7:J95,J95)),5)) -> 
A96: =Teilnehmerliste!A95 -> 90 | B96: =Teilnehmerliste!B95 &" "&Teilnehmerliste!C95 ->  | C96: =Vorrunde!$FK$90 -> 0 | D96: =Endplatzierung!$CF$68 -> 0 | E96: =Finalrunde!$BY$155 -> 0 | F96: =IF(Teilnehmerliste!B95="","",SUM(C96:E96)) ->  | J96: =IF(ROWS($J$7:$J$7)<=$F$3,SMALL($H$7:$H$106,ROWS($J$7:J96)),"") ->  | K96: =IF($H96="","",INDEX($B$7:$H$106,_xlfn.AGGREGATE(14,6,ROW($H$7:$H$106)-ROW($H$7)+1/($H$7:$H$106=J96),COUNTIF($J$7:J96,J96)),1)) ->  | L96: =IF($H96="","",INDEX($B$7:$H$106,_xlfn.AGGREGATE(14,6,ROW($H$7:$H$106)-ROW($H$7)+1/($H$7:$H$106=J96),COUNTIF($J$7:J96,J96)),5)) -> 
A97: =Teilnehmerliste!A96 -> 91 | B97: =Teilnehmerliste!B96 &" "&Teilnehmerliste!C96 ->  | C97: =Vorrunde!$FO$90 -> 0 | D97: =Endplatzierung!$CH$68 -> 0 | E97: =Finalrunde!$CF$155 -> 0 | F97: =IF(Teilnehmerliste!B96="","",SUM(C97:E97)) ->  | J97: =IF(ROWS($J$7:$J$7)<=$F$3,SMALL($H$7:$H$106,ROWS($J$7:J97)),"") ->  | K97: =IF($H97="","",INDEX($B$7:$H$106,_xlfn.AGGREGATE(14,6,ROW($H$7:$H$106)-ROW($H$7)+1/($H$7:$H$106=J97),COUNTIF($J$7:J97,J97)),1)) ->  | L97: =IF($H97="","",INDEX($B$7:$H$106,_xlfn.AGGREGATE(14,6,ROW($H$7:$H$106)-ROW($H$7)+1/($H$7:$H$106=J97),COUNTIF($J$7:J97,J97)),5)) -> 
A98: =Teilnehmerliste!A97 -> 92 | B98: =Teilnehmerliste!B97 &" "&Teilnehmerliste!C97 ->  | C98: =Vorrunde!$FS$90 -> 0 | D98: =Endplatzierung!$CJ$68 -> 0 | E98: =Finalrunde!$CM$155 -> 0 | F98: =IF(Teilnehmerliste!B97="","",SUM(C98:E98)) ->  | J98: =IF(ROWS($J$7:$J$7)<=$F$3,SMALL($H$7:$H$106,ROWS($J$7:J98)),"") ->  | K98: =IF($H98="","",INDEX($B$7:$H$106,_xlfn.AGGREGATE(14,6,ROW($H$7:$H$106)-ROW($H$7)+1/($H$7:$H$106=J98),COUNTIF($J$7:J98,J98)),1)) ->  | L98: =IF($H98="","",INDEX($B$7:$H$106,_xlfn.AGGREGATE(14,6,ROW($H$7:$H$106)-ROW($H$7)+1/($H$7:$H$106=J98),COUNTIF($J$7:J98,J98)),5)) -> 
A99: =Teilnehmerliste!A98 -> 93 | B99: =Teilnehmerliste!B98 &" "&Teilnehmerliste!C98 ->  | C99: =Vorrunde!$FW$90 -> 0 | D99: =Endplatzierung!$CL$68 -> 0 | E99: =Finalrunde!$CT$155 -> 0 | F99: =IF(Teilnehmerliste!B98="","",SUM(C99:E99)) ->  | J99: =IF(ROWS($J$7:$J$7)<=$F$3,SMALL($H$7:$H$106,ROWS($J$7:J99)),"") ->  | K99: =IF($H99="","",INDEX($B$7:$H$106,_xlfn.AGGREGATE(14,6,ROW($H$7:$H$106)-ROW($H$7)+1/($H$7:$H$106=J99),COUNTIF($J$7:J99,J99)),1)) ->  | L99: =IF($H99="","",INDEX($B$7:$H$106,_xlfn.AGGREGATE(14,6,ROW($H$7:$H$106)-ROW($H$7)+1/($H$7:$H$106=J99),COUNTIF($J$7:J99,J99)),5)) -> 
A100: =Teilnehmerliste!A99 -> 94 | B100: =Teilnehmerliste!B99 &" "&Teilnehmerliste!C99 ->  | C100: =Vorrunde!$GA$90 -> 0 | D100: =Endplatzierung!$CN$68 -> 0 | E100: =Finalrunde!$DA$155 -> 0 | F100: =IF(Teilnehmerliste!B99="","",SUM(C100:E100)) ->  | J100: =IF(ROWS($J$7:$J$7)<=$F$3,SMALL($H$7:$H$106,ROWS($J$7:J100)),"") ->  | K100: =IF($H100="","",INDEX($B$7:$H$106,_xlfn.AGGREGATE(14,6,ROW($H$7:$H$106)-ROW($H$7)+1/($H$7:$H$106=J100),COUNTIF($J$7:J100,J100)),1)) ->  | L100: =IF($H100="","",INDEX($B$7:$H$106,_xlfn.AGGREGATE(14,6,ROW($H$7:$H$106)-ROW($H$7)+1/($H$7:$H$106=J100),COUNTIF($J$7:J100,J100)),5)) -> 
A101: =Teilnehmerliste!A100 -> 95 | B101: =Teilnehmerliste!B100 &" "&Teilnehmerliste!C100 ->  | C101: =Vorrunde!$GE$90 -> 0 | D101: =Endplatzierung!$CP$68 -> 0 | E101: =Finalrunde!$DH$155 -> 0 | F101: =IF(Teilnehmerliste!B100="","",SUM(C101:E101)) ->  | J101: =IF(ROWS($J$7:$J$7)<=$F$3,SMALL($H$7:$H$106,ROWS($J$7:J101)),"") ->  | K101: =IF($H101="","",INDEX($B$7:$H$106,_xlfn.AGGREGATE(14,6,ROW($H$7:$H$106)-ROW($H$7)+1/($H$7:$H$106=J101),COUNTIF($J$7:J101,J101)),1)) ->  | L101: =IF($H101="","",INDEX($B$7:$H$106,_xlfn.AGGREGATE(14,6,ROW($H$7:$H$106)-ROW($H$7)+1/($H$7:$H$106=J101),COUNTIF($J$7:J101,J101)),5)) -> 
A102: =Teilnehmerliste!A101 -> 96 | B102: =Teilnehmerliste!B101 &" "&Teilnehmerliste!C101 ->  | C102: =Vorrunde!$GI$90 -> 0 | D102: =Endplatzierung!$CR$68 -> 0 | E102: =Finalrunde!$DO$155 -> 0 | F102: =IF(Teilnehmerliste!B101="","",SUM(C102:E102)) ->  | J102: =IF(ROWS($J$7:$J$7)<=$F$3,SMALL($H$7:$H$106,ROWS($J$7:J102)),"") ->  | K102: =IF($H102="","",INDEX($B$7:$H$106,_xlfn.AGGREGATE(14,6,ROW($H$7:$H$106)-ROW($H$7)+1/($H$7:$H$106=J102),COUNTIF($J$7:J102,J102)),1)) ->  | L102: =IF($H102="","",INDEX($B$7:$H$106,_xlfn.AGGREGATE(14,6,ROW($H$7:$H$106)-ROW($H$7)+1/($H$7:$H$106=J102),COUNTIF($J$7:J102,J102)),5)) -> 
A103: =Teilnehmerliste!A102 -> 97 | B103: =Teilnehmerliste!B102 &" "&Teilnehmerliste!C102 ->  | C103: =Vorrunde!$GM$90 -> 0 | D103: =Endplatzierung!$CT$68 -> 0 | E103: =Finalrunde!$DV$155 -> 0 | F103: =IF(Teilnehmerliste!B102="","",SUM(C103:E103)) ->  | J103: =IF(ROWS($J$7:$J$7)<=$F$3,SMALL($H$7:$H$106,ROWS($J$7:J103)),"") ->  | K103: =IF($H103="","",INDEX($B$7:$H$106,_xlfn.AGGREGATE(14,6,ROW($H$7:$H$106)-ROW($H$7)+1/($H$7:$H$106=J103),COUNTIF($J$7:J103,J103)),1)) ->  | L103: =IF($H103="","",INDEX($B$7:$H$106,_xlfn.AGGREGATE(14,6,ROW($H$7:$H$106)-ROW($H$7)+1/($H$7:$H$106=J103),COUNTIF($J$7:J103,J103)),5)) -> 
A104: =Teilnehmerliste!A103 -> 98 | B104: =Teilnehmerliste!B103 &" "&Teilnehmerliste!C103 ->  | C104: =Vorrunde!$GQ$90 -> 0 | D104: =Endplatzierung!$CV$68 -> 0 | E104: =Finalrunde!$EC$155 -> 0 | F104: =IF(Teilnehmerliste!B103="","",SUM(C104:E104)) ->  | J104: =IF(ROWS($J$7:$J$7)<=$F$3,SMALL($H$7:$H$106,ROWS($J$7:J104)),"") ->  | K104: =IF($H104="","",INDEX($B$7:$H$106,_xlfn.AGGREGATE(14,6,ROW($H$7:$H$106)-ROW($H$7)+1/($H$7:$H$106=J104),COUNTIF($J$7:J104,J104)),1)) ->  | L104: =IF($H104="","",INDEX($B$7:$H$106,_xlfn.AGGREGATE(14,6,ROW($H$7:$H$106)-ROW($H$7)+1/($H$7:$H$106=J104),COUNTIF($J$7:J104,J104)),5)) -> 
A105: =Teilnehmerliste!A104 -> 99 | B105: =Teilnehmerliste!B104 &" "&Teilnehmerliste!C104 ->  | C105: =Vorrunde!$GU$90 -> 0 | D105: =Endplatzierung!$CX$68 -> 0 | E105: =Finalrunde!$EJ$155 -> 0 | F105: =IF(Teilnehmerliste!B104="","",SUM(C105:E105)) ->  | J105: =IF(ROWS($J$7:$J$7)<=$F$3,SMALL($H$7:$H$106,ROWS($J$7:J105)),"") ->  | K105: =IF($H105="","",INDEX($B$7:$H$106,_xlfn.AGGREGATE(14,6,ROW($H$7:$H$106)-ROW($H$7)+1/($H$7:$H$106=J105),COUNTIF($J$7:J105,J105)),1)) ->  | L105: =IF($H105="","",INDEX($B$7:$H$106,_xlfn.AGGREGATE(14,6,ROW($H$7:$H$106)-ROW($H$7)+1/($H$7:$H$106=J105),COUNTIF($J$7:J105,J105)),5)) -> 
A106: =Teilnehmerliste!A105 -> 100 | B106: =Teilnehmerliste!B105 &" "&Teilnehmerliste!C105 ->  | C106: =Vorrunde!$GY$90 -> 0 | D106: =Endplatzierung!$CZ$68 -> 0 | E106: =Finalrunde!$EQ$155 -> 0 | F106: =IF(Teilnehmerliste!B105="","",SUM(C106:E106)) ->  | J106: =IF(ROWS($J$7:$J$7)<=$F$3,SMALL($H$7:$H$106,ROWS($J$7:J106)),"") ->  | K106: =IF($H106="","",INDEX($B$7:$H$106,_xlfn.AGGREGATE(14,6,ROW($H$7:$H$106)-ROW($H$7)+1/($H$7:$H$106=J106),COUNTIF($J$7:J106,J106)),1)) ->  | L106: =IF($H106="","",INDEX($B$7:$H$106,_xlfn.AGGREGATE(14,6,ROW($H$7:$H$106)-ROW($H$7)+1/($H$7:$H$106=J106),COUNTIF($J$7:J106,J106)),5)) -> 

Sheet Vorrunde
A1: =Teams!$B$30 -> EM 2024 by Rogerinho (www.fcbouncer.ch)
A3: Vorrunde | D3: Spieler 1 - 50
A4: 10 Punkte für korrektes Resultat | I4: =Teilnehmerliste!$B6 -> Agorastos | M4: =Teilnehmerliste!$B7 -> Antonelli | Q4: =Teilnehmerliste!$B8 -> Antonelli | U4: =Teilnehmerliste!$B9 -> Bartholet | Y4: =Teilnehmerliste!$B10 -> Bartholet | AC4: =Teilnehmerliste!$B11 -> Bartholet | AG4: =Teilnehmerliste!$B12 -> Bartholet | AK4: =Teilnehmerliste!$B13 -> Beck | AO4: =Teilnehmerliste!$B14 -> Blöchlinger/Edri | AS4: =Teilnehmerliste!$B15 -> Bosshart | AW4: =Teilnehmerliste!$B16 -> Brunner | BA4: =Teilnehmerliste!$B17 -> Brunner | BE4: =Teilnehmerliste!$B18 -> Brunner | BI4: =Teilnehmerliste!$B19 -> Burkart | BM4: =Teilnehmerliste!$B20 -> Burkart | BQ4: =Teilnehmerliste!$B21 -> Cadonau | BU4: =Teilnehmerliste!$B22 -> Cadonau | BY4: =Teilnehmerliste!$B23 -> Cadonau | CC4: =Teilnehmerliste!$B24 -> Christiansen | CG4: =Teilnehmerliste!$B25 -> Da Costa | CK4: =Teilnehmerliste!$B26 -> D'Acunto | CO4: =Teilnehmerliste!$B27 -> D'Acunto | CS4: =Teilnehmerliste!$B28 -> D'Acunto | CW4: =Teilnehmerliste!$B29 -> Dukic | DA4: =Teilnehmerliste!$B30 -> Duvnjak | DE4: =Teilnehmerliste!$B31 -> Figaro | DI4: =Teilnehmerliste!$B32 -> Foscaldi | DM4: =Teilnehmerliste!$B33 -> Giuralarocca | DQ4: =Teilnehmerliste!$B34 -> Gomes | DU4: =Teilnehmerliste!$B35 -> Grosse | DY4: =Teilnehmerliste!$B36 -> Gygli | EC4: =Teilnehmerliste!$B37 -> Gygli | EG4: =Teilnehmerliste!$B38 -> Gygli | EK4: =Teilnehmerliste!$B39 -> Gygli | EO4: =Teilnehmerliste!$B40 -> Gygli | ES4: =Teilnehmerliste!$B41 -> Haab | EW4: =Teilnehmerliste!$B42 -> Handanagic | FA4: =Teilnehmerliste!$B43 -> Isenschmid | FE4: =Teilnehmerliste!$B44 -> Isenschmid | FI4: =Teilnehmerliste!$B45 -> Isenschmid | FM4: =Teilnehmerliste!$B46 -> Jones | FQ4: =Teilnehmerliste!$B47 -> Kalinci | FU4: =Teilnehmerliste!$B48 -> Keller | FY4: =Teilnehmerliste!$B49 -> Lanz | GC4: =Teilnehmerliste!$B50 -> Lischer | GG4: =Teilnehmerliste!$B51 -> Lütolf | GK4: =Teilnehmerliste!$B52 -> Marini | GO4: =Teilnehmerliste!$B53 -> Marthaler | GS4: =Teilnehmerliste!$B54 -> Oliveira | GW4: =Teilnehmerliste!$B55 -> Palma | HB4: Statistik (1, x, 2) | HG4: Statistik (1, x, 2) in Prozenten | HK4: Summe Anzahl Tore
A5: 7 Punkte für richtiger Sieger (Torverhältnis stimmt) | I5: =Teilnehmerliste!$C6 -> Panos | M5: =Teilnehmerliste!$C7 -> Marco | Q5: =Teilnehmerliste!$C8 -> Ruben | U5: =Teilnehmerliste!$C9 -> Andi | Y5: =Teilnehmerliste!$C10 -> Nott | AC5: =Teilnehmerliste!$C11 -> Philippe | AG5: =Teilnehmerliste!$C12 -> Roger | AK5: =Teilnehmerliste!$C13 -> Mara | AO5: =Teilnehmerliste!$C14 -> Lara/Yaniv | AS5: =Teilnehmerliste!$C15 -> Michael | AW5: =Teilnehmerliste!$C16 -> Manuel | BA5: =Teilnehmerliste!$C17 -> Nicolas | BE5: =Teilnehmerliste!$C18 -> Philip | BI5: =Teilnehmerliste!$C19 -> André | BM5: =Teilnehmerliste!$C20 -> Louis | BQ5: =Teilnehmerliste!$C21 -> Daniel | BU5: =Teilnehmerliste!$C22 -> Deliz | BY5: =Teilnehmerliste!$C23 -> Florian | CC5: =Teilnehmerliste!$C24 -> Olo | CG5: =Teilnehmerliste!$C25 -> Leonardo | CK5: =Teilnehmerliste!$C26 -> Lisa | CO5: =Teilnehmerliste!$C27 -> Niva | CS5: =Teilnehmerliste!$C28 -> Vinci | CW5: =Teilnehmerliste!$C29 -> Goran | DA5: =Teilnehmerliste!$C30 -> Dino | DE5: =Teilnehmerliste!$C31 -> Marlon | DI5: =Teilnehmerliste!$C32 -> Maurizio | DM5: =Teilnehmerliste!$C33 -> Roberto | DQ5: =Teilnehmerliste!$C34 -> Rui | DU5: =Teilnehmerliste!$C35 -> Laurent | DY5: =Teilnehmerliste!$C36 -> Gregory | EC5: =Teilnehmerliste!$C37 -> Reto | EG5: =Teilnehmerliste!$C38 -> Sarina | EK5: =Teilnehmerliste!$C39 -> Stefan | EO5: =Teilnehmerliste!$C40 -> Timothy | ES5: =Teilnehmerliste!$C41 -> Florian | EW5: =Teilnehmerliste!$C42 -> Djuma | FA5: =Teilnehmerliste!$C43 -> Agnes | FE5: =Teilnehmerliste!$C44 -> Andreas | FI5: =Teilnehmerliste!$C45 -> Michi | FM5: =Teilnehmerliste!$C46 -> Aiden | FQ5: =Teilnehmerliste!$C47 -> Murat | FU5: =Teilnehmerliste!$C48 -> Pascal | FY5: =Teilnehmerliste!$C49 -> André | GC5: =Teilnehmerliste!$C50 -> Franz | GG5: =Teilnehmerliste!$C51 -> Marc | GK5: =Teilnehmerliste!$C52 -> Mauro | GO5: =Teilnehmerliste!$C53 -> Martin | GS5: =Teilnehmerliste!$C54 -> Telmo | GW5: =Teilnehmerliste!$C55 -> Luigi | HB5: 1 | HC5: X | HD5: 2 | HE5: SUMME | HG5: 1 | HH5: X | HI5: 2 | HK5: Vorrunde
A6: 5 Punkte für richtiger Sieger (Torverhältnis stimmt nicht) | K6: =Teilnehmerliste!$A6 -> 1 | O6: =Teilnehmerliste!$A7 -> 2 | S6: =Teilnehmerliste!$A8 -> 3 | W6: =Teilnehmerliste!$A9 -> 4 | AA6: =Teilnehmerliste!$A10 -> 5 | AE6: =Teilnehmerliste!$A11 -> 6 | AI6: =Teilnehmerliste!$A12 -> 7 | AM6: =Teilnehmerliste!$A13 -> 8 | AQ6: =Teilnehmerliste!$A14 -> 9 | AU6: =Teilnehmerliste!$A15 -> 10 | AY6: =Teilnehmerliste!$A16 -> 11 | BC6: =Teilnehmerliste!$A17 -> 12 | BG6: =Teilnehmerliste!$A18 -> 13 | BK6: =Teilnehmerliste!$A19 -> 14 | BO6: =Teilnehmerliste!$A20 -> 15 | BS6: =Teilnehmerliste!$A21 -> 16 | BW6: =Teilnehmerliste!$A22 -> 17 | CA6: =Teilnehmerliste!$A23 -> 18 | CE6: =Teilnehmerliste!$A24 -> 19 | CI6: =Teilnehmerliste!$A25 -> 20 | CM6: =Teilnehmerliste!$A26 -> 21 | CQ6: =Teilnehmerliste!$A27 -> 22 | CU6: =Teilnehmerliste!$A28 -> 23 | CY6: =Teilnehmerliste!$A29 -> 24 | DC6: =Teilnehmerliste!$A30 -> 25 | DG6: =Teilnehmerliste!$A31 -> 26 | DK6: =Teilnehmerliste!$A32 -> 27 | DO6: =Teilnehmerliste!$A33 -> 28 | DS6: =Teilnehmerliste!$A34 -> 29 | DW6: =Teilnehmerliste!$A35 -> 30 | EA6: =Teilnehmerliste!$A36 -> 31 | EE6: =Teilnehmerliste!$A37 -> 32 | EI6: =Teilnehmerliste!$A38 -> 33 | EM6: =Teilnehmerliste!$A39 -> 34 | EQ6: =Teilnehmerliste!$A40 -> 35 | EU6: =Teilnehmerliste!$A41 -> 36 | EY6: =Teilnehmerliste!$A42 -> 37 | FC6: =Teilnehmerliste!$A43 -> 38 | FG6: =Teilnehmerliste!$A44 -> 39 | FK6: =Teilnehmerliste!$A45 -> 40 | FO6: =Teilnehmerliste!$A46 -> 41 | FS6: =Teilnehmerliste!$A47 -> 42 | FW6: =Teilnehmerliste!$A48 -> 43 | GA6: =Teilnehmerliste!$A49 -> 44 | GE6: =Teilnehmerliste!$A50 -> 45 | GI6: =Teilnehmerliste!$A51 -> 46 | GM6: =Teilnehmerliste!$A52 -> 47 | GQ6: =Teilnehmerliste!$A53 -> 48 | GU6: =Teilnehmerliste!$A54 -> 49 | GY6: =Teilnehmerliste!$A55 -> 50
A8: Datum | B8: Zeit | C8: Nr. | D8: Spiel | G8: Resultat | I8: Tipp | K8: Pkt | M8: Tipp | O8: Pkt | Q8: Tipp | S8: Pkt | U8: Tipp | W8: Pkt | Y8: Tipp | AA8: Pkt | AC8: Tipp | AE8: Pkt | AG8: Tipp | AI8: Pkt | AK8: Tipp | AM8: Pkt | AO8: Tipp | AQ8: Pkt | AS8: Tipp | AU8: Pkt | AW8: Tipp | AY8: Pkt | BA8: Tipp | BC8: Pkt | BE8: Tipp | BG8: Pkt | BI8: Tipp | BK8: Pkt | BM8: Tipp | BO8: Pkt | BQ8: Tipp | BS8: Pkt | BU8: Tipp | BW8: Pkt | BY8: Tipp | CA8: Pkt | CC8: Tipp | CE8: Pkt | CG8: Tipp | CI8: Pkt | CK8: Tipp | CM8: Pkt | CO8: Tipp | CQ8: Pkt | CS8: Tipp | CU8: Pkt | CW8: Tipp | CY8: Pkt | DA8: Tipp | DC8: Pkt | DE8: Tipp | DG8: Pkt | DI8: Tipp | DK8: Pkt | DM8: Tipp | DO8: Pkt | DQ8: Tipp | DS8: Pkt | DU8: Tipp | DW8: Pkt | DY8: Tipp | EA8: Pkt | EC8: Tipp | EE8: Pkt | EG8: Tipp | EI8: Pkt | EK8: Tipp | EM8: Pkt | EO8: Tipp | EQ8: Pkt | ES8: Tipp | EU8: Pkt | EW8: Tipp | EY8: Pkt | FA8: Tipp | FC8: Pkt | FE8: Tipp | FG8: Pkt | FI8: Tipp | FK8: Pkt | FM8: Tipp | FO8: Pkt | FQ8: Tipp | FS8: Pkt | FU8: Tipp | FW8: Pkt | FY8: Tipp | GA8: Pkt | GC8: Tipp | GE8: Pkt | GG8: Tipp | GI8: Pkt | GK8: Tipp | GM8: Pkt | GO8: Tipp | GQ8: Pkt | GS8: Tipp | GU8: Pkt | GW8: Tipp | GY8: Pkt
A9: Fr. 14. Jun | B9: 21:00:00 | C9: 1 | D9: Deutschland | E9: Schottland | F9: 5 | G9: 1 | I9: 2 | J9: 1 | K9: =IF(OR($F9="",$G9="",I9="",J9=""),"",IF(AND($F9=I9,$G9=J9),10,IF($F9-$G9=I9-J9,7,IF(OR(AND($F9>$G9,I9>J9),AND($F9<$G9,I9<J9)),5,0)))) -> 5 | L9: =IF(I9="","",IF(I9>J9,"A",IF(I9<J9,"B",IF(I9=J9,"X")))) -> A | M9: 1 | N9: 1 | O9: =IF(OR($F9="",$G9="",M9="",N9=""),"",IF(AND($F9=M9,$G9=N9),10,IF($F9-$G9=M9-N9,7,IF(OR(AND($F9>$G9,M9>N9),AND($F9<$G9,M9<N9)),5,0)))) -> 0 | P9: =IF(M9="","",IF(M9>N9,"A",IF(M9<N9,"B",IF(M9=N9,"X")))) -> X | Q9: 3 | R9: 0 | S9: =IF(OR($F9="",$G9="",Q9="",R9=""),"",IF(AND($F9=Q9,$G9=R9),10,IF($F9-$G9=Q9-R9,7,IF(OR(AND($F9>$G9,Q9>R9),AND($F9<$G9,Q9<R9)),5,0)))) -> 5 | T9: =IF(Q9="","",IF(Q9>R9,"A",IF(Q9<R9,"B",IF(Q9=R9,"X")))) -> A | U9: 2 | V9: 0 | W9: =IF(OR($F9="",$G9="",U9="",V9=""),"",IF(AND($F9=U9,$G9=V9),10,IF($F9-$G9=U9-V9,7,IF(OR(AND($F9>$G9,U9>V9),AND($F9<$G9,U9<V9)),5,0)))) -> 5 | X9: =IF(U9="","",IF(U9>V9,"A",IF(U9<V9,"B",IF(U9=V9,"X")))) -> A | Y9: 2 | Z9: 0 | AA9: =IF(OR($F9="",$G9="",Y9="",Z9=""),"",IF(AND($F9=Y9,$G9=Z9),10,IF($F9-$G9=Y9-Z9,7,IF(OR(AND($F9>$G9,Y9>Z9),AND($F9<$G9,Y9<Z9)),5,0)))) -> 5 | AB9: =IF(Y9="","",IF(Y9>Z9,"A",IF(Y9<Z9,"B",IF(Y9=Z9,"X")))) -> A | AC9: 2 | AD9: 1 | AE9: =IF(OR($F9="",$G9="",AC9="",AD9=""),"",IF(AND($F9=AC9,$G9=AD9),10,IF($F9-$G9=AC9-AD9,7,IF(OR(AND($F9>$G9,AC9>AD9),AND($F9<$G9,AC9<AD9)),5,0)))) -> 5 | AF9: =IF(AC9="","",IF(AC9>AD9,"A",IF(AC9<AD9,"B",IF(AC9=AD9,"X")))) -> A | AG9: 3 | AH9: 0 | AI9: =IF(OR($F9="",$G9="",AG9="",AH9=""),"",IF(AND($F9=AG9,$G9=AH9),10,IF($F9-$G9=AG9-AH9,7,IF(OR(AND($F9>$G9,AG9>AH9),AND($F9<$G9,AG9<AH9)),5,0)))) -> 5 | AJ9: =IF(AG9="","",IF(AG9>AH9,"A",IF(AG9<AH9,"B",IF(AG9=AH9,"X")))) -> A | AK9: 2 | AL9: 0 | AM9: =IF(OR($F9="",$G9="",AK9="",AL9=""),"",IF(AND($F9=AK9,$G9=AL9),10,IF($F9-$G9=AK9-AL9,7,IF(OR(AND($F9>$G9,AK9>AL9),AND($F9<$G9,AK9<AL9)),5,0)))) -> 5 | AN9: =IF(AK9="","",IF(AK9>AL9,"A",IF(AK9<AL9,"B",IF(AK9=AL9,"X")))) -> A | AO9: 2 | AP9: 0 | AQ9: =IF(OR($F9="",$G9="",AO9="",AP9=""),"",IF(AND($F9=AO9,$G9=AP9),10,IF($F9-$G9=AO9-AP9,7,IF(OR(AND($F9>$G9,AO9>AP9),AND($F9<$G9,AO9<AP9)),5,0)))) -> 5 | AR9: =IF(AO9="","",IF(AO9>AP9,"A",IF(AO9<AP9,"B",IF(AO9=AP9,"X")))) -> A | AS9: 2 | AT9: 1 | AU9: =IF(OR($F9="",$G9="",AS9="",AT9=""),"",IF(AND($F9=AS9,$G9=AT9),10,IF($F9-$G9=AS9-AT9,7,IF(OR(AND($F9>$G9,AS9>AT9),AND($F9<$G9,AS9<AT9)),5,0)))) -> 5 | AV9: =IF(AS9="","",IF(AS9>AT9,"A",IF(AS9<AT9,"B",IF(AS9=AT9,"X")))) -> A | AW9: 2 | AX9: 0 | AY9: =IF(OR($F9="",$G9="",AW9="",AX9=""),"",IF(AND($F9=AW9,$G9=AX9),10,IF($F9-$G9=AW9-AX9,7,IF(OR(AND($F9>$G9,AW9>AX9),AND($F9<$G9,AW9<AX9)),5,0)))) -> 5 | AZ9: =IF(AW9="","",IF(AW9>AX9,"A",IF(AW9<AX9,"B",IF(AW9=AX9,"X")))) -> A | BA9: 3 | BB9: 1 | BC9: =IF(OR($F9="",$G9="",BA9="",BB9=""),"",IF(AND($F9=BA9,$G9=BB9),10,IF($F9-$G9=BA9-BB9,7,IF(OR(AND($F9>$G9,BA9>BB9),AND($F9<$G9,BA9<BB9)),5,0)))) -> 5 | BD9: =IF(BA9="","",IF(BA9>BB9,"A",IF(BA9<BB9,"B",IF(BA9=BB9,"X")))) -> A | BE9: 2 | BF9: 0 | BG9: =IF(OR($F9="",$G9="",BE9="",BF9=""),"",IF(AND($F9=BE9,$G9=BF9),10,IF($F9-$G9=BE9-BF9,7,IF(OR(AND($F9>$G9,BE9>BF9),AND($F9<$G9,BE9<BF9)),5,0)))) -> 5 | BH9: =IF(BE9="","",IF(BE9>BF9,"A",IF(BE9<BF9,"B",IF(BE9=BF9,"X")))) -> A | BI9: 1 | BJ9: 0 | BK9: =IF(OR($F9="",$G9="",BI9="",BJ9=""),"",IF(AND($F9=BI9,$G9=BJ9),10,IF($F9-$G9=BI9-BJ9,7,IF(OR(AND($F9>$G9,BI9>BJ9),AND($F9<$G9,BI9<BJ9)),5,0)))) -> 5 | BL9: =IF(BI9="","",IF(BI9>BJ9,"A",IF(BI9<BJ9,"B",IF(BI9=BJ9,"X")))) -> A | BM9: 1 | BN9: 0 | BO9: =IF(OR($F9="",$G9="",BM9="",BN9=""),"",IF(AND($F9=BM9,$G9=BN9),10,IF($F9-$G9=BM9-BN9,7,IF(OR(AND($F9>$G9,BM9>BN9),AND($F9<$G9,BM9<BN9)),5,0)))) -> 5 | BP9: =IF(BM9="","",IF(BM9>BN9,"A",IF(BM9<BN9,"B",IF(BM9=BN9,"X")))) -> A | BQ9: 3 | BR9: 0 | BS9: =IF(OR($F9="",$G9="",BQ9="",BR9=""),"",IF(AND($F9=BQ9,$G9=BR9),10,IF($F9-$G9=BQ9-BR9,7,IF(OR(AND($F9>$G9,BQ9>BR9),AND($F9<$G9,BQ9<BR9)),5,0)))) -> 5 | BT9: =IF(BQ9="","",IF(BQ9>BR9,"A",IF(BQ9<BR9,"B",IF(BQ9=BR9,"X")))) -> A | BU9: 2 | BV9: 0 | BW9: =IF(OR($F9="",$G9="",BU9="",BV9=""),"",IF(AND($F9=BU9,$G9=BV9),10,IF($F9-$G9=BU9-BV9,7,IF(OR(AND($F9>$G9,BU9>BV9),AND($F9<$G9,BU9<BV9)),5,0)))) -> 5 | BX9: =IF(BU9="","",IF(BU9>BV9,"A",IF(BU9<BV9,"B",IF(BU9=BV9,"X")))) -> A | BY9: 2 | BZ9: 0 | CA9: =IF(OR($F9="",$G9="",BY9="",BZ9=""),"",IF(AND($F9=BY9,$G9=BZ9),10,IF($F9-$G9=BY9-BZ9,7,IF(OR(AND($F9>$G9,BY9>BZ9),AND($F9<$G9,BY9<BZ9)),5,0)))) -> 5 | CB9: =IF(BY9="","",IF(BY9>BZ9,"A",IF(BY9<BZ9,"B",IF(BY9=BZ9,"X")))) -> A | CC9: 2 | CD9: 1 | CE9: =IF(OR($F9="",$G9="",CC9="",CD9=""),"",IF(AND($F9=CC9,$G9=CD9),10,IF($F9-$G9=CC9-CD9,7,IF(OR(AND($F9>$G9,CC9>CD9),AND($F9<$G9,CC9<CD9)),5,0)))) -> 5 | CF9: =IF(CC9="","",IF(CC9>CD9,"A",IF(CC9<CD9,"B",IF(CC9=CD9,"X")))) -> A | CG9: 2 | CH9: 0 | CI9: =IF(OR($F9="",$G9="",CG9="",CH9=""),"",IF(AND($F9=CG9,$G9=CH9),10,IF($F9-$G9=CG9-CH9,7,IF(OR(AND($F9>$G9,CG9>CH9),AND($F9<$G9,CG9<CH9)),5,0)))) -> 5 | CJ9: =IF(CG9="","",IF(CG9>CH9,"A",IF(CG9<CH9,"B",IF(CG9=CH9,"X")))) -> A | CK9: 2 | CL9: 0 | CM9: =IF(OR($F9="",$G9="",CK9="",CL9=""),"",IF(AND($F9=CK9,$G9=CL9),10,IF($F9-$G9=CK9-CL9,7,IF(OR(AND($F9>$G9,CK9>CL9),AND($F9<$G9,CK9<CL9)),5,0)))) -> 5 | CN9: =IF(CK9="","",IF(CK9>CL9,"A",IF(CK9<CL9,"B",IF(CK9=CL9,"X")))) -> A | CO9: 3 | CP9: 0 | CQ9: =IF(OR($F9="",$G9="",CO9="",CP9=""),"",IF(AND($F9=CO9,$G9=CP9),10,IF($F9-$G9=CO9-CP9,7,IF(OR(AND($F9>$G9,CO9>CP9),AND($F9<$G9,CO9<CP9)),5,0)))) -> 5 | CR9: =IF(CO9="","",IF(CO9>CP9,"A",IF(CO9<CP9,"B",IF(CO9=CP9,"X")))) -> A | CS9: 3 | CT9: 1 | CU9: =IF(OR($F9="",$G9="",CS9="",CT9=""),"",IF(AND($F9=CS9,$G9=CT9),10,IF($F9-$G9=CS9-CT9,7,IF(OR(AND($F9>$G9,CS9>CT9),AND($F9<$G9,CS9<CT9)),5,0)))) -> 5 | CV9: =IF(CS9="","",IF(CS9>CT9,"A",IF(CS9<CT9,"B",IF(CS9=CT9,"X")))) -> A | CW9: 2 | CX9: 0 | CY9: =IF(OR($F9="",$G9="",CW9="",CX9=""),"",IF(AND($F9=CW9,$G9=CX9),10,IF($F9-$G9=CW9-CX9,7,IF(OR(AND($F9>$G9,CW9>CX9),AND($F9<$G9,CW9<CX9)),5,0)))) -> 5 | CZ9: =IF(CW9="","",IF(CW9>CX9,"A",IF(CW9<CX9,"B",IF(CW9=CX9,"X")))) -> A | DA9: 2 | DB9: 0 | DC9: =IF(OR($F9="",$G9="",DA9="",DB9=""),"",IF(AND($F9=DA9,$G9=DB9),10,IF($F9-$G9=DA9-DB9,7,IF(OR(AND($F9>$G9,DA9>DB9),AND($F9<$G9,DA9<DB9)),5,0)))) -> 5 | DD9: =IF(DA9="","",IF(DA9>DB9,"A",IF(DA9<DB9,"B",IF(DA9=DB9,"X")))) -> A | DE9: 2 | DF9: 1 | DG9: =IF(OR($F9="",$G9="",DE9="",DF9=""),"",IF(AND($F9=DE9,$G9=DF9),10,IF($F9-$G9=DE9-DF9,7,IF(OR(AND($F9>$G9,DE9>DF9),AND($F9<$G9,DE9<DF9)),5,0)))) -> 5 | DH9: =IF(DE9="","",IF(DE9>DF9,"A",IF(DE9<DF9,"B",IF(DE9=DF9,"X")))) -> A | DI9: 2 | DJ9: 0 | DK9: =IF(OR($F9="",$G9="",DI9="",DJ9=""),"",IF(AND($F9=DI9,$G9=DJ9),10,IF($F9-$G9=DI9-DJ9,7,IF(OR(AND($F9>$G9,DI9>DJ9),AND($F9<$G9,DI9<DJ9)),5,0)))) -> 5 | DL9: =IF(DI9="","",IF(DI9>DJ9,"A",IF(DI9<DJ9,"B",IF(DI9=DJ9,"X")))) -> A | DM9: 2 | DN9: 1 | DO9: =IF(OR($F9="",$G9="",DM9="",DN9=""),"",IF(AND($F9=DM9,$G9=DN9),10,IF($F9-$G9=DM9-DN9,7,IF(OR(AND($F9>$G9,DM9>DN9),AND($F9<$G9,DM9<DN9)),5,0)))) -> 5 | DP9: =IF(DM9="","",IF(DM9>DN9,"A",IF(DM9<DN9,"B",IF(DM9=DN9,"X")))) -> A | DQ9: 1 | DR9: 1 | DS9: =IF(OR($F9="",$G9="",DQ9="",DR9=""),"",IF(AND($F9=DQ9,$G9=DR9),10,IF($F9-$G9=DQ9-DR9,7,IF(OR(AND($F9>$G9,DQ9>DR9),AND($F9<$G9,DQ9<DR9)),5,0)))) -> 0 | DT9: =IF(DQ9="","",IF(DQ9>DR9,"A",IF(DQ9<DR9,"B",IF(DQ9=DR9,"X")))) -> X | DU9: 2 | DV9: 1 | DW9: =IF(OR($F9="",$G9="",DU9="",DV9=""),"",IF(AND($F9=DU9,$G9=DV9),10,IF($F9-$G9=DU9-DV9,7,IF(OR(AND($F9>$G9,DU9>DV9),AND($F9<$G9,DU9<DV9)),5,0)))) -> 5 | DX9: =IF(DU9="","",IF(DU9>DV9,"A",IF(DU9<DV9,"B",IF(DU9=DV9,"X")))) -> A | DY9: 2 | DZ9: 0 | EA9: =IF(OR($F9="",$G9="",DY9="",DZ9=""),"",IF(AND($F9=DY9,$G9=DZ9),10,IF($F9-$G9=DY9-DZ9,7,IF(OR(AND($F9>$G9,DY9>DZ9),AND($F9<$G9,DY9<DZ9)),5,0)))) -> 5 | EB9: =IF(DY9="","",IF(DY9>DZ9,"A",IF(DY9<DZ9,"B",IF(DY9=DZ9,"X")))) -> A | EC9: 3 | ED9: 0 | EE9: =IF(OR($F9="",$G9="",EC9="",ED9=""),"",IF(AND($F9=EC9,$G9=ED9),10,IF($F9-$G9=EC9-ED9,7,IF(OR(AND($F9>$G9,EC9>ED9),AND($F9<$G9,EC9<ED9)),5,0)))) -> 5 | EF9: =IF(EC9="","",IF(EC9>ED9,"A",IF(EC9<ED9,"B",IF(EC9=ED9,"X")))) -> A | EG9: 2 | EH9: 0 | EI9: =IF(OR($F9="",$G9="",EG9="",EH9=""),"",IF(AND($F9=EG9,$G9=EH9),10,IF($F9-$G9=EG9-EH9,7,IF(OR(AND($F9>$G9,EG9>EH9),AND($F9<$G9,EG9<EH9)),5,0)))) -> 5 | EJ9: =IF(EG9="","",IF(EG9>EH9,"A",IF(EG9<EH9,"B",IF(EG9=EH9,"X")))) -> A | EK9: 2 | EL9: 0 | EM9: =IF(OR($F9="",$G9="",EK9="",EL9=""),"",IF(AND($F9=EK9,$G9=EL9),10,IF($F9-$G9=EK9-EL9,7,IF(OR(AND($F9>$G9,EK9>EL9),AND($F9<$G9,EK9<EL9)),5,0)))) -> 5 | EN9: =IF(EK9="","",IF(EK9>EL9,"A",IF(EK9<EL9,"B",IF(EK9=EL9,"X")))) -> A | EO9: 3 | EP9: 2 | EQ9: =IF(OR($F9="",$G9="",EO9="",EP9=""),"",IF(AND($F9=EO9,$G9=EP9),10,IF($F9-$G9=EO9-EP9,7,IF(OR(AND($F9>$G9,EO9>EP9),AND($F9<$G9,EO9<EP9)),5,0)))) -> 5 | ER9: =IF(EO9="","",IF(EO9>EP9,"A",IF(EO9<EP9,"B",IF(EO9=EP9,"X")))) -> A | ES9: 2 | ET9: 0 | EU9: =IF(OR($F9="",$G9="",ES9="",ET9=""),"",IF(AND($F9=ES9,$G9=ET9),10,IF($F9-$G9=ES9-ET9,7,IF(OR(AND($F9>$G9,ES9>ET9),AND($F9<$G9,ES9<ET9)),5,0)))) -> 5 | EV9: =IF(ES9="","",IF(ES9>ET9,"A",IF(ES9<ET9,"B",IF(ES9=ET9,"X")))) -> A | EW9: 2 | EX9: 0 | EY9: =IF(OR($F9="",$G9="",EW9="",EX9=""),"",IF(AND($F9=EW9,$G9=EX9),10,IF($F9-$G9=EW9-EX9,7,IF(OR(AND($F9>$G9,EW9>EX9),AND($F9<$G9,EW9<EX9)),5,0)))) -> 5 | EZ9: =IF(EW9="","",IF(EW9>EX9,"A",IF(EW9<EX9,"B",IF(EW9=EX9,"X")))) -> A | FA9: 1 | FB9: 1 | FC9: =IF(OR($F9="",$G9="",FA9="",FB9=""),"",IF(AND($F9=FA9,$G9=FB9),10,IF($F9-$G9=FA9-FB9,7,IF(OR(AND($F9>$G9,FA9>FB9),AND($F9<$G9,FA9<FB9)),5,0)))) -> 0 | FD9: =IF(FA9="","",IF(FA9>FB9,"A",IF(FA9<FB9,"B",IF(FA9=FB9,"X")))) -> X | FE9: 3 | FF9: 0 | FG9: =IF(OR($F9="",$G9="",FE9="",FF9=""),"",IF(AND($F9=FE9,$G9=FF9),10,IF($F9-$G9=FE9-FF9,7,IF(OR(AND($F9>$G9,FE9>FF9),AND($F9<$G9,FE9<FF9)),5,0)))) -> 5 | FH9: =IF(FE9="","",IF(FE9>FF9,"A",IF(FE9<FF9,"B",IF(FE9=FF9,"X")))) -> A | FI9: 1 | FJ9: 0 | FK9: =IF(OR($F9="",$G9="",FI9="",FJ9=""),"",IF(AND($F9=FI9,$G9=FJ9),10,IF($F9-$G9=FI9-FJ9,7,IF(OR(AND($F9>$G9,FI9>FJ9),AND($F9<$G9,FI9<FJ9)),5,0)))) -> 5 | FL9: =IF(FI9="","",IF(FI9>FJ9,"A",IF(FI9<FJ9,"B",IF(FI9=FJ9,"X")))) -> A | FM9: 1 | FN9: 0 | FO9: =IF(OR($F9="",$G9="",FM9="",FN9=""),"",IF(AND($F9=FM9,$G9=FN9),10,IF($F9-$G9=FM9-FN9,7,IF(OR(AND($F9>$G9,FM9>FN9),AND($F9<$G9,FM9<FN9)),5,0)))) -> 5 | FP9: =IF(FM9="","",IF(FM9>FN9,"A",IF(FM9<FN9,"B",IF(FM9=FN9,"X")))) -> A | FQ9: 3 | FR9: 1 | FS9: =IF(OR($F9="",$G9="",FQ9="",FR9=""),"",IF(AND($F9=FQ9,$G9=FR9),10,IF($F9-$G9=FQ9-FR9,7,IF(OR(AND($F9>$G9,FQ9>FR9),AND($F9<$G9,FQ9<FR9)),5,0)))) -> 5 | FT9: =IF(FQ9="","",IF(FQ9>FR9,"A",IF(FQ9<FR9,"B",IF(FQ9=FR9,"X")))) -> A | FU9: 2 | FV9: 1 | FW9: =IF(OR($F9="",$G9="",FU9="",FV9=""),"",IF(AND($F9=FU9,$G9=FV9),10,IF($F9-$G9=FU9-FV9,7,IF(OR(AND($F9>$G9,FU9>FV9),AND($F9<$G9,FU9<FV9)),5,0)))) -> 5 | FX9: =IF(FU9="","",IF(FU9>FV9,"A",IF(FU9<FV9,"B",IF(FU9=FV9,"X")))) -> A | FY9: 2 | FZ9: 1 | GA9: =IF(OR($F9="",$G9="",FY9="",FZ9=""),"",IF(AND($F9=FY9,$G9=FZ9),10,IF($F9-$G9=FY9-FZ9,7,IF(OR(AND($F9>$G9,FY9>FZ9),AND($F9<$G9,FY9<FZ9)),5,0)))) -> 5 | GB9: =IF(FY9="","",IF(FY9>FZ9,"A",IF(FY9<FZ9,"B",IF(FY9=FZ9,"X")))) -> A | GC9: 2 | GD9: 1 | GE9: =IF(OR($F9="",$G9="",GC9="",GD9=""),"",IF(AND($F9=GC9,$G9=GD9),10,IF($F9-$G9=GC9-GD9,7,IF(OR(AND($F9>$G9,GC9>GD9),AND($F9<$G9,GC9<GD9)),5,0)))) -> 5 | GF9: =IF(GC9="","",IF(GC9>GD9,"A",IF(GC9<GD9,"B",IF(GC9=GD9,"X")))) -> A | GG9: 2 | GH9: 1 | GI9: =IF(OR($F9="",$G9="",GG9="",GH9=""),"",IF(AND($F9=GG9,$G9=GH9),10,IF($F9-$G9=GG9-GH9,7,IF(OR(AND($F9>$G9,GG9>GH9),AND($F9<$G9,GG9<GH9)),5,0)))) -> 5 | GJ9: =IF(GG9="","",IF(GG9>GH9,"A",IF(GG9<GH9,"B",IF(GG9=GH9,"X")))) -> A | GK9: 2 | GL9: 0 | GM9: =IF(OR($F9="",$G9="",GK9="",GL9=""),"",IF(AND($F9=GK9,$G9=GL9),10,IF($F9-$G9=GK9-GL9,7,IF(OR(AND($F9>$G9,GK9>GL9),AND($F9<$G9,GK9<GL9)),5,0)))) -> 5 | GN9: =IF(GK9="","",IF(GK9>GL9,"A",IF(GK9<GL9,"B",IF(GK9=GL9,"X")))) -> A | GO9: 3 | GP9: 1 | GQ9: =IF(OR($F9="",$G9="",GO9="",GP9=""),"",IF(AND($F9=GO9,$G9=GP9),10,IF($F9-$G9=GO9-GP9,7,IF(OR(AND($F9>$G9,GO9>GP9),AND($F9<$G9,GO9<GP9)),5,0)))) -> 5 | GR9: =IF(GO9="","",IF(GO9>GP9,"A",IF(GO9<GP9,"B",IF(GO9=GP9,"X")))) -> A | GS9: 3 | GT9: 0 | GU9: =IF(OR($F9="",$G9="",GS9="",GT9=""),"",IF(AND($F9=GS9,$G9=GT9),10,IF($F9-$G9=GS9-GT9,7,IF(OR(AND($F9>$G9,GS9>GT9),AND($F9<$G9,GS9<GT9)),5,0)))) -> 5 | GV9: =IF(GS9="","",IF(GS9>GT9,"A",IF(GS9<GT9,"B",IF(GS9=GT9,"X")))) -> A | GW9: 1 | GX9: 2 | GY9: =IF(OR($F9="",$G9="",GW9="",GX9=""),"",IF(AND($F9=GW9,$G9=GX9),10,IF($F9-$G9=GW9-GX9,7,IF(OR(AND($F9>$G9,GW9>GX9),AND($F9<$G9,GW9<GX9)),5,0)))) -> 0 | GZ9: =IF(GW9="","",IF(GW9>GX9,"A",IF(GW9<GX9,"B",IF(GW9=GX9,"X")))) -> B | HB9: =SUM(COUNTIF($I9:$GZ9,"A")+COUNTIF($I54:$GZ54,"A")) -> 72 | HC9: =SUM(COUNTIF($I9:$GZ9,"X")+COUNTIF($I54:$GZ54,"X")) -> 3 | HD9: =SUM(COUNTIF($I9:$GZ9,"B")+COUNTIF($I54:$GZ54,"B")) -> 1 | HE9: =SUM(HB9:HD9) -> 76 | HG9: =HB9*100/HE9 -> 94.73684211 | HH9: =HC9*100/HE9 -> 3.947368421 | HI9: =HD9*100/HE9 -> 1.315789474 | HK9: =SUM(I9:J44,M9:N44,Q9:R44,U9:V44,Y9:Z44,AC9:AD44,AG9:AH44,AK9:AL44,AO9:AP44,AS9:AT44,AW9:AX44,BA9:BB44,BE9:BF44,BI9:BJ44,BM9:BN44,BQ9:BR44,BU9:BV44,BY9:BZ44,CC9:CD44,CG9:CH44,CK9:CL44,CO9:CP44,CS9:CT44,CW9:CX44,DA9:DB44,DE9:DF44,DI9:DJ44,DM9:DN44,DQ9:DR44,DU9:DV44,DY9:DZ44,EC9:ED44,EG9:EH44,EK9:EL44,EO9:EP44,ES9:ET44,EW9:EX44,FA9:FB44,FE9:FF44,FI9:FJ44,FM9:FN44,FQ9:FR44,FU9:FV44,FY9:FZ44,GC9:GD44,GG9:GH44,GK9:GL44,GO9:GP44,GS9:GT44,GW9:GX44) -> 4216 | HL9: Spieler 1 - 50
A10: Sa. 15. Jun | B10: 15:00:00 | C10: 2 | D10: Ungarn | E10: Schweiz | F10: 1 | G10: 3 | I10: 1 | J10: 2 | K10: =IF(OR($F10="",$G10="",I10="",J10=""),"",IF(AND($F10=I10,$G10=J10),10,IF($F10-$G10=I10-J10,7,IF(OR(AND($F10>$G10,I10>J10),AND($F10<$G10,I10<J10)),5,0)))) -> 5 | L10: =IF(I10="","",IF(I10>J10,"A",IF(I10<J10,"B",IF(I10=J10,"X")))) -> B | M10: 1 | N10: 2 | O10: =IF(OR($F10="",$G10="",M10="",N10=""),"",IF(AND($F10=M10,$G10=N10),10,IF($F10-$G10=M10-N10,7,IF(OR(AND($F10>$G10,M10>N10),AND($F10<$G10,M10<N10)),5,0)))) -> 5 | P10: =IF(M10="","",IF(M10>N10,"A",IF(M10<N10,"B",IF(M10=N10,"X")))) -> B | Q10: 1 | R10: 2 | S10: =IF(OR($F10="",$G10="",Q10="",R10=""),"",IF(AND($F10=Q10,$G10=R10),10,IF($F10-$G10=Q10-R10,7,IF(OR(AND($F10>$G10,Q10>R10),AND($F10<$G10,Q10<R10)),5,0)))) -> 5 | T10: =IF(Q10="","",IF(Q10>R10,"A",IF(Q10<R10,"B",IF(Q10=R10,"X")))) -> B | U10: 0 | V10: 1 | W10: =IF(OR($F10="",$G10="",U10="",V10=""),"",IF(AND($F10=U10,$G10=V10),10,IF($F10-$G10=U10-V10,7,IF(OR(AND($F10>$G10,U10>V10),AND($F10<$G10,U10<V10)),5,0)))) -> 5 | X10: =IF(U10="","",IF(U10>V10,"A",IF(U10<V10,"B",IF(U10=V10,"X")))) -> B | Y10: 1 | Z10: 2 | AA10: =IF(OR($F10="",$G10="",Y10="",Z10=""),"",IF(AND($F10=Y10,$G10=Z10),10,IF($F10-$G10=Y10-Z10,7,IF(OR(AND($F10>$G10,Y10>Z10),AND($F10<$G10,Y10<Z10)),5,0)))) -> 5 | AB10: =IF(Y10="","",IF(Y10>Z10,"A",IF(Y10<Z10,"B",IF(Y10=Z10,"X")))) -> B | AC10: 0 | AD10: 1 | AE10: =IF(OR($F10="",$G10="",AC10="",AD10=""),"",IF(AND($F10=AC10,$G10=AD10),10,IF($F10-$G10=AC10-AD10,7,IF(OR(AND($F10>$G10,AC10>AD10),AND($F10<$G10,AC10<AD10)),5,0)))) -> 5 | AF10: =IF(AC10="","",IF(AC10>AD10,"A",IF(AC10<AD10,"B",IF(AC10=AD10,"X")))) -> B | AG10: 1 | AH10: 2 | AI10: =IF(OR($F10="",$G10="",AG10="",AH10=""),"",IF(AND($F10=AG10,$G10=AH10),10,IF($F10-$G10=AG10-AH10,7,IF(OR(AND($F10>$G10,AG10>AH10),AND($F10<$G10,AG10<AH10)),5,0)))) -> 5 | AJ10: =IF(AG10="","",IF(AG10>AH10,"A",IF(AG10<AH10,"B",IF(AG10=AH10,"X")))) -> B | AK10: 0 | AL10: 1 | AM10: =IF(OR($F10="",$G10="",AK10="",AL10=""),"",IF(AND($F10=AK10,$G10=AL10),10,IF($F10-$G10=AK10-AL10,7,IF(OR(AND($F10>$G10,AK10>AL10),AND($F10<$G10,AK10<AL10)),5,0)))) -> 5 | AN10: =IF(AK10="","",IF(AK10>AL10,"A",IF(AK10<AL10,"B",IF(AK10=AL10,"X")))) -> B | AO10: 1 | AP10: 2 | AQ10: =IF(OR($F10="",$G10="",AO10="",AP10=""),"",IF(AND($F10=AO10,$G10=AP10),10,IF($F10-$G10=AO10-AP10,7,IF(OR(AND($F10>$G10,AO10>AP10),AND($F10<$G10,AO10<AP10)),5,0)))) -> 5 | AR10: =IF(AO10="","",IF(AO10>AP10,"A",IF(AO10<AP10,"B",IF(AO10=AP10,"X")))) -> B | AS10: 1 | AT10: 3 | AU10: =IF(OR($F10="",$G10="",AS10="",AT10=""),"",IF(AND($F10=AS10,$G10=AT10),10,IF($F10-$G10=AS10-AT10,7,IF(OR(AND($F10>$G10,AS10>AT10),AND($F10<$G10,AS10<AT10)),5,0)))) -> 10 | AV10: =IF(AS10="","",IF(AS10>AT10,"A",IF(AS10<AT10,"B",IF(AS10=AT10,"X")))) -> B | AW10: 0 | AX10: 2 | AY10: =IF(OR($F10="",$G10="",AW10="",AX10=""),"",IF(AND($F10=AW10,$G10=AX10),10,IF($F10-$G10=AW10-AX10,7,IF(OR(AND($F10>$G10,AW10>AX10),AND($F10<$G10,AW10<AX10)),5,0)))) -> 7 | AZ10: =IF(AW10="","",IF(AW10>AX10,"A",IF(AW10<AX10,"B",IF(AW10=AX10,"X")))) -> B | BA10: 2 | BB10: 2 | BC10: =IF(OR($F10="",$G10="",BA10="",BB10=""),"",IF(AND($F10=BA10,$G10=BB10),10,IF($F10-$G10=BA10-BB10,7,IF(OR(AND($F10>$G10,BA10>BB10),AND($F10<$G10,BA10<BB10)),5,0)))) -> 0 | BD10: =IF(BA10="","",IF(BA10>BB10,"A",IF(BA10<BB10,"B",IF(BA10=BB10,"X")))) -> X | BE10: 1 | BF10: 2 | BG10: =IF(OR($F10="",$G10="",BE10="",BF10=""),"",IF(AND($F10=BE10,$G10=BF10),10,IF($F10-$G10=BE10-BF10,7,IF(OR(AND($F10>$G10,BE10>BF10),AND($F10<$G10,BE10<BF10)),5,0)))) -> 5 | BH10: =IF(BE10="","",IF(BE10>BF10,"A",IF(BE10<BF10,"B",IF(BE10=BF10,"X")))) -> B | BI10: 1 | BJ10: 1 | BK10: =IF(OR($F10="",$G10="",BI10="",BJ10=""),"",IF(AND($F10=BI10,$G10=BJ10),10,IF($F10-$G10=BI10-BJ10,7,IF(OR(AND($F10>$G10,BI10>BJ10),AND($F10<$G10,BI10<BJ10)),5,0)))) -> 0 | BL10: =IF(BI10="","",IF(BI10>BJ10,"A",IF(BI10<BJ10,"B",IF(BI10=BJ10,"X")))) -> X | BM10: 0 | BN10: 0 | BO10: =IF(OR($F10="",$G10="",BM10="",BN10=""),"",IF(AND($F10=BM10,$G10=BN10),10,IF($F10-$G10=BM10-BN10,7,IF(OR(AND($F10>$G10,BM10>BN10),AND($F10<$G10,BM10<BN10)),5,0)))) -> 0 | BP10: =IF(BM10="","",IF(BM10>BN10,"A",IF(BM10<BN10,"B",IF(BM10=BN10,"X")))) -> X | BQ10: 0 | BR10: 2 | BS10: =IF(OR($F10="",$G10="",BQ10="",BR10=""),"",IF(AND($F10=BQ10,$G10=BR10),10,IF($F10-$G10=BQ10-BR10,7,IF(OR(AND($F10>$G10,BQ10>BR10),AND($F10<$G10,BQ10<BR10)),5,0)))) -> 7 | BT10: =IF(BQ10="","",IF(BQ10>BR10,"A",IF(BQ10<BR10,"B",IF(BQ10=BR10,"X")))) -> B | BU10: 0 | BV10: 1 | BW10: =IF(OR($F10="",$G10="",BU10="",BV10=""),"",IF(AND($F10=BU10,$G10=BV10),10,IF($F10-$G10=BU10-BV10,7,IF(OR(AND($F10>$G10,BU10>BV10),AND($F10<$G10,BU10<BV10)),5,0)))) -> 5 | BX10: =IF(BU10="","",IF(BU10>BV10,"A",IF(BU10<BV10,"B",IF(BU10=BV10,"X")))) -> B | BY10: 0 | BZ10: 1 | CA10: =IF(OR($F10="",$G10="",BY10="",BZ10=""),"",IF(AND($F10=BY10,$G10=BZ10),10,IF($F10-$G10=BY10-BZ10,7,IF(OR(AND($F10>$G10,BY10>BZ10),AND($F10<$G10,BY10<BZ10)),5,0)))) -> 5 | CB10: =IF(BY10="","",IF(BY10>BZ10,"A",IF(BY10<BZ10,"B",IF(BY10=BZ10,"X")))) -> B | CC10: 1 | CD10: 1 | CE10: =IF(OR($F10="",$G10="",CC10="",CD10=""),"",IF(AND($F10=CC10,$G10=CD10),10,IF($F10-$G10=CC10-CD10,7,IF(OR(AND($F10>$G10,CC10>CD10),AND($F10<$G10,CC10<CD10)),5,0)))) -> 0 | CF10: =IF(CC10="","",IF(CC10>CD10,"A",IF(CC10<CD10,"B",IF(CC10=CD10,"X")))) -> X | CG10: 1 | CH10: 2 | CI10: =IF(OR($F10="",$G10="",CG10="",CH10=""),"",IF(AND($F10=CG10,$G10=CH10),10,IF($F10-$G10=CG10-CH10,7,IF(OR(AND($F10>$G10,CG10>CH10),AND($F10<$G10,CG10<CH10)),5,0)))) -> 5 | CJ10: =IF(CG10="","",IF(CG10>CH10,"A",IF(CG10<CH10,"B",IF(CG10=CH10,"X")))) -> B | CK10: 0 | CL10: 1 | CM10: =IF(OR($F10="",$G10="",CK10="",CL10=""),"",IF(AND($F10=CK10,$G10=CL10),10,IF($F10-$G10=CK10-CL10,7,IF(OR(AND($F10>$G10,CK10>CL10),AND($F10<$G10,CK10<CL10)),5,0)))) -> 5 | CN10: =IF(CK10="","",IF(CK10>CL10,"A",IF(CK10<CL10,"B",IF(CK10=CL10,"X")))) -> B | CO10: 0 | CP10: 2 | CQ10: =IF(OR($F10="",$G10="",CO10="",CP10=""),"",IF(AND($F10=CO10,$G10=CP10),10,IF($F10-$G10=CO10-CP10,7,IF(OR(AND($F10>$G10,CO10>CP10),AND($F10<$G10,CO10<CP10)),5,0)))) -> 7 | CR10: =IF(CO10="","",IF(CO10>CP10,"A",IF(CO10<CP10,"B",IF(CO10=CP10,"X")))) -> B | CS10: 0 | CT10: 2 | CU10: =IF(OR($F10="",$G10="",CS10="",CT10=""),"",IF(AND($F10=CS10,$G10=CT10),10,IF($F10-$G10=CS10-CT10,7,IF(OR(AND($F10>$G10,CS10>CT10),AND($F10<$G10,CS10<CT10)),5,0)))) -> 7 | CV10: =IF(CS10="","",IF(CS10>CT10,"A",IF(CS10<CT10,"B",IF(CS10=CT10,"X")))) -> B | CW10: 1 | CX10: 1 | CY10: =IF(OR($F10="",$G10="",CW10="",CX10=""),"",IF(AND($F10=CW10,$G10=CX10),10,IF($F10-$G10=CW10-CX10,7,IF(OR(AND($F10>$G10,CW10>CX10),AND($F10<$G10,CW10<CX10)),5,0)))) -> 0 | CZ10: =IF(CW10="","",IF(CW10>CX10,"A",IF(CW10<CX10,"B",IF(CW10=CX10,"X")))) -> X | DA10: 0 | DB10: 1 | DC10: =IF(OR($F10="",$G10="",DA10="",DB10=""),"",IF(AND($F10=DA10,$G10=DB10),10,IF($F10-$G10=DA10-DB10,7,IF(OR(AND($F10>$G10,DA10>DB10),AND($F10<$G10,DA10<DB10)),5,0)))) -> 5 | DD10: =IF(DA10="","",IF(DA10>DB10,"A",IF(DA10<DB10,"B",IF(DA10=DB10,"X")))) -> B | DE10: 1 | DF10: 1 | DG10: =IF(OR($F10="",$G10="",DE10="",DF10=""),"",IF(AND($F10=DE10,$G10=DF10),10,IF($F10-$G10=DE10-DF10,7,IF(OR(AND($F10>$G10,DE10>DF10),AND($F10<$G10,DE10<DF10)),5,0)))) -> 0 | DH10: =IF(DE10="","",IF(DE10>DF10,"A",IF(DE10<DF10,"B",IF(DE10=DF10,"X")))) -> X | DI10: 1 | DJ10: 1 | DK10: =IF(OR($F10="",$G10="",DI10="",DJ10=""),"",IF(AND($F10=DI10,$G10=DJ10),10,IF($F10-$G10=DI10-DJ10,7,IF(OR(AND($F10>$G10,DI10>DJ10),AND($F10<$G10,DI10<DJ10)),5,0)))) -> 0 | DL10: =IF(DI10="","",IF(DI10>DJ10,"A",IF(DI10<DJ10,"B",IF(DI10=DJ10,"X")))) -> X | DM10: 2 | DN10: 2 | DO10: =IF(OR($F10="",$G10="",DM10="",DN10=""),"",IF(AND($F10=DM10,$G10=DN10),10,IF($F10-$G10=DM10-DN10,7,IF(OR(AND($F10>$G10,DM10>DN10),AND($F10<$G10,DM10<DN10)),5,0)))) -> 0 | DP10: =IF(DM10="","",IF(DM10>DN10,"A",IF(DM10<DN10,"B",IF(DM10=DN10,"X")))) -> X | DQ10: 1 | DR10: 2 | DS10: =IF(OR($F10="",$G10="",DQ10="",DR10=""),"",IF(AND($F10=DQ10,$G10=DR10),10,IF($F10-$G10=DQ10-DR10,7,IF(OR(AND($F10>$G10,DQ10>DR10),AND($F10<$G10,DQ10<DR10)),5,0)))) -> 5 | DT10: =IF(DQ10="","",IF(DQ10>DR10,"A",IF(DQ10<DR10,"B",IF(DQ10=DR10,"X")))) -> B | DU10: 1 | DV10: 1 | DW10: =IF(OR($F10="",$G10="",DU10="",DV10=""),"",IF(AND($F10=DU10,$G10=DV10),10,IF($F10-$G10=DU10-DV10,7,IF(OR(AND($F10>$G10,DU10>DV10),AND($F10<$G10,DU10<DV10)),5,0)))) -> 0 | DX10: =IF(DU10="","",IF(DU10>DV10,"A",IF(DU10<DV10,"B",IF(DU10=DV10,"X")))) -> X | DY10: 1 | DZ10: 2 | EA10: =IF(OR($F10="",$G10="",DY10="",DZ10=""),"",IF(AND($F10=DY10,$G10=DZ10),10,IF($F10-$G10=DY10-DZ10,7,IF(OR(AND($F10>$G10,DY10>DZ10),AND($F10<$G10,DY10<DZ10)),5,0)))) -> 5 | EB10: =IF(DY10="","",IF(DY10>DZ10,"A",IF(DY10<DZ10,"B",IF(DY10=DZ10,"X")))) -> B | EC10: 0 | ED10: 2 | EE10: =IF(OR($F10="",$G10="",EC10="",ED10=""),"",IF(AND($F10=EC10,$G10=ED10),10,IF($F10-$G10=EC10-ED10,7,IF(OR(AND($F10>$G10,EC10>ED10),AND($F10<$G10,EC10<ED10)),5,0)))) -> 7 | EF10: =IF(EC10="","",IF(EC10>ED10,"A",IF(EC10<ED10,"B",IF(EC10=ED10,"X")))) -> B | EG10: 0 | EH10: 1 | EI10: =IF(OR($F10="",$G10="",EG10="",EH10=""),"",IF(AND($F10=EG10,$G10=EH10),10,IF($F10-$G10=EG10-EH10,7,IF(OR(AND($F10>$G10,EG10>EH10),AND($F10<$G10,EG10<EH10)),5,0)))) -> 5 | EJ10: =IF(EG10="","",IF(EG10>EH10,"A",IF(EG10<EH10,"B",IF(EG10=EH10,"X")))) -> B | EK10: 0 | EL10: 1 | EM10: =IF(OR($F10="",$G10="",EK10="",EL10=""),"",IF(AND($F10=EK10,$G10=EL10),10,IF($F10-$G10=EK10-EL10,7,IF(OR(AND($F10>$G10,EK10>EL10),AND($F10<$G10,EK10<EL10)),5,0)))) -> 5 | EN10: =IF(EK10="","",IF(EK10>EL10,"A",IF(EK10<EL10,"B",IF(EK10=EL10,"X")))) -> B | EO10: 1 | EP10: 2 | EQ10: =IF(OR($F10="",$G10="",EO10="",EP10=""),"",IF(AND($F10=EO10,$G10=EP10),10,IF($F10-$G10=EO10-EP10,7,IF(OR(AND($F10>$G10,EO10>EP10),AND($F10<$G10,EO10<EP10)),5,0)))) -> 5 | ER10: =IF(EO10="","",IF(EO10>EP10,"A",IF(EO10<EP10,"B",IF(EO10=EP10,"X")))) -> B | ES10: 1 | ET10: 3 | EU10: =IF(OR($F10="",$G10="",ES10="",ET10=""),"",IF(AND($F10=ES10,$G10=ET10),10,IF($F10-$G10=ES10-ET10,7,IF(OR(AND($F10>$G10,ES10>ET10),AND($F10<$G10,ES10<ET10)),5,0)))) -> 10 | EV10: =IF(ES10="","",IF(ES10>ET10,"A",IF(ES10<ET10,"B",IF(ES10=ET10,"X")))) -> B | EW10: 0 | EX10: 1 | EY10: =IF(OR($F10="",$G10="",EW10="",EX10=""),"",IF(AND($F10=EW10,$G10=EX10),10,IF($F10-$G10=EW10-EX10,7,IF(OR(AND($F10>$G10,EW10>EX10),AND($F10<$G10,EW10<EX10)),5,0)))) -> 5 | EZ10: =IF(EW10="","",IF(EW10>EX10,"A",IF(EW10<EX10,"B",IF(EW10=EX10,"X")))) -> B | FA10: 2 | FB10: 2 | FC10: =IF(OR($F10="",$G10="",FA10="",FB10=""),"",IF(AND($F10=FA10,$G10=FB10),10,IF($F10-$G10=FA10-FB10,7,IF(OR(AND($F10>$G10,FA10>FB10),AND($F10<$G10,FA10<FB10)),5,0)))) -> 0 | FD10: =IF(FA10="","",IF(FA10>FB10,"A",IF(FA10<FB10,"B",IF(FA10=FB10,"X")))) -> X | FE10: 1 | FF10: 2 | FG10: =IF(OR($F10="",$G10="",FE10="",FF10=""),"",IF(AND($F10=FE10,$G10=FF10),10,IF($F10-$G10=FE10-FF10,7,IF(OR(AND($F10>$G10,FE10>FF10),AND($F10<$G10,FE10<FF10)),5,0)))) -> 5 | FH10: =IF(FE10="","",IF(FE10>FF10,"A",IF(FE10<FF10,"B",IF(FE10=FF10,"X")))) -> B | FI10: 0 | FJ10: 1 | FK10: =IF(OR($F10="",$G10="",FI10="",FJ10=""),"",IF(AND($F10=FI10,$G10=FJ10),10,IF($F10-$G10=FI10-FJ10,7,IF(OR(AND($F10>$G10,FI10>FJ10),AND($F10<$G10,FI10<FJ10)),5,0)))) -> 5 | FL10: =IF(FI10="","",IF(FI10>FJ10,"A",IF(FI10<FJ10,"B",IF(FI10=FJ10,"X")))) -> B | FM10: 0 | FN10: 1 | FO10: =IF(OR($F10="",$G10="",FM10="",FN10=""),"",IF(AND($F10=FM10,$G10=FN10),10,IF($F10-$G10=FM10-FN10,7,IF(OR(AND($F10>$G10,FM10>FN10),AND($F10<$G10,FM10<FN10)),5,0)))) -> 5 | FP10: =IF(FM10="","",IF(FM10>FN10,"A",IF(FM10<FN10,"B",IF(FM10=FN10,"X")))) -> B | FQ10: 1 | FR10: 2 | FS10: =IF(OR($F10="",$G10="",FQ10="",FR10=""),"",IF(AND($F10=FQ10,$G10=FR10),10,IF($F10-$G10=FQ10-FR10,7,IF(OR(AND($F10>$G10,FQ10>FR10),AND($F10<$G10,FQ10<FR10)),5,0)))) -> 5 | FT10: =IF(FQ10="","",IF(FQ10>FR10,"A",IF(FQ10<FR10,"B",IF(FQ10=FR10,"X")))) -> B | FU10: 1 | FV10: 2 | FW10: =IF(OR($F10="",$G10="",FU10="",FV10=""),"",IF(AND($F10=FU10,$G10=FV10),10,IF($F10-$G10=FU10-FV10,7,IF(OR(AND($F10>$G10,FU10>FV10),AND($F10<$G10,FU10<FV10)),5,0)))) -> 5 | FX10: =IF(FU10="","",IF(FU10>FV10,"A",IF(FU10<FV10,"B",IF(FU10=FV10,"X")))) -> B | FY10: 1 | FZ10: 1 | GA10: =IF(OR($F10="",$G10="",FY10="",FZ10=""),"",IF(AND($F10=FY10,$G10=FZ10),10,IF($F10-$G10=FY10-FZ10,7,IF(OR(AND($F10>$G10,FY10>FZ10),AND($F10<$G10,FY10<FZ10)),5,0)))) -> 0 | GB10: =IF(FY10="","",IF(FY10>FZ10,"A",IF(FY10<FZ10,"B",IF(FY10=FZ10,"X")))) -> X | GC10: 1 | GD10: 2 | GE10: =IF(OR($F10="",$G10="",GC10="",GD10=""),"",IF(AND($F10=GC10,$G10=GD10),10,IF($F10-$G10=GC10-GD10,7,IF(OR(AND($F10>$G10,GC10>GD10),AND($F10<$G10,GC10<GD10)),5,0)))) -> 5 | GF10: =IF(GC10="","",IF(GC10>GD10,"A",IF(GC10<GD10,"B",IF(GC10=GD10,"X")))) -> B | GG10: 1 | GH10: 1 | GI10: =IF(OR($F10="",$G10="",GG10="",GH10=""),"",IF(AND($F10=GG10,$G10=GH10),10,IF($F10-$G10=GG10-GH10,7,IF(OR(AND($F10>$G10,GG10>GH10),AND($F10<$G10,GG10<GH10)),5,0)))) -> 0 | GJ10: =IF(GG10="","",IF(GG10>GH10,"A",IF(GG10<GH10,"B",IF(GG10=GH10,"X")))) -> X | GK10: 1 | GL10: 2 | GM10: =IF(OR($F10="",$G10="",GK10="",GL10=""),"",IF(AND($F10=GK10,$G10=GL10),10,IF($F10-$G10=GK10-GL10,7,IF(OR(AND($F10>$G10,GK10>GL10),AND($F10<$G10,GK10<GL10)),5,0)))) -> 5 | GN10: =IF(GK10="","",IF(GK10>GL10,"A",IF(GK10<GL10,"B",IF(GK10=GL10,"X")))) -> B | GO10: 1 | GP10: 2 | GQ10: =IF(OR($F10="",$G10="",GO10="",GP10=""),"",IF(AND($F10=GO10,$G10=GP10),10,IF($F10-$G10=GO10-GP10,7,IF(OR(AND($F10>$G10,GO10>GP10),AND($F10<$G10,GO10<GP10)),5,0)))) -> 5 | GR10: =IF(GO10="","",IF(GO10>GP10,"A",IF(GO10<GP10,"B",IF(GO10=GP10,"X")))) -> B | GS10: 1 | GT10: 2 | GU10: =IF(OR($F10="",$G10="",GS10="",GT10=""),"",IF(AND($F10=GS10,$G10=GT10),10,IF($F10-$G10=GS10-GT10,7,IF(OR(AND($F10>$G10,GS10>GT10),AND($F10<$G10,GS10<GT10)),5,0)))) -> 5 | GV10: =IF(GS10="","",IF(GS10>GT10,"A",IF(GS10<GT10,"B",IF(GS10=GT10,"X")))) -> B | GW10: 2 | GX10: 2 | GY10: =IF(OR($F10="",$G10="",GW10="",GX10=""),"",IF(AND($F10=GW10,$G10=GX10),10,IF($F10-$G10=GW10-GX10,7,IF(OR(AND($F10>$G10,GW10>GX10),AND($F10<$G10,GW10<GX10)),5,0)))) -> 0 | GZ10: =IF(GW10="","",IF(GW10>GX10,"A",IF(GW10<GX10,"B",IF(GW10=GX10,"X")))) -> X | HB10: 0 | HC10: 23 | HD10: 53 | HE10: =SUM(HB10:HD10) -> 76 | HG10: =HB10*100/HE10 -> 0 | HH10: =HC10*100/HE10 -> 30.26315789 | HI10: =HD10*100/HE10 -> 69.73684211 | HK10: =SUM(I54:J89,M54:N89,Q54:R89,U54:V89,Y54:Z89,AC54:AD89,AG54:AH89,AK54:AL89,AO54:AP89,AS54:AT89,AW54:AX89,BA54:BB89,BE54:BF89,BI54:BJ89,BM54:BN89,BQ54:BR89,BU54:BV89,BY54:BZ89,CC54:CD89,CG54:CH89,CK54:CL89,CO54:CP89,CS54:CT89,CW54:CX89,DA54:DB89,DE54:DF89,DI54:DJ89,DM54:DN89,DQ54:DR89,DU54:DV89,DY54:DZ89,EC54:ED89,EG54:EH89,EK54:EL89,EO54:EP89,ES54:ET89,EW54:EX89,FA54:FB89,FE54:FF89,FI54:FJ89,FM54:FN89,FQ54:FR89,FU54:FV89,FY54:FZ89,GC54:GD89,GG54:GH89,GK54:GL89,GO54:GP89,GS54:GT89,GW54:GX89) -> 2434 | HL10: Spieler 51 - 100
A11: Sa. 15. Jun | B11: 18:00:00 | C11: 3 | D11: Spanien | E11: Kroatien | F11: 3 | G11: 0 | I11: 1 | J11: 1 | K11: 0 | L11: X | M11: 2 | N11: 3 | O11: 0 | P11: B | Q11: 1 | R11: 1 | S11: 0 | T11: X | U11: 1 | V11: 0 | W11: 5 | X11: A | Y11: 2 | Z11: 1 | AA11: 5 | AB11: A | AC11: 2 | AD11: 1 | AE11: 5 | AF11: A | AG11: 2 | AH11: 0 | AI11: 5 | AJ11: A | AK11: 2 | AL11: 1 | AM11: 5 | AN11: A | AO11: 2 | AP11: 1 | AQ11: 5 | AR11: A | AS11: 2 | AT11: 1 | AU11: 5 | AV11: A | AW11: 2 | AX11: 2 | AY11: 0 | AZ11: X | BA11: 3 | BB11: 2 | BC11: 5 | BD11: A | BE11: 1 | BF11: 1 | BG11: 0 | BH11: X | BI11: 2 | BJ11: 0 | BK11: 5 | BL11: A | BM11: 1 | BN11: 0 | BO11: 5 | BP11: A | BQ11: 2 | BR11: 1 | BS11: 5 | BT11: A | BU11: 1 | BV11: 1 | BW11: 0 | BX11: X | BY11: 2 | BZ11: 1 | CA11: 5 | CB11: A | CC11: 1 | CD11: 1 | CE11: 0 | CF11: X | CG11: 1 | CH11: 1 | CI11: 0 | CJ11: X | CK11: 2 | CL11: 1 | CM11: 5 | CN11: A | CO11: 2 | CP11: 1 | CQ11: 5 | CR11: A | CS11: 2 | CT11: 2 | CU11: 0 | CV11: X | CW11: 2 | CX11: 1 | CY11: 5 | CZ11: A | DA11: 1 | DB11: 1 | DC11: 0 | DD11: X | DE11: 0 | DF11: 1 | DG11: 0 | DH11: B | DI11: 2 | DJ11: 1 | DK11: 5 | DL11: A | DM11: 1 | DN11: 3 | DO11: 0 | DP11: B | DQ11: 1 | DR11: 1 | DS11: 0 | DT11: X | DU11: 2 | DV11: 0 | DW11: 5 | DX11: A | DY11: 2 | DZ11: 2 | EA11: 0 | EB11: X | EC11: 2 | ED11: 1 | EE11: 5 | EF11: A | EG11: 1 | EH11: 0 | EI11: 5 | EJ11: A | EK11: 1 | EL11: 1 | EM11: 0 | EN11: X | EO11: 4 | EP11: 2 | EQ11: 5 | ER11: A | ES11: 3 | ET11: 1 | EU11: 5 | EV11: A | EW11: 1 | EX11: 1 | EY11: 0 | EZ11: X | FA11: 1 | FB11: 0 | FC11: 5 | FD11: A | FE11: 1 | FF11: 0 | FG11: 5 | FH11: A | FI11: 1 | FJ11: 0 | FK11: 5 | FL11: A | FM11: 1 | FN11: 0 | FO11: 5 | FP11: A | FQ11: 3 | FR11: 1 | FS11: 5 | FT11: A | FU11: 2 | FV11: 0 | FW11: 5 | FX11: A | FY11: 0 | FZ11: 0 | GA11: 0 | GB11: X | GC11: 2 | GD11: 0 | GE11: 5 | GF11: A | GG11: 2 | GH11: 1 | GI11: 5 | GJ11: A | GK11: 1 | GL11: 2 | GM11: 0 | GN11: B | GO11: 2 | GP11: 1 | GQ11: 5 | GR11: A | GS11: 2 | GT11: 2 | GU11: 0 | GV11: X | GW11: 1 | GX11: 1 | GY11: 0 | GZ11: X | HB11: 42 | HC11: 27 | HD11: 7 | HE11: 76 | HG11: 55.26315789 | HH11: 35.52631579 | HI11: 9.210526316
A12: Sa. 15. Jun | B12: 21:00:00 | C12: 4 | D12: Italien | E12: Albanien | F12: 2 | G12: 1 | I12: 2 | J12: 1 | K12: 10 | L12: A | M12: 3 | N12: 0 | O12: 5 | P12: A | Q12: 3 | R12: 0 | S12: 5 | T12: A | U12: 2 | V12: 1 | W12: 10 | X12: A | Y12: 2 | Z12: 0 | AA12: 5 | AB12: A | AC12: 1 | AD12: 0 | AE12: 7 | AF12: A | AG12: 2 | AH12: 0 | AI12: 5 | AJ12: A | AK12: 3 | AL12: 0 | AM12: 5 | AN12: A | AO12: 2 | AP12: 0 | AQ12: 5 | AR12: A | AS12: 2 | AT12: 0 | AU12: 5 | AV12: A | AW12: 1 | AX12: 0 | AY12: 7 | AZ12: A | BA12: 2 | BB12: 1 | BC12: 10 | BD12: A | BE12: 1 | BF12: 0 | BG12: 7 | BH12: A | BI12: 2 | BJ12: 0 | BK12: 5 | BL12: A | BM12: 2 | BN12: 0 | BO12: 5 | BP12: A | BQ12: 1 | BR12: 1 | BS12: 0 | BT12: X | BU12: 2 | BV12: 1 | BW12: 10 | BX12: A | BY12: 2 | BZ12: 1 | CA12: 10 | CB12: A | CC12: 1 | CD12: 0 | CE12: 7 | CF12: A | CG12: 2 | CH12: 1 | CI12: 10 | CJ12: A | CK12: 2 | CL12: 0 | CM12: 5 | CN12: A | CO12: 4 | CP12: 0 | CQ12: 5 | CR12: A | CS12: 2 | CT12: 0 | CU12: 5 | CV12: A | CW12: 3 | CX12: 0 | CY12: 5 | CZ12: A | DA12: 2 | DB12: 1 | DC12: 10 | DD12: A | DE12: 3 | DF12: 1 | DG12: 5 | DH12: A | DI12: 1 | DJ12: 0 | DK12: 7 | DL12: A | DM12: 1 | DN12: 0 | DO12: 7 | DP12: A | DQ12: 0 | DR12: 1 | DS12: 0 | DT12: B | DU12: 2 | DV12: 0 | DW12: 5 | DX12: A | DY12: 1 | DZ12: 0 | EA12: 7 | EB12: A | EC12: 2 | ED12: 0 | EE12: 5 | EF12: A | EG12: 2 | EH12: 0 | EI12: 5 | EJ12: A | EK12: 2 | EL12: 0 | EM12: 5 | EN12: A | EO12: 0 | EP12: 0 | EQ12: 0 | ER12: X | ES12: 3 | ET12: 0 | EU12: 5 | EV12: A | EW12: 2 | EX12: 0 | EY12: 5 | EZ12: A | FA12: 2 | FB12: 0 | FC12: 5 | FD12: A | FE12: 2 | FF12: 0 | FG12: 5 | FH12: A | FI12: 1 | FJ12: 0 | FK12: 7 | FL12: A | FM12: 1 | FN12: 0 | FO12: 7 | FP12: A | FQ12: 2 | FR12: 0 | FS12: 5 | FT12: A | FU12: 1 | FV12: 0 | FW12: 7 | FX12: A | FY12: 2 | FZ12: 0 | GA12: 5 | GB12: A | GC12: 3 | GD12: 0 | GE12: 5 | GF12: A | GG12: 3 | GH12: 0 | GI12: 5 | GJ12: A | GK12: 2 | GL12: 0 | GM12: 5 | GN12: A | GO12: 2 | GP12: 0 | GQ12: 5 | GR12: A | GS12: 2 | GT12: 0 | GU12: 5 | GV12: A | GW12: 2 | GX12: 1 | GY12: 10 | GZ12: A | HB12: 71 | HC12: 4 | HD12: 1 | HE12: 76 | HG12: 93.42105263 | HH12: 5.263157895 | HI12: 1.315789474 | HK12: =SUM(HK9:HK11) -> 6650 | HL12: Total
A13: So. 16. Jun | B13: 21:00:00 | C13: 5 | D13: Serbien | E13: England | F13: 0 | G13: 1 | I13: 1 | J13: 2 | K13: 7 | L13: B | M13: 1 | N13: 3 | O13: 5 | P13: B | Q13: 0 | R13: 2 | S13: 5 | T13: B | U13: 0 | V13: 3 | W13: 5 | X13: B | Y13: 1 | Z13: 3 | AA13: 5 | AB13: B | AC13: 1 | AD13: 2 | AE13: 7 | AF13: B | AG13: 0 | AH13: 4 | AI13: 5 | AJ13: B | AK13: 0 | AL13: 2 | AM13: 5 | AN13: B | AO13: 0 | AP13: 1 | AQ13: 10 | AR13: B | AS13: 0 | AT13: 2 | AU13: 5 | AV13: B | AW13: 0 | AX13: 2 | AY13: 5 | AZ13: B | BA13: 1 | BB13: 3 | BC13: 5 | BD13: B | BE13: 0 | BF13: 1 | BG13: 10 | BH13: B | BI13: 0 | BJ13: 1 | BK13: 10 | BL13: B | BM13: 0 | BN13: 1 | BO13: 10 | BP13: B | BQ13: 1 | BR13: 2 | BS13: 7 | BT13: B | BU13: 0 | BV13: 1 | BW13: 10 | BX13: B | BY13: 1 | BZ13: 3 | CA13: 5 | CB13: B | CC13: 0 | CD13: 1 | CE13: 10 | CF13: B | CG13: 1 | CH13: 3 | CI13: 5 | CJ13: B | CK13: 1 | CL13: 3 | CM13: 5 | CN13: B | CO13: 2 | CP13: 3 | CQ13: 7 | CR13: B | CS13: 1 | CT13: 2 | CU13: 7 | CV13: B | CW13: 1 | CX13: 4 | CY13: 5 | CZ13: B | DA13: 1 | DB13: 2 | DC13: 7 | DD13: B | DE13: 1 | DF13: 3 | DG13: 5 | DH13: B | DI13: 0 | DJ13: 2 | DK13: 5 | DL13: B | DM13: 2 | DN13: 3 | DO13: 7 | DP13: B | DQ13: 1 | DR13: 2 | DS13: 7 | DT13: B | DU13: 0 | DV13: 2 | DW13: 5 | DX13: B | DY13: 0 | DZ13: 2 | EA13: 5 | EB13: B | EC13: 1 | ED13: 2 | EE13: 7 | EF13: B | EG13: 0 | EH13: 2 | EI13: 5 | EJ13: B | EK13: 1 | EL13: 3 | EM13: 5 | EN13: B | EO13: 0 | EP13: 1 | EQ13: 10 | ER13: B | ES13: 1 | ET13: 1 | EU13: 0 | EV13: X | EW13: 0 | EX13: 1 | EY13: 10 | EZ13: B | FA13: 1 | FB13: 1 | FC13: 0 | FD13: X | FE13: 1 | FF13: 1 | FG13: 0 | FH13: X | FI13: 0 | FJ13: 1 | FK13: 10 | FL13: B | FM13: 0 | FN13: 1 | FO13: 10 | FP13: B | FQ13: 1 | FR13: 2 | FS13: 7 | FT13: B | FU13: 1 | FV13: 4 | FW13: 5 | FX13: B | FY13: 1 | FZ13: 2 | GA13: 7 | GB13: B | GC13: 0 | GD13: 2 | GE13: 5 | GF13: B | GG13: 1 | GH13: 2 | GI13: 7 | GJ13: B | GK13: 1 | GL13: 2 | GM13: 7 | GN13: B | GO13: 1 | GP13: 2 | GQ13: 7 | GR13: B | GS13: 0 | GT13: 4 | GU13: 5 | GV13: B | GW13: 1 | GX13: 3 | GY13: 5 | GZ13: B | HB13: 1 | HC13: 4 | HD13: 71 | HE13: 76 | HG13: 1.315789474 | HH13: 5.263157895 | HI13: 93.42105263
A14: So. 16. Jun | B14: 18:00:00 | C14: 6 | D14: Slowenien | E14: Dänemark | F14: 1 | G14: 1 | I14: 1 | J14: 1 | K14: 10 | L14: X | M14: 0 | N14: 2 | O14: 0 | P14: B | Q14: 0 | R14: 1 | S14: 0 | T14: B | U14: 0 | V14: 1 | W14: 0 | X14: B | Y14: 0 | Z14: 1 | AA14: 0 | AB14: B | AC14: 1 | AD14: 1 | AE14: 10 | AF14: X | AG14: 0 | AH14: 0 | AI14: 7 | AJ14: X | AK14: 0 | AL14: 1 | AM14: 0 | AN14: B | AO14: 0 | AP14: 1 | AQ14: 0 | AR14: B | AS14: 0 | AT14: 1 | AU14: 0 | AV14: B | AW14: 0 | AX14: 1 | AY14: 0 | AZ14: B | BA14: 0 | BB14: 2 | BC14: 0 | BD14: B | BE14: 0 | BF14: 2 | BG14: 0 | BH14: B | BI14: 0 | BJ14: 1 | BK14: 0 | BL14: B | BM14: 0 | BN14: 1 | BO14: 0 | BP14: B | BQ14: 0 | BR14: 1 | BS14: 0 | BT14: B | BU14: 0 | BV14: 1 | BW14: 0 | BX14: B | BY14: 0 | BZ14: 2 | CA14: 0 | CB14: B | CC14: 0 | CD14: 3 | CE14: 0 | CF14: B | CG14: 1 | CH14: 3 | CI14: 0 | CJ14: B | CK14: 0 | CL14: 1 | CM14: 0 | CN14: B | CO14: 0 | CP14: 2 | CQ14: 0 | CR14: B | CS14: 1 | CT14: 1 | CU14: 10 | CV14: X | CW14: 1 | CX14: 2 | CY14: 0 | CZ14: B | DA14: 0 | DB14: 1 | DC14: 0 | DD14: B | DE14: 0 | DF14: 3 | DG14: 0 | DH14: B | DI14: 0 | DJ14: 1 | DK14: 0 | DL14: B | DM14: 0 | DN14: 2 | DO14: 0 | DP14: B | DQ14: 0 | DR14: 1 | DS14: 0 | DT14: B | DU14: 0 | DV14: 0 | DW14: 7 | DX14: X | DY14: 1 | DZ14: 1 | EA14: 10 | EB14: X | EC14: 1 | ED14: 1 | EE14: 10 | EF14: X | EG14: 1 | EH14: 1 | EI14: 10 | EJ14: X | EK14: 0 | EL14: 0 | EM14: 7 | EN14: X | EO14: 0 | EP14: 2 | EQ14: 0 | ER14: B | ES14: 1 | ET14: 0 | EU14: 0 | EV14: A | EW14: 0 | EX14: 1 | EY14: 0 | EZ14: B | FA14: 1 | FB14: 1 | FC14: 10 | FD14: X | FE14: 1 | FF14: 1 | FG14: 10 | FH14: X | FI14: 0 | FJ14: 1 | FK14: 0 | FL14: B | FM14: 0 | FN14: 1 | FO14: 0 | FP14: B | FQ14: 1 | FR14: 2 | FS14: 0 | FT14: B | FU14: 1 | FV14: 1 | FW14: 10 | FX14: X | FY14: 1 | FZ14: 2 | GA14: 0 | GB14: B | GC14: 1 | GD14: 2 | GE14: 0 | GF14: B | GG14: 0 | GH14: 1 | GI14: 0 | GJ14: B | GK14: 0 | GL14: 2 | GM14: 0 | GN14: B | GO14: 1 | GP14: 2 | GQ14: 0 | GR14: B | GS14: 1 | GT14: 2 | GU14: 0 | GV14: B | GW14: 1 | GX14: 0 | GY14: 0 | GZ14: A | HB14: 2 | HC14: 19 | HD14: 55 | HE14: 76 | HG14: 2.631578947 | HH14: 25 | HI14: 72.36842105
A15: So. 16. Jun | B15: 15:00:00 | C15: 7 | D15: Polen | E15: Holland | F15: 1 | G15: 2 | I15: 1 | J15: 2 | K15: 10 | L15: B | M15: 0 | N15: 2 | O15: 5 | P15: B | Q15: 0 | R15: 2 | S15: 5 | T15: B | U15: 0 | V15: 2 | W15: 5 | X15: B | Y15: 1 | Z15: 2 | AA15: 10 | AB15: B | AC15: 1 | AD15: 2 | AE15: 10 | AF15: B | AG15: 0 | AH15: 1 | AI15: 7 | AJ15: B | AK15: 1 | AL15: 1 | AM15: 0 | AN15: X | AO15: 1 | AP15: 2 | AQ15: 10 | AR15: B | AS15: 1 | AT15: 2 | AU15: 10 | AV15: B | AW15: 1 | AX15: 2 | AY15: 10 | AZ15: B | BA15: 1 | BB15: 2 | BC15: 10 | BD15: B | BE15: 0 | BF15: 2 | BG15: 5 | BH15: B | BI15: 1 | BJ15: 2 | BK15: 10 | BL15: B | BM15: 0 | BN15: 2 | BO15: 5 | BP15: B | BQ15: 1 | BR15: 2 | BS15: 10 | BT15: B | BU15: 1 | BV15: 1 | BW15: 0 | BX15: X | BY15: 0 | BZ15: 1 | CA15: 7 | CB15: B | CC15: 1 | CD15: 2 | CE15: 10 | CF15: B | CG15: 1 | CH15: 2 | CI15: 10 | CJ15: B | CK15: 0 | CL15: 1 | CM15: 7 | CN15: B | CO15: 1 | CP15: 1 | CQ15: 0 | CR15: X | CS15: 1 | CT15: 2 | CU15: 10 | CV15: B | CW15: 0 | CX15: 2 | CY15: 5 | CZ15: B | DA15: 1 | DB15: 2 | DC15: 10 | DD15: B | DE15: 1 | DF15: 1 | DG15: 0 | DH15: X | DI15: 1 | DJ15: 1 | DK15: 0 | DL15: X | DM15: 1 | DN15: 3 | DO15: 5 | DP15: B | DQ15: 1 | DR15: 1 | DS15: 0 | DT15: X | DU15: 0 | DV15: 1 | DW15: 7 | DX15: B | DY15: 0 | DZ15: 0 | EA15: 0 | EB15: X | EC15: 1 | ED15: 2 | EE15: 10 | EF15: B | EG15: 0 | EH15: 1 | EI15: 7 | EJ15: B | EK15: 0 | EL15: 2 | EM15: 5 | EN15: B | EO15: 2 | EP15: 2 | EQ15: 0 | ER15: X | ES15: 1 | ET15: 2 | EU15: 10 | EV15: B | EW15: 0 | EX15: 1 | EY15: 7 | EZ15: B | FA15: 1 | FB15: 1 | FC15: 0 | FD15: X | FE15: 1 | FF15: 2 | FG15: 10 | FH15: B | FI15: 0 | FJ15: 1 | FK15: 7 | FL15: B | FM15: 0 | FN15: 1 | FO15: 7 | FP15: B | FQ15: 1 | FR15: 2 | FS15: 10 | FT15: B | FU15: 2 | FV15: 1 | FW15: 0 | FX15: A | FY15: 1 | FZ15: 1 | GA15: 0 | GB15: X | GC15: 0 | GD15: 3 | GE15: 5 | GF15: B | GG15: 0 | GH15: 2 | GI15: 5 | GJ15: B | GK15: 1 | GL15: 1 | GM15: 0 | GN15: X | GO15: 0 | GP15: 2 | GQ15: 5 | GR15: B | GS15: 1 | GT15: 1 | GU15: 0 | GV15: X | GW15: 1 | GX15: 3 | GY15: 5 | GZ15: B | HB15: 1 | HC15: 13 | HD15: 62 | HE15: 76 | HG15: 1.315789474 | HH15: 17.10526316 | HI15: 81.57894737 | HK15: Total Tore / Anzahl Spieler
A16: Mo. 17. Jun | B16: 21:00:00 | C16: 8 | D16: Österreich | E16: Frankreich | F16: 0 | G16: 1 | I16: 1 | J16: 2 | K16: 7 | L16: B | M16: 1 | N16: 2 | O16: 7 | P16: B | Q16: 1 | R16: 2 | S16: 7 | T16: B | U16: 0 | V16: 2 | W16: 5 | X16: B | Y16: 0 | Z16: 2 | AA16: 5 | AB16: B | AC16: 1 | AD16: 3 | AE16: 5 | AF16: B | AG16: 0 | AH16: 2 | AI16: 5 | AJ16: B | AK16: 1 | AL16: 3 | AM16: 5 | AN16: B | AO16: 0 | AP16: 2 | AQ16: 5 | AR16: B | AS16: 1 | AT16: 3 | AU16: 5 | AV16: B | AW16: 0 | AX16: 2 | AY16: 5 | AZ16: B | BA16: 1 | BB16: 3 | BC16: 5 | BD16: B | BE16: 0 | BF16: 2 | BG16: 5 | BH16: B | BI16: 0 | BJ16: 2 | BK16: 5 | BL16: B | BM16: 0 | BN16: 1 | BO16: 10 | BP16: B | BQ16: 1 | BR16: 2 | BS16: 7 | BT16: B | BU16: 1 | BV16: 2 | BW16: 7 | BX16: B | BY16: 1 | BZ16: 2 | CA16: 7 | CB16: B | CC16: 1 | CD16: 2 | CE16: 7 | CF16: B | CG16: 0 | CH16: 2 | CI16: 5 | CJ16: B | CK16: 1 | CL16: 3 | CM16: 5 | CN16: B | CO16: 1 | CP16: 3 | CQ16: 5 | CR16: B | CS16: 1 | CT16: 2 | CU16: 7 | CV16: B | CW16: 0 | CX16: 3 | CY16: 5 | CZ16: B | DA16: 1 | DB16: 2 | DC16: 7 | DD16: B | DE16: 1 | DF16: 4 | DG16: 5 | DH16: B | DI16: 1 | DJ16: 2 | DK16: 7 | DL16: B | DM16: 0 | DN16: 3 | DO16: 5 | DP16: B | DQ16: 2 | DR16: 1 | DS16: 0 | DT16: A | DU16: 0 | DV16: 3 | DW16: 5 | DX16: B | DY16: 0 | DZ16: 3 | EA16: 5 | EB16: B | EC16: 1 | ED16: 2 | EE16: 7 | EF16: B | EG16: 0 | EH16: 3 | EI16: 5 | EJ16: B | EK16: 0 | EL16: 2 | EM16: 5 | EN16: B | EO16: 1 | EP16: 3 | EQ16: 5 | ER16: B | ES16: 0 | ET16: 1 | EU16: 10 | EV16: B | EW16: 1 | EX16: 2 | EY16: 7 | EZ16: B | FA16: 1 | FB16: 3 | FC16: 5 | FD16: B | FE16: 1 | FF16: 3 | FG16: 5 | FH16: B | FI16: 0 | FJ16: 1 | FK16: 10 | FL16: B | FM16: 0 | FN16: 1 | FO16: 10 | FP16: B | FQ16: 1 | FR16: 2 | FS16: 7 | FT16: B | FU16: 1 | FV16: 3 | FW16: 5 | FX16: B | FY16: 2 | FZ16: 2 | GA16: 0 | GB16: X | GC16: 0 | GD16: 3 | GE16: 5 | GF16: B | GG16: 0 | GH16: 3 | GI16: 5 | GJ16: B | GK16: 1 | GL16: 3 | GM16: 5 | GN16: B | GO16: 1 | GP16: 3 | GQ16: 5 | GR16: B | GS16: 0 | GT16: 2 | GU16: 5 | GV16: B | GW16: 0 | GX16: 2 | GY16: 5 | GZ16: B | HB16: 2 | HC16: 7 | HD16: 67 | HE16: 76 | HG16: 2.631578947 | HH16: 9.210526316 | HI16: 88.15789474 | HK16: =SUM(HK12/Punktestand!F3) -> 87.5
A17: Mo. 17. Jun | B17: 18:00:00 | C17: 9 | D17: Belgien | E17: Slowakei | F17: 0 | G17: 1 | I17: 2 | J17: 1 | K17: 0 | L17: A | M17: 3 | N17: 1 | O17: 0 | P17: A | Q17: 1 | R17: 0 | S17: 0 | T17: A | U17: 1 | V17: 0 | W17: 0 | X17: A | Y17: 3 | Z17: 0 | AA17: 0 | AB17: A | AC17: 2 | AD17: 0 | AE17: 0 | AF17: A | AG17: 1 | AH17: 0 | AI17: 0 | AJ17: A | AK17: 1 | AL17: 0 | AM17: 0 | AN17: A | AO17: 2 | AP17: 0 | AQ17: 0 | AR17: A | AS17: 2 | AT17: 0 | AU17: 0 | AV17: A | AW17: 1 | AX17: 0 | AY17: 0 | AZ17: A | BA17: 3 | BB17: 1 | BC17: 0 | BD17: A | BE17: 2 | BF17: 0 | BG17: 0 | BH17: A | BI17: 2 | BJ17: 0 | BK17: 0 | BL17: A | BM17: 2 | BN17: 0 | BO17: 0 | BP17: A | BQ17: 2 | BR17: 0 | BS17: 0 | BT17: A | BU17: 3 | BV17: 0 | BW17: 0 | BX17: A | BY17: 1 | BZ17: 0 | CA17: 0 | CB17: A | CC17: 2 | CD17: 0 | CE17: 0 | CF17: A | CG17: 2 | CH17: 0 | CI17: 0 | CJ17: A | CK17: 2 | CL17: 0 | CM17: 0 | CN17: A | CO17: 2 | CP17: 0 | CQ17: 0 | CR17: A | CS17: 2 | CT17: 0 | CU17: 0 | CV17: A | CW17: 2 | CX17: 1 | CY17: 0 | CZ17: A | DA17: 1 | DB17: 0 | DC17: 0 | DD17: A | DE17: 3 | DF17: 0 | DG17: 0 | DH17: A | DI17: 1 | DJ17: 0 | DK17: 0 | DL17: A | DM17: 1 | DN17: 1 | DO17: 0 | DP17: X | DQ17: 2 | DR17: 0 | DS17: 0 | DT17: A | DU17: 2 | DV17: 1 | DW17: 0 | DX17: A | DY17: 1 | DZ17: 0 | EA17: 0 | EB17: A | EC17: 2 | ED17: 0 | EE17: 0 | EF17: A | EG17: 1 | EH17: 1 | EI17: 0 | EJ17: X | EK17: 3 | EL17: 0 | EM17: 0 | EN17: A | EO17: 0 | EP17: 1 | EQ17: 10 | ER17: B | ES17: 1 | ET17: 0 | EU17: 0 | EV17: A | EW17: 1 | EX17: 0 | EY17: 0 | EZ17: A | FA17: 1 | FB17: 1 | FC17: 0 | FD17: X | FE17: 2 | FF17: 0 | FG17: 0 | FH17: A | FI17: 1 | FJ17: 0 | FK17: 0 | FL17: A | FM17: 1 | FN17: 0 | FO17: 0 | FP17: A | FQ17: 2 | FR17: 1 | FS17: 0 | FT17: A | FU17: 1 | FV17: 0 | FW17: 0 | FX17: A | FY17: 2 | FZ17: 0 | GA17: 0 | GB17: A | GC17: 1 | GD17: 1 | GE17: 0 | GF17: X | GG17: 2 | GH17: 0 | GI17: 0 | GJ17: A | GK17: 1 | GL17: 1 | GM17: 0 | GN17: X | GO17: 2 | GP17: 0 | GQ17: 0 | GR17: A | GS17: 1 | GT17: 0 | GU17: 0 | GV17: A | GW17: 2 | GX17: 0 | GY17: 0 | GZ17: A | HB17: 68 | HC17: 7 | HD17: 1 | HE17: 76 | HG17: 89.47368421 | HH17: 9.210526316 | HI17: 1.315789474
A18: Mo. 17. Jun | B18: 15:00:00 | C18: 10 | D18: Rumänien | E18: Ukraine | F18: 3 | G18: 0 | I18: 1 | J18: 1 | K18: 0 | L18: X | M18: 1 | N18: 1 | O18: 0 | P18: X | Q18: 1 | R18: 1 | S18: 0 | T18: X | U18: 2 | V18: 2 | W18: 0 | X18: X | Y18: 1 | Z18: 2 | AA18: 0 | AB18: B | AC18: 1 | AD18: 1 | AE18: 0 | AF18: X | AG18: 1 | AH18: 1 | AI18: 0 | AJ18: X | AK18: 1 | AL18: 1 | AM18: 0 | AN18: X | AO18: 0 | AP18: 1 | AQ18: 0 | AR18: B | AS18: 1 | AT18: 1 | AU18: 0 | AV18: X | AW18: 1 | AX18: 0 | AY18: 5 | AZ18: A | BA18: 0 | BB18: 1 | BC18: 0 | BD18: B | BE18: 1 | BF18: 1 | BG18: 0 | BH18: X | BI18: 1 | BJ18: 1 | BK18: 0 | BL18: X | BM18: 0 | BN18: 1 | BO18: 0 | BP18: B | BQ18: 1 | BR18: 0 | BS18: 5 | BT18: A | BU18: 1 | BV18: 0 | BW18: 5 | BX18: A | BY18: 0 | BZ18: 0 | CA18: 0 | CB18: X | CC18: 1 | CD18: 2 | CE18: 0 | CF18: B | CG18: 2 | CH18: 2 | CI18: 0 | CJ18: X | CK18: 0 | CL18: 2 | CM18: 0 | CN18: B | CO18: 0 | CP18: 1 | CQ18: 0 | CR18: B | CS18: 2 | CT18: 2 | CU18: 0 | CV18: X | CW18: 2 | CX18: 1 | CY18: 5 | CZ18: A | DA18: 0 | DB18: 1 | DC18: 0 | DD18: B | DE18: 0 | DF18: 2 | DG18: 0 | DH18: B | DI18: 0 | DJ18: 0 | DK18: 0 | DL18: X | DM18: 1 | DN18: 2 | DO18: 0 | DP18: B | DQ18: 0 | DR18: 0 | DS18: 0 | DT18: X | DU18: 2 | DV18: 2 | DW18: 0 | DX18: X | DY18: 2 | DZ18: 1 | EA18: 5 | EB18: A | EC18: 1 | ED18: 1 | EE18: 0 | EF18: X | EG18: 1 | EH18: 0 | EI18: 5 | EJ18: A | EK18: 1 | EL18: 1 | EM18: 0 | EN18: X | EO18: 2 | EP18: 1 | EQ18: 5 | ER18: A | ES18: 1 | ET18: 0 | EU18: 5 | EV18: A | EW18: 0 | EX18: 1 | EY18: 0 | EZ18: B | FA18: 1 | FB18: 1 | FC18: 0 | FD18: X | FE18: 0 | FF18: 1 | FG18: 0 | FH18: B | FI18: 0 | FJ18: 1 | FK18: 0 | FL18: B | FM18: 0 | FN18: 1 | FO18: 0 | FP18: B | FQ18: 1 | FR18: 2 | FS18: 0 | FT18: B | FU18: 1 | FV18: 2 | FW18: 0 | FX18: B | FY18: 1 | FZ18: 3 | GA18: 0 | GB18: B | GC18: 1 | GD18: 1 | GE18: 0 | GF18: X | GG18: 2 | GH18: 1 | GI18: 5 | GJ18: A | GK18: 0 | GL18: 2 | GM18: 0 | GN18: B | GO18: 1 | GP18: 2 | GQ18: 0 | GR18: B | GS18: 0 | GT18: 0 | GU18: 0 | GV18: X | GW18: 0 | GX18: 1 | GY18: 0 | GZ18: B | HB18: 13 | HC18: 33 | HD18: 30 | HE18: 76 | HG18: 17.10526316 | HH18: 43.42105263 | HI18: 39.47368421 | HK18: Tore / Anzahl Spiele (48)
A19: Di. 18. Jun | B19: 18:00:00 | C19: 11 | D19: Türkei | E19: Georgien | F19: 3 | G19: 1 | I19: 1 | J19: 0 | K19: 5 | L19: A | M19: 3 | N19: 1 | O19: 10 | P19: A | Q19: 3 | R19: 0 | S19: 5 | T19: A | U19: 1 | V19: 0 | W19: 5 | X19: A | Y19: 3 | Z19: 1 | AA19: 10 | AB19: A | AC19: 1 | AD19: 0 | AE19: 5 | AF19: A | AG19: 1 | AH19: 1 | AI19: 0 | AJ19: X | AK19: 1 | AL19: 1 | AM19: 0 | AN19: X | AO19: 3 | AP19: 1 | AQ19: 10 | AR19: A | AS19: 2 | AT19: 0 | AU19: 7 | AV19: A | AW19: 1 | AX19: 0 | AY19: 5 | AZ19: A | BA19: 1 | BB19: 0 | BC19: 5 | BD19: A | BE19: 1 | BF19: 0 | BG19: 5 | BH19: A | BI19: 1 | BJ19: 0 | BK19: 5 | BL19: A | BM19: 2 | BN19: 0 | BO19: 7 | BP19: A | BQ19: 3 | BR19: 0 | BS19: 5 | BT19: A | BU19: 4 | BV19: 0 | BW19: 5 | BX19: A | BY19: 2 | BZ19: 0 | CA19: 7 | CB19: A | CC19: 1 | CD19: 0 | CE19: 5 | CF19: A | CG19: 2 | CH19: 1 | CI19: 5 | CJ19: A | CK19: 2 | CL19: 0 | CM19: 7 | CN19: A | CO19: 1 | CP19: 1 | CQ19: 0 | CR19: X | CS19: 4 | CT19: 2 | CU19: 7 | CV19: A | CW19: 2 | CX19: 0 | CY19: 7 | CZ19: A | DA19: 1 | DB19: 0 | DC19: 5 | DD19: A | DE19: 2 | DF19: 1 | DG19: 5 | DH19: A | DI19: 2 | DJ19: 1 | DK19: 5 | DL19: A | DM19: 2 | DN19: 0 | DO19: 7 | DP19: A | DQ19: 2 | DR19: 0 | DS19: 7 | DT19: A | DU19: 2 | DV19: 1 | DW19: 5 | DX19: A | DY19: 1 | DZ19: 0 | EA19: 5 | EB19: A | EC19: 2 | ED19: 0 | EE19: 7 | EF19: A | EG19: 3 | EH19: 1 | EI19: 10 | EJ19: A | EK19: 2 | EL19: 1 | EM19: 5 | EN19: A | EO19: 1 | EP19: 0 | EQ19: 5 | ER19: A | ES19: 3 | ET19: 1 | EU19: 10 | EV19: A | EW19: 1 | EX19: 0 | EY19: 5 | EZ19: A | FA19: 2 | FB19: 1 | FC19: 5 | FD19: A | FE19: 2 | FF19: 1 | FG19: 5 | FH19: A | FI19: 1 | FJ19: 0 | FK19: 5 | FL19: A | FM19: 1 | FN19: 0 | FO19: 5 | FP19: A | FQ19: 2 | FR19: 1 | FS19: 5 | FT19: A | FU19: 3 | FV19: 1 | FW19: 10 | FX19: A | FY19: 2 | FZ19: 0 | GA19: 7 | GB19: A | GC19: 2 | GD19: 1 | GE19: 5 | GF19: A | GG19: 2 | GH19: 0 | GI19: 7 | GJ19: A | GK19: 2 | GL19: 0 | GM19: 7 | GN19: A | GO19: 2 | GP19: 1 | GQ19: 5 | GR19: A | GS19: 1 | GT19: 0 | GU19: 5 | GV19: A | GW19: 2 | GX19: 2 | GY19: 0 | GZ19: X | HB19: 67 | HC19: 9 | HD19: 0 | HE19: 76 | HG19: 88.15789474 | HH19: 11.84210526 | HI19: 0 | HK19: =SUM(HK16/48) -> 1.822916667 | HL19: Tore pro Spiel (Ø)
A20: Di. 18. Jun | B20: 21:00:00 | C20: 12 | D20: Portugal | E20: Tschechien | F20: 2 | G20: 1 | I20: 2 | J20: 1 | K20: 10 | L20: A | M20: 3 | N20: 0 | O20: 5 | P20: A | Q20: 4 | R20: 1 | S20: 5 | T20: A | U20: 3 | V20: 1 | W20: 5 | X20: A | Y20: 2 | Z20: 0 | AA20: 5 | AB20: A | AC20: 2 | AD20: 1 | AE20: 10 | AF20: A | AG20: 3 | AH20: 0 | AI20: 5 | AJ20: A | AK20: 2 | AL20: 0 | AM20: 5 | AN20: A | AO20: 2 | AP20: 0 | AQ20: 5 | AR20: A | AS20: 2 | AT20: 0 | AU20: 5 | AV20: A | AW20: 2 | AX20: 0 | AY20: 5 | AZ20: A | BA20: 4 | BB20: 2 | BC20: 5 | BD20: A | BE20: 2 | BF20: 1 | BG20: 10 | BH20: A | BI20: 2 | BJ20: 0 | BK20: 5 | BL20: A | BM20: 1 | BN20: 0 | BO20: 7 | BP20: A | BQ20: 1 | BR20: 0 | BS20: 7 | BT20: A | BU20: 4 | BV20: 1 | BW20: 5 | BX20: A | BY20: 2 | BZ20: 0 | CA20: 5 | CB20: A | CC20: 1 | CD20: 0 | CE20: 7 | CF20: A | CG20: 3 | CH20: 0 | CI20: 5 | CJ20: A | CK20: 2 | CL20: 1 | CM20: 10 | CN20: A | CO20: 2 | CP20: 1 | CQ20: 10 | CR20: A | CS20: 1 | CT20: 1 | CU20: 0 | CV20: X | CW20: 3 | CX20: 1 | CY20: 5 | CZ20: A | DA20: 1 | DB20: 0 | DC20: 7 | DD20: A | DE20: 3 | DF20: 0 | DG20: 5 | DH20: A | DI20: 2 | DJ20: 0 | DK20: 5 | DL20: A | DM20: 2 | DN20: 0 | DO20: 5 | DP20: A | DQ20: 3 | DR20: 1 | DS20: 5 | DT20: A | DU20: 3 | DV20: 1 | DW20: 5 | DX20: A | DY20: 1 | DZ20: 0 | EA20: 7 | EB20: A | EC20: 2 | ED20: 0 | EE20: 5 | EF20: A | EG20: 1 | EH20: 0 | EI20: 7 | EJ20: A | EK20: 2 | EL20: 2 | EM20: 0 | EN20: X | EO20: 3 | EP20: 1 | EQ20: 5 | ER20: A | ES20: 4 | ET20: 0 | EU20: 5 | EV20: A | EW20: 2 | EX20: 0 | EY20: 5 | EZ20: A | FA20: 2 | FB20: 1 | FC20: 10 | FD20: A | FE20: 2 | FF20: 0 | FG20: 5 | FH20: A | FI20: 1 | FJ20: 0 | FK20: 7 | FL20: A | FM20: 1 | FN20: 0 | FO20: 7 | FP20: A | FQ20: 2 | FR20: 1 | FS20: 10 | FT20: A | FU20: 2 | FV20: 0 | FW20: 5 | FX20: A | FY20: 3 | FZ20: 1 | GA20: 5 | GB20: A | GC20: 3 | GD20: 0 | GE20: 5 | GF20: A | GG20: 2 | GH20: 1 | GI20: 10 | GJ20: A | GK20: 2 | GL20: 1 | GM20: 10 | GN20: A | GO20: 2 | GP20: 0 | GQ20: 5 | GR20: A | GS20: 3 | GT20: 0 | GU20: 5 | GV20: A | GW20: 2 | GX20: 1 | GY20: 10 | GZ20: A | HB20: 71 | HC20: 5 | HD20: 0 | HE20: 76 | HG20: 93.42105263 | HH20: 6.578947368 | HI20: 0
A21: Mi. 19. Jun | B21: 21:00:00 | C21: 13 | D21: Schottland | E21: Schweiz | F21: 1 | G21: 1 | I21: 1 | J21: 1 | K21: 10 | L21: X | M21: 1 | N21: 2 | O21: 0 | P21: B | Q21: 0 | R21: 1 | S21: 0 | T21: B | U21: 0 | V21: 1 | W21: 0 | X21: B | Y21: 1 | Z21: 2 | AA21: 0 | AB21: B | AC21: 0 | AD21: 1 | AE21: 0 | AF21: B | AG21: 1 | AH21: 1 | AI21: 10 | AJ21: X | AK21: 0 | AL21: 1 | AM21: 0 | AN21: B | AO21: 0 | AP21: 1 | AQ21: 0 | AR21: B | AS21: 1 | AT21: 2 | AU21: 0 | AV21: B | AW21: 1 | AX21: 2 | AY21: 0 | AZ21: B | BA21: 2 | BB21: 3 | BC21: 0 | BD21: B | BE21: 1 | BF21: 1 | BG21: 10 | BH21: X | BI21: 1 | BJ21: 2 | BK21: 0 | BL21: B | BM21: 0 | BN21: 1 | BO21: 0 | BP21: B | BQ21: 0 | BR21: 1 | BS21: 0 | BT21: B | BU21: 1 | BV21: 2 | BW21: 0 | BX21: B | BY21: 1 | BZ21: 2 | CA21: 0 | CB21: B | CC21: 1 | CD21: 2 | CE21: 0 | CF21: B | CG21: 1 | CH21: 2 | CI21: 0 | CJ21: B | CK21: 1 | CL21: 1 | CM21: 10 | CN21: X | CO21: 0 | CP21: 2 | CQ21: 0 | CR21: B | CS21: 1 | CT21: 1 | CU21: 10 | CV21: X | CW21: 1 | CX21: 2 | CY21: 0 | CZ21: B | DA21: 0 | DB21: 1 | DC21: 0 | DD21: B | DE21: 2 | DF21: 3 | DG21: 0 | DH21: B | DI21: 1 | DJ21: 2 | DK21: 0 | DL21: B | DM21: 1 | DN21: 2 | DO21: 0 | DP21: B | DQ21: 1 | DR21: 3 | DS21: 0 | DT21: B | DU21: 0 | DV21: 1 | DW21: 0 | DX21: B | DY21: 0 | DZ21: 2 | EA21: 0 | EB21: B | EC21: 1 | ED21: 2 | EE21: 0 | EF21: B | EG21: 1 | EH21: 2 | EI21: 0 | EJ21: B | EK21: 0 | EL21: 2 | EM21: 0 | EN21: B | EO21: 0 | EP21: 1 | EQ21: 0 | ER21: B | ES21: 1 | ET21: 2 | EU21: 0 | EV21: B | EW21: 0 | EX21: 1 | EY21: 0 | EZ21: B | FA21: 1 | FB21: 1 | FC21: 10 | FD21: X | FE21: 0 | FF21: 1 | FG21: 0 | FH21: B | FI21: 0 | FJ21: 1 | FK21: 0 | FL21: B | FM21: 0 | FN21: 1 | FO21: 0 | FP21: B | FQ21: 1 | FR21: 2 | FS21: 0 | FT21: B | FU21: 0 | FV21: 0 | FW21: 7 | FX21: X | FY21: 0 | FZ21: 1 | GA21: 0 | GB21: B | GC21: 0 | GD21: 1 | GE21: 0 | GF21: B | GG21: 1 | GH21: 2 | GI21: 0 | GJ21: B | GK21: 0 | GL21: 3 | GM21: 0 | GN21: B | GO21: 1 | GP21: 1 | GQ21: 10 | GR21: X | GS21: 0 | GT21: 2 | GU21: 0 | GV21: B | GW21: 2 | GX21: 0 | GY21: 0 | GZ21: A | HB21: 2 | HC21: 14 | HD21: 60 | HE21: 76 | HG21: 2.631578947 | HH21: 18.42105263 | HI21: 78.94736842
A22: Mi. 19. Jun | B22: 18:00:00 | C22: 14 | D22: Deutschland | E22: Ungarn | F22: 2 | G22: 0 | I22: 2 | J22: 1 | K22: 5 | L22: A | M22: 2 | N22: 0 | O22: 10 | P22: A | Q22: 2 | R22: 1 | S22: 5 | T22: A | U22: 2 | V22: 0 | W22: 10 | X22: A | Y22: 2 | Z22: 0 | AA22: 10 | AB22: A | AC22: 1 | AD22: 0 | AE22: 5 | AF22: A | AG22: 3 | AH22: 1 | AI22: 7 | AJ22: A | AK22: 2 | AL22: 1 | AM22: 5 | AN22: A | AO22: 2 | AP22: 0 | AQ22: 10 | AR22: A | AS22: 3 | AT22: 0 | AU22: 5 | AV22: A | AW22: 2 | AX22: 1 | AY22: 5 | AZ22: A | BA22: 1 | BB22: 1 | BC22: 0 | BD22: X | BE22: 2 | BF22: 0 | BG22: 10 | BH22: A | BI22: 1 | BJ22: 0 | BK22: 5 | BL22: A | BM22: 1 | BN22: 1 | BO22: 0 | BP22: X | BQ22: 2 | BR22: 0 | BS22: 10 | BT22: A | BU22: 5 | BV22: 0 | BW22: 5 | BX22: A | BY22: 3 | BZ22: 0 | CA22: 5 | CB22: A | CC22: 2 | CD22: 2 | CE22: 0 | CF22: X | CG22: 3 | CH22: 1 | CI22: 7 | CJ22: A | CK22: 3 | CL22: 0 | CM22: 5 | CN22: A | CO22: 3 | CP22: 0 | CQ22: 5 | CR22: A | CS22: 4 | CT22: 0 | CU22: 5 | CV22: A | CW22: 2 | CX22: 1 | CY22: 5 | CZ22: A | DA22: 2 | DB22: 0 | DC22: 10 | DD22: A | DE22: 2 | DF22: 0 | DG22: 10 | DH22: A | DI22: 1 | DJ22: 0 | DK22: 5 | DL22: A | DM22: 1 | DN22: 0 | DO22: 5 | DP22: A | DQ22: 1 | DR22: 1 | DS22: 0 | DT22: X | DU22: 2 | DV22: 0 | DW22: 10 | DX22: A | DY22: 2 | DZ22: 1 | EA22: 5 | EB22: A | EC22: 2 | ED22: 0 | EE22: 10 | EF22: A | EG22: 3 | EH22: 1 | EI22: 7 | EJ22: A | EK22: 1 | EL22: 0 | EM22: 5 | EN22: A | EO22: 2 | EP22: 1 | EQ22: 5 | ER22: A | ES22: 3 | ET22: 0 | EU22: 5 | EV22: A | EW22: 2 | EX22: 0 | EY22: 10 | EZ22: A | FA22: 2 | FB22: 0 | FC22: 10 | FD22: A | FE22: 3 | FF22: 0 | FG22: 5 | FH22: A | FI22: 1 | FJ22: 0 | FK22: 5 | FL22: A | FM22: 1 | FN22: 0 | FO22: 5 | FP22: A | FQ22: 3 | FR22: 1 | FS22: 7 | FT22: A | FU22: 3 | FV22: 0 | FW22: 5 | FX22: A | FY22: 2 | FZ22: 1 | GA22: 5 | GB22: A | GC22: 3 | GD22: 0 | GE22: 5 | GF22: A | GG22: 2 | GH22: 0 | GI22: 10 | GJ22: A | GK22: 2 | GL22: 0 | GM22: 10 | GN22: A | GO22: 2 | GP22: 0 | GQ22: 10 | GR22: A | GS22: 2 | GT22: 0 | GU22: 10 | GV22: A | GW22: 1 | GX22: 1 | GY22: 0 | GZ22: X | HB22: 70 | HC22: 6 | HD22: 0 | HE22: 76 | HG22: 92.10526316 | HH22: 7.894736842 | HI22: 0
A23: Mi. 19. Jun | B23: 15:00:00 | C23: 15 | D23: Kroatien | E23: Albanien | F23: 2 | G23: 2 | I23: 2 | J23: 1 | K23: 0 | L23: A | M23: 4 | N23: 1 | O23: 0 | P23: A | Q23: 2 | R23: 0 | S23: 0 | T23: A | U23: 4 | V23: 0 | W23: 0 | X23: A | Y23: 2 | Z23: 0 | AA23: 0 | AB23: A | AC23: 2 | AD23: 0 | AE23: 0 | AF23: A | AG23: 3 | AH23: 0 | AI23: 0 | AJ23: A | AK23: 2 | AL23: 0 | AM23: 0 | AN23: A | AO23: 2 | AP23: 0 | AQ23: 0 | AR23: A | AS23: 2 | AT23: 0 | AU23: 0 | AV23: A | AW23: 2 | AX23: 0 | AY23: 0 | AZ23: A | BA23: 3 | BB23: 1 | BC23: 0 | BD23: A | BE23: 1 | BF23: 0 | BG23: 0 | BH23: A | BI23: 2 | BJ23: 1 | BK23: 0 | BL23: A | BM23: 1 | BN23: 1 | BO23: 7 | BP23: X | BQ23: 2 | BR23: 2 | BS23: 10 | BT23: X | BU23: 2 | BV23: 1 | BW23: 0 | BX23: A | BY23: 2 | BZ23: 2 | CA23: 10 | CB23: X | CC23: 1 | CD23: 0 | CE23: 0 | CF23: A | CG23: 3 | CH23: 0 | CI23: 0 | CJ23: A | CK23: 2 | CL23: 1 | CM23: 0 | CN23: A | CO23: 2 | CP23: 0 | CQ23: 0 | CR23: A | CS23: 3 | CT23: 2 | CU23: 0 | CV23: A | CW23: 2 | CX23: 0 | CY23: 0 | CZ23: A | DA23: 1 | DB23: 0 | DC23: 0 | DD23: A | DE23: 3 | DF23: 1 | DG23: 0 | DH23: A | DI23: 2 | DJ23: 1 | DK23: 0 | DL23: A | DM23: 3 | DN23: 1 | DO23: 0 | DP23: A | DQ23: 2 | DR23: 0 | DS23: 0 | DT23: A | DU23: 1 | DV23: 1 | DW23: 7 | DX23: X | DY23: 2 | DZ23: 0 | EA23: 0 | EB23: A | EC23: 2 | ED23: 0 | EE23: 0 | EF23: A | EG23: 1 | EH23: 0 | EI23: 0 | EJ23: A | EK23: 1 | EL23: 1 | EM23: 7 | EN23: X | EO23: 1 | EP23: 0 | EQ23: 0 | ER23: A | ES23: 1 | ET23: 0 | EU23: 0 | EV23: A | EW23: 1 | EX23: 0 | EY23: 0 | EZ23: A | FA23: 2 | FB23: 1 | FC23: 0 | FD23: A | FE23: 2 | FF23: 1 | FG23: 0 | FH23: A | FI23: 1 | FJ23: 0 | FK23: 0 | FL23: A | FM23: 1 | FN23: 0 | FO23: 0 | FP23: A | FQ23: 2 | FR23: 0 | FS23: 0 | FT23: A | FU23: 0 | FV23: 0 | FW23: 7 | FX23: X | FY23: 1 | FZ23: 0 | GA23: 0 | GB23: A | GC23: 2 | GD23: 0 | GE23: 0 | GF23: A | GG23: 2 | GH23: 0 | GI23: 0 | GJ23: A | GK23: 4 | GL23: 1 | GM23: 0 | GN23: A | GO23: 2 | GP23: 0 | GQ23: 0 | GR23: A | GS23: 3 | GT23: 1 | GU23: 0 | GV23: A | GW23: 3 | GX23: 2 | GY23: 0 | GZ23: A | HB23: 69 | HC23: 7 | HD23: 0 | HE23: 76 | HG23: 90.78947368 | HH23: 9.210526316 | HI23: 0
A24: Do. 20. Jun | B24: 21:00:00 | C24: 16 | D24: Spanien | E24: Italien | F24: 1 | G24: 0 | I24: 1 | J24: 1 | K24: 0 | L24: X | M24: 2 | N24: 2 | O24: 0 | P24: X | Q24: 1 | R24: 2 | S24: 0 | T24: B | U24: 0 | V24: 0 | W24: 0 | X24: X | Y24: 2 | Z24: 2 | AA24: 0 | AB24: X | AC24: 2 | AD24: 2 | AE24: 0 | AF24: X | AG24: 1 | AH24: 1 | AI24: 0 | AJ24: X | AK24: 2 | AL24: 1 | AM24: 7 | AN24: A | AO24: 2 | AP24: 1 | AQ24: 7 | AR24: A | AS24: 2 | AT24: 1 | AU24: 7 | AV24: A | AW24: 1 | AX24: 1 | AY24: 0 | AZ24: X | BA24: 2 | BB24: 0 | BC24: 5 | BD24: A | BE24: 1 | BF24: 0 | BG24: 10 | BH24: A | BI24: 0 | BJ24: 0 | BK24: 0 | BL24: X | BM24: 0 | BN24: 0 | BO24: 0 | BP24: X | BQ24: 1 | BR24: 1 | BS24: 0 | BT24: X | BU24: 1 | BV24: 0 | BW24: 10 | BX24: A | BY24: 2 | BZ24: 1 | CA24: 7 | CB24: A | CC24: 2 | CD24: 1 | CE24: 7 | CF24: A | CG24: 2 | CH24: 0 | CI24: 5 | CJ24: A | CK24: 1 | CL24: 0 | CM24: 10 | CN24: A | CO24: 3 | CP24: 1 | CQ24: 5 | CR24: A | CS24: 1 | CT24: 1 | CU24: 0 | CV24: X | CW24: 1 | CX24: 1 | CY24: 0 | CZ24: X | DA24: 2 | DB24: 1 | DC24: 7 | DD24: A | DE24: 2 | DF24: 2 | DG24: 0 | DH24: X | DI24: 1 | DJ24: 1 | DK24: 0 | DL24: X | DM24: 1 | DN24: 1 | DO24: 0 | DP24: X | DQ24: 1 | DR24: 1 | DS24: 0 | DT24: X | DU24: 2 | DV24: 2 | DW24: 0 | DX24: X | DY24: 3 | DZ24: 1 | EA24: 5 | EB24: A | EC24: 1 | ED24: 1 | EE24: 0 | EF24: X | EG24: 1 | EH24: 2 | EI24: 0 | EJ24: B | EK24: 0 | EL24: 0 | EM24: 0 | EN24: X | EO24: 2 | EP24: 1 | EQ24: 7 | ER24: A | ES24: 1 | ET24: 1 | EU24: 0 | EV24: X | EW24: 1 | EX24: 1 | EY24: 0 | EZ24: X | FA24: 0 | FB24: 0 | FC24: 0 | FD24: X | FE24: 1 | FF24: 1 | FG24: 0 | FH24: X | FI24: 1 | FJ24: 0 | FK24: 10 | FL24: A | FM24: 1 | FN24: 0 | FO24: 10 | FP24: A | FQ24: 2 | FR24: 1 | FS24: 7 | FT24: A | FU24: 0 | FV24: 0 | FW24: 0 | FX24: X | FY24: 2 | FZ24: 1 | GA24: 7 | GB24: A | GC24: 1 | GD24: 1 | GE24: 0 | GF24: X | GG24: 1 | GH24: 1 | GI24: 0 | GJ24: X | GK24: 0 | GL24: 0 | GM24: 0 | GN24: X | GO24: 1 | GP24: 1 | GQ24: 0 | GR24: X | GS24: 1 | GT24: 2 | GU24: 0 | GV24: B | GW24: 1 | GX24: 1 | GY24: 0 | GZ24: X | HB24: 29 | HC24: 44 | HD24: 3 | HE24: 76 | HG24: 38.15789474 | HH24: 57.89473684 | HI24: 3.947368421
A25: Do. 20. Jun | B25: 18:00:00 | C25: 17 | D25: Dänemark | E25: England | F25: 1 | G25: 1 | I25: 1 | J25: 1 | K25: 10 | L25: X | M25: 1 | N25: 2 | O25: 0 | P25: B | Q25: 1 | R25: 3 | S25: 0 | T25: B | U25: 0 | V25: 2 | W25: 0 | X25: B | Y25: 1 | Z25: 2 | AA25: 0 | AB25: B | AC25: 1 | AD25: 2 | AE25: 0 | AF25: B | AG25: 1 | AH25: 4 | AI25: 0 | AJ25: B | AK25: 0 | AL25: 2 | AM25: 0 | AN25: B | AO25: 0 | AP25: 2 | AQ25: 0 | AR25: B | AS25: 1 | AT25: 2 | AU25: 0 | AV25: B | AW25: 1 | AX25: 2 | AY25: 0 | AZ25: B | BA25: 1 | BB25: 2 | BC25: 0 | BD25: B | BE25: 1 | BF25: 2 | BG25: 0 | BH25: B | BI25: 1 | BJ25: 1 | BK25: 10 | BL25: X | BM25: 0 | BN25: 1 | BO25: 0 | BP25: B | BQ25: 0 | BR25: 1 | BS25: 0 | BT25: B | BU25: 0 | BV25: 2 | BW25: 0 | BX25: B | BY25: 0 | BZ25: 1 | CA25: 0 | CB25: B | CC25: 2 | CD25: 2 | CE25: 7 | CF25: X | CG25: 1 | CH25: 3 | CI25: 0 | CJ25: B | CK25: 1 | CL25: 1 | CM25: 10 | CN25: X | CO25: 0 | CP25: 2 | CQ25: 0 | CR25: B | CS25: 0 | CT25: 1 | CU25: 0 | CV25: B | CW25: 1 | CX25: 2 | CY25: 0 | CZ25: B | DA25: 0 | DB25: 1 | DC25: 0 | DD25: B | DE25: 2 | DF25: 1 | DG25: 0 | DH25: A | DI25: 1 | DJ25: 2 | DK25: 0 | DL25: B | DM25: 2 | DN25: 2 | DO25: 7 | DP25: X | DQ25: 1 | DR25: 1 | DS25: 10 | DT25: X | DU25: 0 | DV25: 1 | DW25: 0 | DX25: B | DY25: 0 | DZ25: 1 | EA25: 0 | EB25: B | EC25: 1 | ED25: 2 | EE25: 0 | EF25: B | EG25: 0 | EH25: 2 | EI25: 0 | EJ25: B | EK25: 0 | EL25: 2 | EM25: 0 | EN25: B | EO25: 1 | EP25: 1 | EQ25: 10 | ER25: X | ES25: 1 | ET25: 3 | EU25: 0 | EV25: B | EW25: 0 | EX25: 1 | EY25: 0 | EZ25: B | FA25: 1 | FB25: 1 | FC25: 10 | FD25: X | FE25: 2 | FF25: 2 | FG25: 7 | FH25: X | FI25: 0 | FJ25: 1 | FK25: 0 | FL25: B | FM25: 0 | FN25: 1 | FO25: 0 | FP25: B | FQ25: 1 | FR25: 2 | FS25: 0 | FT25: B | FU25: 0 | FV25: 2 | FW25: 0 | FX25: B | FY25: 2 | FZ25: 3 | GA25: 0 | GB25: B | GC25: 0 | GD25: 2 | GE25: 0 | GF25: B | GG25: 0 | GH25: 2 | GI25: 0 | GJ25: B | GK25: 1 | GL25: 2 | GM25: 0 | GN25: B | GO25: 1 | GP25: 2 | GQ25: 0 | GR25: B | GS25: 0 | GT25: 2 | GU25: 0 | GV25: B | GW25: 0 | GX25: 2 | GY25: 0 | GZ25: B | HB25: 2 | HC25: 16 | HD25: 58 | HE25: 76 | HG25: 2.631578947 | HH25: 21.05263158 | HI25: 76.31578947
A26: Do. 20. Jun | B26: 15:00:00 | C26: 18 | D26: Slowenien | E26: Serbien | F26: 1 | G26: 1 | I26: 1 | J26: 2 | K26: 0 | L26: B | M26: 2 | N26: 2 | O26: 7 | P26: X | Q26: 0 | R26: 2 | S26: 0 | T26: B | U26: 1 | V26: 1 | W26: 10 | X26: X | Y26: 0 | Z26: 2 | AA26: 0 | AB26: B | AC26: 1 | AD26: 2 | AE26: 0 | AF26: B | AG26: 0 | AH26: 0 | AI26: 7 | AJ26: X | AK26: 1 | AL26: 1 | AM26: 10 | AN26: X | AO26: 0 | AP26: 2 | AQ26: 0 | AR26: B | AS26: 0 | AT26: 1 | AU26: 0 | AV26: B | AW26: 1 | AX26: 1 | AY26: 10 | AZ26: X | BA26: 0 | BB26: 1 | BC26: 0 | BD26: B | BE26: 0 | BF26: 1 | BG26: 0 | BH26: B | BI26: 0 | BJ26: 1 | BK26: 0 | BL26: B | BM26: 1 | BN26: 3 | BO26: 0 | BP26: B | BQ26: 0 | BR26: 3 | BS26: 0 | BT26: B | BU26: 0 | BV26: 1 | BW26: 0 | BX26: B | BY26: 0 | BZ26: 3 | CA26: 0 | CB26: B | CC26: 2 | CD26: 1 | CE26: 0 | CF26: A | CG26: 1 | CH26: 2 | CI26: 0 | CJ26: B | CK26: 1 | CL26: 1 | CM26: 10 | CN26: X | CO26: 1 | CP26: 1 | CQ26: 10 | CR26: X | CS26: 2 | CT26: 1 | CU26: 0 | CV26: A | CW26: 2 | CX26: 3 | CY26: 0 | CZ26: B | DA26: 0 | DB26: 0 | DC26: 7 | DD26: X | DE26: 0 | DF26: 1 | DG26: 0 | DH26: B | DI26: 0 | DJ26: 1 | DK26: 0 | DL26: B | DM26: 1 | DN26: 3 | DO26: 0 | DP26: B | DQ26: 1 | DR26: 2 | DS26: 0 | DT26: B | DU26: 1 | DV26: 1 | DW26: 10 | DX26: X | DY26: 2 | DZ26: 2 | EA26: 7 | EB26: X | EC26: 0 | ED26: 0 | EE26: 7 | EF26: X | EG26: 1 | EH26: 2 | EI26: 0 | EJ26: B | EK26: 1 | EL26: 1 | EM26: 10 | EN26: X | EO26: 1 | EP26: 0 | EQ26: 0 | ER26: A | ES26: 1 | ET26: 2 | EU26: 0 | EV26: B | EW26: 1 | EX26: 2 | EY26: 0 | EZ26: B | FA26: 2 | FB26: 1 | FC26: 0 | FD26: A | FE26: 1 | FF26: 0 | FG26: 0 | FH26: A | FI26: 0 | FJ26: 1 | FK26: 0 | FL26: B | FM26: 1 | FN26: 0 | FO26: 0 | FP26: A | FQ26: 1 | FR26: 2 | FS26: 0 | FT26: B | FU26: 1 | FV26: 1 | FW26: 10 | FX26: X | FY26: 1 | FZ26: 2 | GA26: 0 | GB26: B | GC26: 0 | GD26: 0 | GE26: 7 | GF26: X | GG26: 1 | GH26: 2 | GI26: 0 | GJ26: B | GK26: 1 | GL26: 2 | GM26: 0 | GN26: B | GO26: 1 | GP26: 1 | GQ26: 10 | GR26: X | GS26: 1 | GT26: 1 | GU26: 10 | GV26: X | GW26: 0 | GX26: 1 | GY26: 0 | GZ26: B | HB26: 9 | HC26: 24 | HD26: 43 | HE26: 76 | HG26: 11.84210526 | HH26: 31.57894737 | HI26: 56.57894737
A27: Fr. 21. Jun | B27: 18:00:00 | C27: 19 | D27: Polen | E27: Österreich | F27: 1 | G27: 3 | I27: 1 | J27: 1 | K27: 0 | L27: X | M27: 1 | N27: 2 | O27: 5 | P27: B | Q27: 0 | R27: 0 | S27: 0 | T27: X | U27: 1 | V27: 1 | W27: 0 | X27: X | Y27: 1 | Z27: 3 | AA27: 10 | AB27: B | AC27: 1 | AD27: 1 | AE27: 0 | AF27: X | AG27: 0 | AH27: 1 | AI27: 5 | AJ27: B | AK27: 1 | AL27: 1 | AM27: 0 | AN27: X | AO27: 0 | AP27: 0 | AQ27: 0 | AR27: X | AS27: 1 | AT27: 1 | AU27: 0 | AV27: X | AW27: 2 | AX27: 0 | AY27: 0 | AZ27: A | BA27: 1 | BB27: 0 | BC27: 0 | BD27: A | BE27: 1 | BF27: 1 | BG27: 0 | BH27: X | BI27: 1 | BJ27: 0 | BK27: 0 | BL27: A | BM27: 1 | BN27: 1 | BO27: 0 | BP27: X | BQ27: 0 | BR27: 1 | BS27: 5 | BT27: B | BU27: 0 | BV27: 2 | BW27: 7 | BX27: B | BY27: 1 | BZ27: 2 | CA27: 5 | CB27: B | CC27: 1 | CD27: 2 | CE27: 5 | CF27: B | CG27: 1 | CH27: 1 | CI27: 0 | CJ27: X | CK27: 0 | CL27: 2 | CM27: 7 | CN27: B | CO27: 1 | CP27: 2 | CQ27: 5 | CR27: B | CS27: 1 | CT27: 2 | CU27: 5 | CV27: B | CW27: 1 | CX27: 2 | CY27: 5 | CZ27: B | DA27: 0 | DB27: 1 | DC27: 5 | DD27: B | DE27: 1 | DF27: 2 | DG27: 5 | DH27: B | DI27: 0 | DJ27: 1 | DK27: 5 | DL27: B | DM27: 2 | DN27: 4 | DO27: 7 | DP27: B | DQ27: 2 | DR27: 2 | DS27: 0 | DT27: X | DU27: 1 | DV27: 1 | DW27: 0 | DX27: X | DY27: 1 | DZ27: 0 | EA27: 0 | EB27: A | EC27: 1 | ED27: 2 | EE27: 5 | EF27: B | EG27: 1 | EH27: 1 | EI27: 0 | EJ27: X | EK27: 0 | EL27: 1 | EM27: 5 | EN27: B | EO27: 1 | EP27: 2 | EQ27: 5 | ER27: B | ES27: 1 | ET27: 2 | EU27: 5 | EV27: B | EW27: 0 | EX27: 1 | EY27: 5 | EZ27: B | FA27: 1 | FB27: 1 | FC27: 0 | FD27: X | FE27: 1 | FF27: 2 | FG27: 5 | FH27: B | FI27: 0 | FJ27: 1 | FK27: 5 | FL27: B | FM27: 0 | FN27: 1 | FO27: 5 | FP27: B | FQ27: 1 | FR27: 2 | FS27: 5 | FT27: B | FU27: 1 | FV27: 2 | FW27: 5 | FX27: B | FY27: 0 | FZ27: 1 | GA27: 5 | GB27: B | GC27: 0 | GD27: 0 | GE27: 0 | GF27: X | GG27: 1 | GH27: 1 | GI27: 0 | GJ27: X | GK27: 0 | GL27: 2 | GM27: 7 | GN27: B | GO27: 1 | GP27: 1 | GQ27: 0 | GR27: X | GS27: 1 | GT27: 0 | GU27: 0 | GV27: A | GW27: 2 | GX27: 1 | GY27: 0 | GZ27: A | HB27: 10 | HC27: 26 | HD27: 40 | HE27: 76 | HG27: 13.15789474 | HH27: 34.21052632 | HI27: 52.63157895
A28: Fr. 21. Jun | B28: 21:00:00 | C28: 20 | D28: Holland | E28: Frankreich | F28: 0 | G28: 0 | I28: 1 | J28: 2 | K28: 0 | L28: B | M28: 2 | N28: 2 | O28: 7 | P28: X | Q28: 2 | R28: 3 | S28: 0 | T28: B | U28: 0 | V28: 0 | W28: 10 | X28: X | Y28: 2 | Z28: 1 | AA28: 0 | AB28: A | AC28: 2 | AD28: 3 | AE28: 0 | AF28: B | AG28: 1 | AH28: 2 | AI28: 0 | AJ28: B | AK28: 0 | AL28: 2 | AM28: 0 | AN28: B | AO28: 0 | AP28: 1 | AQ28: 0 | AR28: B | AS28: 1 | AT28: 2 | AU28: 0 | AV28: B | AW28: 1 | AX28: 2 | AY28: 0 | AZ28: B | BA28: 2 | BB28: 4 | BC28: 0 | BD28: B | BE28: 0 | BF28: 1 | BG28: 0 | BH28: B | BI28: 1 | BJ28: 2 | BK28: 0 | BL28: B | BM28: 1 | BN28: 1 | BO28: 7 | BP28: X | BQ28: 1 | BR28: 2 | BS28: 0 | BT28: B | BU28: 2 | BV28: 3 | BW28: 0 | BX28: B | BY28: 1 | BZ28: 2 | CA28: 0 | CB28: B | CC28: 1 | CD28: 2 | CE28: 0 | CF28: B | CG28: 2 | CH28: 2 | CI28: 7 | CJ28: X | CK28: 1 | CL28: 1 | CM28: 7 | CN28: X | CO28: 1 | CP28: 2 | CQ28: 0 | CR28: B | CS28: 1 | CT28: 1 | CU28: 7 | CV28: X | CW28: 0 | CX28: 2 | CY28: 0 | CZ28: B | DA28: 0 | DB28: 1 | DC28: 0 | DD28: B | DE28: 1 | DF28: 3 | DG28: 0 | DH28: B | DI28: 2 | DJ28: 3 | DK28: 0 | DL28: B | DM28: 1 | DN28: 4 | DO28: 0 | DP28: B | DQ28: 1 | DR28: 2 | DS28: 0 | DT28: B | DU28: 1 | DV28: 2 | DW28: 0 | DX28: B | DY28: 0 | DZ28: 2 | EA28: 0 | EB28: B | EC28: 1 | ED28: 1 | EE28: 7 | EF28: X | EG28: 1 | EH28: 2 | EI28: 0 | EJ28: B | EK28: 2 | EL28: 2 | EM28: 7 | EN28: X | EO28: 2 | EP28: 3 | EQ28: 0 | ER28: B | ES28: 1 | ET28: 1 | EU28: 7 | EV28: X | EW28: 1 | EX28: 1 | EY28: 7 | EZ28: X | FA28: 1 | FB28: 1 | FC28: 7 | FD28: X | FE28: 1 | FF28: 1 | FG28: 7 | FH28: X | FI28: 0 | FJ28: 1 | FK28: 0 | FL28: B | FM28: 0 | FN28: 1 | FO28: 0 | FP28: B | FQ28: 1 | FR28: 2 | FS28: 0 | FT28: B | FU28: 0 | FV28: 2 | FW28: 0 | FX28: B | FY28: 1 | FZ28: 2 | GA28: 0 | GB28: B | GC28: 2 | GD28: 3 | GE28: 0 | GF28: B | GG28: 1 | GH28: 2 | GI28: 0 | GJ28: B | GK28: 1 | GL28: 3 | GM28: 0 | GN28: B | GO28: 1 | GP28: 2 | GQ28: 0 | GR28: B | GS28: 0 | GT28: 2 | GU28: 0 | GV28: B | GW28: 0 | GX28: 1 | GY28: 0 | GZ28: B | HB28: 2 | HC28: 21 | HD28: 53 | HE28: 76 | HG28: 2.631578947 | HH28: 27.63157895 | HI28: 69.73684211
A29: Fr. 21. Jun | B29: 15:00:00 | C29: 21 | D29: Slowakei | E29: Ukraine | F29: 1 | G29: 2 | I29: 2 | J29: 1 | K29: 0 | L29: A | M29: 2 | N29: 1 | O29: 0 | P29: A | Q29: 1 | R29: 1 | S29: 0 | T29: X | U29: 0 | V29: 1 | W29: 7 | X29: B | Y29: 1 | Z29: 2 | AA29: 10 | AB29: B | AC29: 1 | AD29: 2 | AE29: 10 | AF29: B | AG29: 0 | AH29: 1 | AI29: 7 | AJ29: B | AK29: 1 | AL29: 0 | AM29: 0 | AN29: A | AO29: 1 | AP29: 1 | AQ29: 0 | AR29: X | AS29: 2 | AT29: 1 | AU29: 0 | AV29: A | AW29: 0 | AX29: 0 | AY29: 0 | AZ29: X | BA29: 1 | BB29: 1 | BC29: 0 | BD29: X | BE29: 1 | BF29: 1 | BG29: 0 | BH29: X | BI29: 1 | BJ29: 1 | BK29: 0 | BL29: X | BM29: 0 | BN29: 1 | BO29: 7 | BP29: B | BQ29: 0 | BR29: 1 | BS29: 7 | BT29: B | BU29: 0 | BV29: 0 | BW29: 0 | BX29: X | BY29: 1 | BZ29: 1 | CA29: 0 | CB29: X | CC29: 0 | CD29: 1 | CE29: 7 | CF29: B | CG29: 1 | CH29: 2 | CI29: 10 | CJ29: B | CK29: 0 | CL29: 2 | CM29: 5 | CN29: B | CO29: 0 | CP29: 1 | CQ29: 7 | CR29: B | CS29: 1 | CT29: 3 | CU29: 5 | CV29: B | CW29: 2 | CX29: 2 | CY29: 0 | CZ29: X | DA29: 0 | DB29: 1 | DC29: 7 | DD29: B | DE29: 1 | DF29: 0 | DG29: 0 | DH29: A | DI29: 1 | DJ29: 2 | DK29: 10 | DL29: B | DM29: 2 | DN29: 1 | DO29: 0 | DP29: A | DQ29: 1 | DR29: 2 | DS29: 10 | DT29: B | DU29: 1 | DV29: 1 | DW29: 0 | DX29: X | DY29: 1 | DZ29: 1 | EA29: 0 | EB29: X | EC29: 1 | ED29: 1 | EE29: 0 | EF29: X | EG29: 1 | EH29: 1 | EI29: 0 | EJ29: X | EK29: 0 | EL29: 1 | EM29: 7 | EN29: B | EO29: 1 | EP29: 0 | EQ29: 0 | ER29: A | ES29: 1 | ET29: 1 | EU29: 0 | EV29: X | EW29: 0 | EX29: 1 | EY29: 7 | EZ29: B | FA29: 1 | FB29: 2 | FC29: 10 | FD29: B | FE29: 1 | FF29: 2 | FG29: 10 | FH29: B | FI29: 0 | FJ29: 1 | FK29: 7 | FL29: B | FM29: 0 | FN29: 1 | FO29: 7 | FP29: B | FQ29: 1 | FR29: 2 | FS29: 10 | FT29: B | FU29: 0 | FV29: 1 | FW29: 7 | FX29: B | FY29: 0 | FZ29: 1 | GA29: 7 | GB29: B | GC29: 1 | GD29: 0 | GE29: 0 | GF29: A | GG29: 1 | GH29: 1 | GI29: 0 | GJ29: X | GK29: 2 | GL29: 1 | GM29: 0 | GN29: A | GO29: 1 | GP29: 2 | GQ29: 10 | GR29: B | GS29: 1 | GT29: 1 | GU29: 0 | GV29: X | GW29: 2 | GX29: 3 | GY29: 7 | GZ29: B | HB29: 16 | HC29: 24 | HD29: 36 | HE29: 76 | HG29: 21.05263158 | HH29: 31.57894737 | HI29: 47.36842105
A30: Sa. 22. Jun | B30: 21:00:00 | C30: 22 | D30: Belgien | E30: Rumänien | F30: 2 | G30: 0 | I30: 2 | J30: 1 | K30: 5 | L30: A | M30: 3 | N30: 1 | O30: 7 | P30: A | Q30: 3 | R30: 0 | S30: 5 | T30: A | U30: 1 | V30: 0 | W30: 5 | X30: A | Y30: 3 | Z30: 0 | AA30: 5 | AB30: A | AC30: 2 | AD30: 0 | AE30: 10 | AF30: A | AG30: 2 | AH30: 0 | AI30: 10 | AJ30: A | AK30: 1 | AL30: 0 | AM30: 5 | AN30: A | AO30: 2 | AP30: 0 | AQ30: 10 | AR30: A | AS30: 2 | AT30: 0 | AU30: 10 | AV30: A | AW30: 1 | AX30: 0 | AY30: 5 | AZ30: A | BA30: 2 | BB30: 0 | BC30: 10 | BD30: A | BE30: 1 | BF30: 0 | BG30: 5 | BH30: A | BI30: 2 | BJ30: 0 | BK30: 10 | BL30: A | BM30: 2 | BN30: 0 | BO30: 10 | BP30: A | BQ30: 1 | BR30: 1 | BS30: 0 | BT30: X | BU30: 1 | BV30: 0 | BW30: 5 | BX30: A | BY30: 1 | BZ30: 0 | CA30: 5 | CB30: A | CC30: 2 | CD30: 0 | CE30: 10 | CF30: A | CG30: 3 | CH30: 1 | CI30: 7 | CJ30: A | CK30: 2 | CL30: 0 | CM30: 10 | CN30: A | CO30: 2 | CP30: 0 | CQ30: 10 | CR30: A | CS30: 2 | CT30: 0 | CU30: 10 | CV30: A | CW30: 2 | CX30: 2 | CY30: 0 | CZ30: X | DA30: 2 | DB30: 0 | DC30: 10 | DD30: A | DE30: 4 | DF30: 1 | DG30: 5 | DH30: A | DI30: 0 | DJ30: 0 | DK30: 0 | DL30: X | DM30: 2 | DN30: 0 | DO30: 10 | DP30: A | DQ30: 3 | DR30: 0 | DS30: 5 | DT30: A | DU30: 2 | DV30: 0 | DW30: 10 | DX30: A | DY30: 1 | DZ30: 0 | EA30: 5 | EB30: A | EC30: 2 | ED30: 0 | EE30: 10 | EF30: A | EG30: 2 | EH30: 0 | EI30: 10 | EJ30: A | EK30: 2 | EL30: 0 | EM30: 10 | EN30: A | EO30: 2 | EP30: 1 | EQ30: 5 | ER30: A | ES30: 1 | ET30: 0 | EU30: 5 | EV30: A | EW30: 1 | EX30: 0 | EY30: 5 | EZ30: A | FA30: 2 | FB30: 1 | FC30: 5 | FD30: A | FE30: 2 | FF30: 0 | FG30: 10 | FH30: A | FI30: 1 | FJ30: 0 | FK30: 5 | FL30: A | FM30: 1 | FN30: 0 | FO30: 5 | FP30: A | FQ30: 2 | FR30: 1 | FS30: 5 | FT30: A | FU30: 1 | FV30: 0 | FW30: 5 | FX30: A | FY30: 2 | FZ30: 0 | GA30: 10 | GB30: A | GC30: 2 | GD30: 1 | GE30: 5 | GF30: A | GG30: 2 | GH30: 0 | GI30: 10 | GJ30: A | GK30: 2 | GL30: 1 | GM30: 5 | GN30: A | GO30: 2 | GP30: 1 | GQ30: 5 | GR30: A | GS30: 1 | GT30: 0 | GU30: 5 | GV30: A | GW30: 3 | GX30: 0 | GY30: 5 | GZ30: A | HB30: 72 | HC30: 4 | HD30: 0 | HE30: 76 | HG30: 94.73684211 | HH30: 5.263157895 | HI30: 0
A31: Sa. 22. Jun | B31: 18:00:00 | C31: 23 | D31: Türkei | E31: Portugal | F31: 0 | G31: 3 | I31: 1 | J31: 2 | K31: 5 | L31: B | M31: 2 | N31: 3 | O31: 5 | P31: B | Q31: 1 | R31: 2 | S31: 5 | T31: B | U31: 0 | V31: 2 | W31: 5 | X31: B | Y31: 1 | Z31: 2 | AA31: 5 | AB31: B | AC31: 1 | AD31: 2 | AE31: 5 | AF31: B | AG31: 0 | AH31: 2 | AI31: 5 | AJ31: B | AK31: 0 | AL31: 3 | AM31: 10 | AN31: B | AO31: 0 | AP31: 2 | AQ31: 5 | AR31: B | AS31: 0 | AT31: 2 | AU31: 5 | AV31: B | AW31: 1 | AX31: 2 | AY31: 5 | AZ31: B | BA31: 1 | BB31: 3 | BC31: 5 | BD31: B | BE31: 0 | BF31: 1 | BG31: 5 | BH31: B | BI31: 1 | BJ31: 3 | BK31: 5 | BL31: B | BM31: 1 | BN31: 3 | BO31: 5 | BP31: B | BQ31: 2 | BR31: 1 | BS31: 0 | BT31: A | BU31: 1 | BV31: 1 | BW31: 0 | BX31: X | BY31: 1 | BZ31: 1 | CA31: 0 | CB31: X | CC31: 0 | CD31: 2 | CE31: 5 | CF31: B | CG31: 1 | CH31: 3 | CI31: 5 | CJ31: B | CK31: 0 | CL31: 1 | CM31: 5 | CN31: B | CO31: 2 | CP31: 2 | CQ31: 0 | CR31: X | CS31: 1 | CT31: 2 | CU31: 5 | CV31: B | CW31: 0 | CX31: 3 | CY31: 10 | CZ31: B | DA31: 0 | DB31: 1 | DC31: 5 | DD31: B | DE31: 0 | DF31: 3 | DG31: 10 | DH31: B | DI31: 0 | DJ31: 3 | DK31: 10 | DL31: B | DM31: 2 | DN31: 4 | DO31: 5 | DP31: B | DQ31: 1 | DR31: 4 | DS31: 7 | DT31: B | DU31: 0 | DV31: 1 | DW31: 5 | DX31: B | DY31: 1 | DZ31: 1 | EA31: 0 | EB31: X | EC31: 0 | ED31: 2 | EE31: 5 | EF31: B | EG31: 1 | EH31: 2 | EI31: 5 | EJ31: B | EK31: 1 | EL31: 4 | EM31: 7 | EN31: B | EO31: 0 | EP31: 1 | EQ31: 5 | ER31: B | ES31: 0 | ET31: 3 | EU31: 10 | EV31: B | EW31: 0 | EX31: 1 | EY31: 5 | EZ31: B | FA31: 1 | FB31: 2 | FC31: 5 | FD31: B | FE31: 0 | FF31: 3 | FG31: 10 | FH31: B | FI31: 0 | FJ31: 1 | FK31: 5 | FL31: B | FM31: 0 | FN31: 1 | FO31: 5 | FP31: B | FQ31: 2 | FR31: 2 | FS31: 0 | FT31: X | FU31: 1 | FV31: 1 | FW31: 0 | FX31: X | FY31: 1 | FZ31: 1 | GA31: 0 | GB31: X | GC31: 1 | GD31: 2 | GE31: 5 | GF31: B | GG31: 1 | GH31: 3 | GI31: 5 | GJ31: B | GK31: 0 | GL31: 3 | GM31: 10 | GN31: B | GO31: 1 | GP31: 2 | GQ31: 5 | GR31: B | GS31: 0 | GT31: 2 | GU31: 5 | GV31: B | GW31: 1 | GX31: 1 | GY31: 0 | GZ31: X | HB31: 1 | HC31: 14 | HD31: 61 | HE31: 76 | HG31: 1.315789474 | HH31: 18.42105263 | HI31: 80.26315789
A32: Sa. 22. Jun | B32: 15:00:00 | C32: 24 | D32: Georgien | E32: Tschechien | F32: 1 | G32: 1 | I32: 1 | J32: 2 | K32: 0 | L32: B | M32: 0 | N32: 1 | O32: 0 | P32: B | Q32: 0 | R32: 0 | S32: 7 | T32: X | U32: 0 | V32: 1 | W32: 0 | X32: B | Y32: 1 | Z32: 1 | AA32: 10 | AB32: X | AC32: 1 | AD32: 2 | AE32: 0 | AF32: B | AG32: 0 | AH32: 1 | AI32: 0 | AJ32: B | AK32: 0 | AL32: 2 | AM32: 0 | AN32: B | AO32: 0 | AP32: 2 | AQ32: 0 | AR32: B | AS32: 0 | AT32: 2 | AU32: 0 | AV32: B | AW32: 0 | AX32: 1 | AY32: 0 | AZ32: B | BA32: 1 | BB32: 1 | BC32: 10 | BD32: X | BE32: 1 | BF32: 1 | BG32: 10 | BH32: X | BI32: 1 | BJ32: 2 | BK32: 0 | BL32: B | BM32: 0 | BN32: 2 | BO32: 0 | BP32: B | BQ32: 0 | BR32: 1 | BS32: 0 | BT32: B | BU32: 0 | BV32: 1 | BW32: 0 | BX32: B | BY32: 0 | BZ32: 0 | CA32: 7 | CB32: X | CC32: 1 | CD32: 2 | CE32: 0 | CF32: B | CG32: 0 | CH32: 2 | CI32: 0 | CJ32: B | CK32: 1 | CL32: 1 | CM32: 10 | CN32: X | CO32: 0 | CP32: 1 | CQ32: 0 | CR32: B | CS32: 0 | CT32: 2 | CU32: 0 | CV32: B | CW32: 1 | CX32: 2 | CY32: 0 | CZ32: B | DA32: 0 | DB32: 1 | DC32: 0 | DD32: B | DE32: 1 | DF32: 0 | DG32: 0 | DH32: A | DI32: 1 | DJ32: 1 | DK32: 10 | DL32: X | DM32: 1 | DN32: 4 | DO32: 0 | DP32: B | DQ32: 1 | DR32: 1 | DS32: 10 | DT32: X | DU32: 0 | DV32: 1 | DW32: 0 | DX32: B | DY32: 2 | DZ32: 1 | EA32: 0 | EB32: A | EC32: 0 | ED32: 2 | EE32: 0 | EF32: B | EG32: 0 | EH32: 2 | EI32: 0 | EJ32: B | EK32: 0 | EL32: 2 | EM32: 0 | EN32: B | EO32: 0 | EP32: 2 | EQ32: 0 | ER32: B | ES32: 0 | ET32: 1 | EU32: 0 | EV32: B | EW32: 0 | EX32: 1 | EY32: 0 | EZ32: B | FA32: 1 | FB32: 1 | FC32: 10 | FD32: X | FE32: 1 | FF32: 1 | FG32: 10 | FH32: X | FI32: 0 | FJ32: 1 | FK32: 0 | FL32: B | FM32: 0 | FN32: 1 | FO32: 0 | FP32: B | FQ32: 1 | FR32: 2 | FS32: 0 | FT32: B | FU32: 0 | FV32: 2 | FW32: 0 | FX32: B | FY32: 0 | FZ32: 2 | GA32: 0 | GB32: B | GC32: 1 | GD32: 1 | GE32: 10 | GF32: X | GG32: 1 | GH32: 2 | GI32: 0 | GJ32: B | GK32: 1 | GL32: 2 | GM32: 0 | GN32: B | GO32: 1 | GP32: 2 | GQ32: 0 | GR32: B | GS32: 1 | GT32: 1 | GU32: 10 | GV32: X | GW32: 1 | GX32: 2 | GY32: 0 | GZ32: B | HB32: 3 | HC32: 15 | HD32: 58 | HE32: 76 | HG32: 3.947368421 | HH32: 19.73684211 | HI32: 76.31578947
A33: So. 23. Jun | B33: 21:00:00 | C33: 25 | D33: Schweiz | E33: Deutschland | F33: 1 | G33: 1 | I33: 1 | J33: 1 | K33: 10 | L33: X | M33: 1 | N33: 1 | O33: 10 | P33: X | Q33: 1 | R33: 3 | S33: 0 | T33: B | U33: 1 | V33: 1 | W33: 10 | X33: X | Y33: 1 | Z33: 2 | AA33: 0 | AB33: B | AC33: 2 | AD33: 2 | AE33: 7 | AF33: X | AG33: 1 | AH33: 1 | AI33: 10 | AJ33: X | AK33: 1 | AL33: 0 | AM33: 0 | AN33: A | AO33: 1 | AP33: 2 | AQ33: 0 | AR33: B | AS33: 1 | AT33: 2 | AU33: 0 | AV33: B | AW33: 1 | AX33: 2 | AY33: 0 | AZ33: B | BA33: 2 | BB33: 2 | BC33: 7 | BD33: X | BE33: 0 | BF33: 1 | BG33: 0 | BH33: B | BI33: 0 | BJ33: 2 | BK33: 0 | BL33: B | BM33: 0 | BN33: 2 | BO33: 0 | BP33: B | BQ33: 1 | BR33: 2 | BS33: 0 | BT33: B | BU33: 1 | BV33: 2 | BW33: 0 | BX33: B | BY33: 1 | BZ33: 1 | CA33: 10 | CB33: X | CC33: 1 | CD33: 1 | CE33: 10 | CF33: X | CG33: 0 | CH33: 0 | CI33: 7 | CJ33: X | CK33: 1 | CL33: 2 | CM33: 0 | CN33: B | CO33: 0 | CP33: 2 | CQ33: 0 | CR33: B | CS33: 0 | CT33: 1 | CU33: 0 | CV33: B | CW33: 1 | CX33: 1 | CY33: 10 | CZ33: X | DA33: 1 | DB33: 2 | DC33: 0 | DD33: B | DE33: 2 | DF33: 1 | DG33: 0 | DH33: A | DI33: 1 | DJ33: 1 | DK33: 10 | DL33: X | DM33: 2 | DN33: 3 | DO33: 0 | DP33: B | DQ33: 2 | DR33: 1 | DS33: 0 | DT33: A | DU33: 1 | DV33: 2 | DW33: 0 | DX33: B | DY33: 3 | DZ33: 1 | EA33: 0 | EB33: A | EC33: 0 | ED33: 1 | EE33: 0 | EF33: B | EG33: 1 | EH33: 2 | EI33: 0 | EJ33: B | EK33: 1 | EL33: 2 | EM33: 0 | EN33: B | EO33: 1 | EP33: 2 | EQ33: 0 | ER33: B | ES33: 1 | ET33: 2 | EU33: 0 | EV33: B | EW33: 0 | EX33: 1 | EY33: 0 | EZ33: B | FA33: 1 | FB33: 1 | FC33: 10 | FD33: X | FE33: 2 | FF33: 2 | FG33: 7 | FH33: X | FI33: 0 | FJ33: 1 | FK33: 0 | FL33: B | FM33: 0 | FN33: 1 | FO33: 0 | FP33: B | FQ33: 1 | FR33: 3 | FS33: 0 | FT33: B | FU33: 1 | FV33: 1 | FW33: 10 | FX33: X | FY33: 1 | FZ33: 3 | GA33: 0 | GB33: B | GC33: 0 | GD33: 2 | GE33: 0 | GF33: B | GG33: 1 | GH33: 1 | GI33: 10 | GJ33: X | GK33: 2 | GL33: 2 | GM33: 7 | GN33: X | GO33: 1 | GP33: 3 | GQ33: 0 | GR33: B | GS33: 2 | GT33: 3 | GU33: 0 | GV33: B | GW33: 0 | GX33: 2 | GY33: 0 | GZ33: B | HB33: 6 | HC33: 24 | HD33: 46 | HE33: 76 | HG33: 7.894736842 | HH33: 31.57894737 | HI33: 60.52631579
A34: So. 23. Jun | B34: 21:00:00 | C34: 26 | D34: Schottland | E34: Ungarn | F34: 0 | G34: 1 | I34: 1 | J34: 2 | K34: 7 | L34: B | M34: 2 | N34: 2 | O34: 0 | P34: X | Q34: 0 | R34: 2 | S34: 5 | T34: B | U34: 1 | V34: 1 | W34: 0 | X34: X | Y34: 3 | Z34: 2 | AA34: 0 | AB34: A | AC34: 1 | AD34: 2 | AE34: 7 | AF34: B | AG34: 1 | AH34: 2 | AI34: 7 | AJ34: B | AK34: 1 | AL34: 1 | AM34: 0 | AN34: X | AO34: 1 | AP34: 1 | AQ34: 0 | AR34: X | AS34: 1 | AT34: 1 | AU34: 0 | AV34: X | AW34: 0 | AX34: 1 | AY34: 10 | AZ34: B | BA34: 2 | BB34: 3 | BC34: 7 | BD34: B | BE34: 1 | BF34: 1 | BG34: 0 | BH34: X | BI34: 2 | BJ34: 1 | BK34: 0 | BL34: A | BM34: 1 | BN34: 1 | BO34: 0 | BP34: X | BQ34: 1 | BR34: 1 | BS34: 0 | BT34: X | BU34: 1 | BV34: 0 | BW34: 0 | BX34: A | BY34: 0 | BZ34: 1 | CA34: 10 | CB34: B | CC34: 1 | CD34: 1 | CE34: 0 | CF34: X | CG34: 0 | CH34: 1 | CI34: 10 | CJ34: B | CK34: 2 | CL34: 0 | CM34: 0 | CN34: A | CO34: 1 | CP34: 0 | CQ34: 0 | CR34: A | CS34: 2 | CT34: 0 | CU34: 0 | CV34: A | CW34: 1 | CX34: 2 | CY34: 7 | CZ34: B | DA34: 0 | DB34: 0 | DC34: 0 | DD34: X | DE34: 1 | DF34: 1 | DG34: 0 | DH34: X | DI34: 1 | DJ34: 2 | DK34: 7 | DL34: B | DM34: 1 | DN34: 2 | DO34: 7 | DP34: B | DQ34: 0 | DR34: 2 | DS34: 5 | DT34: B | DU34: 1 | DV34: 1 | DW34: 0 | DX34: X | DY34: 1 | DZ34: 2 | EA34: 7 | EB34: B | EC34: 1 | ED34: 0 | EE34: 0 | EF34: A | EG34: 0 | EH34: 1 | EI34: 10 | EJ34: B | EK34: 1 | EL34: 1 | EM34: 0 | EN34: X | EO34: 1 | EP34: 0 | EQ34: 0 | ER34: A | ES34: 1 | ET34: 1 | EU34: 0 | EV34: X | EW34: 0 | EX34: 0 | EY34: 0 | EZ34: X | FA34: 1 | FB34: 2 | FC34: 7 | FD34: B | FE34: 1 | FF34: 1 | FG34: 0 | FH34: X | FI34: 1 | FJ34: 0 | FK34: 0 | FL34: A | FM34: 1 | FN34: 0 | FO34: 0 | FP34: A | FQ34: 1 | FR34: 2 | FS34: 7 | FT34: B | FU34: 2 | FV34: 2 | FW34: 0 | FX34: X | FY34: 2 | FZ34: 1 | GA34: 0 | GB34: A | GC34: 2 | GD34: 0 | GE34: 0 | GF34: A | GG34: 1 | GH34: 0 | GI34: 0 | GJ34: A | GK34: 1 | GL34: 2 | GM34: 7 | GN34: B | GO34: 1 | GP34: 1 | GQ34: 0 | GR34: X | GS34: 2 | GT34: 0 | GU34: 0 | GV34: A | GW34: 2 | GX34: 1 | GY34: 0 | GZ34: A | HB34: 21 | HC34: 25 | HD34: 30 | HE34: 76 | HG34: 27.63157895 | HH34: 32.89473684 | HI34: 39.47368421
A35: Mo. 24. Jun | B35: 21:00:00 | C35: 27 | D35: Albanien | E35: Spanien | F35: 0 | G35: 1 | I35: 1 | J35: 2 | K35: 7 | L35: B | M35: 0 | N35: 3 | O35: 5 | P35: B | Q35: 0 | R35: 4 | S35: 5 | T35: B | U35: 0 | V35: 3 | W35: 5 | X35: B | Y35: 0 | Z35: 3 | AA35: 5 | AB35: B | AC35: 0 | AD35: 2 | AE35: 5 | AF35: B | AG35: 0 | AH35: 3 | AI35: 5 | AJ35: B | AK35: 0 | AL35: 2 | AM35: 5 | AN35: B | AO35: 0 | AP35: 3 | AQ35: 5 | AR35: B | AS35: 0 | AT35: 2 | AU35: 5 | AV35: B | AW35: 0 | AX35: 1 | AY35: 10 | AZ35: B | BA35: 1 | BB35: 2 | BC35: 7 | BD35: B | BE35: 0 | BF35: 1 | BG35: 10 | BH35: B | BI35: 0 | BJ35: 2 | BK35: 5 | BL35: B | BM35: 0 | BN35: 2 | BO35: 5 | BP35: B | BQ35: 0 | BR35: 4 | BS35: 5 | BT35: B | BU35: 0 | BV35: 5 | BW35: 5 | BX35: B | BY35: 0 | BZ35: 3 | CA35: 5 | CB35: B | CC35: 1 | CD35: 2 | CE35: 7 | CF35: B | CG35: 0 | CH35: 2 | CI35: 5 | CJ35: B | CK35: 0 | CL35: 4 | CM35: 5 | CN35: B | CO35: 0 | CP35: 5 | CQ35: 5 | CR35: B | CS35: 0 | CT35: 5 | CU35: 5 | CV35: B | CW35: 0 | CX35: 3 | CY35: 5 | CZ35: B | DA35: 0 | DB35: 1 | DC35: 10 | DD35: B | DE35: 0 | DF35: 4 | DG35: 5 | DH35: B | DI35: 0 | DJ35: 2 | DK35: 5 | DL35: B | DM35: 0 | DN35: 2 | DO35: 5 | DP35: B | DQ35: 0 | DR35: 3 | DS35: 5 | DT35: B | DU35: 0 | DV35: 1 | DW35: 10 | DX35: B | DY35: 0 | DZ35: 3 | EA35: 5 | EB35: B | EC35: 0 | ED35: 2 | EE35: 5 | EF35: B | EG35: 0 | EH35: 2 | EI35: 5 | EJ35: B | EK35: 0 | EL35: 3 | EM35: 5 | EN35: B | EO35: 0 | EP35: 1 | EQ35: 10 | ER35: B | ES35: 1 | ET35: 2 | EU35: 7 | EV35: B | EW35: 0 | EX35: 1 | EY35: 10 | EZ35: B | FA35: 0 | FB35: 2 | FC35: 5 | FD35: B | FE35: 0 | FF35: 3 | FG35: 5 | FH35: B | FI35: 0 | FJ35: 1 | FK35: 10 | FL35: B | FM35: 0 | FN35: 1 | FO35: 10 | FP35: B | FQ35: 0 | FR35: 3 | FS35: 5 | FT35: B | FU35: 0 | FV35: 4 | FW35: 5 | FX35: B | FY35: 1 | FZ35: 3 | GA35: 5 | GB35: B | GC35: 0 | GD35: 2 | GE35: 5 | GF35: B | GG35: 0 | GH35: 3 | GI35: 5 | GJ35: B | GK35: 0 | GL35: 3 | GM35: 5 | GN35: B | GO35: 0 | GP35: 3 | GQ35: 5 | GR35: B | GS35: 1 | GT35: 3 | GU35: 5 | GV35: B | GW35: 0 | GX35: 2 | GY35: 5 | GZ35: B | HB35: 2 | HC35: 0 | HD35: 74 | HE35: 76 | HG35: 2.631578947 | HH35: 0 | HI35: 97.36842105
A36: Mo. 24. Jun | B36: 21:00:00 | C36: 28 | D36: Kroatien | E36: Italien | F36: 1 | G36: 1 | I36: 2 | J36: 1 | K36: 0 | L36: A | M36: 1 | N36: 1 | O36: 10 | P36: X | Q36: 2 | R36: 2 | S36: 7 | T36: X | U36: 0 | V36: 1 | W36: 0 | X36: B | Y36: 1 | Z36: 2 | AA36: 0 | AB36: B | AC36: 2 | AD36: 2 | AE36: 7 | AF36: X | AG36: 1 | AH36: 1 | AI36: 10 | AJ36: X | AK36: 1 | AL36: 2 | AM36: 0 | AN36: B | AO36: 1 | AP36: 1 | AQ36: 10 | AR36: X | AS36: 2 | AT36: 1 | AU36: 0 | AV36: A | AW36: 2 | AX36: 1 | AY36: 0 | AZ36: A | BA36: 2 | BB36: 3 | BC36: 0 | BD36: B | BE36: 1 | BF36: 1 | BG36: 10 | BH36: X | BI36: 1 | BJ36: 2 | BK36: 0 | BL36: B | BM36: 1 | BN36: 3 | BO36: 0 | BP36: B | BQ36: 1 | BR36: 2 | BS36: 0 | BT36: B | BU36: 1 | BV36: 0 | BW36: 0 | BX36: A | BY36: 1 | BZ36: 2 | CA36: 0 | CB36: B | CC36: 2 | CD36: 0 | CE36: 0 | CF36: A | CG36: 2 | CH36: 1 | CI36: 0 | CJ36: A | CK36: 1 | CL36: 2 | CM36: 0 | CN36: B | CO36: 0 | CP36: 1 | CQ36: 0 | CR36: B | CS36: 1 | CT36: 2 | CU36: 0 | CV36: B | CW36: 1 | CX36: 1 | CY36: 10 | CZ36: X | DA36: 1 | DB36: 1 | DC36: 10 | DD36: X | DE36: 1 | DF36: 2 | DG36: 0 | DH36: B | DI36: 1 | DJ36: 1 | DK36: 10 | DL36: X | DM36: 0 | DN36: 2 | DO36: 0 | DP36: B | DQ36: 1 | DR36: 1 | DS36: 10 | DT36: X | DU36: 1 | DV36: 2 | DW36: 0 | DX36: B | DY36: 0 | DZ36: 1 | EA36: 0 | EB36: B | EC36: 1 | ED36: 2 | EE36: 0 | EF36: B | EG36: 1 | EH36: 2 | EI36: 0 | EJ36: B | EK36: 0 | EL36: 0 | EM36: 7 | EN36: X | EO36: 1 | EP36: 2 | EQ36: 0 | ER36: B | ES36: 0 | ET36: 1 | EU36: 0 | EV36: B | EW36: 1 | EX36: 0 | EY36: 0 | EZ36: A | FA36: 2 | FB36: 1 | FC36: 0 | FD36: A | FE36: 1 | FF36: 2 | FG36: 0 | FH36: B | FI36: 1 | FJ36: 1 | FK36: 10 | FL36: X | FM36: 0 | FN36: 1 | FO36: 0 | FP36: B | FQ36: 1 | FR36: 2 | FS36: 0 | FT36: B | FU36: 0 | FV36: 0 | FW36: 7 | FX36: X | FY36: 1 | FZ36: 1 | GA36: 10 | GB36: X | GC36: 0 | GD36: 2 | GE36: 0 | GF36: B | GG36: 1 | GH36: 2 | GI36: 0 | GJ36: B | GK36: 1 | GL36: 2 | GM36: 0 | GN36: B | GO36: 1 | GP36: 2 | GQ36: 0 | GR36: B | GS36: 2 | GT36: 2 | GU36: 7 | GV36: X | GW36: 1 | GX36: 1 | GY36: 10 | GZ36: X | HB36: 16 | HC36: 27 | HD36: 33 | HE36: 76 | HG36: 21.05263158 | HH36: 35.52631579 | HI36: 43.42105263
A37: Di. 25. Jun | B37: 21:00:00 | C37: 29 | D37: England | E37: Slowenien | F37: 0 | G37: 0 | I37: 2 | J37: 1 | K37: 0 | L37: A | M37: 3 | N37: 0 | O37: 0 | P37: A | Q37: 3 | R37: 0 | S37: 0 | T37: A | U37: 2 | V37: 0 | W37: 0 | X37: A | Y37: 3 | Z37: 0 | AA37: 0 | AB37: A | AC37: 2 | AD37: 0 | AE37: 0 | AF37: A | AG37: 1 | AH37: 0 | AI37: 0 | AJ37: A | AK37: 3 | AL37: 0 | AM37: 0 | AN37: A | AO37: 3 | AP37: 1 | AQ37: 0 | AR37: A | AS37: 2 | AT37: 0 | AU37: 0 | AV37: A | AW37: 2 | AX37: 0 | AY37: 0 | AZ37: A | BA37: 2 | BB37: 1 | BC37: 0 | BD37: A | BE37: 1 | BF37: 0 | BG37: 0 | BH37: A | BI37: 2 | BJ37: 0 | BK37: 0 | BL37: A | BM37: 2 | BN37: 0 | BO37: 0 | BP37: A | BQ37: 2 | BR37: 0 | BS37: 0 | BT37: A | BU37: 2 | BV37: 0 | BW37: 0 | BX37: A | BY37: 3 | BZ37: 0 | CA37: 0 | CB37: A | CC37: 4 | CD37: 1 | CE37: 0 | CF37: A | CG37: 3 | CH37: 0 | CI37: 0 | CJ37: A | CK37: 2 | CL37: 0 | CM37: 0 | CN37: A | CO37: 2 | CP37: 0 | CQ37: 0 | CR37: A | CS37: 3 | CT37: 0 | CU37: 0 | CV37: A | CW37: 3 | CX37: 1 | CY37: 0 | CZ37: A | DA37: 2 | DB37: 0 | DC37: 0 | DD37: A | DE37: 3 | DF37: 0 | DG37: 0 | DH37: A | DI37: 0 | DJ37: 0 | DK37: 10 | DL37: X | DM37: 1 | DN37: 0 | DO37: 0 | DP37: A | DQ37: 4 | DR37: 0 | DS37: 0 | DT37: A | DU37: 2 | DV37: 0 | DW37: 0 | DX37: A | DY37: 1 | DZ37: 1 | EA37: 7 | EB37: X | EC37: 2 | ED37: 0 | EE37: 0 | EF37: A | EG37: 3 | EH37: 0 | EI37: 0 | EJ37: A | EK37: 4 | EL37: 0 | EM37: 0 | EN37: A | EO37: 2 | EP37: 1 | EQ37: 0 | ER37: A | ES37: 2 | ET37: 0 | EU37: 0 | EV37: A | EW37: 1 | EX37: 0 | EY37: 0 | EZ37: A | FA37: 2 | FB37: 1 | FC37: 0 | FD37: A | FE37: 2 | FF37: 0 | FG37: 0 | FH37: A | FI37: 1 | FJ37: 0 | FK37: 0 | FL37: A | FM37: 1 | FN37: 0 | FO37: 0 | FP37: A | FQ37: 2 | FR37: 1 | FS37: 0 | FT37: A | FU37: 6 | FV37: 0 | FW37: 0 | FX37: A | FY37: 2 | FZ37: 1 | GA37: 0 | GB37: A | GC37: 1 | GD37: 0 | GE37: 0 | GF37: A | GG37: 3 | GH37: 0 | GI37: 0 | GJ37: A | GK37: 3 | GL37: 1 | GM37: 0 | GN37: A | GO37: 3 | GP37: 1 | GQ37: 0 | GR37: A | GS37: 3 | GT37: 0 | GU37: 0 | GV37: A | GW37: 3 | GX37: 1 | GY37: 0 | GZ37: A | HB37: 74 | HC37: 2 | HD37: 0 | HE37: 76 | HG37: 97.36842105 | HH37: 2.631578947 | HI37: 0
A38: Di. 25. Jun | B38: 21:00:00 | C38: 30 | D38: Dänemark | E38: Serbien | F38: 0 | G38: 0 | I38: 2 | J38: 1 | K38: 0 | L38: A | M38: 2 | N38: 1 | O38: 0 | P38: A | Q38: 2 | R38: 3 | S38: 0 | T38: B | U38: 1 | V38: 1 | W38: 7 | X38: X | Y38: 1 | Z38: 2 | AA38: 0 | AB38: B | AC38: 1 | AD38: 1 | AE38: 7 | AF38: X | AG38: 1 | AH38: 0 | AI38: 0 | AJ38: A | AK38: 1 | AL38: 1 | AM38: 7 | AN38: X | AO38: 2 | AP38: 1 | AQ38: 0 | AR38: A | AS38: 1 | AT38: 1 | AU38: 7 | AV38: X | AW38: 1 | AX38: 0 | AY38: 0 | AZ38: A | BA38: 1 | BB38: 0 | BC38: 0 | BD38: A | BE38: 1 | BF38: 1 | BG38: 7 | BH38: X | BI38: 1 | BJ38: 1 | BK38: 7 | BL38: X | BM38: 1 | BN38: 1 | BO38: 7 | BP38: X | BQ38: 1 | BR38: 1 | BS38: 7 | BT38: X | BU38: 2 | BV38: 1 | BW38: 0 | BX38: A | BY38: 1 | BZ38: 0 | CA38: 0 | CB38: A | CC38: 1 | CD38: 0 | CE38: 0 | CF38: A | CG38: 2 | CH38: 1 | CI38: 0 | CJ38: A | CK38: 1 | CL38: 1 | CM38: 7 | CN38: X | CO38: 2 | CP38: 1 | CQ38: 0 | CR38: A | CS38: 1 | CT38: 0 | CU38: 0 | CV38: A | CW38: 2 | CX38: 1 | CY38: 0 | CZ38: A | DA38: 1 | DB38: 0 | DC38: 0 | DD38: A | DE38: 3 | DF38: 1 | DG38: 0 | DH38: A | DI38: 1 | DJ38: 1 | DK38: 7 | DL38: X | DM38: 2 | DN38: 2 | DO38: 7 | DP38: X | DQ38: 2 | DR38: 0 | DS38: 0 | DT38: A | DU38: 2 | DV38: 1 | DW38: 0 | DX38: A | DY38: 2 | DZ38: 1 | EA38: 0 | EB38: A | EC38: 2 | ED38: 0 | EE38: 0 | EF38: A | EG38: 0 | EH38: 1 | EI38: 0 | EJ38: B | EK38: 1 | EL38: 0 | EM38: 0 | EN38: A | EO38: 0 | EP38: 0 | EQ38: 10 | ER38: X | ES38: 0 | ET38: 1 | EU38: 0 | EV38: B | EW38: 1 | EX38: 0 | EY38: 0 | EZ38: A | FA38: 3 | FB38: 1 | FC38: 0 | FD38: A | FE38: 2 | FF38: 0 | FG38: 0 | FH38: A | FI38: 0 | FJ38: 1 | FK38: 0 | FL38: B | FM38: 1 | FN38: 0 | FO38: 0 | FP38: A | FQ38: 2 | FR38: 1 | FS38: 0 | FT38: A | FU38: 1 | FV38: 0 | FW38: 0 | FX38: A | FY38: 2 | FZ38: 0 | GA38: 0 | GB38: A | GC38: 1 | GD38: 0 | GE38: 0 | GF38: A | GG38: 2 | GH38: 1 | GI38: 0 | GJ38: A | GK38: 2 | GL38: 1 | GM38: 0 | GN38: A | GO38: 2 | GP38: 1 | GQ38: 0 | GR38: A | GS38: 1 | GT38: 1 | GU38: 7 | GV38: X | GW38: 1 | GX38: 1 | GY38: 7 | GZ38: X | HB38: 49 | HC38: 19 | HD38: 8 | HE38: 76 | HG38: 64.47368421 | HH38: 25 | HI38: 10.52631579
A39: Di. 25. Jun | B39: 18:00:00 | C39: 31 | D39: Holland | E39: Österreich | F39: 2 | G39: 3 | I39: 2 | J39: 1 | K39: 0 | L39: A | M39: 2 | N39: 3 | O39: 10 | P39: B | Q39: 1 | R39: 0 | S39: 0 | T39: A | U39: 2 | V39: 0 | W39: 0 | X39: A | Y39: 2 | Z39: 0 | AA39: 0 | AB39: A | AC39: 2 | AD39: 1 | AE39: 0 | AF39: A | AG39: 1 | AH39: 1 | AI39: 0 | AJ39: X | AK39: 1 | AL39: 0 | AM39: 0 | AN39: A | AO39: 2 | AP39: 1 | AQ39: 0 | AR39: A | AS39: 2 | AT39: 1 | AU39: 0 | AV39: A | AW39: 2 | AX39: 0 | AY39: 0 | AZ39: A | BA39: 2 | BB39: 1 | BC39: 0 | BD39: A | BE39: 1 | BF39: 0 | BG39: 0 | BH39: A | BI39: 2 | BJ39: 0 | BK39: 0 | BL39: A | BM39: 1 | BN39: 0 | BO39: 0 | BP39: A | BQ39: 2 | BR39: 1 | BS39: 0 | BT39: A | BU39: 1 | BV39: 2 | BW39: 7 | BX39: B | BY39: 1 | BZ39: 1 | CA39: 0 | CB39: X | CC39: 1 | CD39: 1 | CE39: 0 | CF39: X | CG39: 1 | CH39: 0 | CI39: 0 | CJ39: A | CK39: 2 | CL39: 1 | CM39: 0 | CN39: A | CO39: 2 | CP39: 1 | CQ39: 0 | CR39: A | CS39: 2 | CT39: 1 | CU39: 0 | CV39: A | CW39: 2 | CX39: 0 | CY39: 0 | CZ39: A | DA39: 0 | DB39: 1 | DC39: 7 | DD39: B | DE39: 3 | DF39: 1 | DG39: 0 | DH39: A | DI39: 2 | DJ39: 1 | DK39: 0 | DL39: A | DM39: 2 | DN39: 3 | DO39: 10 | DP39: B | DQ39: 2 | DR39: 1 | DS39: 0 | DT39: A | DU39: 2 | DV39: 1 | DW39: 0 | DX39: A | DY39: 1 | DZ39: 1 | EA39: 0 | EB39: X | EC39: 1 | ED39: 1 | EE39: 0 | EF39: X | EG39: 1 | EH39: 0 | EI39: 0 | EJ39: A | EK39: 3 | EL39: 0 | EM39: 0 | EN39: A | EO39: 1 | EP39: 0 | EQ39: 0 | ER39: A | ES39: 2 | ET39: 1 | EU39: 0 | EV39: A | EW39: 1 | EX39: 1 | EY39: 0 | EZ39: X | FA39: 1 | FB39: 0 | FC39: 0 | FD39: A | FE39: 1 | FF39: 1 | FG39: 0 | FH39: X | FI39: 1 | FJ39: 0 | FK39: 0 | FL39: A | FM39: 1 | FN39: 0 | FO39: 0 | FP39: A | FQ39: 2 | FR39: 1 | FS39: 0 | FT39: A | FU39: 0 | FV39: 0 | FW39: 0 | FX39: X | FY39: 2 | FZ39: 0 | GA39: 0 | GB39: A | GC39: 3 | GD39: 0 | GE39: 0 | GF39: A | GG39: 2 | GH39: 0 | GI39: 0 | GJ39: A | GK39: 1 | GL39: 2 | GM39: 7 | GN39: B | GO39: 2 | GP39: 0 | GQ39: 0 | GR39: A | GS39: 1 | GT39: 0 | GU39: 0 | GV39: A | GW39: 2 | GX39: 0 | GY39: 0 | GZ39: A | HB39: 55 | HC39: 15 | HD39: 6 | HE39: 76 | HG39: 72.36842105 | HH39: 19.73684211 | HI39: 7.894736842
A40: Di. 25. Jun | B40: 18:00:00 | C40: 32 | D40: Frankreich | E40: Polen | F40: 1 | G40: 1 | I40: 2 | J40: 1 | K40: 0 | L40: A | M40: 2 | N40: 0 | O40: 0 | P40: A | Q40: 3 | R40: 1 | S40: 0 | T40: A | U40: 3 | V40: 0 | W40: 0 | X40: A | Y40: 2 | Z40: 0 | AA40: 0 | AB40: A | AC40: 2 | AD40: 0 | AE40: 0 | AF40: A | AG40: 3 | AH40: 0 | AI40: 0 | AJ40: A | AK40: 2 | AL40: 0 | AM40: 0 | AN40: A | AO40: 3 | AP40: 1 | AQ40: 0 | AR40: A | AS40: 2 | AT40: 0 | AU40: 0 | AV40: A | AW40: 2 | AX40: 1 | AY40: 0 | AZ40: A | BA40: 3 | BB40: 1 | BC40: 0 | BD40: A | BE40: 2 | BF40: 0 | BG40: 0 | BH40: A | BI40: 2 | BJ40: 0 | BK40: 0 | BL40: A | BM40: 2 | BN40: 0 | BO40: 0 | BP40: A | BQ40: 2 | BR40: 1 | BS40: 0 | BT40: A | BU40: 2 | BV40: 1 | BW40: 0 | BX40: A | BY40: 2 | BZ40: 1 | CA40: 0 | CB40: A | CC40: 2 | CD40: 1 | CE40: 0 | CF40: A | CG40: 3 | CH40: 0 | CI40: 0 | CJ40: A | CK40: 2 | CL40: 0 | CM40: 0 | CN40: A | CO40: 2 | CP40: 0 | CQ40: 0 | CR40: A | CS40: 1 | CT40: 0 | CU40: 0 | CV40: A | CW40: 3 | CX40: 0 | CY40: 0 | CZ40: A | DA40: 2 | DB40: 0 | DC40: 0 | DD40: A | DE40: 2 | DF40: 0 | DG40: 0 | DH40: A | DI40: 3 | DJ40: 0 | DK40: 0 | DL40: A | DM40: 2 | DN40: 1 | DO40: 0 | DP40: A | DQ40: 3 | DR40: 1 | DS40: 0 | DT40: A | DU40: 2 | DV40: 1 | DW40: 0 | DX40: A | DY40: 1 | DZ40: 0 | EA40: 0 | EB40: A | EC40: 2 | ED40: 0 | EE40: 0 | EF40: A | EG40: 2 | EH40: 1 | EI40: 0 | EJ40: A | EK40: 1 | EL40: 1 | EM40: 10 | EN40: X | EO40: 2 | EP40: 1 | EQ40: 0 | ER40: A | ES40: 2 | ET40: 0 | EU40: 0 | EV40: A | EW40: 1 | EX40: 0 | EY40: 0 | EZ40: A | FA40: 2 | FB40: 0 | FC40: 0 | FD40: A | FE40: 3 | FF40: 1 | FG40: 0 | FH40: A | FI40: 1 | FJ40: 0 | FK40: 0 | FL40: A | FM40: 1 | FN40: 0 | FO40: 0 | FP40: A | FQ40: 2 | FR40: 1 | FS40: 0 | FT40: A | FU40: 2 | FV40: 0 | FW40: 0 | FX40: A | FY40: 2 | FZ40: 1 | GA40: 0 | GB40: A | GC40: 2 | GD40: 0 | GE40: 0 | GF40: A | GG40: 3 | GH40: 0 | GI40: 0 | GJ40: A | GK40: 3 | GL40: 1 | GM40: 0 | GN40: A | GO40: 3 | GP40: 0 | GQ40: 0 | GR40: A | GS40: 3 | GT40: 1 | GU40: 0 | GV40: A | GW40: 3 | GX40: 1 | GY40: 0 | GZ40: A | HB40: 75 | HC40: 1 | HD40: 0 | HE40: 76 | HG40: 98.68421053 | HH40: 1.315789474 | HI40: 0
A41: Mi. 26. Jun | B41: 18:00:00 | C41: 33 | D41: Slowakei | E41: Rumänien | F41: 1 | G41: 1 | I41: 1 | J41: 2 | K41: 0 | L41: B | M41: 1 | N41: 1 | O41: 10 | P41: X | Q41: 0 | R41: 0 | S41: 7 | T41: X | U41: 0 | V41: 1 | W41: 0 | X41: B | Y41: 1 | Z41: 2 | AA41: 0 | AB41: B | AC41: 1 | AD41: 1 | AE41: 10 | AF41: X | AG41: 1 | AH41: 2 | AI41: 0 | AJ41: B | AK41: 1 | AL41: 0 | AM41: 0 | AN41: A | AO41: 2 | AP41: 2 | AQ41: 7 | AR41: X | AS41: 1 | AT41: 1 | AU41: 10 | AV41: X | AW41: 0 | AX41: 1 | AY41: 0 | AZ41: B | BA41: 2 | BB41: 2 | BC41: 7 | BD41: X | BE41: 1 | BF41: 1 | BG41: 10 | BH41: X | BI41: 1 | BJ41: 1 | BK41: 10 | BL41: X | BM41: 1 | BN41: 1 | BO41: 10 | BP41: X | BQ41: 1 | BR41: 1 | BS41: 10 | BT41: X | BU41: 0 | BV41: 1 | BW41: 0 | BX41: B | BY41: 1 | BZ41: 2 | CA41: 0 | CB41: B | CC41: 1 | CD41: 0 | CE41: 0 | CF41: A | CG41: 1 | CH41: 2 | CI41: 0 | CJ41: B | CK41: 1 | CL41: 1 | CM41: 10 | CN41: X | CO41: 1 | CP41: 1 | CQ41: 10 | CR41: X | CS41: 1 | CT41: 2 | CU41: 0 | CV41: B | CW41: 1 | CX41: 2 | CY41: 0 | CZ41: B | DA41: 1 | DB41: 0 | DC41: 0 | DD41: A | DE41: 1 | DF41: 1 | DG41: 10 | DH41: X | DI41: 1 | DJ41: 0 | DK41: 0 | DL41: A | DM41: 1 | DN41: 3 | DO41: 0 | DP41: B | DQ41: 1 | DR41: 1 | DS41: 10 | DT41: X | DU41: 1 | DV41: 1 | DW41: 10 | DX41: X | DY41: 0 | DZ41: 1 | EA41: 0 | EB41: B | EC41: 0 | ED41: 1 | EE41: 0 | EF41: B | EG41: 1 | EH41: 1 | EI41: 10 | EJ41: X | EK41: 1 | EL41: 1 | EM41: 10 | EN41: X | EO41: 1 | EP41: 1 | EQ41: 10 | ER41: X | ES41: 2 | ET41: 2 | EU41: 7 | EV41: X | EW41: 1 | EX41: 0 | EY41: 0 | EZ41: A | FA41: 2 | FB41: 1 | FC41: 0 | FD41: A | FE41: 2 | FF41: 1 | FG41: 0 | FH41: A | FI41: 0 | FJ41: 1 | FK41: 0 | FL41: B | FM41: 1 | FN41: 0 | FO41: 0 | FP41: A | FQ41: 1 | FR41: 2 | FS41: 0 | FT41: B | FU41: 2 | FV41: 2 | FW41: 7 | FX41: X | FY41: 1 | FZ41: 1 | GA41: 10 | GB41: X | GC41: 1 | GD41: 1 | GE41: 10 | GF41: X | GG41: 1 | GH41: 1 | GI41: 10 | GJ41: X | GK41: 2 | GL41: 0 | GM41: 0 | GN41: A | GO41: 1 | GP41: 1 | GQ41: 10 | GR41: X | GS41: 1 | GT41: 0 | GU41: 0 | GV41: A | GW41: 0 | GX41: 1 | GY41: 0 | GZ41: B | HB41: 16 | HC41: 40 | HD41: 20 | HE41: 76 | HG41: 21.05263158 | HH41: 52.63157895 | HI41: 26.31578947
A42: Mi. 26. Jun | B42: 18:00:00 | C42: 34 | D42: Ukraine | E42: Belgien | F42: 0 | G42: 0 | I42: 1 | J42: 2 | K42: 0 | L42: B | M42: 1 | N42: 2 | O42: 0 | P42: B | Q42: 0 | R42: 2 | S42: 0 | T42: B | U42: 1 | V42: 1 | W42: 7 | X42: X | Y42: 1 | Z42: 3 | AA42: 0 | AB42: B | AC42: 0 | AD42: 2 | AE42: 0 | AF42: B | AG42: 1 | AH42: 2 | AI42: 0 | AJ42: B | AK42: 0 | AL42: 1 | AM42: 0 | AN42: B | AO42: 0 | AP42: 2 | AQ42: 0 | AR42: B | AS42: 0 | AT42: 2 | AU42: 0 | AV42: B | AW42: 0 | AX42: 1 | AY42: 0 | AZ42: B | BA42: 1 | BB42: 3 | BC42: 0 | BD42: B | BE42: 0 | BF42: 1 | BG42: 0 | BH42: B | BI42: 1 | BJ42: 2 | BK42: 0 | BL42: B | BM42: 0 | BN42: 0 | BO42: 10 | BP42: X | BQ42: 1 | BR42: 3 | BS42: 0 | BT42: B | BU42: 1 | BV42: 2 | BW42: 0 | BX42: B | BY42: 1 | BZ42: 3 | CA42: 0 | CB42: B | CC42: 1 | CD42: 2 | CE42: 0 | CF42: B | CG42: 1 | CH42: 3 | CI42: 0 | CJ42: B | CK42: 1 | CL42: 2 | CM42: 0 | CN42: B | CO42: 1 | CP42: 2 | CQ42: 0 | CR42: B | CS42: 1 | CT42: 1 | CU42: 7 | CV42: X | CW42: 1 | CX42: 2 | CY42: 0 | CZ42: B | DA42: 1 | DB42: 2 | DC42: 0 | DD42: B | DE42: 0 | DF42: 3 | DG42: 0 | DH42: B | DI42: 0 | DJ42: 1 | DK42: 0 | DL42: B | DM42: 1 | DN42: 2 | DO42: 0 | DP42: B | DQ42: 0 | DR42: 2 | DS42: 0 | DT42: B | DU42: 1 | DV42: 1 | DW42: 7 | DX42: X | DY42: 0 | DZ42: 2 | EA42: 0 | EB42: B | EC42: 0 | ED42: 2 | EE42: 0 | EF42: B | EG42: 0 | EH42: 2 | EI42: 0 | EJ42: B | EK42: 0 | EL42: 2 | EM42: 0 | EN42: B | EO42: 1 | EP42: 0 | EQ42: 0 | ER42: A | ES42: 1 | ET42: 1 | EU42: 7 | EV42: X | EW42: 1 | EX42: 1 | EY42: 7 | EZ42: X | FA42: 2 | FB42: 2 | FC42: 7 | FD42: X | FE42: 0 | FF42: 2 | FG42: 0 | FH42: B | FI42: 0 | FJ42: 1 | FK42: 0 | FL42: B | FM42: 0 | FN42: 1 | FO42: 0 | FP42: B | FQ42: 1 | FR42: 2 | FS42: 0 | FT42: B | FU42: 1 | FV42: 1 | FW42: 7 | FX42: X | FY42: 1 | FZ42: 2 | GA42: 0 | GB42: B | GC42: 1 | GD42: 1 | GE42: 7 | GF42: X | GG42: 0 | GH42: 2 | GI42: 0 | GJ42: B | GK42: 1 | GL42: 2 | GM42: 0 | GN42: B | GO42: 1 | GP42: 2 | GQ42: 0 | GR42: B | GS42: 0 | GT42: 1 | GU42: 0 | GV42: B | GW42: 1 | GX42: 4 | GY42: 0 | GZ42: B | HB42: 1 | HC42: 11 | HD42: 64 | HE42: 76 | HG42: 1.315789474 | HH42: 14.47368421 | HI42: 84.21052632
A43: Mi. 26. Jun | B43: 21:00:00 | C43: 35 | D43: Georgien | E43: Portugal | F43: 2 | G43: 0 | I43: 1 | J43: 2 | K43: 0 | L43: B | M43: 1 | N43: 2 | O43: 0 | P43: B | Q43: 0 | R43: 4 | S43: 0 | T43: B | U43: 0 | V43: 1 | W43: 0 | X43: B | Y43: 1 | Z43: 4 | AA43: 0 | AB43: B | AC43: 0 | AD43: 3 | AE43: 0 | AF43: B | AG43: 0 | AH43: 3 | AI43: 0 | AJ43: B | AK43: 0 | AL43: 4 | AM43: 0 | AN43: B | AO43: 0 | AP43: 3 | AQ43: 0 | AR43: B | AS43: 0 | AT43: 3 | AU43: 0 | AV43: B | AW43: 0 | AX43: 2 | AY43: 0 | AZ43: B | BA43: 1 | BB43: 3 | BC43: 0 | BD43: B | BE43: 0 | BF43: 2 | BG43: 0 | BH43: B | BI43: 0 | BJ43: 1 | BK43: 0 | BL43: B | BM43: 0 | BN43: 3 | BO43: 0 | BP43: B | BQ43: 0 | BR43: 2 | BS43: 0 | BT43: B | BU43: 0 | BV43: 2 | BW43: 0 | BX43: B | BY43: 0 | BZ43: 4 | CA43: 0 | CB43: B | CC43: 1 | CD43: 2 | CE43: 0 | CF43: B | CG43: 1 | CH43: 2 | CI43: 0 | CJ43: B | CK43: 0 | CL43: 4 | CM43: 0 | CN43: B | CO43: 0 | CP43: 2 | CQ43: 0 | CR43: B | CS43: 0 | CT43: 3 | CU43: 0 | CV43: B | CW43: 0 | CX43: 3 | CY43: 0 | CZ43: B | DA43: 0 | DB43: 3 | DC43: 0 | DD43: B | DE43: 1 | DF43: 5 | DG43: 0 | DH43: B | DI43: 0 | DJ43: 2 | DK43: 0 | DL43: B | DM43: 2 | DN43: 2 | DO43: 0 | DP43: X | DQ43: 0 | DR43: 5 | DS43: 0 | DT43: B | DU43: 0 | DV43: 1 | DW43: 0 | DX43: B | DY43: 0 | DZ43: 1 | EA43: 0 | EB43: B | EC43: 0 | ED43: 2 | EE43: 0 | EF43: B | EG43: 0 | EH43: 3 | EI43: 0 | EJ43: B | EK43: 0 | EL43: 3 | EM43: 0 | EN43: B | EO43: 1 | EP43: 0 | EQ43: 5 | ER43: A | ES43: 0 | ET43: 4 | EU43: 0 | EV43: B | EW43: 0 | EX43: 2 | EY43: 0 | EZ43: B | FA43: 1 | FB43: 3 | FC43: 0 | FD43: B | FE43: 0 | FF43: 3 | FG43: 0 | FH43: B | FI43: 0 | FJ43: 1 | FK43: 0 | FL43: B | FM43: 0 | FN43: 1 | FO43: 0 | FP43: B | FQ43: 1 | FR43: 2 | FS43: 0 | FT43: B | FU43: 1 | FV43: 3 | FW43: 0 | FX43: B | FY43: 0 | FZ43: 3 | GA43: 0 | GB43: B | GC43: 0 | GD43: 2 | GE43: 0 | GF43: B | GG43: 0 | GH43: 2 | GI43: 0 | GJ43: B | GK43: 0 | GL43: 4 | GM43: 0 | GN43: B | GO43: 0 | GP43: 3 | GQ43: 0 | GR43: B | GS43: 0 | GT43: 3 | GU43: 0 | GV43: B | GW43: 0 | GX43: 3 | GY43: 0 | GZ43: B | HB43: 1 | HC43: 1 | HD43: 74 | HE43: 76 | HG43: 1.315789474 | HH43: 1.315789474 | HI43: 97.36842105
A44: Mi. 26. Jun | B44: 21:00:00 | C44: 36 | D44: Tschechien | E44: Türkei | F44: 1 | G44: 2 | I44: 1 | J44: 1 | K44: 0 | L44: X | M44: 0 | N44: 2 | O44: 5 | P44: B | Q44: 1 | R44: 3 | S44: 5 | T44: B | U44: 1 | V44: 1 | W44: 0 | X44: X | Y44: 1 | Z44: 2 | AA44: 10 | AB44: B | AC44: 0 | AD44: 0 | AE44: 0 | AF44: X | AG44: 2 | AH44: 2 | AI44: 0 | AJ44: X | AK44: 1 | AL44: 0 | AM44: 0 | AN44: A | AO44: 2 | AP44: 1 | AQ44: 0 | AR44: A | AS44: 1 | AT44: 1 | AU44: 0 | AV44: X | AW44: 0 | AX44: 1 | AY44: 7 | AZ44: B | BA44: 1 | BB44: 1 | BC44: 0 | BD44: X | BE44: 0 | BF44: 1 | BG44: 7 | BH44: B | BI44: 1 | BJ44: 1 | BK44: 0 | BL44: X | BM44: 1 | BN44: 1 | BO44: 0 | BP44: X | BQ44: 0 | BR44: 2 | BS44: 5 | BT44: B | BU44: 1 | BV44: 2 | BW44: 10 | BX44: B | BY44: 0 | BZ44: 2 | CA44: 5 | CB44: B | CC44: 1 | CD44: 0 | CE44: 0 | CF44: A | CG44: 1 | CH44: 1 | CI44: 0 | CJ44: X | CK44: 1 | CL44: 0 | CM44: 0 | CN44: A | CO44: 0 | CP44: 1 | CQ44: 7 | CR44: B | CS44: 1 | CT44: 1 | CU44: 0 | CV44: X | CW44: 2 | CX44: 1 | CY44: 0 | CZ44: A | DA44: 0 | DB44: 1 | DC44: 7 | DD44: B | DE44: 0 | DF44: 0 | DG44: 0 | DH44: X | DI44: 2 | DJ44: 1 | DK44: 0 | DL44: A | DM44: 1 | DN44: 3 | DO44: 5 | DP44: B | DQ44: 0 | DR44: 1 | DS44: 7 | DT44: B | DU44: 0 | DV44: 1 | DW44: 7 | DX44: B | DY44: 2 | DZ44: 1 | EA44: 0 | EB44: A | EC44: 1 | ED44: 1 | EE44: 0 | EF44: X | EG44: 1 | EH44: 1 | EI44: 0 | EJ44: X | EK44: 1 | EL44: 1 | EM44: 0 | EN44: X | EO44: 1 | EP44: 2 | EQ44: 10 | ER44: B | ES44: 1 | ET44: 2 | EU44: 10 | EV44: B | EW44: 0 | EX44: 1 | EY44: 7 | EZ44: B | FA44: 2 | FB44: 1 | FC44: 0 | FD44: A | FE44: 2 | FF44: 1 | FG44: 0 | FH44: A | FI44: 0 | FJ44: 1 | FK44: 7 | FL44: B | FM44: 1 | FN44: 0 | FO44: 0 | FP44: A | FQ44: 1 | FR44: 2 | FS44: 10 | FT44: B | FU44: 2 | FV44: 0 | FW44: 0 | FX44: A | FY44: 0 | FZ44: 0 | GA44: 0 | GB44: X | GC44: 0 | GD44: 1 | GE44: 7 | GF44: B | GG44: 1 | GH44: 1 | GI44: 0 | GJ44: X | GK44: 1 | GL44: 1 | GM44: 0 | GN44: X | GO44: 1 | GP44: 1 | GQ44: 0 | GR44: X | GS44: 0 | GT44: 2 | GU44: 5 | GV44: B | GW44: 2 | GX44: 1 | GY44: 0 | GZ44: A | HB44: 18 | HC44: 28 | HD44: 30 | HE44: 76 | HG44: 23.68421053 | HH44: 36.84210526 | HI44: 39.47368421
G45: Gesamtpunktzahl: | I45: =Teilnehmerliste!$C6 -> Panos | K45: =SUM(K9:K44) -> 128 | M45: =Teilnehmerliste!$C7 -> Marco | O45: =SUM(O9:O44) -> 133 | Q45: =Teilnehmerliste!$C8 -> Ruben | S45: =SUM(S9:S44) -> 93 | U45: =Teilnehmerliste!$C9 -> Andi | W45: =SUM(W9:W44) -> 126 | Y45: =Teilnehmerliste!$C10 -> Nott | AA45: =SUM(AA9:AA44) -> 120 | AC45: =Teilnehmerliste!$C11 -> Philippe | AE45: =SUM(AE9:AE44) -> 142 | AG45: =Teilnehmerliste!$C12 -> Roger | AI45: =SUM(AI9:AI44) -> 132 | AK45: =Teilnehmerliste!$C13 -> Mara | AM45: =SUM(AM9:AM44) -> 84 | AO45: =Teilnehmerliste!$C14 -> Lara/Yaniv | AQ45: =SUM(AQ9:AQ44) -> 114 | AS45: =Teilnehmerliste!$C15 -> Michael | AU45: =SUM(AU9:AU44) -> 106 | AW45: =Teilnehmerliste!$C16 -> Manuel | AY45: =SUM(AY9:AY44) -> 106 | BA45: =Teilnehmerliste!$C17 -> Nicolas | BC45: =SUM(BC9:BC44) -> 108 | BE45: =Teilnehmerliste!$C18 -> Philip | BG45: =SUM(BG9:BG44) -> 146 | BI45: =Teilnehmerliste!$C19 -> André | BK45: =SUM(BK9:BK44) -> 102 | BM45: =Teilnehmerliste!$C20 -> Louis | BO45: =SUM(BO9:BO44) -> 122 | BQ45: =Teilnehmerliste!$C21 -> Daniel | BS45: =SUM(BS9:BS44) -> 117 | BU45: =Teilnehmerliste!$C22 -> Deliz | BW45: =SUM(BW9:BW44) -> 101 | BY45: =Teilnehmerliste!$C23 -> Florian | CA45: =SUM(CA9:CA44) -> 125 | CC45: =Teilnehmerliste!$C24 -> Olo | CE45: =SUM(CE9:CE44) -> 109 | CG45: =Teilnehmerliste!$C25 -> Leonardo | CI45: =SUM(CI9:CI44) -> 113 | CK45: =Teilnehmerliste!$C26 -> Lisa | CM45: =SUM(CM9:CM44) -> 165 | CO45: =Teilnehmerliste!$C27 -> Niva | CQ45: =SUM(CQ9:CQ44) -> 108 | CS45: =Teilnehmerliste!$C28 -> Vinci | CU45: =SUM(CU9:CU44) -> 117 | CW45: =Teilnehmerliste!$C29 -> Goran | CY45: =SUM(CY9:CY44) -> 99 | DA45: =Teilnehmerliste!$C30 -> Dino | DC45: =SUM(DC9:DC44) -> 141 | DE45: =Teilnehmerliste!$C31 -> Marlon | DG45: =SUM(DG9:DG44) -> 75 | DI45: =Teilnehmerliste!$C32 -> Maurizio | DK45: =SUM(DK9:DK44) -> 128 | DM45: =Teilnehmerliste!$C33 -> Roberto | DO45: =SUM(DO9:DO44) -> 109 | DQ45: =Teilnehmerliste!$C34 -> Rui | DS45: =SUM(DS9:DS44) -> 103 | DU45: =Teilnehmerliste!$C35 -> Laurent | DW45: =SUM(DW9:DW44) -> 125 | DY45: =Teilnehmerliste!$C36 -> Gregory | EA45: =SUM(EA9:EA44) -> 95 | EC45: =Teilnehmerliste!$C37 -> Reto | EE45: =SUM(EE9:EE44) -> 117 | EG45: =Teilnehmerliste!$C38 -> Sarina | EI45: =SUM(EI9:EI44) -> 116 | EK45: =Teilnehmerliste!$C39 -> Stefan | EM45: =SUM(EM9:EM44) -> 132 | EO45: =Teilnehmerliste!$C40 -> Timothy | EQ45: =SUM(EQ9:EQ44) -> 137 | ES45: =Teilnehmerliste!$C41 -> Florian | EU45: =SUM(EU9:EU44) -> 128 | EW45: =Teilnehmerliste!$C42 -> Djuma | EY45: =SUM(EY9:EY44) -> 112 | FA45: =Teilnehmerliste!$C43 -> Agnes | FC45: =SUM(FC9:FC44) -> 136 | FE45: =Teilnehmerliste!$C44 -> Andreas | FG45: =SUM(FG9:FG44) -> 131 | FI45: =Teilnehmerliste!$C45 -> Michi | FK45: =SUM(FK9:FK44) -> 125 | FM45: =Teilnehmerliste!$C46 -> Aiden | FO45: =SUM(FO9:FO44) -> 108 | FQ45: =Teilnehmerliste!$C47 -> Murat | FS45: =SUM(FS9:FS44) -> 115 | FU45: =Teilnehmerliste!$C48 -> Pascal | FW45: =SUM(FW9:FW44) -> 139 | FY45: =Teilnehmerliste!$C49 -> André | GA45: =SUM(GA9:GA44) -> 88 | GC45: =Teilnehmerliste!$C50 -> Franz | GE45: =SUM(GE9:GE44) -> 106 | GG45: =Teilnehmerliste!$C51 -> Marc | GI45: =SUM(GI9:GI44) -> 104 | GK45: =Teilnehmerliste!$C52 -> Mauro | GM45: =SUM(GM9:GM44) -> 102 | GO45: =Teilnehmerliste!$C53 -> Martin | GQ45: =SUM(GQ9:GQ44) -> 112 | GS45: =Teilnehmerliste!$C54 -> Telmo | GU45: =SUM(GU9:GU44) -> 99 | GW45: =Teilnehmerliste!$C55 -> Luigi | GY45: =SUM(GY9:GY44) -> 69 | HB45: =SUM(HB9:HB44) -> 1029 | HC45: =SUM(HC9:HC44) -> 562 | HD45: =SUM(HD9:HD44) -> 1145 | HE45: =SUM(HE9:HE44) -> 2736 | HG45: =SUM(HB45*100/$HE$45) -> 37.60964912 | HH45: =SUM(HC45*100/$HE$45) -> 20.54093567 | HI45: =SUM(HD45*100/$HE$45) -> 41.8494152
A48: Vorrunde | D48: Spieler 51 - 100
A49: =A4 -> 10 Punkte für korrektes Resultat | I49: =Teilnehmerliste!$B56 -> Pek | M49: =Teilnehmerliste!$B57 -> Pietzke | Q49: =Teilnehmerliste!$B58 -> Rauscher | U49: =Teilnehmerliste!$B59 -> Rohner | Y49: =Teilnehmerliste!$B60 -> Rüegg | AC49: =Teilnehmerliste!$B61 -> Rüegg | AG49: =Teilnehmerliste!$B62 -> Rüegg | AK49: =Teilnehmerliste!$B63 -> Schommarz | AO49: =Teilnehmerliste!$B64 -> Schuster | AS49: =Teilnehmerliste!$B65 -> Schwitter | AW49: =Teilnehmerliste!$B66 -> Silva | BA49: =Teilnehmerliste!$B67 -> Sotelo | BE49: =Teilnehmerliste!$B68 -> Thormann | BI49: =Teilnehmerliste!$B69 -> Thormann | BM49: =Teilnehmerliste!$B70 -> Treichler | BQ49: =Teilnehmerliste!$B71 -> Treichler | BU49: =Teilnehmerliste!$B72 -> Wälti | BY49: =Teilnehmerliste!$B73 -> Wagner | CC49: =Teilnehmerliste!$B74 -> Walser | CG49: =Teilnehmerliste!$B75 -> Wang | CK49: =Teilnehmerliste!$B76 -> Wullschleger | CO49: =Teilnehmerliste!$B77 -> Zachmann | CS49: =Teilnehmerliste!$B78 -> Zachmann | CW49: =Teilnehmerliste!$B79 -> Babic | DA49: =Teilnehmerliste!$B80 -> Megdiche | DE49: =Teilnehmerliste!$B81 -> Städelin | DI49: =Teilnehmerliste!$B82 -> 0 | DM49: =Teilnehmerliste!$B83 -> 0 | DQ49: =Teilnehmerliste!$B84 -> 0 | DU49: =Teilnehmerliste!$B85 -> 0 | DY49: =Teilnehmerliste!$B86 -> 0 | EC49: =Teilnehmerliste!$B87 -> 0 | EG49: =Teilnehmerliste!$B88 -> 0 | EK49: =Teilnehmerliste!$B89 -> 0 | EO49: =Teilnehmerliste!$B90 -> 0 | ES49: =Teilnehmerliste!$B91 -> 0 | EW49: =Teilnehmerliste!$B92 -> 0 | FA49: =Teilnehmerliste!$B93 -> 0 | FE49: =Teilnehmerliste!$B94 -> 0 | FI49: =Teilnehmerliste!$B95 -> 0 | FM49: =Teilnehmerliste!$B96 -> 0 | FQ49: =Teilnehmerliste!$B97 -> 0 | FU49: =Teilnehmerliste!$B98 -> 0 | FY49: =Teilnehmerliste!$B99 -> 0 | GC49: =Teilnehmerliste!$B100 -> 0 | GG49: =Teilnehmerliste!$B101 -> 0 | GK49: =Teilnehmerliste!$B102 -> 0 | GO49: =Teilnehmerliste!$B103 -> 0 | GS49: =Teilnehmerliste!$B104 -> 0 | GW49: =Teilnehmerliste!$B105 -> 0
A50: =A5 -> 7 Punkte für richtiger Sieger (Torverhältnis stimmt) | I50: =Teilnehmerliste!$C56 -> Lechena | M50: =Teilnehmerliste!$C57 -> Jannis | Q50: =Teilnehmerliste!$C58 -> Petra | U50: =Teilnehmerliste!$C59 -> Martin | Y50: =Teilnehmerliste!$C60 -> Lynn | AC50: =Teilnehmerliste!$C61 -> Michael | AG50: =Teilnehmerliste!$C62 -> Sabine | AK50: =Teilnehmerliste!$C63 -> Erich | AO50: =Teilnehmerliste!$C64 -> Ralph | AS50: =Teilnehmerliste!$C65 -> Corinne | AW50: =Teilnehmerliste!$C66 -> Bruno | BA50: =Teilnehmerliste!$C67 -> Yermany | BE50: =Teilnehmerliste!$C68 -> Armando | BI50: =Teilnehmerliste!$C69 -> Julia | BM50: =Teilnehmerliste!$C70 -> Lea | BQ50: =Teilnehmerliste!$C71 -> Reto | BU50: =Teilnehmerliste!$C72 -> Christoph | BY50: =Teilnehmerliste!$C73 -> Markus | CC50: =Teilnehmerliste!$C74 -> Stefan | CG50: =Teilnehmerliste!$C75 -> Jingwen | CK50: =Teilnehmerliste!$C76 -> Stefan | CO50: =Teilnehmerliste!$C77 -> Jasmine | CS50: =Teilnehmerliste!$C78 -> Stefan | CW50: =Teilnehmerliste!$C79 -> Mario | DA50: =Teilnehmerliste!$C80 -> Nidhal | DE50: =Teilnehmerliste!$C81 -> Hanspeter | DI50: =Teilnehmerliste!$C82 -> 0 | DM50: =Teilnehmerliste!$C83 -> 0 | DQ50: =Teilnehmerliste!$C84 -> 0 | DU50: =Teilnehmerliste!$C85 -> 0 | DY50: =Teilnehmerliste!$C86 -> 0 | EC50: =Teilnehmerliste!$C87 -> 0 | EG50: =Teilnehmerliste!$C88 -> 0 | EK50: =Teilnehmerliste!$C89 -> 0 | EO50: =Teilnehmerliste!$C90 -> 0 | ES50: =Teilnehmerliste!$C91 -> 0 | EW50: =Teilnehmerliste!$C92 -> 0 | FA50: =Teilnehmerliste!$C93 -> 0 | FE50: =Teilnehmerliste!$C94 -> 0 | FI50: =Teilnehmerliste!$C95 -> 0 | FM50: =Teilnehmerliste!$C96 -> 0 | FQ50: =Teilnehmerliste!$C97 -> 0 | FU50: =Teilnehmerliste!$C98 -> 0 | FY50: =Teilnehmerliste!$C99 -> 0 | GC50: =Teilnehmerliste!$C100 -> 0 | GG50: =Teilnehmerliste!$C101 -> 0 | GK50: =Teilnehmerliste!$C102 -> 0 | GO50: =Teilnehmerliste!$C103 -> 0 | GS50: =Teilnehmerliste!$C104 -> 0 | GW50: =Teilnehmerliste!$C105 -> 0
A51: =A6 -> 5 Punkte für richtiger Sieger (Torverhältnis stimmt nicht) | K51: =Teilnehmerliste!$A56 -> 51 | O51: =Teilnehmerliste!$A57 -> 52 | S51: =Teilnehmerliste!$A58 -> 53 | W51: =Teilnehmerliste!$A59 -> 54 | AA51: =Teilnehmerliste!$A60 -> 55 | AE51: =Teilnehmerliste!$A61 -> 56 | AI51: =Teilnehmerliste!$A62 -> 57 | AM51: =Teilnehmerliste!$A63 -> 58 | AQ51: =Teilnehmerliste!$A64 -> 59 | AU51: =Teilnehmerliste!$A65 -> 60 | AY51: =Teilnehmerliste!$A66 -> 61 | BC51: =Teilnehmerliste!$A67 -> 62 | BG51: =Teilnehmerliste!$A68 -> 63 | BK51: =Teilnehmerliste!$A69 -> 64 | BO51: =Teilnehmerliste!$A70 -> 65 | BS51: =Teilnehmerliste!$A71 -> 66 | BW51: =Teilnehmerliste!$A72 -> 67 | CA51: =Teilnehmerliste!$A73 -> 68 | CE51: =Teilnehmerliste!$A74 -> 69 | CI51: =Teilnehmerliste!$A75 -> 70 | CM51: =Teilnehmerliste!$A76 -> 71 | CQ51: =Teilnehmerliste!$A77 -> 72 | CU51: =Teilnehmerliste!$A78 -> 73 | CY51: =Teilnehmerliste!$A79 -> 74 | DC51: =Teilnehmerliste!$A80 -> 75 | DG51: =Teilnehmerliste!$A81 -> 76 | DK51: =Teilnehmerliste!$A82 -> 77 | DO51: =Teilnehmerliste!$A83 -> 78 | DS51: =Teilnehmerliste!$A84 -> 79 | DW51: =Teilnehmerliste!$A85 -> 80 | EA51: =Teilnehmerliste!$A86 -> 81 | EE51: =Teilnehmerliste!$A87 -> 82 | EI51: =Teilnehmerliste!$A88 -> 83 | EM51: =Teilnehmerliste!$A89 -> 84 | EQ51: =Teilnehmerliste!$A90 -> 85 | EU51: =Teilnehmerliste!$A91 -> 86 | EY51: =Teilnehmerliste!$A92 -> 87 | FC51: =Teilnehmerliste!$A93 -> 88 | FG51: =Teilnehmerliste!$A94 -> 89 | FK51: =Teilnehmerliste!$A95 -> 90 | FO51: =Teilnehmerliste!$A96 -> 91 | FS51: =Teilnehmerliste!$A97 -> 92 | FW51: =Teilnehmerliste!$A98 -> 93 | GA51: =Teilnehmerliste!$A99 -> 94 | GE51: =Teilnehmerliste!$A100 -> 95 | GI51: =Teilnehmerliste!$A101 -> 96 | GM51: =Teilnehmerliste!$A102 -> 97 | GQ51: =Teilnehmerliste!$A103 -> 98 | GU51: =Teilnehmerliste!$A104 -> 99 | GY51: =Teilnehmerliste!$A105 -> 100
A53: Datum | B53: Zeit | C53: Nr. | D53: Spiel | F53: Resultat | I53: Tipp | K53: Pkt | M53: Tipp | O53: Pkt | Q53: Tipp | S53: Pkt | U53: Tipp | W53: Pkt | Y53: Tipp | AA53: Pkt | AC53: Tipp | AE53: Pkt | AG53: Tipp | AI53: Pkt | AK53: Tipp | AM53: Pkt | AO53: Tipp | AQ53: Pkt | AS53: Tipp | AU53: Pkt | AW53: Tipp | AY53: Pkt | BA53: Tipp | BC53: Pkt | BE53: Tipp | BG53: Pkt | BI53: Tipp | BK53: Pkt | BM53: Tipp | BO53: Pkt | BQ53: Tipp | BS53: Pkt | BU53: Tipp | BW53: Pkt | BY53: Tipp | CA53: Pkt | CC53: Tipp | CE53: Pkt | CG53: Tipp | CI53: Pkt | CK53: Tipp | CM53: Pkt | CO53: Tipp | CQ53: Pkt | CS53: Tipp | CU53: Pkt | CW53: Tipp | CY53: Pkt | DA53: Tipp | DC53: Pkt | DE53: Tipp | DG53: Pkt | DI53: Tipp | DK53: Pkt | DM53: Tipp | DO53: Pkt | DQ53: Tipp | DS53: Pkt | DU53: Tipp | DW53: Pkt | DY53: Tipp | EA53: Pkt | EC53: Tipp | EE53: Pkt | EG53: Tipp | EI53: Pkt | EK53: Tipp | EM53: Pkt | EO53: Tipp | EQ53: Pkt | ES53: Tipp | EU53: Pkt | EW53: Tipp | EY53: Pkt | FA53: Tipp | FC53: Pkt | FE53: Tipp | FG53: Pkt | FI53: Tipp | FK53: Pkt | FM53: Tipp | FO53: Pkt | FQ53: Tipp | FS53: Pkt | FU53: Tipp | FW53: Pkt | FY53: Tipp | GA53: Pkt | GC53: Tipp | GE53: Pkt | GG53: Tipp | GI53: Pkt | GK53: Tipp | GM53: Pkt | GO53: Tipp | GQ53: Pkt | GS53: Tipp | GU53: Pkt | GW53: Tipp | GY53: Pkt
A54: =A9 -> Fr. 14. Jun | B54: 21:00:00 | C54: 1 | D54: =IF(D9="","",D9) -> Deutschland | E54: Schottland | F54: 5 | G54: 1 | I54: 3 | J54: 1 | K54: =IF(OR($F54="",$G54="",I54="",J54=""),"",IF(AND($F54=I54,$G54=J54),10,IF($F54-$G54=I54-J54,7,IF(OR(AND($F54>$G54,I54>J54),AND($F54<$G54,I54<J54)),5,0)))) -> 5 | L54: =IF(I54="","",IF(I54>J54,"A",IF(I54<J54,"B",IF(I54=J54,"X")))) -> A | M54: 2 | N54: 0 | O54: =IF(OR($F54="",$G54="",M54="",N54=""),"",IF(AND($F54=M54,$G54=N54),10,IF($F54-$G54=M54-N54,7,IF(OR(AND($F54>$G54,M54>N54),AND($F54<$G54,M54<N54)),5,0)))) -> 5 | P54: =IF(M54="","",IF(M54>N54,"A",IF(M54<N54,"B",IF(M54=N54,"X")))) -> A | Q54: 2 | R54: 1 | S54: =IF(OR($F54="",$G54="",Q54="",R54=""),"",IF(AND($F54=Q54,$G54=R54),10,IF($F54-$G54=Q54-R54,7,IF(OR(AND($F54>$G54,Q54>R54),AND($F54<$G54,Q54<R54)),5,0)))) -> 5 | T54: =IF(Q54="","",IF(Q54>R54,"A",IF(Q54<R54,"B",IF(Q54=R54,"X")))) -> A | U54: 2 | V54: 0 | W54: =IF(OR($F54="",$G54="",U54="",V54=""),"",IF(AND($F54=U54,$G54=V54),10,IF($F54-$G54=U54-V54,7,IF(OR(AND($F54>$G54,U54>V54),AND($F54<$G54,U54<V54)),5,0)))) -> 5 | X54: =IF(U54="","",IF(U54>V54,"A",IF(U54<V54,"B",IF(U54=V54,"X")))) -> A | Y54: 2 | Z54: 1 | AA54: =IF(OR($F54="",$G54="",Y54="",Z54=""),"",IF(AND($F54=Y54,$G54=Z54),10,IF($F54-$G54=Y54-Z54,7,IF(OR(AND($F54>$G54,Y54>Z54),AND($F54<$G54,Y54<Z54)),5,0)))) -> 5 | AB54: =IF(Y54="","",IF(Y54>Z54,"A",IF(Y54<Z54,"B",IF(Y54=Z54,"X")))) -> A | AC54: 2 | AD54: 0 | AE54: =IF(OR($F54="",$G54="",AC54="",AD54=""),"",IF(AND($F54=AC54,$G54=AD54),10,IF($F54-$G54=AC54-AD54,7,IF(OR(AND($F54>$G54,AC54>AD54),AND($F54<$G54,AC54<AD54)),5,0)))) -> 5 | AF54: =IF(AC54="","",IF(AC54>AD54,"A",IF(AC54<AD54,"B",IF(AC54=AD54,"X")))) -> A | AG54: 3 | AH54: 0 | AI54: =IF(OR($F54="",$G54="",AG54="",AH54=""),"",IF(AND($F54=AG54,$G54=AH54),10,IF($F54-$G54=AG54-AH54,7,IF(OR(AND($F54>$G54,AG54>AH54),AND($F54<$G54,AG54<AH54)),5,0)))) -> 5 | AJ54: =IF(AG54="","",IF(AG54>AH54,"A",IF(AG54<AH54,"B",IF(AG54=AH54,"X")))) -> A | AK54: 2 | AL54: 0 | AM54: =IF(OR($F54="",$G54="",AK54="",AL54=""),"",IF(AND($F54=AK54,$G54=AL54),10,IF($F54-$G54=AK54-AL54,7,IF(OR(AND($F54>$G54,AK54>AL54),AND($F54<$G54,AK54<AL54)),5,0)))) -> 5 | AN54: =IF(AK54="","",IF(AK54>AL54,"A",IF(AK54<AL54,"B",IF(AK54=AL54,"X")))) -> A | AO54: 3 | AP54: 1 | AQ54: =IF(OR($F54="",$G54="",AO54="",AP54=""),"",IF(AND($F54=AO54,$G54=AP54),10,IF($F54-$G54=AO54-AP54,7,IF(OR(AND($F54>$G54,AO54>AP54),AND($F54<$G54,AO54<AP54)),5,0)))) -> 5 | AR54: =IF(AO54="","",IF(AO54>AP54,"A",IF(AO54<AP54,"B",IF(AO54=AP54,"X")))) -> A | AS54: 3 | AT54: 0 | AU54: =IF(OR($F54="",$G54="",AS54="",AT54=""),"",IF(AND($F54=AS54,$G54=AT54),10,IF($F54-$G54=AS54-AT54,7,IF(OR(AND($F54>$G54,AS54>AT54),AND($F54<$G54,AS54<AT54)),5,0)))) -> 5 | AV54: =IF(AS54="","",IF(AS54>AT54,"A",IF(AS54<AT54,"B",IF(AS54=AT54,"X")))) -> A | AW54: 2 | AX54: 0 | AY54: =IF(OR($F54="",$G54="",AW54="",AX54=""),"",IF(AND($F54=AW54,$G54=AX54),10,IF($F54-$G54=AW54-AX54,7,IF(OR(AND($F54>$G54,AW54>AX54),AND($F54<$G54,AW54<AX54)),5,0)))) -> 5 | AZ54: =IF(AW54="","",IF(AW54>AX54,"A",IF(AW54<AX54,"B",IF(AW54=AX54,"X")))) -> A | BA54: 3 | BB54: 0 | BC54: =IF(OR($F54="",$G54="",BA54="",BB54=""),"",IF(AND($F54=BA54,$G54=BB54),10,IF($F54-$G54=BA54-BB54,7,IF(OR(AND($F54>$G54,BA54>BB54),AND($F54<$G54,BA54<BB54)),5,0)))) -> 5 | BD54: =IF(BA54="","",IF(BA54>BB54,"A",IF(BA54<BB54,"B",IF(BA54=BB54,"X")))) -> A | BE54: 3 | BF54: 1 | BG54: =IF(OR($F54="",$G54="",BE54="",BF54=""),"",IF(AND($F54=BE54,$G54=BF54),10,IF($F54-$G54=BE54-BF54,7,IF(OR(AND($F54>$G54,BE54>BF54),AND($F54<$G54,BE54<BF54)),5,0)))) -> 5 | BH54: =IF(BE54="","",IF(BE54>BF54,"A",IF(BE54<BF54,"B",IF(BE54=BF54,"X")))) -> A | BI54: 2 | BJ54: 0 | BK54: =IF(OR($F54="",$G54="",BI54="",BJ54=""),"",IF(AND($F54=BI54,$G54=BJ54),10,IF($F54-$G54=BI54-BJ54,7,IF(OR(AND($F54>$G54,BI54>BJ54),AND($F54<$G54,BI54<BJ54)),5,0)))) -> 5 | BL54: =IF(BI54="","",IF(BI54>BJ54,"A",IF(BI54<BJ54,"B",IF(BI54=BJ54,"X")))) -> A | BM54: 2 | BN54: 0 | BO54: =IF(OR($F54="",$G54="",BM54="",BN54=""),"",IF(AND($F54=BM54,$G54=BN54),10,IF($F54-$G54=BM54-BN54,7,IF(OR(AND($F54>$G54,BM54>BN54),AND($F54<$G54,BM54<BN54)),5,0)))) -> 5 | BP54: =IF(BM54="","",IF(BM54>BN54,"A",IF(BM54<BN54,"B",IF(BM54=BN54,"X")))) -> A | BQ54: 1 | BR54: 0 | BS54: =IF(OR($F54="",$G54="",BQ54="",BR54=""),"",IF(AND($F54=BQ54,$G54=BR54),10,IF($F54-$G54=BQ54-BR54,7,IF(OR(AND($F54>$G54,BQ54>BR54),AND($F54<$G54,BQ54<BR54)),5,0)))) -> 5 | BT54: =IF(BQ54="","",IF(BQ54>BR54,"A",IF(BQ54<BR54,"B",IF(BQ54=BR54,"X")))) -> A | BU54: 2 | BV54: 0 | BW54: =IF(OR($F54="",$G54="",BU54="",BV54=""),"",IF(AND($F54=BU54,$G54=BV54),10,IF($F54-$G54=BU54-BV54,7,IF(OR(AND($F54>$G54,BU54>BV54),AND($F54<$G54,BU54<BV54)),5,0)))) -> 5 | BX54: =IF(BU54="","",IF(BU54>BV54,"A",IF(BU54<BV54,"B",IF(BU54=BV54,"X")))) -> A | BY54: 1 | BZ54: 0 | CA54: =IF(OR($F54="",$G54="",BY54="",BZ54=""),"",IF(AND($F54=BY54,$G54=BZ54),10,IF($F54-$G54=BY54-BZ54,7,IF(OR(AND($F54>$G54,BY54>BZ54),AND($F54<$G54,BY54<BZ54)),5,0)))) -> 5 | CB54: =IF(BY54="","",IF(BY54>BZ54,"A",IF(BY54<BZ54,"B",IF(BY54=BZ54,"X")))) -> A | CC54: 2 | CD54: 0 | CE54: =IF(OR($F54="",$G54="",CC54="",CD54=""),"",IF(AND($F54=CC54,$G54=CD54),10,IF($F54-$G54=CC54-CD54,7,IF(OR(AND($F54>$G54,CC54>CD54),AND($F54<$G54,CC54<CD54)),5,0)))) -> 5 | CF54: =IF(CC54="","",IF(CC54>CD54,"A",IF(CC54<CD54,"B",IF(CC54=CD54,"X")))) -> A | CG54: 3 | CH54: 1 | CI54: =IF(OR($F54="",$G54="",CG54="",CH54=""),"",IF(AND($F54=CG54,$G54=CH54),10,IF($F54-$G54=CG54-CH54,7,IF(OR(AND($F54>$G54,CG54>CH54),AND($F54<$G54,CG54<CH54)),5,0)))) -> 5 | CJ54: =IF(CG54="","",IF(CG54>CH54,"A",IF(CG54<CH54,"B",IF(CG54=CH54,"X")))) -> A | CK54: 2 | CL54: 1 | CM54: =IF(OR($F54="",$G54="",CK54="",CL54=""),"",IF(AND($F54=CK54,$G54=CL54),10,IF($F54-$G54=CK54-CL54,7,IF(OR(AND($F54>$G54,CK54>CL54),AND($F54<$G54,CK54<CL54)),5,0)))) -> 5 | CN54: =IF(CK54="","",IF(CK54>CL54,"A",IF(CK54<CL54,"B",IF(CK54=CL54,"X")))) -> A | CO54: 3 | CP54: 1 | CQ54: =IF(OR($F54="",$G54="",CO54="",CP54=""),"",IF(AND($F54=CO54,$G54=CP54),10,IF($F54-$G54=CO54-CP54,7,IF(OR(AND($F54>$G54,CO54>CP54),AND($F54<$G54,CO54<CP54)),5,0)))) -> 5 | CR54: =IF(CO54="","",IF(CO54>CP54,"A",IF(CO54<CP54,"B",IF(CO54=CP54,"X")))) -> A | CS54: 3 | CT54: 1 | CU54: =IF(OR($F54="",$G54="",CS54="",CT54=""),"",IF(AND($F54=CS54,$G54=CT54),10,IF($F54-$G54=CS54-CT54,7,IF(OR(AND($F54>$G54,CS54>CT54),AND($F54<$G54,CS54<CT54)),5,0)))) -> 5 | CV54: =IF(CS54="","",IF(CS54>CT54,"A",IF(CS54<CT54,"B",IF(CS54=CT54,"X")))) -> A | CW54: 2 | CX54: 0 | CY54: =IF(OR($F54="",$G54="",CW54="",CX54=""),"",IF(AND($F54=CW54,$G54=CX54),10,IF($F54-$G54=CW54-CX54,7,IF(OR(AND($F54>$G54,CW54>CX54),AND($F54<$G54,CW54<CX54)),5,0)))) -> 5 | CZ54: =IF(CW54="","",IF(CW54>CX54,"A",IF(CW54<CX54,"B",IF(CW54=CX54,"X")))) -> A | DA54: 2 | DB54: 1 | DC54: =IF(OR($F54="",$G54="",DA54="",DB54=""),"",IF(AND($F54=DA54,$G54=DB54),10,IF($F54-$G54=DA54-DB54,7,IF(OR(AND($F54>$G54,DA54>DB54),AND($F54<$G54,DA54<DB54)),5,0)))) -> 5 | DD54: =IF(DA54="","",IF(DA54>DB54,"A",IF(DA54<DB54,"B",IF(DA54=DB54,"X")))) -> A | DE54: 2 | DF54: 1 | DG54: =IF(OR($F54="",$G54="",DE54="",DF54=""),"",IF(AND($F54=DE54,$G54=DF54),10,IF($F54-$G54=DE54-DF54,7,IF(OR(AND($F54>$G54,DE54>DF54),AND($F54<$G54,DE54<DF54)),5,0)))) -> 5 | DH54: =IF(DE54="","",IF(DE54>DF54,"A",IF(DE54<DF54,"B",IF(DE54=DF54,"X")))) -> A | DK54: =IF(OR($F54="",$G54="",DI54="",DJ54=""),"",IF(AND($F54=DI54,$G54=DJ54),10,IF($F54-$G54=DI54-DJ54,7,IF(OR(AND($F54>$G54,DI54>DJ54),AND($F54<$G54,DI54<DJ54)),5,0)))) ->  | DL54: =IF(DI54="","",IF(DI54>DJ54,"A",IF(DI54<DJ54,"B",IF(DI54=DJ54,"X")))) ->  | DO54: =IF(OR($F54="",$G54="",DM54="",DN54=""),"",IF(AND($F54=DM54,$G54=DN54),10,IF($F54-$G54=DM54-DN54,7,IF(OR(AND($F54>$G54,DM54>DN54),AND($F54<$G54,DM54<DN54)),5,0)))) ->  | DP54: =IF(DM54="","",IF(DM54>DN54,"A",IF(DM54<DN54,"B",IF(DM54=DN54,"X")))) ->  | DS54: =IF(OR($F54="",$G54="",DQ54="",DR54=""),"",IF(AND($F54=DQ54,$G54=DR54),10,IF($F54-$G54=DQ54-DR54,7,IF(OR(AND($F54>$G54,DQ54>DR54),AND($F54<$G54,DQ54<DR54)),5,0)))) ->  | DT54: =IF(DQ54="","",IF(DQ54>DR54,"A",IF(DQ54<DR54,"B",IF(DQ54=DR54,"X")))) ->  | DW54: =IF(OR($F54="",$G54="",DU54="",DV54=""),"",IF(AND($F54=DU54,$G54=DV54),10,IF($F54-$G54=DU54-DV54,7,IF(OR(AND($F54>$G54,DU54>DV54),AND($F54<$G54,DU54<DV54)),5,0)))) ->  | DX54: =IF(DU54="","",IF(DU54>DV54,"A",IF(DU54<DV54,"B",IF(DU54=DV54,"X")))) ->  | EA54: =IF(OR($F54="",$G54="",DY54="",DZ54=""),"",IF(AND($F54=DY54,$G54=DZ54),10,IF($F54-$G54=DY54-DZ54,7,IF(OR(AND($F54>$G54,DY54>DZ54),AND($F54<$G54,DY54<DZ54)),5,0)))) ->  | EB54: =IF(DY54="","",IF(DY54>DZ54,"A",IF(DY54<DZ54,"B",IF(DY54=DZ54,"X")))) ->  | EE54: =IF(OR($F54="",$G54="",EC54="",ED54=""),"",IF(AND($F54=EC54,$G54=ED54),10,IF($F54-$G54=EC54-ED54,7,IF(OR(AND($F54>$G54,EC54>ED54),AND($F54<$G54,EC54<ED54)),5,0)))) ->  | EF54: =IF(EC54="","",IF(EC54>ED54,"A",IF(EC54<ED54,"B",IF(EC54=ED54,"X")))) ->  | EI54: =IF(OR($F54="",$G54="",EG54="",EH54=""),"",IF(AND($F54=EG54,$G54=EH54),10,IF($F54-$G54=EG54-EH54,7,IF(OR(AND($F54>$G54,EG54>EH54),AND($F54<$G54,EG54<EH54)),5,0)))) ->  | EJ54: =IF(EG54="","",IF(EG54>EH54,"A",IF(EG54<EH54,"B",IF(EG54=EH54,"X")))) ->  | EM54: =IF(OR($F54="",$G54="",EK54="",EL54=""),"",IF(AND($F54=EK54,$G54=EL54),10,IF($F54-$G54=EK54-EL54,7,IF(OR(AND($F54>$G54,EK54>EL54),AND($F54<$G54,EK54<EL54)),5,0)))) ->  | EN54: =IF(EK54="","",IF(EK54>EL54,"A",IF(EK54<EL54,"B",IF(EK54=EL54,"X")))) ->  | EQ54: =IF(OR($F54="",$G54="",EO54="",EP54=""),"",IF(AND($F54=EO54,$G54=EP54),10,IF($F54-$G54=EO54-EP54,7,IF(OR(AND($F54>$G54,EO54>EP54),AND($F54<$G54,EO54<EP54)),5,0)))) ->  | ER54: =IF(EO54="","",IF(EO54>EP54,"A",IF(EO54<EP54,"B",IF(EO54=EP54,"X")))) ->  | EU54: =IF(OR($F54="",$G54="",ES54="",ET54=""),"",IF(AND($F54=ES54,$G54=ET54),10,IF($F54-$G54=ES54-ET54,7,IF(OR(AND($F54>$G54,ES54>ET54),AND($F54<$G54,ES54<ET54)),5,0)))) ->  | EV54: =IF(ES54="","",IF(ES54>ET54,"A",IF(ES54<ET54,"B",IF(ES54=ET54,"X")))) ->  | EY54: =IF(OR($F54="",$G54="",EW54="",EX54=""),"",IF(AND($F54=EW54,$G54=EX54),10,IF($F54-$G54=EW54-EX54,7,IF(OR(AND($F54>$G54,EW54>EX54),AND($F54<$G54,EW54<EX54)),5,0)))) ->  | EZ54: =IF(EW54="","",IF(EW54>EX54,"A",IF(EW54<EX54,"B",IF(EW54=EX54,"X")))) ->  | FC54: =IF(OR($F54="",$G54="",FA54="",FB54=""),"",IF(AND($F54=FA54,$G54=FB54),10,IF($F54-$G54=FA54-FB54,7,IF(OR(AND($F54>$G54,FA54>FB54),AND($F54<$G54,FA54<FB54)),5,0)))) ->  | FD54: =IF(FA54="","",IF(FA54>FB54,"A",IF(FA54<FB54,"B",IF(FA54=FB54,"X")))) ->  | FG54: =IF(OR($F54="",$G54="",FE54="",FF54=""),"",IF(AND($F54=FE54,$G54=FF54),10,IF($F54-$G54=FE54-FF54,7,IF(OR(AND($F54>$G54,FE54>FF54),AND($F54<$G54,FE54<FF54)),5,0)))) ->  | FH54: =IF(FE54="","",IF(FE54>FF54,"A",IF(FE54<FF54,"B",IF(FE54=FF54,"X")))) ->  | FK54: =IF(OR($F54="",$G54="",FI54="",FJ54=""),"",IF(AND($F54=FI54,$G54=FJ54),10,IF($F54-$G54=FI54-FJ54,7,IF(OR(AND($F54>$G54,FI54>FJ54),AND($F54<$G54,FI54<FJ54)),5,0)))) ->  | FL54: =IF(FI54="","",IF(FI54>FJ54,"A",IF(FI54<FJ54,"B",IF(FI54=FJ54,"X")))) ->  | FO54: =IF(OR($F54="",$G54="",FM54="",FN54=""),"",IF(AND($F54=FM54,$G54=FN54),10,IF($F54-$G54=FM54-FN54,7,IF(OR(AND($F54>$G54,FM54>FN54),AND($F54<$G54,FM54<FN54)),5,0)))) ->  | FP54: =IF(FM54="","",IF(FM54>FN54,"A",IF(FM54<FN54,"B",IF(FM54=FN54,"X")))) ->  | FS54: =IF(OR($F54="",$G54="",FQ54="",FR54=""),"",IF(AND($F54=FQ54,$G54=FR54),10,IF($F54-$G54=FQ54-FR54,7,IF(OR(AND($F54>$G54,FQ54>FR54),AND($F54<$G54,FQ54<FR54)),5,0)))) ->  | FT54: =IF(FQ54="","",IF(FQ54>FR54,"A",IF(FQ54<FR54,"B",IF(FQ54=FR54,"X")))) ->  | FW54: =IF(OR($F54="",$G54="",FU54="",FV54=""),"",IF(AND($F54=FU54,$G54=FV54),10,IF($F54-$G54=FU54-FV54,7,IF(OR(AND($F54>$G54,FU54>FV54),AND($F54<$G54,FU54<FV54)),5,0)))) ->  | FX54: =IF(FU54="","",IF(FU54>FV54,"A",IF(FU54<FV54,"B",IF(FU54=FV54,"X")))) ->  | GA54: =IF(OR($F54="",$G54="",FY54="",FZ54=""),"",IF(AND($F54=FY54,$G54=FZ54),10,IF($F54-$G54=FY54-FZ54,7,IF(OR(AND($F54>$G54,FY54>FZ54),AND($F54<$G54,FY54<FZ54)),5,0)))) ->  | GB54: =IF(FY54="","",IF(FY54>FZ54,"A",IF(FY54<FZ54,"B",IF(FY54=FZ54,"X")))) ->  | GE54: =IF(OR($F54="",$G54="",GC54="",GD54=""),"",IF(AND($F54=GC54,$G54=GD54),10,IF($F54-$G54=GC54-GD54,7,IF(OR(AND($F54>$G54,GC54>GD54),AND($F54<$G54,GC54<GD54)),5,0)))) ->  | GF54: =IF(GC54="","",IF(GC54>GD54,"A",IF(GC54<GD54,"B",IF(GC54=GD54,"X")))) ->  | GI54: =IF(OR($F54="",$G54="",GG54="",GH54=""),"",IF(AND($F54=GG54,$G54=GH54),10,IF($F54-$G54=GG54-GH54,7,IF(OR(AND($F54>$G54,GG54>GH54),AND($F54<$G54,GG54<GH54)),5,0)))) ->  | GJ54: =IF(GG54="","",IF(GG54>GH54,"A",IF(GG54<GH54,"B",IF(GG54=GH54,"X")))) ->  | GM54: =IF(OR($F54="",$G54="",GK54="",GL54=""),"",IF(AND($F54=GK54,$G54=GL54),10,IF($F54-$G54=GK54-GL54,7,IF(OR(AND($F54>$G54,GK54>GL54),AND($F54<$G54,GK54<GL54)),5,0)))) ->  | GN54: =IF(GK54="","",IF(GK54>GL54,"A",IF(GK54<GL54,"B",IF(GK54=GL54,"X")))) ->  | GQ54: =IF(OR($F54="",$G54="",GO54="",GP54=""),"",IF(AND($F54=GO54,$G54=GP54),10,IF($F54-$G54=GO54-GP54,7,IF(OR(AND($F54>$G54,GO54>GP54),AND($F54<$G54,GO54<GP54)),5,0)))) ->  | GR54: =IF(GO54="","",IF(GO54>GP54,"A",IF(GO54<GP54,"B",IF(GO54=GP54,"X")))) ->  | GU54: =IF(OR($F54="",$G54="",GS54="",GT54=""),"",IF(AND($F54=GS54,$G54=GT54),10,IF($F54-$G54=GS54-GT54,7,IF(OR(AND($F54>$G54,GS54>GT54),AND($F54<$G54,GS54<GT54)),5,0)))) ->  | GV54: =IF(GS54="","",IF(GS54>GT54,"A",IF(GS54<GT54,"B",IF(GS54=GT54,"X")))) ->  | GY54: =IF(OR($F54="",$G54="",GW54="",GX54=""),"",IF(AND($F54=GW54,$G54=GX54),10,IF($F54-$G54=GW54-GX54,7,IF(OR(AND($F54>$G54,GW54>GX54),AND($F54<$G54,GW54<GX54)),5,0)))) ->  | GZ54: =IF(GW54="","",IF(GW54>GX54,"A",IF(GW54<GX54,"B",IF(GW54=GX54,"X")))) -> 
A55: Sa. 15. Jun | B55: 15:00:00 | C55: 2 | D55: Ungarn | E55: Schweiz | F55: 1 | G55: 3 | I55: 1 | J55: 1 | K55: =IF(OR($F55="",$G55="",I55="",J55=""),"",IF(AND($F55=I55,$G55=J55),10,IF($F55-$G55=I55-J55,7,IF(OR(AND($F55>$G55,I55>J55),AND($F55<$G55,I55<J55)),5,0)))) -> 0 | L55: =IF(I55="","",IF(I55>J55,"A",IF(I55<J55,"B",IF(I55=J55,"X")))) -> X | M55: 1 | N55: 1 | O55: =IF(OR($F55="",$G55="",M55="",N55=""),"",IF(AND($F55=M55,$G55=N55),10,IF($F55-$G55=M55-N55,7,IF(OR(AND($F55>$G55,M55>N55),AND($F55<$G55,M55<N55)),5,0)))) -> 0 | P55: =IF(M55="","",IF(M55>N55,"A",IF(M55<N55,"B",IF(M55=N55,"X")))) -> X | Q55: 1 | R55: 2 | S55: =IF(OR($F55="",$G55="",Q55="",R55=""),"",IF(AND($F55=Q55,$G55=R55),10,IF($F55-$G55=Q55-R55,7,IF(OR(AND($F55>$G55,Q55>R55),AND($F55<$G55,Q55<R55)),5,0)))) -> 5 | T55: =IF(Q55="","",IF(Q55>R55,"A",IF(Q55<R55,"B",IF(Q55=R55,"X")))) -> B | U55: 0 | V55: 1 | W55: =IF(OR($F55="",$G55="",U55="",V55=""),"",IF(AND($F55=U55,$G55=V55),10,IF($F55-$G55=U55-V55,7,IF(OR(AND($F55>$G55,U55>V55),AND($F55<$G55,U55<V55)),5,0)))) -> 5 | X55: =IF(U55="","",IF(U55>V55,"A",IF(U55<V55,"B",IF(U55=V55,"X")))) -> B | Y55: 2 | Z55: 2 | AA55: =IF(OR($F55="",$G55="",Y55="",Z55=""),"",IF(AND($F55=Y55,$G55=Z55),10,IF($F55-$G55=Y55-Z55,7,IF(OR(AND($F55>$G55,Y55>Z55),AND($F55<$G55,Y55<Z55)),5,0)))) -> 0 | AB55: =IF(Y55="","",IF(Y55>Z55,"A",IF(Y55<Z55,"B",IF(Y55=Z55,"X")))) -> X | AC55: 1 | AD55: 2 | AE55: =IF(OR($F55="",$G55="",AC55="",AD55=""),"",IF(AND($F55=AC55,$G55=AD55),10,IF($F55-$G55=AC55-AD55,7,IF(OR(AND($F55>$G55,AC55>AD55),AND($F55<$G55,AC55<AD55)),5,0)))) -> 5 | AF55: =IF(AC55="","",IF(AC55>AD55,"A",IF(AC55<AD55,"B",IF(AC55=AD55,"X")))) -> B | AG55: 0 | AH55: 1 | AI55: =IF(OR($F55="",$G55="",AG55="",AH55=""),"",IF(AND($F55=AG55,$G55=AH55),10,IF($F55-$G55=AG55-AH55,7,IF(OR(AND($F55>$G55,AG55>AH55),AND($F55<$G55,AG55<AH55)),5,0)))) -> 5 | AJ55: =IF(AG55="","",IF(AG55>AH55,"A",IF(AG55<AH55,"B",IF(AG55=AH55,"X")))) -> B | AK55: 0 | AL55: 1 | AM55: =IF(OR($F55="",$G55="",AK55="",AL55=""),"",IF(AND($F55=AK55,$G55=AL55),10,IF($F55-$G55=AK55-AL55,7,IF(OR(AND($F55>$G55,AK55>AL55),AND($F55<$G55,AK55<AL55)),5,0)))) -> 5 | AN55: =IF(AK55="","",IF(AK55>AL55,"A",IF(AK55<AL55,"B",IF(AK55=AL55,"X")))) -> B | AO55: 0 | AP55: 1 | AQ55: =IF(OR($F55="",$G55="",AO55="",AP55=""),"",IF(AND($F55=AO55,$G55=AP55),10,IF($F55-$G55=AO55-AP55,7,IF(OR(AND($F55>$G55,AO55>AP55),AND($F55<$G55,AO55<AP55)),5,0)))) -> 5 | AR55: =IF(AO55="","",IF(AO55>AP55,"A",IF(AO55<AP55,"B",IF(AO55=AP55,"X")))) -> B | AS55: 1 | AT55: 2 | AU55: =IF(OR($F55="",$G55="",AS55="",AT55=""),"",IF(AND($F55=AS55,$G55=AT55),10,IF($F55-$G55=AS55-AT55,7,IF(OR(AND($F55>$G55,AS55>AT55),AND($F55<$G55,AS55<AT55)),5,0)))) -> 5 | AV55: =IF(AS55="","",IF(AS55>AT55,"A",IF(AS55<AT55,"B",IF(AS55=AT55,"X")))) -> B | AW55: 1 | AX55: 1 | AY55: =IF(OR($F55="",$G55="",AW55="",AX55=""),"",IF(AND($F55=AW55,$G55=AX55),10,IF($F55-$G55=AW55-AX55,7,IF(OR(AND($F55>$G55,AW55>AX55),AND($F55<$G55,AW55<AX55)),5,0)))) -> 0 | AZ55: =IF(AW55="","",IF(AW55>AX55,"A",IF(AW55<AX55,"B",IF(AW55=AX55,"X")))) -> X | BA55: 1 | BB55: 1 | BC55: =IF(OR($F55="",$G55="",BA55="",BB55=""),"",IF(AND($F55=BA55,$G55=BB55),10,IF($F55-$G55=BA55-BB55,7,IF(OR(AND($F55>$G55,BA55>BB55),AND($F55<$G55,BA55<BB55)),5,0)))) -> 0 | BD55: =IF(BA55="","",IF(BA55>BB55,"A",IF(BA55<BB55,"B",IF(BA55=BB55,"X")))) -> X | BE55: 1 | BF55: 1 | BG55: =IF(OR($F55="",$G55="",BE55="",BF55=""),"",IF(AND($F55=BE55,$G55=BF55),10,IF($F55-$G55=BE55-BF55,7,IF(OR(AND($F55>$G55,BE55>BF55),AND($F55<$G55,BE55<BF55)),5,0)))) -> 0 | BH55: =IF(BE55="","",IF(BE55>BF55,"A",IF(BE55<BF55,"B",IF(BE55=BF55,"X")))) -> X | BI55: 1 | BJ55: 2 | BK55: =IF(OR($F55="",$G55="",BI55="",BJ55=""),"",IF(AND($F55=BI55,$G55=BJ55),10,IF($F55-$G55=BI55-BJ55,7,IF(OR(AND($F55>$G55,BI55>BJ55),AND($F55<$G55,BI55<BJ55)),5,0)))) -> 5 | BL55: =IF(BI55="","",IF(BI55>BJ55,"A",IF(BI55<BJ55,"B",IF(BI55=BJ55,"X")))) -> B | BM55: 1 | BN55: 2 | BO55: =IF(OR($F55="",$G55="",BM55="",BN55=""),"",IF(AND($F55=BM55,$G55=BN55),10,IF($F55-$G55=BM55-BN55,7,IF(OR(AND($F55>$G55,BM55>BN55),AND($F55<$G55,BM55<BN55)),5,0)))) -> 5 | BP55: =IF(BM55="","",IF(BM55>BN55,"A",IF(BM55<BN55,"B",IF(BM55=BN55,"X")))) -> B | BQ55: 1 | BR55: 1 | BS55: =IF(OR($F55="",$G55="",BQ55="",BR55=""),"",IF(AND($F55=BQ55,$G55=BR55),10,IF($F55-$G55=BQ55-BR55,7,IF(OR(AND($F55>$G55,BQ55>BR55),AND($F55<$G55,BQ55<BR55)),5,0)))) -> 0 | BT55: =IF(BQ55="","",IF(BQ55>BR55,"A",IF(BQ55<BR55,"B",IF(BQ55=BR55,"X")))) -> X | BU55: 1 | BV55: 1 | BW55: =IF(OR($F55="",$G55="",BU55="",BV55=""),"",IF(AND($F55=BU55,$G55=BV55),10,IF($F55-$G55=BU55-BV55,7,IF(OR(AND($F55>$G55,BU55>BV55),AND($F55<$G55,BU55<BV55)),5,0)))) -> 0 | BX55: =IF(BU55="","",IF(BU55>BV55,"A",IF(BU55<BV55,"B",IF(BU55=BV55,"X")))) -> X | BY55: 0 | BZ55: 1 | CA55: =IF(OR($F55="",$G55="",BY55="",BZ55=""),"",IF(AND($F55=BY55,$G55=BZ55),10,IF($F55-$G55=BY55-BZ55,7,IF(OR(AND($F55>$G55,BY55>BZ55),AND($F55<$G55,BY55<BZ55)),5,0)))) -> 5 | CB55: =IF(BY55="","",IF(BY55>BZ55,"A",IF(BY55<BZ55,"B",IF(BY55=BZ55,"X")))) -> B | CC55: 0 | CD55: 1 | CE55: =IF(OR($F55="",$G55="",CC55="",CD55=""),"",IF(AND($F55=CC55,$G55=CD55),10,IF($F55-$G55=CC55-CD55,7,IF(OR(AND($F55>$G55,CC55>CD55),AND($F55<$G55,CC55<CD55)),5,0)))) -> 5 | CF55: =IF(CC55="","",IF(CC55>CD55,"A",IF(CC55<CD55,"B",IF(CC55=CD55,"X")))) -> B | CG55: 1 | CH55: 1 | CI55: =IF(OR($F55="",$G55="",CG55="",CH55=""),"",IF(AND($F55=CG55,$G55=CH55),10,IF($F55-$G55=CG55-CH55,7,IF(OR(AND($F55>$G55,CG55>CH55),AND($F55<$G55,CG55<CH55)),5,0)))) -> 0 | CJ55: =IF(CG55="","",IF(CG55>CH55,"A",IF(CG55<CH55,"B",IF(CG55=CH55,"X")))) -> X | CK55: 1 | CL55: 2 | CM55: =IF(OR($F55="",$G55="",CK55="",CL55=""),"",IF(AND($F55=CK55,$G55=CL55),10,IF($F55-$G55=CK55-CL55,7,IF(OR(AND($F55>$G55,CK55>CL55),AND($F55<$G55,CK55<CL55)),5,0)))) -> 5 | CN55: =IF(CK55="","",IF(CK55>CL55,"A",IF(CK55<CL55,"B",IF(CK55=CL55,"X")))) -> B | CO55: 1 | CP55: 2 | CQ55: =IF(OR($F55="",$G55="",CO55="",CP55=""),"",IF(AND($F55=CO55,$G55=CP55),10,IF($F55-$G55=CO55-CP55,7,IF(OR(AND($F55>$G55,CO55>CP55),AND($F55<$G55,CO55<CP55)),5,0)))) -> 5 | CR55: =IF(CO55="","",IF(CO55>CP55,"A",IF(CO55<CP55,"B",IF(CO55=CP55,"X")))) -> B | CS55: 1 | CT55: 2 | CU55: =IF(OR($F55="",$G55="",CS55="",CT55=""),"",IF(AND($F55=CS55,$G55=CT55),10,IF($F55-$G55=CS55-CT55,7,IF(OR(AND($F55>$G55,CS55>CT55),AND($F55<$G55,CS55<CT55)),5,0)))) -> 5 | CV55: =IF(CS55="","",IF(CS55>CT55,"A",IF(CS55<CT55,"B",IF(CS55=CT55,"X")))) -> B | CW55: 1 | CX55: 2 | CY55: =IF(OR($F55="",$G55="",CW55="",CX55=""),"",IF(AND($F55=CW55,$G55=CX55),10,IF($F55-$G55=CW55-CX55,7,IF(OR(AND($F55>$G55,CW55>CX55),AND($F55<$G55,CW55<CX55)),5,0)))) -> 5 | CZ55: =IF(CW55="","",IF(CW55>CX55,"A",IF(CW55<CX55,"B",IF(CW55=CX55,"X")))) -> B | DA55: 1 | DB55: 1 | DC55: =IF(OR($F55="",$G55="",DA55="",DB55=""),"",IF(AND($F55=DA55,$G55=DB55),10,IF($F55-$G55=DA55-DB55,7,IF(OR(AND($F55>$G55,DA55>DB55),AND($F55<$G55,DA55<DB55)),5,0)))) -> 0 | DD55: =IF(DA55="","",IF(DA55>DB55,"A",IF(DA55<DB55,"B",IF(DA55=DB55,"X")))) -> X | DE55: 0 | DF55: 1 | DG55: =IF(OR($F55="",$G55="",DE55="",DF55=""),"",IF(AND($F55=DE55,$G55=DF55),10,IF($F55-$G55=DE55-DF55,7,IF(OR(AND($F55>$G55,DE55>DF55),AND($F55<$G55,DE55<DF55)),5,0)))) -> 5 | DH55: =IF(DE55="","",IF(DE55>DF55,"A",IF(DE55<DF55,"B",IF(DE55=DF55,"X")))) -> B | DK55: =IF(OR($F55="",$G55="",DI55="",DJ55=""),"",IF(AND($F55=DI55,$G55=DJ55),10,IF($F55-$G55=DI55-DJ55,7,IF(OR(AND($F55>$G55,DI55>DJ55),AND($F55<$G55,DI55<DJ55)),5,0)))) ->  | DL55: =IF(DI55="","",IF(DI55>DJ55,"A",IF(DI55<DJ55,"B",IF(DI55=DJ55,"X")))) ->  | DO55: =IF(OR($F55="",$G55="",DM55="",DN55=""),"",IF(AND($F55=DM55,$G55=DN55),10,IF($F55-$G55=DM55-DN55,7,IF(OR(AND($F55>$G55,DM55>DN55),AND($F55<$G55,DM55<DN55)),5,0)))) ->  | DP55: =IF(DM55="","",IF(DM55>DN55,"A",IF(DM55<DN55,"B",IF(DM55=DN55,"X")))) ->  | DS55: =IF(OR($F55="",$G55="",DQ55="",DR55=""),"",IF(AND($F55=DQ55,$G55=DR55),10,IF($F55-$G55=DQ55-DR55,7,IF(OR(AND($F55>$G55,DQ55>DR55),AND($F55<$G55,DQ55<DR55)),5,0)))) ->  | DT55: =IF(DQ55="","",IF(DQ55>DR55,"A",IF(DQ55<DR55,"B",IF(DQ55=DR55,"X")))) ->  | DW55: =IF(OR($F55="",$G55="",DU55="",DV55=""),"",IF(AND($F55=DU55,$G55=DV55),10,IF($F55-$G55=DU55-DV55,7,IF(OR(AND($F55>$G55,DU55>DV55),AND($F55<$G55,DU55<DV55)),5,0)))) ->  | DX55: =IF(DU55="","",IF(DU55>DV55,"A",IF(DU55<DV55,"B",IF(DU55=DV55,"X")))) ->  | EA55: =IF(OR($F55="",$G55="",DY55="",DZ55=""),"",IF(AND($F55=DY55,$G55=DZ55),10,IF($F55-$G55=DY55-DZ55,7,IF(OR(AND($F55>$G55,DY55>DZ55),AND($F55<$G55,DY55<DZ55)),5,0)))) ->  | EB55: =IF(DY55="","",IF(DY55>DZ55,"A",IF(DY55<DZ55,"B",IF(DY55=DZ55,"X")))) ->  | EE55: =IF(OR($F55="",$G55="",EC55="",ED55=""),"",IF(AND($F55=EC55,$G55=ED55),10,IF($F55-$G55=EC55-ED55,7,IF(OR(AND($F55>$G55,EC55>ED55),AND($F55<$G55,EC55<ED55)),5,0)))) ->  | EF55: =IF(EC55="","",IF(EC55>ED55,"A",IF(EC55<ED55,"B",IF(EC55=ED55,"X")))) ->  | EI55: =IF(OR($F55="",$G55="",EG55="",EH55=""),"",IF(AND($F55=EG55,$G55=EH55),10,IF($F55-$G55=EG55-EH55,7,IF(OR(AND($F55>$G55,EG55>EH55),AND($F55<$G55,EG55<EH55)),5,0)))) ->  | EJ55: =IF(EG55="","",IF(EG55>EH55,"A",IF(EG55<EH55,"B",IF(EG55=EH55,"X")))) ->  | EM55: =IF(OR($F55="",$G55="",EK55="",EL55=""),"",IF(AND($F55=EK55,$G55=EL55),10,IF($F55-$G55=EK55-EL55,7,IF(OR(AND($F55>$G55,EK55>EL55),AND($F55<$G55,EK55<EL55)),5,0)))) ->  | EN55: =IF(EK55="","",IF(EK55>EL55,"A",IF(EK55<EL55,"B",IF(EK55=EL55,"X")))) ->  | EQ55: =IF(OR($F55="",$G55="",EO55="",EP55=""),"",IF(AND($F55=EO55,$G55=EP55),10,IF($F55-$G55=EO55-EP55,7,IF(OR(AND($F55>$G55,EO55>EP55),AND($F55<$G55,EO55<EP55)),5,0)))) ->  | ER55: =IF(EO55="","",IF(EO55>EP55,"A",IF(EO55<EP55,"B",IF(EO55=EP55,"X")))) ->  | EU55: =IF(OR($F55="",$G55="",ES55="",ET55=""),"",IF(AND($F55=ES55,$G55=ET55),10,IF($F55-$G55=ES55-ET55,7,IF(OR(AND($F55>$G55,ES55>ET55),AND($F55<$G55,ES55<ET55)),5,0)))) ->  | EV55: =IF(ES55="","",IF(ES55>ET55,"A",IF(ES55<ET55,"B",IF(ES55=ET55,"X")))) ->  | EY55: =IF(OR($F55="",$G55="",EW55="",EX55=""),"",IF(AND($F55=EW55,$G55=EX55),10,IF($F55-$G55=EW55-EX55,7,IF(OR(AND($F55>$G55,EW55>EX55),AND($F55<$G55,EW55<EX55)),5,0)))) ->  | EZ55: =IF(EW55="","",IF(EW55>EX55,"A",IF(EW55<EX55,"B",IF(EW55=EX55,"X")))) ->  | FC55: =IF(OR($F55="",$G55="",FA55="",FB55=""),"",IF(AND($F55=FA55,$G55=FB55),10,IF($F55-$G55=FA55-FB55,7,IF(OR(AND($F55>$G55,FA55>FB55),AND($F55<$G55,FA55<FB55)),5,0)))) ->  | FD55: =IF(FA55="","",IF(FA55>FB55,"A",IF(FA55<FB55,"B",IF(FA55=FB55,"X")))) ->  | FG55: =IF(OR($F55="",$G55="",FE55="",FF55=""),"",IF(AND($F55=FE55,$G55=FF55),10,IF($F55-$G55=FE55-FF55,7,IF(OR(AND($F55>$G55,FE55>FF55),AND($F55<$G55,FE55<FF55)),5,0)))) ->  | FH55: =IF(FE55="","",IF(FE55>FF55,"A",IF(FE55<FF55,"B",IF(FE55=FF55,"X")))) ->  | FK55: =IF(OR($F55="",$G55="",FI55="",FJ55=""),"",IF(AND($F55=FI55,$G55=FJ55),10,IF($F55-$G55=FI55-FJ55,7,IF(OR(AND($F55>$G55,FI55>FJ55),AND($F55<$G55,FI55<FJ55)),5,0)))) ->  | FL55: =IF(FI55="","",IF(FI55>FJ55,"A",IF(FI55<FJ55,"B",IF(FI55=FJ55,"X")))) ->  | FO55: =IF(OR($F55="",$G55="",FM55="",FN55=""),"",IF(AND($F55=FM55,$G55=FN55),10,IF($F55-$G55=FM55-FN55,7,IF(OR(AND($F55>$G55,FM55>FN55),AND($F55<$G55,FM55<FN55)),5,0)))) ->  | FP55: =IF(FM55="","",IF(FM55>FN55,"A",IF(FM55<FN55,"B",IF(FM55=FN55,"X")))) ->  | FS55: =IF(OR($F55="",$G55="",FQ55="",FR55=""),"",IF(AND($F55=FQ55,$G55=FR55),10,IF($F55-$G55=FQ55-FR55,7,IF(OR(AND($F55>$G55,FQ55>FR55),AND($F55<$G55,FQ55<FR55)),5,0)))) ->  | FT55: =IF(FQ55="","",IF(FQ55>FR55,"A",IF(FQ55<FR55,"B",IF(FQ55=FR55,"X")))) ->  | FW55: =IF(OR($F55="",$G55="",FU55="",FV55=""),"",IF(AND($F55=FU55,$G55=FV55),10,IF($F55-$G55=FU55-FV55,7,IF(OR(AND($F55>$G55,FU55>FV55),AND($F55<$G55,FU55<FV55)),5,0)))) ->  | FX55: =IF(FU55="","",IF(FU55>FV55,"A",IF(FU55<FV55,"B",IF(FU55=FV55,"X")))) ->  | GA55: =IF(OR($F55="",$G55="",FY55="",FZ55=""),"",IF(AND($F55=FY55,$G55=FZ55),10,IF($F55-$G55=FY55-FZ55,7,IF(OR(AND($F55>$G55,FY55>FZ55),AND($F55<$G55,FY55<FZ55)),5,0)))) ->  | GB55: =IF(FY55="","",IF(FY55>FZ55,"A",IF(FY55<FZ55,"B",IF(FY55=FZ55,"X")))) ->  | GE55: =IF(OR($F55="",$G55="",GC55="",GD55=""),"",IF(AND($F55=GC55,$G55=GD55),10,IF($F55-$G55=GC55-GD55,7,IF(OR(AND($F55>$G55,GC55>GD55),AND($F55<$G55,GC55<GD55)),5,0)))) ->  | GF55: =IF(GC55="","",IF(GC55>GD55,"A",IF(GC55<GD55,"B",IF(GC55=GD55,"X")))) ->  | GI55: =IF(OR($F55="",$G55="",GG55="",GH55=""),"",IF(AND($F55=GG55,$G55=GH55),10,IF($F55-$G55=GG55-GH55,7,IF(OR(AND($F55>$G55,GG55>GH55),AND($F55<$G55,GG55<GH55)),5,0)))) ->  | GJ55: =IF(GG55="","",IF(GG55>GH55,"A",IF(GG55<GH55,"B",IF(GG55=GH55,"X")))) ->  | GM55: =IF(OR($F55="",$G55="",GK55="",GL55=""),"",IF(AND($F55=GK55,$G55=GL55),10,IF($F55-$G55=GK55-GL55,7,IF(OR(AND($F55>$G55,GK55>GL55),AND($F55<$G55,GK55<GL55)),5,0)))) ->  | GN55: =IF(GK55="","",IF(GK55>GL55,"A",IF(GK55<GL55,"B",IF(GK55=GL55,"X")))) ->  | GQ55: =IF(OR($F55="",$G55="",GO55="",GP55=""),"",IF(AND($F55=GO55,$G55=GP55),10,IF($F55-$G55=GO55-GP55,7,IF(OR(AND($F55>$G55,GO55>GP55),AND($F55<$G55,GO55<GP55)),5,0)))) ->  | GR55: =IF(GO55="","",IF(GO55>GP55,"A",IF(GO55<GP55,"B",IF(GO55=GP55,"X")))) ->  | GU55: =IF(OR($F55="",$G55="",GS55="",GT55=""),"",IF(AND($F55=GS55,$G55=GT55),10,IF($F55-$G55=GS55-GT55,7,IF(OR(AND($F55>$G55,GS55>GT55),AND($F55<$G55,GS55<GT55)),5,0)))) ->  | GV55: =IF(GS55="","",IF(GS55>GT55,"A",IF(GS55<GT55,"B",IF(GS55=GT55,"X")))) ->  | GY55: =IF(OR($F55="",$G55="",GW55="",GX55=""),"",IF(AND($F55=GW55,$G55=GX55),10,IF($F55-$G55=GW55-GX55,7,IF(OR(AND($F55>$G55,GW55>GX55),AND($F55<$G55,GW55<GX55)),5,0)))) ->  | GZ55: =IF(GW55="","",IF(GW55>GX55,"A",IF(GW55<GX55,"B",IF(GW55=GX55,"X")))) -> 
A56: Sa. 15. Jun | B56: 18:00:00 | C56: 3 | D56: Spanien | E56: Kroatien | F56: 3 | G56: 0 | I56: 2 | J56: 1 | K56: 5 | L56: A | M56: 2 | N56: 1 | O56: 5 | P56: A | Q56: 2 | R56: 2 | S56: 0 | T56: X | U56: 2 | V56: 0 | W56: 5 | X56: A | Y56: 3 | Z56: 3 | AA56: 0 | AB56: X | AC56: 2 | AD56: 1 | AE56: 5 | AF56: A | AG56: 1 | AH56: 2 | AI56: 0 | AJ56: B | AK56: 2 | AL56: 1 | AM56: 5 | AN56: A | AO56: 4 | AP56: 3 | AQ56: 5 | AR56: A | AS56: 2 | AT56: 2 | AU56: 0 | AV56: X | AW56: 1 | AX56: 1 | AY56: 0 | AZ56: X | BA56: 0 | BB56: 0 | BC56: 0 | BD56: X | BE56: 1 | BF56: 1 | BG56: 0 | BH56: X | BI56: 1 | BJ56: 1 | BK56: 0 | BL56: X | BM56: 3 | BN56: 0 | BO56: 10 | BP56: A | BQ56: 1 | BR56: 2 | BS56: 0 | BT56: B | BU56: 3 | BV56: 1 | BW56: 5 | BX56: A | BY56: 1 | BZ56: 0 | CA56: 5 | CB56: A | CC56: 2 | CD56: 1 | CE56: 5 | CF56: A | CG56: 3 | CH56: 3 | CI56: 0 | CJ56: X | CK56: 1 | CL56: 0 | CM56: 5 | CN56: A | CO56: 2 | CP56: 2 | CQ56: 0 | CR56: X | CS56: 2 | CT56: 1 | CU56: 5 | CV56: A | CW56: 1 | CX56: 1 | CY56: 0 | CZ56: X | DA56: 0 | DB56: 1 | DC56: 0 | DD56: B | DE56: 2 | DF56: 2 | DG56: 0 | DH56: X
A57: Sa. 15. Jun | B57: 21:00:00 | C57: 4 | D57: Italien | E57: Albanien | F57: 2 | G57: 1 | I57: 3 | J57: 2 | K57: 7 | L57: A | M57: 3 | N57: 1 | O57: 5 | P57: A | Q57: 2 | R57: 0 | S57: 5 | T57: A | U57: 2 | V57: 1 | W57: 10 | X57: A | Y57: 2 | Z57: 1 | AA57: 10 | AB57: A | AC57: 1 | AD57: 0 | AE57: 7 | AF57: A | AG57: 2 | AH57: 0 | AI57: 5 | AJ57: A | AK57: 2 | AL57: 0 | AM57: 5 | AN57: A | AO57: 2 | AP57: 0 | AQ57: 5 | AR57: A | AS57: 1 | AT57: 1 | AU57: 0 | AV57: X | AW57: 2 | AX57: 1 | AY57: 10 | AZ57: A | BA57: 2 | BB57: 1 | BC57: 10 | BD57: A | BE57: 2 | BF57: 1 | BG57: 10 | BH57: A | BI57: 1 | BJ57: 0 | BK57: 7 | BL57: A | BM57: 2 | BN57: 0 | BO57: 5 | BP57: A | BQ57: 2 | BR57: 0 | BS57: 5 | BT57: A | BU57: 5 | BV57: 0 | BW57: 5 | BX57: A | BY57: 1 | BZ57: 0 | CA57: 7 | CB57: A | CC57: 2 | CD57: 0 | CE57: 5 | CF57: A | CG57: 2 | CH57: 0 | CI57: 5 | CJ57: A | CK57: 3 | CL57: 1 | CM57: 5 | CN57: A | CO57: 2 | CP57: 1 | CQ57: 10 | CR57: A | CS57: 1 | CT57: 1 | CU57: 0 | CV57: X | CW57: 2 | CX57: 1 | CY57: 10 | CZ57: A | DA57: 2 | DB57: 1 | DC57: 10 | DD57: A | DE57: 1 | DF57: 0 | DG57: 7 | DH57: A
A58: So. 16. Jun | B58: 21:00:00 | C58: 5 | D58: Serbien | E58: England | F58: 0 | G58: 1 | I58: 2 | J58: 4 | K58: 5 | L58: B | M58: 0 | N58: 4 | O58: 5 | P58: B | Q58: 1 | R58: 2 | S58: 7 | T58: B | U58: 0 | V58: 2 | W58: 5 | X58: B | Y58: 2 | Z58: 3 | AA58: 7 | AB58: B | AC58: 1 | AD58: 2 | AE58: 7 | AF58: B | AG58: 1 | AH58: 3 | AI58: 5 | AJ58: B | AK58: 0 | AL58: 2 | AM58: 5 | AN58: B | AO58: 4 | AP58: 2 | AQ58: 0 | AR58: A | AS58: 1 | AT58: 3 | AU58: 5 | AV58: B | AW58: 1 | AX58: 2 | AY58: 7 | AZ58: B | BA58: 1 | BB58: 1 | BC58: 0 | BD58: X | BE58: 0 | BF58: 3 | BG58: 5 | BH58: B | BI58: 0 | BJ58: 3 | BK58: 5 | BL58: B | BM58: 0 | BN58: 4 | BO58: 5 | BP58: B | BQ58: 1 | BR58: 2 | BS58: 7 | BT58: B | BU58: 0 | BV58: 4 | BW58: 5 | BX58: B | BY58: 0 | BZ58: 1 | CA58: 10 | CB58: B | CC58: 1 | CD58: 2 | CE58: 7 | CF58: B | CG58: 0 | CH58: 2 | CI58: 5 | CJ58: B | CK58: 2 | CL58: 3 | CM58: 7 | CN58: B | CO58: 1 | CP58: 3 | CQ58: 5 | CR58: B | CS58: 1 | CT58: 2 | CU58: 7 | CV58: B | CW58: 1 | CX58: 2 | CY58: 7 | CZ58: B | DA58: 0 | DB58: 1 | DC58: 10 | DD58: B | DE58: 0 | DF58: 2 | DG58: 5 | DH58: B
A59: So. 16. Jun | B59: 18:00:00 | C59: 6 | D59: Slowenien | E59: Dänemark | F59: 1 | G59: 1 | I59: 1 | J59: 1 | K59: 10 | L59: X | M59: 0 | N59: 1 | O59: 0 | P59: B | Q59: 1 | R59: 2 | S59: 0 | T59: B | U59: 0 | V59: 2 | W59: 0 | X59: B | Y59: 2 | Z59: 2 | AA59: 7 | AB59: X | AC59: 1 | AD59: 2 | AE59: 0 | AF59: B | AG59: 0 | AH59: 2 | AI59: 0 | AJ59: B | AK59: 1 | AL59: 2 | AM59: 0 | AN59: B | AO59: 1 | AP59: 1 | AQ59: 10 | AR59: X | AS59: 0 | AT59: 2 | AU59: 0 | AV59: B | AW59: 0 | AX59: 1 | AY59: 0 | AZ59: B | BA59: 0 | BB59: 1 | BC59: 0 | BD59: B | BE59: 1 | BF59: 1 | BG59: 10 | BH59: X | BI59: 1 | BJ59: 1 | BK59: 10 | BL59: X | BM59: 1 | BN59: 2 | BO59: 0 | BP59: B | BQ59: 0 | BR59: 0 | BS59: 7 | BT59: X | BU59: 1 | BV59: 2 | BW59: 0 | BX59: B | BY59: 0 | BZ59: 1 | CA59: 0 | CB59: B | CC59: 0 | CD59: 1 | CE59: 0 | CF59: B | CG59: 0 | CH59: 1 | CI59: 0 | CJ59: B | CK59: 0 | CL59: 2 | CM59: 0 | CN59: B | CO59: 1 | CP59: 2 | CQ59: 0 | CR59: B | CS59: 0 | CT59: 2 | CU59: 0 | CV59: B | CW59: 1 | CX59: 1 | CY59: 10 | CZ59: X | DA59: 0 | DB59: 1 | DC59: 0 | DD59: B | DE59: 1 | DF59: 2 | DG59: 0 | DH59: B
A60: So. 16. Jun | B60: 15:00:00 | C60: 7 | D60: Polen | E60: Holland | F60: 1 | G60: 2 | I60: 0 | J60: 3 | K60: 5 | L60: B | M60: 1 | N60: 3 | O60: 5 | P60: B | Q60: 1 | R60: 2 | S60: 10 | T60: B | U60: 0 | V60: 1 | W60: 7 | X60: B | Y60: 2 | Z60: 3 | AA60: 7 | AB60: B | AC60: 0 | AD60: 1 | AE60: 7 | AF60: B | AG60: 1 | AH60: 2 | AI60: 10 | AJ60: B | AK60: 0 | AL60: 2 | AM60: 5 | AN60: B | AO60: 0 | AP60: 5 | AQ60: 5 | AR60: B | AS60: 2 | AT60: 3 | AU60: 7 | AV60: B | AW60: 0 | AX60: 1 | AY60: 7 | AZ60: B | BA60: 0 | BB60: 2 | BC60: 5 | BD60: B | BE60: 1 | BF60: 2 | BG60: 10 | BH60: B | BI60: 0 | BJ60: 2 | BK60: 5 | BL60: B | BM60: 0 | BN60: 1 | BO60: 7 | BP60: B | BQ60: 1 | BR60: 3 | BS60: 5 | BT60: B | BU60: 0 | BV60: 3 | BW60: 5 | BX60: B | BY60: 0 | BZ60: 1 | CA60: 7 | CB60: B | CC60: 1 | CD60: 3 | CE60: 5 | CF60: B | CG60: 0 | CH60: 2 | CI60: 5 | CJ60: B | CK60: 0 | CL60: 2 | CM60: 5 | CN60: B | CO60: 0 | CP60: 3 | CQ60: 5 | CR60: B | CS60: 1 | CT60: 2 | CU60: 10 | CV60: B | CW60: 0 | CX60: 0 | CY60: 0 | CZ60: X | DA60: 0 | DB60: 1 | DC60: 7 | DD60: B | DE60: 0 | DF60: 3 | DG60: 5 | DH60: B
A61: Mo. 17. Jun | B61: 21:00:00 | C61: 8 | D61: Österreich | E61: Frankreich | F61: 0 | G61: 1 | I61: 1 | J61: 4 | K61: 5 | L61: B | M61: 1 | N61: 0 | O61: 0 | P61: A | Q61: 1 | R61: 2 | S61: 7 | T61: B | U61: 0 | V61: 1 | W61: 10 | X61: B | Y61: 2 | Z61: 2 | AA61: 0 | AB61: X | AC61: 1 | AD61: 1 | AE61: 0 | AF61: X | AG61: 1 | AH61: 3 | AI61: 5 | AJ61: B | AK61: 0 | AL61: 2 | AM61: 5 | AN61: B | AO61: 2 | AP61: 2 | AQ61: 0 | AR61: X | AS61: 1 | AT61: 3 | AU61: 5 | AV61: B | AW61: 0 | AX61: 2 | AY61: 5 | AZ61: B | BA61: 0 | BB61: 3 | BC61: 5 | BD61: B | BE61: 1 | BF61: 2 | BG61: 7 | BH61: B | BI61: 1 | BJ61: 1 | BK61: 0 | BL61: X | BM61: 1 | BN61: 1 | BO61: 0 | BP61: X | BQ61: 0 | BR61: 2 | BS61: 5 | BT61: B | BU61: 1 | BV61: 3 | BW61: 5 | BX61: B | BY61: 0 | BZ61: 1 | CA61: 10 | CB61: B | CC61: 0 | CD61: 3 | CE61: 5 | CF61: B | CG61: 0 | CH61: 3 | CI61: 5 | CJ61: B | CK61: 1 | CL61: 2 | CM61: 7 | CN61: B | CO61: 1 | CP61: 2 | CQ61: 7 | CR61: B | CS61: 1 | CT61: 1 | CU61: 0 | CV61: X | CW61: 1 | CX61: 3 | CY61: 5 | CZ61: B | DA61: 0 | DB61: 1 | DC61: 10 | DD61: B | DE61: 1 | DF61: 4 | DG61: 5 | DH61: B
A62: Mo. 17. Jun | B62: 18:00:00 | C62: 9 | D62: Belgien | E62: Slowakei | F62: 0 | G62: 1 | I62: 2 | J62: 1 | K62: 0 | L62: A | M62: 2 | N62: 0 | O62: 0 | P62: A | Q62: 3 | R62: 1 | S62: 0 | T62: A | U62: 1 | V62: 0 | W62: 0 | X62: A | Y62: 2 | Z62: 2 | AA62: 0 | AB62: X | AC62: 1 | AD62: 1 | AE62: 0 | AF62: X | AG62: 2 | AH62: 1 | AI62: 0 | AJ62: A | AK62: 2 | AL62: 0 | AM62: 0 | AN62: A | AO62: 3 | AP62: 1 | AQ62: 0 | AR62: A | AS62: 2 | AT62: 1 | AU62: 0 | AV62: A | AW62: 1 | AX62: 0 | AY62: 0 | AZ62: A | BA62: 2 | BB62: 1 | BC62: 0 | BD62: A | BE62: 2 | BF62: 0 | BG62: 0 | BH62: A | BI62: 2 | BJ62: 0 | BK62: 0 | BL62: A | BM62: 2 | BN62: 1 | BO62: 0 | BP62: A | BQ62: 3 | BR62: 0 | BS62: 0 | BT62: A | BU62: 4 | BV62: 1 | BW62: 0 | BX62: A | BY62: 1 | BZ62: 0 | CA62: 0 | CB62: A | CC62: 2 | CD62: 0 | CE62: 0 | CF62: A | CG62: 1 | CH62: 0 | CI62: 0 | CJ62: A | CK62: 2 | CL62: 0 | CM62: 0 | CN62: A | CO62: 3 | CP62: 1 | CQ62: 0 | CR62: A | CS62: 3 | CT62: 0 | CU62: 0 | CV62: A | CW62: 2 | CX62: 1 | CY62: 0 | CZ62: A | DA62: 1 | DB62: 0 | DC62: 0 | DD62: A | DE62: 2 | DF62: 1 | DG62: 0 | DH62: A
A63: Mo. 17. Jun | B63: 15:00:00 | C63: 10 | D63: Rumänien | E63: Ukraine | F63: 3 | G63: 0 | I63: 2 | J63: 2 | K63: 0 | L63: X | M63: 1 | N63: 1 | O63: 0 | P63: X | Q63: 1 | R63: 2 | S63: 0 | T63: B | U63: 1 | V63: 0 | W63: 5 | X63: A | Y63: 0 | Z63: 0 | AA63: 0 | AB63: X | AC63: 1 | AD63: 1 | AE63: 0 | AF63: X | AG63: 2 | AH63: 1 | AI63: 5 | AJ63: A | AK63: 0 | AL63: 1 | AM63: 0 | AN63: B | AO63: 4 | AP63: 2 | AQ63: 5 | AR63: A | AS63: 0 | AT63: 1 | AU63: 0 | AV63: B | AW63: 0 | AX63: 1 | AY63: 0 | AZ63: B | BA63: 1 | BB63: 1 | BC63: 0 | BD63: X | BE63: 1 | BF63: 1 | BG63: 0 | BH63: X | BI63: 0 | BJ63: 1 | BK63: 0 | BL63: B | BM63: 1 | BN63: 2 | BO63: 0 | BP63: B | BQ63: 1 | BR63: 2 | BS63: 0 | BT63: B | BU63: 1 | BV63: 1 | BW63: 0 | BX63: X | BY63: 1 | BZ63: 1 | CA63: 0 | CB63: X | CC63: 1 | CD63: 1 | CE63: 0 | CF63: X | CG63: 1 | CH63: 0 | CI63: 5 | CJ63: A | CK63: 1 | CL63: 1 | CM63: 0 | CN63: X | CO63: 1 | CP63: 2 | CQ63: 0 | CR63: B | CS63: 1 | CT63: 3 | CU63: 0 | CV63: B | CW63: 1 | CX63: 1 | CY63: 0 | CZ63: X | DA63: 0 | DB63: 1 | DC63: 0 | DD63: B | DE63: 1 | DF63: 1 | DG63: 0 | DH63: X
A64: Di. 18. Jun | B64: 18:00:00 | C64: 11 | D64: Türkei | E64: Georgien | F64: 3 | G64: 1 | I64: 1 | J64: 0 | K64: 5 | L64: A | M64: 1 | N64: 0 | O64: 5 | P64: A | Q64: 2 | R64: 1 | S64: 5 | T64: A | U64: 2 | V64: 0 | W64: 7 | X64: A | Y64: 0 | Z64: 0 | AA64: 0 | AB64: X | AC64: 1 | AD64: 1 | AE64: 0 | AF64: X | AG64: 1 | AH64: 0 | AI64: 5 | AJ64: A | AK64: 2 | AL64: 0 | AM64: 7 | AN64: A | AO64: 2 | AP64: 0 | AQ64: 7 | AR64: A | AS64: 1 | AT64: 1 | AU64: 0 | AV64: X | AW64: 1 | AX64: 0 | AY64: 5 | AZ64: A | BA64: 4 | BB64: 0 | BC64: 5 | BD64: A | BE64: 2 | BF64: 0 | BG64: 7 | BH64: A | BI64: 2 | BJ64: 0 | BK64: 7 | BL64: A | BM64: 1 | BN64: 1 | BO64: 0 | BP64: X | BQ64: 1 | BR64: 0 | BS64: 5 | BT64: A | BU64: 3 | BV64: 1 | BW64: 10 | BX64: A | BY64: 1 | BZ64: 0 | CA64: 5 | CB64: A | CC64: 2 | CD64: 0 | CE64: 7 | CF64: A | CG64: 1 | CH64: 1 | CI64: 0 | CJ64: X | CK64: 1 | CL64: 0 | CM64: 5 | CN64: A | CO64: 2 | CP64: 1 | CQ64: 5 | CR64: A | CS64: 3 | CT64: 0 | CU64: 5 | CV64: A | CW64: 2 | CX64: 0 | CY64: 7 | CZ64: A | DA64: 2 | DB64: 0 | DC64: 7 | DD64: A | DE64: 1 | DF64: 0 | DG64: 5 | DH64: A
A65: Di. 18. Jun | B65: 21:00:00 | C65: 12 | D65: Portugal | E65: Tschechien | F65: 2 | G65: 1 | I65: 3 | J65: 0 | K65: 5 | L65: A | M65: 2 | N65: 1 | O65: 10 | P65: A | Q65: 3 | R65: 1 | S65: 5 | T65: A | U65: 2 | V65: 1 | W65: 10 | X65: A | Y65: 2 | Z65: 0 | AA65: 5 | AB65: A | AC65: 2 | AD65: 0 | AE65: 5 | AF65: A | AG65: 1 | AH65: 0 | AI65: 7 | AJ65: A | AK65: 2 | AL65: 0 | AM65: 5 | AN65: A | AO65: 7 | AP65: 1 | AQ65: 5 | AR65: A | AS65: 3 | AT65: 0 | AU65: 5 | AV65: A | AW65: 2 | AX65: 0 | AY65: 5 | AZ65: A | BA65: 2 | BB65: 1 | BC65: 10 | BD65: A | BE65: 2 | BF65: 1 | BG65: 10 | BH65: A | BI65: 2 | BJ65: 1 | BK65: 10 | BL65: A | BM65: 3 | BN65: 0 | BO65: 5 | BP65: A | BQ65: 2 | BR65: 1 | BS65: 10 | BT65: A | BU65: 4 | BV65: 1 | BW65: 5 | BX65: A | BY65: 1 | BZ65: 1 | CA65: 0 | CB65: X | CC65: 2 | CD65: 1 | CE65: 10 | CF65: A | CG65: 3 | CH65: 0 | CI65: 5 | CJ65: A | CK65: 2 | CL65: 1 | CM65: 10 | CN65: A | CO65: 2 | CP65: 2 | CQ65: 0 | CR65: X | CS65: 2 | CT65: 2 | CU65: 0 | CV65: X | CW65: 3 | CX65: 1 | CY65: 5 | CZ65: A | DA65: 1 | DB65: 0 | DC65: 7 | DD65: A | DE65: 2 | DF65: 0 | DG65: 5 | DH65: A
A66: Mi. 19. Jun | B66: 21:00:00 | C66: 13 | D66: Schottland | E66: Schweiz | F66: 1 | G66: 1 | I66: 1 | J66: 3 | K66: 0 | L66: B | M66: 0 | N66: 1 | O66: 0 | P66: B | Q66: 1 | R66: 2 | S66: 0 | T66: B | U66: 1 | V66: 1 | W66: 10 | X66: X | Y66: 2 | Z66: 2 | AA66: 7 | AB66: X | AC66: 0 | AD66: 1 | AE66: 0 | AF66: B | AG66: 1 | AH66: 2 | AI66: 0 | AJ66: B | AK66: 0 | AL66: 1 | AM66: 0 | AN66: B | AO66: 2 | AP66: 2 | AQ66: 7 | AR66: X | AS66: 1 | AT66: 3 | AU66: 0 | AV66: B | AW66: 0 | AX66: 1 | AY66: 0 | AZ66: B | BA66: 0 | BB66: 2 | BC66: 0 | BD66: B | BE66: 0 | BF66: 2 | BG66: 0 | BH66: B | BI66: 1 | BJ66: 1 | BK66: 10 | BL66: X | BM66: 1 | BN66: 1 | BO66: 10 | BP66: X | BQ66: 0 | BR66: 1 | BS66: 0 | BT66: B | BU66: 1 | BV66: 1 | BW66: 10 | BX66: X | BY66: 0 | BZ66: 1 | CA66: 0 | CB66: B | CC66: 0 | CD66: 1 | CE66: 0 | CF66: B | CG66: 2 | CH66: 1 | CI66: 0 | CJ66: A | CK66: 1 | CL66: 2 | CM66: 0 | CN66: B | CO66: 0 | CP66: 1 | CQ66: 0 | CR66: B | CS66: 0 | CT66: 1 | CU66: 0 | CV66: B | CW66: 0 | CX66: 1 | CY66: 0 | CZ66: B | DA66: 0 | DB66: 1 | DC66: 0 | DD66: B | DE66: 1 | DF66: 2 | DG66: 0 | DH66: B
A67: Mi. 19. Jun | B67: 18:00:00 | C67: 14 | D67: Deutschland | E67: Ungarn | F67: 2 | G67: 0 | I67: 3 | J67: 0 | K67: 5 | L67: A | M67: 3 | N67: 0 | O67: 5 | P67: A | Q67: 3 | R67: 1 | S67: 7 | T67: A | U67: 3 | V67: 0 | W67: 5 | X67: A | Y67: 3 | Z67: 2 | AA67: 5 | AB67: A | AC67: 2 | AD67: 0 | AE67: 10 | AF67: A | AG67: 3 | AH67: 0 | AI67: 5 | AJ67: A | AK67: 2 | AL67: 0 | AM67: 10 | AN67: A | AO67: 4 | AP67: 1 | AQ67: 5 | AR67: A | AS67: 4 | AT67: 1 | AU67: 5 | AV67: A | AW67: 2 | AX67: 1 | AY67: 5 | AZ67: A | BA67: 1 | BB67: 1 | BC67: 0 | BD67: X | BE67: 2 | BF67: 1 | BG67: 5 | BH67: A | BI67: 2 | BJ67: 0 | BK67: 10 | BL67: A | BM67: 2 | BN67: 0 | BO67: 10 | BP67: A | BQ67: 2 | BR67: 1 | BS67: 5 | BT67: A | BU67: 4 | BV67: 0 | BW67: 5 | BX67: A | BY67: 1 | BZ67: 0 | CA67: 5 | CB67: A | CC67: 2 | CD67: 0 | CE67: 10 | CF67: A | CG67: 4 | CH67: 1 | CI67: 5 | CJ67: A | CK67: 3 | CL67: 1 | CM67: 7 | CN67: A | CO67: 3 | CP67: 1 | CQ67: 7 | CR67: A | CS67: 2 | CT67: 0 | CU67: 10 | CV67: A | CW67: 2 | CX67: 1 | CY67: 5 | CZ67: A | DA67: 1 | DB67: 0 | DC67: 5 | DD67: A | DE67: 1 | DF67: 0 | DG67: 5 | DH67: A
A68: Mi. 19. Jun | B68: 15:00:00 | C68: 15 | D68: Kroatien | E68: Albanien | F68: 2 | G68: 2 | I68: 2 | J68: 1 | K68: 0 | L68: A | M68: 2 | N68: 0 | O68: 0 | P68: A | Q68: 2 | R68: 1 | S68: 0 | T68: A | U68: 1 | V68: 0 | W68: 0 | X68: A | Y68: 4 | Z68: 2 | AA68: 0 | AB68: A | AC68: 2 | AD68: 1 | AE68: 0 | AF68: A | AG68: 3 | AH68: 1 | AI68: 0 | AJ68: A | AK68: 2 | AL68: 0 | AM68: 0 | AN68: A | AO68: 3 | AP68: 0 | AQ68: 0 | AR68: A | AS68: 1 | AT68: 1 | AU68: 7 | AV68: X | AW68: 3 | AX68: 0 | AY68: 0 | AZ68: A | BA68: 3 | BB68: 0 | BC68: 0 | BD68: A | BE68: 2 | BF68: 0 | BG68: 0 | BH68: A | BI68: 2 | BJ68: 0 | BK68: 0 | BL68: A | BM68: 1 | BN68: 0 | BO68: 0 | BP68: A | BQ68: 2 | BR68: 0 | BS68: 0 | BT68: A | BU68: 4 | BV68: 1 | BW68: 0 | BX68: A | BY68: 1 | BZ68: 0 | CA68: 0 | CB68: A | CC68: 2 | CD68: 0 | CE68: 0 | CF68: A | CG68: 3 | CH68: 0 | CI68: 0 | CJ68: A | CK68: 2 | CL68: 0 | CM68: 0 | CN68: A | CO68: 2 | CP68: 1 | CQ68: 0 | CR68: A | CS68: 2 | CT68: 0 | CU68: 0 | CV68: A | CW68: 3 | CX68: 1 | CY68: 0 | CZ68: A | DA68: 2 | DB68: 0 | DC68: 0 | DD68: A | DE68: 3 | DF68: 0 | DG68: 0 | DH68: A
A69: Do. 20. Jun | B69: 21:00:00 | C69: 16 | D69: Spanien | E69: Italien | F69: 1 | G69: 0 | I69: 2 | J69: 2 | K69: 0 | L69: X | M69: 3 | N69: 2 | O69: 7 | P69: A | Q69: 1 | R69: 1 | S69: 0 | T69: X | U69: 2 | V69: 1 | W69: 7 | X69: A | Y69: 2 | Z69: 1 | AA69: 7 | AB69: A | AC69: 2 | AD69: 1 | AE69: 7 | AF69: A | AG69: 2 | AH69: 2 | AI69: 0 | AJ69: X | AK69: 1 | AL69: 0 | AM69: 10 | AN69: A | AO69: 1 | AP69: 1 | AQ69: 0 | AR69: X | AS69: 1 | AT69: 1 | AU69: 0 | AV69: X | AW69: 1 | AX69: 0 | AY69: 10 | AZ69: A | BA69: 1 | BB69: 1 | BC69: 0 | BD69: X | BE69: 1 | BF69: 1 | BG69: 0 | BH69: X | BI69: 2 | BJ69: 1 | BK69: 7 | BL69: A | BM69: 2 | BN69: 2 | BO69: 0 | BP69: X | BQ69: 2 | BR69: 2 | BS69: 0 | BT69: X | BU69: 1 | BV69: 1 | BW69: 0 | BX69: X | BY69: 1 | BZ69: 0 | CA69: 10 | CB69: A | CC69: 2 | CD69: 1 | CE69: 7 | CF69: A | CG69: 2 | CH69: 1 | CI69: 7 | CJ69: A | CK69: 2 | CL69: 2 | CM69: 0 | CN69: X | CO69: 2 | CP69: 2 | CQ69: 0 | CR69: X | CS69: 2 | CT69: 2 | CU69: 0 | CV69: X | CW69: 2 | CX69: 2 | CY69: 0 | CZ69: X | DA69: 1 | DB69: 0 | DC69: 10 | DD69: A | DE69: 1 | DF69: 1 | DG69: 0 | DH69: X
A70: Do. 20. Jun | B70: 18:00:00 | C70: 17 | D70: Dänemark | E70: England | F70: 1 | G70: 1 | I70: 1 | J70: 2 | K70: 0 | L70: B | M70: 0 | N70: 2 | O70: 0 | P70: B | Q70: 1 | R70: 2 | S70: 0 | T70: B | U70: 1 | V70: 2 | W70: 0 | X70: B | Y70: 2 | Z70: 3 | AA70: 0 | AB70: B | AC70: 1 | AD70: 2 | AE70: 0 | AF70: B | AG70: 0 | AH70: 2 | AI70: 0 | AJ70: B | AK70: 0 | AL70: 2 | AM70: 0 | AN70: B | AO70: 2 | AP70: 1 | AQ70: 0 | AR70: A | AS70: 0 | AT70: 3 | AU70: 0 | AV70: B | AW70: 1 | AX70: 1 | AY70: 10 | AZ70: X | BA70: 0 | BB70: 2 | BC70: 0 | BD70: B | BE70: 1 | BF70: 1 | BG70: 10 | BH70: X | BI70: 1 | BJ70: 1 | BK70: 10 | BL70: X | BM70: 2 | BN70: 4 | BO70: 0 | BP70: B | BQ70: 0 | BR70: 1 | BS70: 0 | BT70: B | BU70: 1 | BV70: 3 | BW70: 0 | BX70: B | BY70: 0 | BZ70: 1 | CA70: 0 | CB70: B | CC70: 0 | CD70: 2 | CE70: 0 | CF70: B | CG70: 1 | CH70: 2 | CI70: 0 | CJ70: B | CK70: 1 | CL70: 1 | CM70: 10 | CN70: X | CO70: 2 | CP70: 2 | CQ70: 7 | CR70: X | CS70: 2 | CT70: 2 | CU70: 7 | CV70: X | CW70: 0 | CX70: 0 | CY70: 7 | CZ70: X | DA70: 0 | DB70: 1 | DC70: 0 | DD70: B | DE70: 1 | DF70: 2 | DG70: 0 | DH70: B
A71: Do. 20. Jun | B71: 15:00:00 | C71: 18 | D71: Slowenien | E71: Serbien | F71: 1 | G71: 1 | I71: 0 | J71: 2 | K71: 0 | L71: B | M71: 1 | N71: 3 | O71: 0 | P71: B | Q71: 1 | R71: 2 | S71: 0 | T71: B | U71: 0 | V71: 2 | W71: 0 | X71: B | Y71: 2 | Z71: 2 | AA71: 7 | AB71: X | AC71: 1 | AD71: 2 | AE71: 0 | AF71: B | AG71: 1 | AH71: 1 | AI71: 10 | AJ71: X | AK71: 0 | AL71: 1 | AM71: 0 | AN71: B | AO71: 0 | AP71: 2 | AQ71: 0 | AR71: B | AS71: 0 | AT71: 1 | AU71: 0 | AV71: B | AW71: 0 | AX71: 1 | AY71: 0 | AZ71: B | BA71: 1 | BB71: 1 | BC71: 10 | BD71: X | BE71: 2 | BF71: 1 | BG71: 0 | BH71: A | BI71: 2 | BJ71: 1 | BK71: 0 | BL71: A | BM71: 1 | BN71: 1 | BO71: 10 | BP71: X | BQ71: 0 | BR71: 1 | BS71: 0 | BT71: B | BU71: 1 | BV71: 1 | BW71: 10 | BX71: X | BY71: 0 | BZ71: 0 | CA71: 7 | CB71: X | CC71: 1 | CD71: 3 | CE71: 0 | CF71: B | CG71: 1 | CH71: 1 | CI71: 10 | CJ71: X | CK71: 1 | CL71: 2 | CM71: 0 | CN71: B | CO71: 2 | CP71: 1 | CQ71: 0 | CR71: A | CS71: 1 | CT71: 2 | CU71: 0 | CV71: B | CW71: 1 | CX71: 2 | CY71: 0 | CZ71: B | DA71: 0 | DB71: 1 | DC71: 0 | DD71: B | DE71: 0 | DF71: 0 | DG71: 7 | DH71: X
A72: Fr. 21. Jun | B72: 18:00:00 | C72: 19 | D72: Polen | E72: Österreich | F72: 1 | G72: 3 | I72: 1 | J72: 1 | K72: 0 | L72: X | M72: 1 | N72: 2 | O72: 5 | P72: B | Q72: 1 | R72: 3 | S72: 10 | T72: B | U72: 1 | V72: 3 | W72: 10 | X72: B | Y72: 2 | Z72: 3 | AA72: 5 | AB72: B | AC72: 1 | AD72: 2 | AE72: 5 | AF72: B | AG72: 2 | AH72: 1 | AI72: 0 | AJ72: A | AK72: 0 | AL72: 1 | AM72: 5 | AN72: B | AO72: 2 | AP72: 2 | AQ72: 0 | AR72: X | AS72: 1 | AT72: 0 | AU72: 0 | AV72: A | AW72: 0 | AX72: 1 | AY72: 5 | AZ72: B | BA72: 1 | BB72: 1 | BC72: 0 | BD72: X | BE72: 0 | BF72: 1 | BG72: 5 | BH72: B | BI72: 0 | BJ72: 1 | BK72: 5 | BL72: B | BM72: 0 | BN72: 0 | BO72: 0 | BP72: X | BQ72: 1 | BR72: 0 | BS72: 0 | BT72: A | BU72: 1 | BV72: 2 | BW72: 5 | BX72: B | BY72: 0 | BZ72: 0 | CA72: 0 | CB72: X | CC72: 1 | CD72: 1 | CE72: 0 | CF72: X | CG72: 1 | CH72: 1 | CI72: 0 | CJ72: X | CK72: 1 | CL72: 2 | CM72: 5 | CN72: B | CO72: 1 | CP72: 3 | CQ72: 10 | CR72: B | CS72: 1 | CT72: 1 | CU72: 0 | CV72: X | CW72: 1 | CX72: 1 | CY72: 0 | CZ72: X | DA72: 0 | DB72: 1 | DC72: 5 | DD72: B | DE72: 2 | DF72: 1 | DG72: 0 | DH72: A
A73: Fr. 21. Jun | B73: 21:00:00 | C73: 20 | D73: Holland | E73: Frankreich | F73: 0 | G73: 0 | I73: 3 | J73: 3 | K73: 7 | L73: X | M73: 2 | N73: 2 | O73: 7 | P73: X | Q73: 2 | R73: 3 | S73: 0 | T73: B | U73: 1 | V73: 3 | W73: 0 | X73: B | Y73: 1 | Z73: 3 | AA73: 0 | AB73: B | AC73: 1 | AD73: 2 | AE73: 0 | AF73: B | AG73: 1 | AH73: 3 | AI73: 0 | AJ73: B | AK73: 1 | AL73: 2 | AM73: 0 | AN73: B | AO73: 1 | AP73: 3 | AQ73: 0 | AR73: B | AS73: 2 | AT73: 2 | AU73: 7 | AV73: X | AW73: 1 | AX73: 1 | AY73: 7 | AZ73: X | BA73: 0 | BB73: 0 | BC73: 10 | BD73: X | BE73: 1 | BF73: 1 | BG73: 7 | BH73: X | BI73: 1 | BJ73: 1 | BK73: 7 | BL73: X | BM73: 1 | BN73: 2 | BO73: 0 | BP73: B | BQ73: 1 | BR73: 3 | BS73: 0 | BT73: B | BU73: 1 | BV73: 2 | BW73: 0 | BX73: B | BY73: 0 | BZ73: 1 | CA73: 0 | CB73: B | CC73: 1 | CD73: 2 | CE73: 0 | CF73: B | CG73: 2 | CH73: 3 | CI73: 0 | CJ73: B | CK73: 2 | CL73: 2 | CM73: 7 | CN73: X | CO73: 2 | CP73: 2 | CQ73: 7 | CR73: X | CS73: 2 | CT73: 1 | CU73: 0 | CV73: A | CW73: 1 | CX73: 2 | CY73: 0 | CZ73: B | DA73: 0 | DB73: 1 | DC73: 0 | DD73: B | DE73: 1 | DF73: 2 | DG73: 0 | DH73: B
A74: =A29 -> Fr. 21. Jun | B74: 15:00:00 | C74: 21 | D74: =IF(D29="","",D29) -> Slowakei | E74: Ukraine | F74: 1 | G74: 2 | I74: 2 | J74: 2 | K74: 0 | L74: X | M74: 1 | N74: 2 | O74: 10 | P74: B | Q74: 1 | R74: 2 | S74: 10 | T74: B | U74: 0 | V74: 1 | W74: 7 | X74: B | Y74: 2 | Z74: 1 | AA74: 0 | AB74: A | AC74: 1 | AD74: 0 | AE74: 0 | AF74: A | AG74: 2 | AH74: 0 | AI74: 0 | AJ74: A | AK74: 0 | AL74: 1 | AM74: 7 | AN74: B | AO74: 2 | AP74: 0 | AQ74: 0 | AR74: A | AS74: 0 | AT74: 0 | AU74: 0 | AV74: X | AW74: 0 | AX74: 1 | AY74: 7 | AZ74: B | BA74: 2 | BB74: 1 | BC74: 0 | BD74: A | BE74: 1 | BF74: 1 | BG74: 0 | BH74: X | BI74: 1 | BJ74: 2 | BK74: 10 | BL74: B | BM74: 1 | BN74: 3 | BO74: 5 | BP74: B | BQ74: 0 | BR74: 1 | BS74: 7 | BT74: B | BU74: 1 | BV74: 1 | BW74: 0 | BX74: X | BY74: 1 | BZ74: 1 | CA74: 0 | CB74: X | CC74: 1 | CD74: 1 | CE74: 0 | CF74: X | CG74: 2 | CH74: 1 | CI74: 0 | CJ74: A | CK74: 0 | CL74: 1 | CM74: 7 | CN74: B | CO74: 1 | CP74: 3 | CQ74: 5 | CR74: B | CS74: 0 | CT74: 1 | CU74: 7 | CV74: B | CW74: 2 | CX74: 0 | CY74: 0 | CZ74: A | DA74: 0 | DB74: 0 | DC74: 0 | DD74: X | DE74: 1 | DF74: 1 | DG74: 0 | DH74: X
A75: Sa. 22. Jun | B75: 21:00:00 | C75: 22 | D75: Belgien | E75: Rumänien | F75: 2 | G75: 0 | I75: 3 | J75: 0 | K75: 5 | L75: A | M75: 3 | N75: 0 | O75: 5 | P75: A | Q75: 3 | R75: 1 | S75: 7 | T75: A | U75: 1 | V75: 1 | W75: 0 | X75: X | Y75: 3 | Z75: 2 | AA75: 5 | AB75: A | AC75: 1 | AD75: 0 | AE75: 5 | AF75: A | AG75: 2 | AH75: 0 | AI75: 10 | AJ75: A | AK75: 2 | AL75: 0 | AM75: 10 | AN75: A | AO75: 5 | AP75: 0 | AQ75: 5 | AR75: A | AS75: 3 | AT75: 1 | AU75: 7 | AV75: A | AW75: 2 | AX75: 0 | AY75: 10 | AZ75: A | BA75: 2 | BB75: 0 | BC75: 10 | BD75: A | BE75: 2 | BF75: 0 | BG75: 10 | BH75: A | BI75: 2 | BJ75: 0 | BK75: 10 | BL75: A | BM75: 2 | BN75: 0 | BO75: 10 | BP75: A | BQ75: 2 | BR75: 0 | BS75: 10 | BT75: A | BU75: 3 | BV75: 1 | BW75: 7 | BX75: A | BY75: 1 | BZ75: 0 | CA75: 5 | CB75: A | CC75: 3 | CD75: 0 | CE75: 5 | CF75: A | CG75: 2 | CH75: 0 | CI75: 10 | CJ75: A | CK75: 3 | CL75: 1 | CM75: 7 | CN75: A | CO75: 4 | CP75: 0 | CQ75: 5 | CR75: A | CS75: 4 | CT75: 0 | CU75: 5 | CV75: A | CW75: 2 | CX75: 1 | CY75: 5 | CZ75: A | DA75: 1 | DB75: 0 | DC75: 5 | DD75: A | DE75: 2 | DF75: 1 | DG75: 5 | DH75: A
A76: Sa. 22. Jun | B76: 18:00:00 | C76: 23 | D76: Türkei | E76: Portugal | F76: 0 | G76: 3 | I76: 1 | J76: 1 | K76: 0 | L76: X | M76: 1 | N76: 2 | O76: 5 | P76: B | Q76: 1 | R76: 1 | S76: 0 | T76: X | U76: 0 | V76: 2 | W76: 5 | X76: B | Y76: 2 | Z76: 4 | AA76: 5 | AB76: B | AC76: 0 | AD76: 2 | AE76: 5 | AF76: B | AG76: 1 | AH76: 3 | AI76: 5 | AJ76: B | AK76: 0 | AL76: 1 | AM76: 5 | AN76: B | AO76: 1 | AP76: 5 | AQ76: 5 | AR76: B | AS76: 2 | AT76: 3 | AU76: 5 | AV76: B | AW76: 0 | AX76: 1 | AY76: 5 | AZ76: B | BA76: 0 | BB76: 2 | BC76: 5 | BD76: B | BE76: 1 | BF76: 1 | BG76: 0 | BH76: X | BI76: 1 | BJ76: 1 | BK76: 0 | BL76: X | BM76: 1 | BN76: 2 | BO76: 5 | BP76: B | BQ76: 1 | BR76: 3 | BS76: 5 | BT76: B | BU76: 1 | BV76: 3 | BW76: 5 | BX76: B | BY76: 0 | BZ76: 1 | CA76: 5 | CB76: B | CC76: 1 | CD76: 1 | CE76: 0 | CF76: X | CG76: 0 | CH76: 3 | CI76: 10 | CJ76: B | CK76: 1 | CL76: 2 | CM76: 5 | CN76: B | CO76: 1 | CP76: 3 | CQ76: 5 | CR76: B | CS76: 2 | CT76: 2 | CU76: 0 | CV76: X | CW76: 0 | CX76: 2 | CY76: 5 | CZ76: B | DA76: 0 | DB76: 1 | DC76: 5 | DD76: B | DE76: 0 | DF76: 2 | DG76: 5 | DH76: B
A77: Sa. 22. Jun | B77: 15:00:00 | C77: 24 | D77: Georgien | E77: Tschechien | F77: 1 | G77: 1 | I77: 0 | J77: 4 | K77: 0 | L77: B | M77: 0 | N77: 2 | O77: 0 | P77: B | Q77: 1 | R77: 2 | S77: 0 | T77: B | U77: 0 | V77: 1 | W77: 0 | X77: B | Y77: 2 | Z77: 2 | AA77: 7 | AB77: X | AC77: 1 | AD77: 2 | AE77: 0 | AF77: B | AG77: 0 | AH77: 2 | AI77: 0 | AJ77: B | AK77: 0 | AL77: 1 | AM77: 0 | AN77: B | AO77: 0 | AP77: 0 | AQ77: 7 | AR77: X | AS77: 1 | AT77: 0 | AU77: 0 | AV77: A | AW77: 0 | AX77: 1 | AY77: 0 | AZ77: B | BA77: 0 | BB77: 2 | BC77: 0 | BD77: B | BE77: 0 | BF77: 2 | BG77: 0 | BH77: B | BI77: 0 | BJ77: 2 | BK77: 0 | BL77: B | BM77: 1 | BN77: 2 | BO77: 0 | BP77: B | BQ77: 0 | BR77: 1 | BS77: 0 | BT77: B | BU77: 0 | BV77: 3 | BW77: 0 | BX77: B | BY77: 0 | BZ77: 2 | CA77: 0 | CB77: B | CC77: 0 | CD77: 2 | CE77: 0 | CF77: B | CG77: 0 | CH77: 1 | CI77: 0 | CJ77: B | CK77: 1 | CL77: 2 | CM77: 0 | CN77: B | CO77: 1 | CP77: 3 | CQ77: 0 | CR77: B | CS77: 0 | CT77: 2 | CU77: 0 | CV77: B | CW77: 1 | CX77: 1 | CY77: 10 | CZ77: X | DA77: 0 | DB77: 1 | DC77: 0 | DD77: B | DE77: 0 | DF77: 1 | DG77: 0 | DH77: B
A78: So. 23. Jun | B78: 21:00:00 | C78: 25 | D78: Schweiz | E78: Deutschland | F78: 1 | G78: 1 | I78: 2 | J78: 3 | K78: 0 | L78: B | M78: 1 | N78: 1 | O78: 10 | P78: X | Q78: 1 | R78: 2 | S78: 0 | T78: B | U78: 1 | V78: 2 | W78: 0 | X78: B | Y78: 2 | Z78: 3 | AA78: 0 | AB78: B | AC78: 1 | AD78: 2 | AE78: 0 | AF78: B | AG78: 0 | AH78: 3 | AI78: 0 | AJ78: B | AK78: 0 | AL78: 2 | AM78: 0 | AN78: B | AO78: 1 | AP78: 4 | AQ78: 0 | AR78: B | AS78: 2 | AT78: 1 | AU78: 0 | AV78: A | AW78: 1 | AX78: 1 | AY78: 10 | AZ78: X | BA78: 1 | BB78: 0 | BC78: 0 | BD78: A | BE78: 1 | BF78: 2 | BG78: 0 | BH78: B | BI78: 1 | BJ78: 1 | BK78: 10 | BL78: X | BM78: 3 | BN78: 3 | BO78: 7 | BP78: X | BQ78: 1 | BR78: 1 | BS78: 10 | BT78: X | BU78: 1 | BV78: 3 | BW78: 0 | BX78: B | BY78: 0 | BZ78: 1 | CA78: 0 | CB78: B | CC78: 0 | CD78: 2 | CE78: 0 | CF78: B | CG78: 1 | CH78: 3 | CI78: 0 | CJ78: B | CK78: 1 | CL78: 1 | CM78: 10 | CN78: X | CO78: 2 | CP78: 2 | CQ78: 7 | CR78: X | CS78: 1 | CT78: 2 | CU78: 0 | CV78: B | CW78: 0 | CX78: 0 | CY78: 7 | CZ78: X | DA78: 0 | DB78: 1 | DC78: 0 | DD78: B | DE78: 0 | DF78: 1 | DG78: 0 | DH78: B
A79: So. 23. Jun | B79: 21:00:00 | C79: 26 | D79: Schottland | E79: Ungarn | F79: 0 | G79: 1 | I79: 1 | J79: 0 | K79: 0 | L79: A | M79: 0 | N79: 1 | O79: 10 | P79: B | Q79: 0 | R79: 1 | S79: 10 | T79: B | U79: 2 | V79: 0 | W79: 0 | X79: A | Y79: 2 | Z79: 2 | AA79: 0 | AB79: X | AC79: 1 | AD79: 0 | AE79: 0 | AF79: A | AG79: 2 | AH79: 0 | AI79: 0 | AJ79: A | AK79: 1 | AL79: 0 | AM79: 0 | AN79: A | AO79: 1 | AP79: 1 | AQ79: 0 | AR79: X | AS79: 0 | AT79: 2 | AU79: 5 | AV79: B | AW79: 0 | AX79: 2 | AY79: 5 | AZ79: B | BA79: 1 | BB79: 2 | BC79: 7 | BD79: B | BE79: 0 | BF79: 1 | BG79: 10 | BH79: B | BI79: 0 | BJ79: 1 | BK79: 10 | BL79: B | BM79: 2 | BN79: 3 | BO79: 7 | BP79: B | BQ79: 0 | BR79: 1 | BS79: 10 | BT79: B | BU79: 1 | BV79: 1 | BW79: 0 | BX79: X | BY79: 0 | BZ79: 0 | CA79: 0 | CB79: X | CC79: 1 | CD79: 1 | CE79: 0 | CF79: X | CG79: 2 | CH79: 1 | CI79: 0 | CJ79: A | CK79: 1 | CL79: 2 | CM79: 7 | CN79: B | CO79: 1 | CP79: 2 | CQ79: 7 | CR79: B | CS79: 1 | CT79: 2 | CU79: 7 | CV79: B | CW79: 1 | CX79: 1 | CY79: 0 | CZ79: X | DA79: 0 | DB79: 0 | DC79: 0 | DD79: X | DE79: 0 | DF79: 2 | DG79: 5 | DH79: B
A80: Mo. 24. Jun | B80: 21:00:00 | C80: 27 | D80: Albanien | E80: Spanien | F80: 0 | G80: 1 | I80: 2 | J80: 5 | K80: 5 | L80: B | M80: 0 | N80: 5 | O80: 5 | P80: B | Q80: 1 | R80: 3 | S80: 5 | T80: B | U80: 0 | V80: 2 | W80: 5 | X80: B | Y80: 2 | Z80: 3 | AA80: 7 | AB80: B | AC80: 1 | AD80: 2 | AE80: 7 | AF80: B | AG80: 0 | AH80: 2 | AI80: 5 | AJ80: B | AK80: 0 | AL80: 2 | AM80: 5 | AN80: B | AO80: 0 | AP80: 5 | AQ80: 5 | AR80: B | AS80: 1 | AT80: 3 | AU80: 5 | AV80: B | AW80: 0 | AX80: 1 | AY80: 10 | AZ80: B | BA80: 1 | BB80: 0 | BC80: 0 | BD80: A | BE80: 0 | BF80: 3 | BG80: 5 | BH80: B | BI80: 0 | BJ80: 2 | BK80: 5 | BL80: B | BM80: 0 | BN80: 3 | BO80: 5 | BP80: B | BQ80: 0 | BR80: 2 | BS80: 5 | BT80: B | BU80: 0 | BV80: 5 | BW80: 5 | BX80: B | BY80: 0 | BZ80: 1 | CA80: 10 | CB80: B | CC80: 0 | CD80: 3 | CE80: 5 | CF80: B | CG80: 0 | CH80: 4 | CI80: 5 | CJ80: B | CK80: 0 | CL80: 2 | CM80: 5 | CN80: B | CO80: 1 | CP80: 3 | CQ80: 5 | CR80: B | CS80: 2 | CT80: 1 | CU80: 0 | CV80: A | CW80: 1 | CX80: 3 | CY80: 5 | CZ80: B | DA80: 0 | DB80: 2 | DC80: 5 | DD80: B | DE80: 1 | DF80: 2 | DG80: 7 | DH80: B
A81: Mo. 24. Jun | B81: 21:00:00 | C81: 28 | D81: Kroatien | E81: Italien | F81: 1 | G81: 1 | I81: 0 | J81: 0 | K81: 7 | L81: X | M81: 1 | N81: 2 | O81: 0 | P81: B | Q81: 1 | R81: 1 | S81: 10 | T81: X | U81: 2 | V81: 1 | W81: 0 | X81: A | Y81: 3 | Z81: 3 | AA81: 7 | AB81: X | AC81: 1 | AD81: 1 | AE81: 10 | AF81: X | AG81: 2 | AH81: 1 | AI81: 0 | AJ81: A | AK81: 0 | AL81: 1 | AM81: 0 | AN81: B | AO81: 2 | AP81: 3 | AQ81: 0 | AR81: B | AS81: 2 | AT81: 2 | AU81: 7 | AV81: X | AW81: 1 | AX81: 0 | AY81: 0 | AZ81: A | BA81: 1 | BB81: 0 | BC81: 0 | BD81: A | BE81: 1 | BF81: 0 | BG81: 0 | BH81: A | BI81: 2 | BJ81: 1 | BK81: 0 | BL81: A | BM81: 1 | BN81: 1 | BO81: 10 | BP81: X | BQ81: 0 | BR81: 1 | BS81: 0 | BT81: B | BU81: 1 | BV81: 3 | BW81: 0 | BX81: B | BY81: 1 | BZ81: 1 | CA81: 10 | CB81: X | CC81: 1 | CD81: 2 | CE81: 0 | CF81: B | CG81: 3 | CH81: 3 | CI81: 7 | CJ81: X | CK81: 1 | CL81: 1 | CM81: 10 | CN81: X | CO81: 2 | CP81: 2 | CQ81: 7 | CR81: X | CS81: 2 | CT81: 1 | CU81: 0 | CV81: A | CW81: 2 | CX81: 1 | CY81: 0 | CZ81: A | DA81: 1 | DB81: 1 | DC81: 10 | DD81: X | DE81: 0 | DF81: 1 | DG81: 0 | DH81: B
A82: Di. 25. Jun | B82: 21:00:00 | C82: 29 | D82: England | E82: Slowenien | F82: 0 | G82: 0 | I82: 3 | J82: 1 | K82: 0 | L82: A | M82: 3 | N82: 0 | O82: 0 | P82: A | Q82: 2 | R82: 0 | S82: 0 | T82: A | U82: 2 | V82: 0 | W82: 0 | X82: A | Y82: 4 | Z82: 3 | AA82: 0 | AB82: A | AC82: 2 | AD82: 0 | AE82: 0 | AF82: A | AG82: 3 | AH82: 0 | AI82: 0 | AJ82: A | AK82: 2 | AL82: 0 | AM82: 0 | AN82: A | AO82: 3 | AP82: 1 | AQ82: 0 | AR82: A | AS82: 2 | AT82: 1 | AU82: 0 | AV82: A | AW82: 1 | AX82: 0 | AY82: 0 | AZ82: A | BA82: 3 | BB82: 0 | BC82: 0 | BD82: A | BE82: 2 | BF82: 0 | BG82: 0 | BH82: A | BI82: 2 | BJ82: 0 | BK82: 0 | BL82: A | BM82: 1 | BN82: 0 | BO82: 0 | BP82: A | BQ82: 2 | BR82: 0 | BS82: 0 | BT82: A | BU82: 4 | BV82: 0 | BW82: 0 | BX82: A | BY82: 1 | BZ82: 0 | CA82: 0 | CB82: A | CC82: 3 | CD82: 0 | CE82: 0 | CF82: A | CG82: 2 | CH82: 0 | CI82: 0 | CJ82: A | CK82: 3 | CL82: 0 | CM82: 0 | CN82: A | CO82: 3 | CP82: 1 | CQ82: 0 | CR82: A | CS82: 2 | CT82: 0 | CU82: 0 | CV82: A | CW82: 2 | CX82: 0 | CY82: 0 | CZ82: A | DA82: 1 | DB82: 0 | DC82: 0 | DD82: A | DE82: 1 | DF82: 0 | DG82: 0 | DH82: A
A83: Di. 25. Jun | B83: 21:00:00 | C83: 30 | D83: Dänemark | E83: Serbien | F83: 0 | G83: 0 | I83: 2 | J83: 0 | K83: 0 | L83: A | M83: 2 | N83: 1 | O83: 0 | P83: A | Q83: 2 | R83: 1 | S83: 0 | T83: A | U83: 3 | V83: 0 | W83: 0 | X83: A | Y83: 3 | Z83: 3 | AA83: 7 | AB83: X | AC83: 0 | AD83: 1 | AE83: 0 | AF83: B | AG83: 2 | AH83: 1 | AI83: 0 | AJ83: A | AK83: 1 | AL83: 0 | AM83: 0 | AN83: A | AO83: 1 | AP83: 0 | AQ83: 0 | AR83: A | AS83: 3 | AT83: 1 | AU83: 0 | AV83: A | AW83: 2 | AX83: 2 | AY83: 7 | AZ83: X | BA83: 1 | BB83: 1 | BC83: 7 | BD83: X | BE83: 2 | BF83: 1 | BG83: 0 | BH83: A | BI83: 1 | BJ83: 1 | BK83: 7 | BL83: X | BM83: 1 | BN83: 0 | BO83: 0 | BP83: A | BQ83: 2 | BR83: 1 | BS83: 0 | BT83: A | BU83: 2 | BV83: 2 | BW83: 7 | BX83: X | BY83: 1 | BZ83: 0 | CA83: 0 | CB83: A | CC83: 0 | CD83: 2 | CE83: 0 | CF83: B | CG83: 2 | CH83: 0 | CI83: 0 | CJ83: A | CK83: 2 | CL83: 0 | CM83: 0 | CN83: A | CO83: 3 | CP83: 1 | CQ83: 0 | CR83: A | CS83: 2 | CT83: 1 | CU83: 0 | CV83: A | CW83: 0 | CX83: 1 | CY83: 0 | CZ83: B | DA83: 1 | DB83: 0 | DC83: 0 | DD83: A | DE83: 3 | DF83: 1 | DG83: 0 | DH83: A
A84: Di. 25. Jun | B84: 18:00:00 | C84: 31 | D84: Holland | E84: Österreich | F84: 2 | G84: 3 | I84: 4 | J84: 2 | K84: 0 | L84: A | M84: 2 | N84: 1 | O84: 0 | P84: A | Q84: 2 | R84: 2 | S84: 0 | T84: X | U84: 1 | V84: 1 | W84: 0 | X84: X | Y84: 2 | Z84: 2 | AA84: 0 | AB84: X | AC84: 1 | AD84: 2 | AE84: 7 | AF84: B | AG84: 2 | AH84: 1 | AI84: 0 | AJ84: A | AK84: 2 | AL84: 1 | AM84: 0 | AN84: A | AO84: 4 | AP84: 2 | AQ84: 0 | AR84: A | AS84: 2 | AT84: 2 | AU84: 0 | AV84: X | AW84: 2 | AX84: 1 | AY84: 0 | AZ84: A | BA84: 4 | BB84: 1 | BC84: 0 | BD84: A | BE84: 2 | BF84: 2 | BG84: 0 | BH84: X | BI84: 2 | BJ84: 0 | BK84: 0 | BL84: A | BM84: 2 | BN84: 1 | BO84: 0 | BP84: A | BQ84: 2 | BR84: 0 | BS84: 0 | BT84: A | BU84: 2 | BV84: 2 | BW84: 0 | BX84: X | BY84: 1 | BZ84: 0 | CA84: 0 | CB84: A | CC84: 2 | CD84: 0 | CE84: 0 | CF84: A | CG84: 3 | CH84: 0 | CI84: 0 | CJ84: A | CK84: 2 | CL84: 2 | CM84: 0 | CN84: X | CO84: 2 | CP84: 1 | CQ84: 0 | CR84: A | CS84: 2 | CT84: 1 | CU84: 0 | CV84: A | CW84: 2 | CX84: 1 | CY84: 0 | CZ84: A | DA84: 1 | DB84: 0 | DC84: 0 | DD84: A | DE84: 2 | DF84: 0 | DG84: 0 | DH84: A
A85: Di. 25. Jun | B85: 18:00:00 | C85: 32 | D85: Frankreich | E85: Polen | F85: 1 | G85: 1 | I85: 4 | J85: 1 | K85: 0 | L85: A | M85: 2 | N85: 0 | O85: 0 | P85: A | Q85: 3 | R85: 2 | S85: 0 | T85: A | U85: 3 | V85: 0 | W85: 0 | X85: A | Y85: 2 | Z85: 0 | AA85: 0 | AB85: A | AC85: 3 | AD85: 1 | AE85: 0 | AF85: A | AG85: 2 | AH85: 1 | AI85: 0 | AJ85: A | AK85: 2 | AL85: 0 | AM85: 0 | AN85: A | AO85: 6 | AP85: 2 | AQ85: 0 | AR85: A | AS85: 3 | AT85: 2 | AU85: 0 | AV85: A | AW85: 2 | AX85: 0 | AY85: 0 | AZ85: A | BA85: 4 | BB85: 0 | BC85: 0 | BD85: A | BE85: 2 | BF85: 0 | BG85: 0 | BH85: A | BI85: 3 | BJ85: 1 | BK85: 0 | BL85: A | BM85: 1 | BN85: 0 | BO85: 0 | BP85: A | BQ85: 3 | BR85: 1 | BS85: 0 | BT85: A | BU85: 4 | BV85: 0 | BW85: 0 | BX85: A | BY85: 1 | BZ85: 0 | CA85: 0 | CB85: A | CC85: 2 | CD85: 0 | CE85: 0 | CF85: A | CG85: 3 | CH85: 0 | CI85: 0 | CJ85: A | CK85: 2 | CL85: 0 | CM85: 0 | CN85: A | CO85: 4 | CP85: 1 | CQ85: 0 | CR85: A | CS85: 3 | CT85: 0 | CU85: 0 | CV85: A | CW85: 3 | CX85: 0 | CY85: 0 | CZ85: A | DA85: 1 | DB85: 0 | DC85: 0 | DD85: A | DE85: 2 | DF85: 1 | DG85: 0 | DH85: A
A86: Mi. 26. Jun | B86: 18:00:00 | C86: 33 | D86: Slowakei | E86: Rumänien | F86: 1 | G86: 1 | I86: 0 | J86: 0 | K86: 7 | L86: X | M86: 1 | N86: 0 | O86: 0 | P86: A | Q86: 1 | R86: 1 | S86: 10 | T86: X | U86: 1 | V86: 1 | W86: 10 | X86: X | Y86: 3 | Z86: 3 | AA86: 7 | AB86: X | AC86: 1 | AD86: 0 | AE86: 0 | AF86: A | AG86: 2 | AH86: 0 | AI86: 0 | AJ86: A | AK86: 0 | AL86: 2 | AM86: 0 | AN86: B | AO86: 2 | AP86: 2 | AQ86: 7 | AR86: X | AS86: 0 | AT86: 1 | AU86: 0 | AV86: B | AW86: 0 | AX86: 0 | AY86: 7 | AZ86: X | BA86: 1 | BB86: 1 | BC86: 10 | BD86: X | BE86: 2 | BF86: 1 | BG86: 0 | BH86: A | BI86: 2 | BJ86: 1 | BK86: 0 | BL86: A | BM86: 1 | BN86: 1 | BO86: 10 | BP86: X | BQ86: 1 | BR86: 1 | BS86: 10 | BT86: X | BU86: 0 | BV86: 0 | BW86: 7 | BX86: X | BY86: 0 | BZ86: 1 | CA86: 0 | CB86: B | CC86: 1 | CD86: 1 | CE86: 10 | CF86: X | CG86: 1 | CH86: 1 | CI86: 10 | CJ86: X | CK86: 1 | CL86: 1 | CM86: 10 | CN86: X | CO86: 1 | CP86: 0 | CQ86: 0 | CR86: A | CS86: 2 | CT86: 2 | CU86: 7 | CV86: X | CW86: 1 | CX86: 1 | CY86: 10 | CZ86: X | DA86: 0 | DB86: 1 | DC86: 0 | DD86: B | DE86: 2 | DF86: 2 | DG86: 7 | DH86: X
A87: Mi. 26. Jun | B87: 18:00:00 | C87: 34 | D87: Ukraine | E87: Belgien | F87: 0 | G87: 0 | I87: 2 | J87: 5 | K87: 0 | L87: B | M87: 1 | N87: 2 | O87: 0 | P87: B | Q87: 1 | R87: 2 | S87: 0 | T87: B | U87: 0 | V87: 1 | W87: 0 | X87: B | Y87: 2 | Z87: 3 | AA87: 0 | AB87: B | AC87: 1 | AD87: 1 | AE87: 7 | AF87: X | AG87: 0 | AH87: 2 | AI87: 0 | AJ87: B | AK87: 1 | AL87: 2 | AM87: 0 | AN87: B | AO87: 0 | AP87: 3 | AQ87: 0 | AR87: B | AS87: 0 | AT87: 2 | AU87: 0 | AV87: B | AW87: 0 | AX87: 1 | AY87: 0 | AZ87: B | BA87: 0 | BB87: 3 | BC87: 0 | BD87: B | BE87: 1 | BF87: 2 | BG87: 0 | BH87: B | BI87: 1 | BJ87: 2 | BK87: 0 | BL87: B | BM87: 2 | BN87: 2 | BO87: 7 | BP87: X | BQ87: 2 | BR87: 3 | BS87: 0 | BT87: B | BU87: 1 | BV87: 3 | BW87: 0 | BX87: B | BY87: 0 | BZ87: 1 | CA87: 0 | CB87: B | CC87: 0 | CD87: 2 | CE87: 0 | CF87: B | CG87: 1 | CH87: 3 | CI87: 0 | CJ87: B | CK87: 1 | CL87: 2 | CM87: 0 | CN87: B | CO87: 1 | CP87: 3 | CQ87: 0 | CR87: B | CS87: 1 | CT87: 3 | CU87: 0 | CV87: B | CW87: 0 | CX87: 2 | CY87: 0 | CZ87: B | DA87: 0 | DB87: 1 | DC87: 0 | DD87: B | DE87: 1 | DF87: 3 | DG87: 0 | DH87: B
A88: Mi. 26. Jun | B88: 21:00:00 | C88: 35 | D88: Georgien | E88: Portugal | F88: 2 | G88: 0 | I88: 0 | J88: 5 | K88: 0 | L88: B | M88: 1 | N88: 3 | O88: 0 | P88: B | Q88: 1 | R88: 2 | S88: 0 | T88: B | U88: 0 | V88: 3 | W88: 0 | X88: B | Y88: 2 | Z88: 4 | AA88: 0 | AB88: B | AC88: 1 | AD88: 2 | AE88: 0 | AF88: B | AG88: 0 | AH88: 2 | AI88: 0 | AJ88: B | AK88: 0 | AL88: 1 | AM88: 0 | AN88: B | AO88: 0 | AP88: 5 | AQ88: 0 | AR88: B | AS88: 0 | AT88: 4 | AU88: 0 | AV88: B | AW88: 0 | AX88: 2 | AY88: 0 | AZ88: B | BA88: 0 | BB88: 4 | BC88: 0 | BD88: B | BE88: 0 | BF88: 3 | BG88: 0 | BH88: B | BI88: 0 | BJ88: 3 | BK88: 0 | BL88: B | BM88: 1 | BN88: 4 | BO88: 0 | BP88: B | BQ88: 0 | BR88: 4 | BS88: 0 | BT88: B | BU88: 0 | BV88: 4 | BW88: 0 | BX88: B | BY88: 0 | BZ88: 1 | CA88: 0 | CB88: B | CC88: 0 | CD88: 3 | CE88: 0 | CF88: B | CG88: 0 | CH88: 4 | CI88: 0 | CJ88: B | CK88: 0 | CL88: 3 | CM88: 0 | CN88: B | CO88: 1 | CP88: 3 | CQ88: 0 | CR88: B | CS88: 0 | CT88: 5 | CU88: 0 | CV88: B | CW88: 0 | CX88: 1 | CY88: 0 | CZ88: B | DA88: 0 | DB88: 2 | DC88: 0 | DD88: B | DE88: 0 | DF88: 4 | DG88: 0 | DH88: B
A89: Mi. 26. Jun | B89: 21:00:00 | C89: 36 | D89: Tschechien | E89: Türkei | F89: 1 | G89: 2 | I89: 2 | J89: 3 | K89: 7 | L89: B | M89: 1 | N89: 1 | O89: 0 | P89: X | Q89: 2 | R89: 3 | S89: 7 | T89: B | U89: 2 | V89: 1 | W89: 0 | X89: A | Y89: 1 | Z89: 1 | AA89: 0 | AB89: X | AC89: 1 | AD89: 1 | AE89: 0 | AF89: X | AG89: 0 | AH89: 0 | AI89: 0 | AJ89: X | AK89: 0 | AL89: 1 | AM89: 7 | AN89: B | AO89: 2 | AP89: 1 | AQ89: 0 | AR89: A | AS89: 0 | AT89: 1 | AU89: 7 | AV89: B | AW89: 1 | AX89: 0 | AY89: 0 | AZ89: A | BA89: 1 | BB89: 1 | BC89: 0 | BD89: X | BE89: 0 | BF89: 2 | BG89: 5 | BH89: B | BI89: 1 | BJ89: 1 | BK89: 0 | BL89: X | BM89: 1 | BN89: 1 | BO89: 0 | BP89: X | BQ89: 0 | BR89: 1 | BS89: 7 | BT89: B | BU89: 1 | BV89: 1 | BW89: 0 | BX89: X | BY89: 1 | BZ89: 0 | CA89: 0 | CB89: A | CC89: 0 | CD89: 2 | CE89: 5 | CF89: B | CG89: 2 | CH89: 0 | CI89: 0 | CJ89: A | CK89: 2 | CL89: 2 | CM89: 0 | CN89: X | CO89: 2 | CP89: 0 | CQ89: 0 | CR89: A | CS89: 1 | CT89: 1 | CU89: 0 | CV89: X | CW89: 0 | CX89: 2 | CY89: 5 | CZ89: B | DA89: 0 | DB89: 1 | DC89: 7 | DD89: B | DE89: 1 | DF89: 2 | DG89: 10 | DH89: B
G90: Gesamtpunktzahl: | I90: =Teilnehmerliste!$C56 -> Lechena | K90: =SUM(K54:K89) -> 95 | M90: =Teilnehmerliste!$C57 -> Jannis | O90: =SUM(O54:O89) -> 109 | Q90: =Teilnehmerliste!$C58 -> Petra | S90: =SUM(S54:S89) -> 125 | U90: =Teilnehmerliste!$C59 -> Martin | W90: =SUM(W54:W89) -> 128 | Y90: =Teilnehmerliste!$C60 -> Lynn | AA90: =SUM(AA54:AA89) -> 117 | AC90: =Teilnehmerliste!$C61 -> Michael | AE90: =SUM(AE54:AE89) -> 104 | AG90: =Teilnehmerliste!$C62 -> Sabine | AI90: =SUM(AI54:AI89) -> 87 | AK90: =Teilnehmerliste!$C63 -> Erich | AM90: =SUM(AM54:AM89) -> 106 | AO90: =Teilnehmerliste!$C64 -> Ralph | AQ90: =SUM(AQ54:AQ89) -> 93 | AS90: =Teilnehmerliste!$C65 -> Corinne | AU90: =SUM(AU54:AU89) -> 87 | AW90: =Teilnehmerliste!$C66 -> Bruno | AY90: =SUM(AY54:AY89) -> 142 | BA90: =Teilnehmerliste!$C67 -> Yermany | BC90: =SUM(BC54:BC89) -> 99 | BE90: =Teilnehmerliste!$C68 -> Armando | BG90: =SUM(BG54:BG89) -> 121 | BI90: =Teilnehmerliste!$C69 -> Julia | BK90: =SUM(BK54:BK89) -> 155 | BM90: =Teilnehmerliste!$C70 -> Lea | BO90: =SUM(BO54:BO89) -> 138 | BQ90: =Teilnehmerliste!$C71 -> Reto | BS90: =SUM(BS54:BS89) -> 118 | BU90: =Teilnehmerliste!$C72 -> Christoph | BW90: =SUM(BW54:BW89) -> 106 | BY90: =Teilnehmerliste!$C73 -> Markus | CA90: =SUM(CA54:CA89) -> 106 | CC90: =Teilnehmerliste!$C74 -> Stefan | CE90: =SUM(CE54:CE89) -> 96 | CG90: =Teilnehmerliste!$C75 -> Jingwen | CI90: =SUM(CI54:CI89) -> 99 | CK90: =Teilnehmerliste!$C76 -> Stefan | CM90: =SUM(CM54:CM89) -> 144 | CO90: =Teilnehmerliste!$C77 -> Jasmine | CQ90: =SUM(CQ54:CQ89) -> 114 | CS90: =Teilnehmerliste!$C78 -> Stefan | CU90: =SUM(CU54:CU89) -> 80 | CW90: =Teilnehmerliste!$C79 -> Mario | CY90: =SUM(CY54:CY89) -> 113 | DA90: =Teilnehmerliste!$C80 -> Nidhal | DC90: =SUM(DC54:DC89) -> 108 | DE90: =Teilnehmerliste!$C81 -> Hanspeter | DG90: =SUM(DG54:DG89) -> 93 | DI90: =Teilnehmerliste!$C82 -> 0 | DK90: =SUM(DK54:DK89) -> 0 | DM90: =Teilnehmerliste!$C83 -> 0 | DO90: =SUM(DO54:DO89) -> 0 | DQ90: =Teilnehmerliste!$C84 -> 0 | DS90: =SUM(DS54:DS89) -> 0 | DU90: =Teilnehmerliste!$C85 -> 0 | DW90: =SUM(DW54:DW89) -> 0 | DY90: =Teilnehmerliste!$C86 -> 0 | EA90: =SUM(EA54:EA89) -> 0 | EC90: =Teilnehmerliste!$C87 -> 0 | EE90: =SUM(EE54:EE89) -> 0 | EG90: =Teilnehmerliste!$C88 -> 0 | EI90: =SUM(EI54:EI89) -> 0 | EK90: =Teilnehmerliste!$C89 -> 0 | EM90: =SUM(EM54:EM89) -> 0 | EO90: =Teilnehmerliste!$C90 -> 0 | EQ90: =SUM(EQ54:EQ89) -> 0 | ES90: =Teilnehmerliste!$C91 -> 0 | EU90: =SUM(EU54:EU89) -> 0 | EW90: =Teilnehmerliste!$C92 -> 0 | EY90: =SUM(EY54:EY89) -> 0 | FA90: =Teilnehmerliste!$C93 -> 0 | FC90: =SUM(FC54:FC89) -> 0 | FE90: =Teilnehmerliste!$C94 -> 0 | FG90: =SUM(FG54:FG89) -> 0 | FI90: =Teilnehmerliste!$C95 -> 0 | FK90: =SUM(FK54:FK89) -> 0 | FM90: =Teilnehmerliste!$C96 -> 0 | FO90: =SUM(FO54:FO89) -> 0 | FQ90: =Teilnehmerliste!$C97 -> 0 | FS90: =SUM(FS54:FS89) -> 0 | FU90: =Teilnehmerliste!$C98 -> 0 | FW90: =SUM(FW54:FW89) -> 0 | FY90: =Teilnehmerliste!$C99 -> 0 | GA90: =SUM(GA54:GA89) -> 0 | GC90: =Teilnehmerliste!$C100 -> 0 | GE90: =SUM(GE54:GE89) -> 0 | GG90: =Teilnehmerliste!$C101 -> 0 | GI90: =SUM(GI54:GI89) -> 0 | GK90: =Teilnehmerliste!$C102 -> 0 | GM90: =SUM(GM54:GM89) -> 0 | GO90: =Teilnehmerliste!$C103 -> 0 | GQ90: =SUM(GQ54:GQ89) -> 0 | GS90: =Teilnehmerliste!$C104 -> 0 | GU90: =SUM(GU54:GU89) -> 0 | GW90: =Teilnehmerliste!$C105 -> 0 | GY90: =SUM(GY54:GY89) -> 0

Sheet Endplatzierung
A1: =Teams!$B$30 -> EM 2024 by Rogerinho (www.fcbouncer.ch)
A3: Vorrunde | C3: Spieler 1 - 50
A4: 20 Punkte für richtige Mannschaft auf Platz 3 | E4: =Teilnehmerliste!$B6 -> Agorastos | G4: =Teilnehmerliste!$B7 -> Antonelli | I4: =Teilnehmerliste!$B8 -> Antonelli | K4: =Teilnehmerliste!$B9 -> Bartholet | M4: =Teilnehmerliste!$B10 -> Bartholet | O4: =Teilnehmerliste!$B11 -> Bartholet | Q4: =Teilnehmerliste!$B12 -> Bartholet | S4: =Teilnehmerliste!$B13 -> Beck | U4: =Teilnehmerliste!$B14 -> Blöchlinger/Edri | W4: =Teilnehmerliste!$B15 -> Bosshart | Y4: =Teilnehmerliste!$B16 -> Brunner | AA4: =Teilnehmerliste!$B17 -> Brunner | AC4: =Teilnehmerliste!$B18 -> Brunner | AE4: =Teilnehmerliste!$B19 -> Burkart | AG4: =Teilnehmerliste!$B20 -> Burkart | AI4: =Teilnehmerliste!$B21 -> Cadonau | AK4: =Teilnehmerliste!$B22 -> Cadonau | AM4: =Teilnehmerliste!$B23 -> Cadonau | AO4: =Teilnehmerliste!$B24 -> Christiansen | AQ4: =Teilnehmerliste!$B25 -> Da Costa | AS4: =Teilnehmerliste!$B26 -> D'Acunto | AU4: =Teilnehmerliste!$B27 -> D'Acunto | AW4: =Teilnehmerliste!$B28 -> D'Acunto | AY4: =Teilnehmerliste!$B29 -> Dukic | BA4: =Teilnehmerliste!$B30 -> Duvnjak | BC4: =Teilnehmerliste!$B31 -> Figaro | BE4: =Teilnehmerliste!$B32 -> Foscaldi | BG4: =Teilnehmerliste!$B33 -> Giuralarocca | BI4: =Teilnehmerliste!$B34 -> Gomes | BK4: =Teilnehmerliste!$B35 -> Grosse | BM4: =Teilnehmerliste!$B36 -> Gygli | BO4: =Teilnehmerliste!$B37 -> Gygli | BQ4: =Teilnehmerliste!$B38 -> Gygli | BS4: =Teilnehmerliste!$B39 -> Gygli | BU4: =Teilnehmerliste!$B40 -> Gygli | BW4: =Teilnehmerliste!$B41 -> Haab | BY4: =Teilnehmerliste!$B42 -> Handanagic | CA4: =Teilnehmerliste!$B43 -> Isenschmid | CC4: =Teilnehmerliste!$B44 -> Isenschmid | CE4: =Teilnehmerliste!$B45 -> Isenschmid | CG4: =Teilnehmerliste!$B46 -> Jones | CI4: =Teilnehmerliste!$B47 -> Kalinci | CK4: =Teilnehmerliste!$B48 -> Keller | CM4: =Teilnehmerliste!$B49 -> Lanz | CO4: =Teilnehmerliste!$B50 -> Lischer | CQ4: =Teilnehmerliste!$B51 -> Lütolf | CS4: =Teilnehmerliste!$B52 -> Marini | CU4: =Teilnehmerliste!$B53 -> Marthaler | CW4: =Teilnehmerliste!$B54 -> Oliveira | CY4: =Teilnehmerliste!$B55 -> Palma
A5: 20 Punkte für richtige Mannschaft auf Platz 4 | E5: =Teilnehmerliste!$C6 -> Panos | G5: =Teilnehmerliste!$C7 -> Marco | I5: =Teilnehmerliste!$C8 -> Ruben | K5: =Teilnehmerliste!$C9 -> Andi | M5: =Teilnehmerliste!$C10 -> Nott | O5: =Teilnehmerliste!$C11 -> Philippe | Q5: =Teilnehmerliste!$C12 -> Roger | S5: =Teilnehmerliste!$C13 -> Mara | U5: =Teilnehmerliste!$C14 -> Lara/Yaniv | W5: =Teilnehmerliste!$C15 -> Michael | Y5: =Teilnehmerliste!$C16 -> Manuel | AA5: =Teilnehmerliste!$C17 -> Nicolas | AC5: =Teilnehmerliste!$C18 -> Philip | AE5: =Teilnehmerliste!$C19 -> André | AG5: =Teilnehmerliste!$C20 -> Louis | AI5: =Teilnehmerliste!$C21 -> Daniel | AK5: =Teilnehmerliste!$C22 -> Deliz | AM5: =Teilnehmerliste!$C23 -> Florian | AO5: =Teilnehmerliste!$C24 -> Olo | AQ5: =Teilnehmerliste!$C25 -> Leonardo | AS5: =Teilnehmerliste!$C26 -> Lisa | AU5: =Teilnehmerliste!$C27 -> Niva | AW5: =Teilnehmerliste!$C28 -> Vinci | AY5: =Teilnehmerliste!$C29 -> Goran | BA5: =Teilnehmerliste!$C30 -> Dino | BC5: =Teilnehmerliste!$C31 -> Marlon | BE5: =Teilnehmerliste!$C32 -> Maurizio | BG5: =Teilnehmerliste!$C33 -> Roberto | BI5: =Teilnehmerliste!$C34 -> Rui | BK5: =Teilnehmerliste!$C35 -> Laurent | BM5: =Teilnehmerliste!$C36 -> Gregory | BO5: =Teilnehmerliste!$C37 -> Reto | BQ5: =Teilnehmerliste!$C38 -> Sarina | BS5: =Teilnehmerliste!$C39 -> Stefan | BU5: =Teilnehmerliste!$C40 -> Timothy | BW5: =Teilnehmerliste!$C41 -> Florian | BY5: =Teilnehmerliste!$C42 -> Djuma | CA5: =Teilnehmerliste!$C43 -> Agnes | CC5: =Teilnehmerliste!$C44 -> Andreas | CE5: =Teilnehmerliste!$C45 -> Michi | CG5: =Teilnehmerliste!$C46 -> Aiden | CI5: =Teilnehmerliste!$C47 -> Murat | CK5: =Teilnehmerliste!$C48 -> Pascal | CM5: =Teilnehmerliste!$C49 -> André | CO5: =Teilnehmerliste!$C50 -> Franz | CQ5: =Teilnehmerliste!$C51 -> Marc | CS5: =Teilnehmerliste!$C52 -> Mauro | CU5: =Teilnehmerliste!$C53 -> Martin | CW5: =Teilnehmerliste!$C54 -> Telmo | CY5: =Teilnehmerliste!$C55 -> Luigi
A6: Punkte für 1. + 2. Platz werden in der Zwischenrunde dazugerechnet | F6: =Teilnehmerliste!$A6 -> 1 | H6: =Teilnehmerliste!$A7 -> 2 | J6: =Teilnehmerliste!$A8 -> 3 | L6: =Teilnehmerliste!$A9 -> 4 | N6: =Teilnehmerliste!$A10 -> 5 | P6: =Teilnehmerliste!$A11 -> 6 | R6: =Teilnehmerliste!$A12 -> 7 | T6: =Teilnehmerliste!$A13 -> 8 | V6: =Teilnehmerliste!$A14 -> 9 | X6: =Teilnehmerliste!$A15 -> 10 | Z6: =Teilnehmerliste!$A16 -> 11 | AB6: =Teilnehmerliste!$A17 -> 12 | AD6: =Teilnehmerliste!$A18 -> 13 | AF6: =Teilnehmerliste!$A19 -> 14 | AH6: =Teilnehmerliste!$A20 -> 15 | AJ6: =Teilnehmerliste!$A21 -> 16 | AL6: =Teilnehmerliste!$A22 -> 17 | AN6: =Teilnehmerliste!$A23 -> 18 | AP6: =Teilnehmerliste!$A24 -> 19 | AR6: =Teilnehmerliste!$A25 -> 20 | AT6: =Teilnehmerliste!$A26 -> 21 | AV6: =Teilnehmerliste!$A27 -> 22 | AX6: =Teilnehmerliste!$A28 -> 23 | AZ6: =Teilnehmerliste!$A29 -> 24 | BB6: =Teilnehmerliste!$A30 -> 25 | BD6: =Teilnehmerliste!$A31 -> 26 | BF6: =Teilnehmerliste!$A32 -> 27 | BH6: =Teilnehmerliste!$A33 -> 28 | BJ6: =Teilnehmerliste!$A34 -> 29 | BL6: =Teilnehmerliste!$A35 -> 30 | BN6: =Teilnehmerliste!$A36 -> 31 | BP6: =Teilnehmerliste!$A37 -> 32 | BR6: =Teilnehmerliste!$A38 -> 33 | BT6: =Teilnehmerliste!$A39 -> 34 | BV6: =Teilnehmerliste!$A40 -> 35 | BX6: =Teilnehmerliste!$A41 -> 36 | BZ6: =Teilnehmerliste!$A42 -> 37 | CB6: =Teilnehmerliste!$A43 -> 38 | CD6: =Teilnehmerliste!$A44 -> 39 | CF6: =Teilnehmerliste!$A45 -> 40 | CH6: =Teilnehmerliste!$A46 -> 41 | CJ6: =Teilnehmerliste!$A47 -> 42 | CL6: =Teilnehmerliste!$A48 -> 43 | CN6: =Teilnehmerliste!$A49 -> 44 | CP6: =Teilnehmerliste!$A50 -> 45 | CR6: =Teilnehmerliste!$A51 -> 46 | CT6: =Teilnehmerliste!$A52 -> 47 | CV6: =Teilnehmerliste!$A53 -> 48 | CX6: =Teilnehmerliste!$A54 -> 49 | CZ6: =Teilnehmerliste!$A55 -> 50
A8: Platz | B8: Team | E8: Tipp | F8: Pkt | G8: Tipp | H8: Pkt | I8: Tipp | J8: Pkt | K8: Tipp | L8: Pkt | M8: Tipp | N8: Pkt | O8: Tipp | P8: Pkt | Q8: Tipp | R8: Pkt | S8: Tipp | T8: Pkt | U8: Tipp | V8: Pkt | W8: Tipp | X8: Pkt | Y8: Tipp | Z8: Pkt | AA8: Tipp | AB8: Pkt | AC8: Tipp | AD8: Pkt | AE8: Tipp | AF8: Pkt | AG8: Tipp | AH8: Pkt | AI8: Tipp | AJ8: Pkt | AK8: Tipp | AL8: Pkt | AM8: Tipp | AN8: Pkt | AO8: Tipp | AP8: Pkt | AQ8: Tipp | AR8: Pkt | AS8: Tipp | AT8: Pkt | AU8: Tipp | AV8: Pkt | AW8: Tipp | AX8: Pkt | AY8: Tipp | AZ8: Pkt | BA8: Tipp | BB8: Pkt | BC8: Tipp | BD8: Pkt | BE8: Tipp | BF8: Pkt | BG8: Tipp | BH8: Pkt | BI8: Tipp | BJ8: Pkt | BK8: Tipp | BL8: Pkt | BM8: Tipp | BN8: Pkt | BO8: Tipp | BP8: Pkt | BQ8: Tipp | BR8: Pkt | BS8: Tipp | BT8: Pkt | BU8: Tipp | BV8: Pkt | BW8: Tipp | BX8: Pkt | BY8: Tipp | BZ8: Pkt | CA8: Tipp | CB8: Pkt | CC8: Tipp | CD8: Pkt | CE8: Tipp | CF8: Pkt | CG8: Tipp | CH8: Pkt | CI8: Tipp | CJ8: Pkt | CK8: Tipp | CL8: Pkt | CM8: Tipp | CN8: Pkt | CO8: Tipp | CP8: Pkt | CQ8: Tipp | CR8: Pkt | CS8: Tipp | CT8: Pkt | CU8: Tipp | CV8: Pkt | CW8: Tipp | CX8: Pkt | CY8: Tipp | CZ8: Pkt
A9: Endplatzierung
A10: 1 | B10: Deutschland | C10: Gruppe A | E10: Deutschland | F10: - | G10: Schweiz | H10: - | I10: Deutschland | J10: - | K10: Deutschland | L10: - | M10: Deutschland | N10: - | O10: Deutschland | P10: - | Q10: Deutschland | R10: - | S10: Schweiz | T10: - | U10: Deutschland | V10: - | W10: Deutschland | X10: - | Y10: Deutschland | Z10: - | AA10: Schweiz | AB10: - | AC10: Deutschland | AD10: - | AE10: Deutschland | AF10: - | AG10: Deutschland | AH10: - | AI10: Deutschland | AJ10: - | AK10: Deutschland | AL10: - | AM10: Deutschland | AN10: - | AO10: Deutschland | AP10: - | AQ10: Deutschland | AR10: - | AS10: Deutschland | AT10: - | AU10: Deutschland | AV10: - | AW10: Deutschland | AX10: - | AY10: Deutschland | AZ10: - | BA10: Deutschland | BB10: - | BC10: Schweiz | BD10: - | BE10: Deutschland | BF10: - | BG10: Deutschland | BH10: - | BI10: Schweiz | BJ10: - | BK10: Deutschland | BL10: - | BM10: Schweiz | BN10: - | BO10: Deutschland | BP10: - | BQ10: Deutschland | BR10: - | BS10: Deutschland | BT10: - | BU10: Deutschland | BV10: - | BW10: Deutschland | BX10: - | BY10: Deutschland | BZ10: - | CA10: Deutschland | CB10: - | CC10: Deutschland | CD10: - | CE10: Deutschland | CF10: - | CG10: Deutschland | CH10: - | CI10: Deutschland | CJ10: - | CK10: Deutschland | CL10: - | CM10: Deutschland | CN10: - | CO10: Deutschland | CP10: - | CQ10: Deutschland | CR10: - | CS10: Schweiz | CT10: - | CU10: Deutschland | CV10: - | CW10: Deutschland | CX10: - | CY10: Schottland | CZ10: -
A11: 2 | B11: Schweiz | E11: Schweiz | F11: - | G11: Deutschland | H11: - | I11: Schweiz | J11: - | K11: Schweiz | L11: - | M11: Schweiz | N11: - | O11: Schweiz | P11: - | Q11: Schweiz | R11: - | S11: Deutschland | T11: - | U11: Schweiz | V11: - | W11: Schweiz | X11: - | Y11: Schweiz | Z11: - | AA11: Deutschland | AB11: - | AC11: Schweiz | AD11: - | AE11: Schweiz | AF11: - | AG11: Schweiz | AH11: - | AI11: Schweiz | AJ11: - | AK11: Schweiz | AL11: - | AM11: Schweiz | AN11: - | AO11: Schweiz | AP11: - | AQ11: Schweiz | AR11: - | AS11: Schweiz | AT11: - | AU11: Schweiz | AV11: - | AW11: Schweiz | AX11: - | AY11: Schweiz | AZ11: - | BA11: Schweiz | BB11: - | BC11: Deutschland | BD11: - | BE11: Schweiz | BF11: - | BG11: Schweiz | BH11: - | BI11: Ungarn | BJ11: - | BK11: Schweiz | BL11: - | BM11: Deutschland | BN11: - | BO11: Schweiz | BP11: - | BQ11: Schweiz | BR11: - | BS11: Schweiz | BT11: - | BU11: Schweiz | BV11: - | BW11: Schweiz | BX11: - | BY11: Schweiz | BZ11: - | CA11: Ungarn | CB11: - | CC11: Schweiz | CD11: - | CE11: Schweiz | CF11: - | CG11: Schweiz | CH11: - | CI11: Schweiz | CJ11: - | CK11: Schweiz | CL11: - | CM11: Schweiz | CN11: - | CO11: Schweiz | CP11: - | CQ11: Schweiz | CR11: - | CS11: Deutschland | CT11: - | CU11: Schweiz | CV11: - | CW11: Schweiz | CX11: - | CY11: Deutschland | CZ11: -
A12: 3 | B12: Ungarn | E12: Ungarn | F12: =IF(OR($B12=""),0,IF($B12=E12,20,0)) -> 20 | G12: Schottland | H12: =IF(OR($B12=""),0,IF($B12=G12,20,0)) -> 0 | I12: Ungarn | J12: =IF(OR($B12=""),0,IF($B12=I12,20,0)) -> 20 | K12: Ungarn | L12: =IF(OR($B12=""),0,IF($B12=K12,20,0)) -> 20 | M12: Schottland | N12: =IF(OR($B12=""),0,IF($B12=M12,20,0)) -> 0 | O12: Ungarn | P12: =IF(OR($B12=""),0,IF($B12=O12,20,0)) -> 20 | Q12: Ungarn | R12: =IF(OR($B12=""),0,IF($B12=Q12,20,0)) -> 20 | S12: Ungarn | T12: =IF(OR($B12=""),0,IF($B12=S12,20,0)) -> 20 | U12: Ungarn | V12: =IF(OR($B12=""),0,IF($B12=U12,20,0)) -> 20 | W12: Schottland | X12: =IF(OR($B12=""),0,IF($B12=W12,20,0)) -> 0 | Y12: Ungarn | Z12: =IF(OR($B12=""),0,IF($B12=Y12,20,0)) -> 20 | AA12: Ungarn | AB12: =IF(OR($B12=""),0,IF($B12=AA12,20,0)) -> 20 | AC12: Schottland | AD12: =IF(OR($B12=""),0,IF($B12=AC12,20,0)) -> 0 | AE12: Schottland | AF12: =IF(OR($B12=""),0,IF($B12=AE12,20,0)) -> 0 | AG12: Ungarn | AH12: =IF(OR($B12=""),0,IF($B12=AG12,20,0)) -> 20 | AI12: Ungarn | AJ12: =IF(OR($B12=""),0,IF($B12=AI12,20,0)) -> 20 | AK12: Schottland | AL12: =IF(OR($B12=""),0,IF($B12=AK12,20,0)) -> 0 | AM12: Ungarn | AN12: =IF(OR($B12=""),0,IF($B12=AM12,20,0)) -> 20 | AO12: Ungarn | AP12: =IF(OR($B12=""),0,IF($B12=AO12,20,0)) -> 20 | AQ12: Ungarn | AR12: =IF(OR($B12=""),0,IF($B12=AQ12,20,0)) -> 20 | AS12: Schottland | AT12: =IF(OR($B12=""),0,IF($B12=AS12,20,0)) -> 0 | AU12: Schottland | AV12: =IF(OR($B12=""),0,IF($B12=AU12,20,0)) -> 0 | AW12: Schottland | AX12: =IF(OR($B12=""),0,IF($B12=AW12,20,0)) -> 0 | AY12: Ungarn | AZ12: =IF(OR($B12=""),0,IF($B12=AY12,20,0)) -> 20 | BA12: Ungarn | BB12: =IF(OR($B12=""),0,IF($B12=BA12,20,0)) -> 20 | BC12: Ungarn | BD12: =IF(OR($B12=""),0,IF($B12=BC12,20,0)) -> 20 | BE12: Ungarn | BF12: =IF(OR($B12=""),0,IF($B12=BE12,20,0)) -> 20 | BG12: Ungarn | BH12: =IF(OR($B12=""),0,IF($B12=BG12,20,0)) -> 20 | BI12: Deutschland | BJ12: =IF(OR($B12=""),0,IF($B12=BI12,20,0)) -> 0 | BK12: Ungarn | BL12: =IF(OR($B12=""),0,IF($B12=BK12,20,0)) -> 20 | BM12: Ungarn | BN12: =IF(OR($B12=""),0,IF($B12=BM12,20,0)) -> 20 | BO12: Schottland | BP12: =IF(OR($B12=""),0,IF($B12=BO12,20,0)) -> 0 | BQ12: Ungarn | BR12: =IF(OR($B12=""),0,IF($B12=BQ12,20,0)) -> 20 | BS12: Ungarn | BT12: =IF(OR($B12=""),0,IF($B12=BS12,20,0)) -> 20 | BU12: Schottland | BV12: =IF(OR($B12=""),0,IF($B12=BU12,20,0)) -> 0 | BW12: Schottland | BX12: =IF(OR($B12=""),0,IF($B12=BW12,20,0)) -> 0 | BY12: Ungarn | BZ12: =IF(OR($B12=""),0,IF($B12=BY12,20,0)) -> 20 | CA12: Schweiz | CB12: =IF(OR($B12=""),0,IF($B12=CA12,20,0)) -> 0 | CC12: Ungarn | CD12: =IF(OR($B12=""),0,IF($B12=CC12,20,0)) -> 20 | CE12: Schottland | CF12: =IF(OR($B12=""),0,IF($B12=CE12,20,0)) -> 0 | CG12: Schottland | CH12: =IF(OR($B12=""),0,IF($B12=CG12,20,0)) -> 0 | CI12: Ungarn | CJ12: =IF(OR($B12=""),0,IF($B12=CI12,20,0)) -> 20 | CK12: Schottland | CL12: =IF(OR($B12=""),0,IF($B12=CK12,20,0)) -> 0 | CM12: Schottland | CN12: =IF(OR($B12=""),0,IF($B12=CM12,20,0)) -> 0 | CO12: Schottland | CP12: =IF(OR($B12=""),0,IF($B12=CO12,20,0)) -> 0 | CQ12: Schottland | CR12: =IF(OR($B12=""),0,IF($B12=CQ12,20,0)) -> 0 | CS12: Ungarn | CT12: =IF(OR($B12=""),0,IF($B12=CS12,20,0)) -> 20 | CU12: Schottland | CV12: =IF(OR($B12=""),0,IF($B12=CU12,20,0)) -> 0 | CW12: Schottland | CX12: =IF(OR($B12=""),0,IF($B12=CW12,20,0)) -> 0 | CY12: Ungarn | CZ12: =IF(OR($B12=""),0,IF($B12=CY12,20,0)) -> 20
A13: 4 | B13: Schottland | E13: Schottland | F13: =IF(OR($B13=""),0,IF($B13=E13,20,0)) -> 20 | G13: Ungarn | H13: =IF(OR($B13=""),0,IF($B13=G13,20,0)) -> 0 | I13: Schottland | J13: =IF(OR($B13=""),0,IF($B13=I13,20,0)) -> 20 | K13: Schottland | L13: =IF(OR($B13=""),0,IF($B13=K13,20,0)) -> 20 | M13: Ungarn | N13: =IF(OR($B13=""),0,IF($B13=M13,20,0)) -> 0 | O13: Schottland | P13: =IF(OR($B13=""),0,IF($B13=O13,20,0)) -> 20 | Q13: Schottland | R13: =IF(OR($B13=""),0,IF($B13=Q13,20,0)) -> 20 | S13: Schottland | T13: =IF(OR($B13=""),0,IF($B13=S13,20,0)) -> 20 | U13: Schottland | V13: =IF(OR($B13=""),0,IF($B13=U13,20,0)) -> 20 | W13: Ungarn | X13: =IF(OR($B13=""),0,IF($B13=W13,20,0)) -> 0 | Y13: Schottland | Z13: =IF(OR($B13=""),0,IF($B13=Y13,20,0)) -> 20 | AA13: Schottland | AB13: =IF(OR($B13=""),0,IF($B13=AA13,20,0)) -> 20 | AC13: Ungarn | AD13: =IF(OR($B13=""),0,IF($B13=AC13,20,0)) -> 0 | AE13: Ungarn | AF13: =IF(OR($B13=""),0,IF($B13=AE13,20,0)) -> 0 | AG13: Schottland | AH13: =IF(OR($B13=""),0,IF($B13=AG13,20,0)) -> 20 | AI13: Schottland | AJ13: =IF(OR($B13=""),0,IF($B13=AI13,20,0)) -> 20 | AK13: Ungarn | AL13: =IF(OR($B13=""),0,IF($B13=AK13,20,0)) -> 0 | AM13: Schottland | AN13: =IF(OR($B13=""),0,IF($B13=AM13,20,0)) -> 20 | AO13: Schottland | AP13: =IF(OR($B13=""),0,IF($B13=AO13,20,0)) -> 20 | AQ13: Schottland | AR13: =IF(OR($B13=""),0,IF($B13=AQ13,20,0)) -> 20 | AS13: Ungarn | AT13: =IF(OR($B13=""),0,IF($B13=AS13,20,0)) -> 0 | AU13: Ungarn | AV13: =IF(OR($B13=""),0,IF($B13=AU13,20,0)) -> 0 | AW13: Ungarn | AX13: =IF(OR($B13=""),0,IF($B13=AW13,20,0)) -> 0 | AY13: Schottland | AZ13: =IF(OR($B13=""),0,IF($B13=AY13,20,0)) -> 20 | BA13: Schottland | BB13: =IF(OR($B13=""),0,IF($B13=BA13,20,0)) -> 20 | BC13: Schottland | BD13: =IF(OR($B13=""),0,IF($B13=BC13,20,0)) -> 20 | BE13: Schottland | BF13: =IF(OR($B13=""),0,IF($B13=BE13,20,0)) -> 20 | BG13: Schottland | BH13: =IF(OR($B13=""),0,IF($B13=BG13,20,0)) -> 20 | BI13: Schottland | BJ13: =IF(OR($B13=""),0,IF($B13=BI13,20,0)) -> 20 | BK13: Schottland | BL13: =IF(OR($B13=""),0,IF($B13=BK13,20,0)) -> 20 | BM13: Schottland | BN13: =IF(OR($B13=""),0,IF($B13=BM13,20,0)) -> 20 | BO13: Ungarn | BP13: =IF(OR($B13=""),0,IF($B13=BO13,20,0)) -> 0 | BQ13: Schottland | BR13: =IF(OR($B13=""),0,IF($B13=BQ13,20,0)) -> 20 | BS13: Schottland | BT13: =IF(OR($B13=""),0,IF($B13=BS13,20,0)) -> 20 | BU13: Ungarn | BV13: =IF(OR($B13=""),0,IF($B13=BU13,20,0)) -> 0 | BW13: Ungarn | BX13: =IF(OR($B13=""),0,IF($B13=BW13,20,0)) -> 0 | BY13: Schottland | BZ13: =IF(OR($B13=""),0,IF($B13=BY13,20,0)) -> 20 | CA13: Schottland | CB13: =IF(OR($B13=""),0,IF($B13=CA13,20,0)) -> 20 | CC13: Schottland | CD13: =IF(OR($B13=""),0,IF($B13=CC13,20,0)) -> 20 | CE13: Ungarn | CF13: =IF(OR($B13=""),0,IF($B13=CE13,20,0)) -> 0 | CG13: Ungarn | CH13: =IF(OR($B13=""),0,IF($B13=CG13,20,0)) -> 0 | CI13: Schottland | CJ13: =IF(OR($B13=""),0,IF($B13=CI13,20,0)) -> 20 | CK13: Ungarn | CL13: =IF(OR($B13=""),0,IF($B13=CK13,20,0)) -> 0 | CM13: Ungarn | CN13: =IF(OR($B13=""),0,IF($B13=CM13,20,0)) -> 0 | CO13: Ungarn | CP13: =IF(OR($B13=""),0,IF($B13=CO13,20,0)) -> 0 | CQ13: Ungarn | CR13: =IF(OR($B13=""),0,IF($B13=CQ13,20,0)) -> 0 | CS13: Schottland | CT13: =IF(OR($B13=""),0,IF($B13=CS13,20,0)) -> 20 | CU13: Ungarn | CV13: =IF(OR($B13=""),0,IF($B13=CU13,20,0)) -> 0 | CW13: Ungarn | CX13: =IF(OR($B13=""),0,IF($B13=CW13,20,0)) -> 0 | CY13: Schweiz | CZ13: =IF(OR($B13=""),0,IF($B13=CY13,20,0)) -> 0
A14: 1 | B14: Spanien | C14: Gruppe B | E14: Kroatien | F14: - | G14: Kroatien | H14: - | I14: Italien | J14: - | K14: Spanien | L14: - | M14: Spanien | N14: - | O14: Spanien | P14: - | Q14: Spanien | R14: - | S14: Spanien | T14: - | U14: Spanien | V14: - | W14: Spanien | X14: - | Y14: Kroatien | Z14: - | AA14: Spanien | AB14: - | AC14: Spanien | AD14: - | AE14: Spanien | AF14: - | AG14: Italien | AH14: - | AI14: Spanien | AJ14: - | AK14: Spanien | AL14: - | AM14: Spanien | AN14: - | AO14: Kroatien | AP14: - | AQ14: Kroatien | AR14: - | AS14: Spanien | AT14: - | AU14: Spanien | AV14: - | AW14: Italien | AX14: - | AY14: Spanien | AZ14: - | BA14: Spanien | BB14: - | BC14: Italien | BD14: - | BE14: Spanien | BF14: - | BG14: Italien | BH14: - | BI14: Spanien | BJ14: - | BK14: Italien | BL14: - | BM14: Spanien | BN14: - | BO14: Spanien | BP14: - | BQ14: Italien | BR14: - | BS14: Spanien | BT14: - | BU14: Spanien | BV14: - | BW14: Italien | BX14: - | BY14: Kroatien | BZ14: - | CA14: Spanien | CB14: - | CC14: Spanien | CD14: - | CE14: Spanien | CF14: - | CG14: Spanien | CH14: - | CI14: Spanien | CJ14: - | CK14: Spanien | CL14: - | CM14: Spanien | CN14: - | CO14: Italien | CP14: - | CQ14: Spanien | CR14: - | CS14: Italien | CT14: - | CU14: Spanien | CV14: - | CW14: Italien | CX14: - | CY14: Spanien | CZ14: -
A15: 2 | B15: Italien | E15: Spanien | F15: - | G15: Italien | H15: - | I15: Kroatien | J15: - | K15: Italien | L15: - | M15: Italien | N15: - | O15: Italien | P15: - | Q15: Italien | R15: - | S15: Italien | T15: - | U15: Kroatien | V15: - | W15: Kroatien | X15: - | Y15: Spanien | Z15: - | AA15: Italien | AB15: - | AC15: Kroatien | AD15: - | AE15: Italien | AF15: - | AG15: Spanien | AH15: - | AI15: Italien | AJ15: - | AK15: Kroatien | AL15: - | AM15: Italien | AN15: - | AO15: Spanien | AP15: - | AQ15: Spanien | AR15: - | AS15: Italien | AT15: - | AU15: Italien | AV15: - | AW15: Spanien | AX15: - | AY15: Italien | AZ15: - | BA15: Kroatien | BB15: - | BC15: Kroatien | BD15: - | BE15: Italien | BF15: - | BG15: Kroatien | BH15: - | BI15: Kroatien | BJ15: - | BK15: Spanien | BL15: - | BM15: Italien | BN15: - | BO15: Italien | BP15: - | BQ15: Spanien | BR15: - | BS15: Italien | BT15: - | BU15: Italien | BV15: - | BW15: Spanien | BX15: - | BY15: Spanien | BZ15: - | CA15: Kroatien | CB15: - | CC15: Italien | CD15: - | CE15: Kroatien | CF15: - | CG15: Italien | CH15: - | CI15: Italien | CJ15: - | CK15: Italien | CL15: - | CM15: Kroatien | CN15: - | CO15: Spanien | CP15: - | CQ15: Italien | CR15: - | CS15: Kroatien | CT15: - | CU15: Italien | CV15: - | CW15: Kroatien | CX15: - | CY15: Kroatien | CZ15: -
A16: 3 | B16: Kroatien | E16: Italien | F16: =IF(OR($B16=""),0,IF($B16=E16,20,0)) -> 0 | G16: Spanien | H16: =IF(OR($B16=""),0,IF($B16=G16,20,0)) -> 0 | I16: Spanien | J16: =IF(OR($B16=""),0,IF($B16=I16,20,0)) -> 0 | K16: Kroatien | L16: =IF(OR($B16=""),0,IF($B16=K16,20,0)) -> 20 | M16: Kroatien | N16: =IF(OR($B16=""),0,IF($B16=M16,20,0)) -> 20 | O16: Kroatien | P16: =IF(OR($B16=""),0,IF($B16=O16,20,0)) -> 20 | Q16: Kroatien | R16: =IF(OR($B16=""),0,IF($B16=Q16,20,0)) -> 20 | S16: Kroatien | T16: =IF(OR($B16=""),0,IF($B16=S16,20,0)) -> 20 | U16: Italien | V16: =IF(OR($B16=""),0,IF($B16=U16,20,0)) -> 0 | W16: Italien | X16: =IF(OR($B16=""),0,IF($B16=W16,20,0)) -> 0 | Y16: Italien | Z16: =IF(OR($B16=""),0,IF($B16=Y16,20,0)) -> 0 | AA16: Kroatien | AB16: =IF(OR($B16=""),0,IF($B16=AA16,20,0)) -> 20 | AC16: Italien | AD16: =IF(OR($B16=""),0,IF($B16=AC16,20,0)) -> 0 | AE16: Kroatien | AF16: =IF(OR($B16=""),0,IF($B16=AE16,20,0)) -> 20 | AG16: Kroatien | AH16: =IF(OR($B16=""),0,IF($B16=AG16,20,0)) -> 20 | AI16: Albanien | AJ16: =IF(OR($B16=""),0,IF($B16=AI16,20,0)) -> 0 | AK16: Italien | AL16: =IF(OR($B16=""),0,IF($B16=AK16,20,0)) -> 0 | AM16: Kroatien | AN16: =IF(OR($B16=""),0,IF($B16=AM16,20,0)) -> 20 | AO16: Italien | AP16: =IF(OR($B16=""),0,IF($B16=AO16,20,0)) -> 0 | AQ16: Italien | AR16: =IF(OR($B16=""),0,IF($B16=AQ16,20,0)) -> 0 | AS16: Kroatien | AT16: =IF(OR($B16=""),0,IF($B16=AS16,20,0)) -> 20 | AU16: Kroatien | AV16: =IF(OR($B16=""),0,IF($B16=AU16,20,0)) -> 20 | AW16: Kroatien | AX16: =IF(OR($B16=""),0,IF($B16=AW16,20,0)) -> 20 | AY16: Kroatien | AZ16: =IF(OR($B16=""),0,IF($B16=AY16,20,0)) -> 20 | BA16: Italien | BB16: =IF(OR($B16=""),0,IF($B16=BA16,20,0)) -> 0 | BC16: Spanien | BD16: =IF(OR($B16=""),0,IF($B16=BC16,20,0)) -> 0 | BE16: Kroatien | BF16: =IF(OR($B16=""),0,IF($B16=BE16,20,0)) -> 20 | BG16: Spanien | BH16: =IF(OR($B16=""),0,IF($B16=BG16,20,0)) -> 0 | BI16: Albanien | BJ16: =IF(OR($B16=""),0,IF($B16=BI16,20,0)) -> 0 | BK16: Kroatien | BL16: =IF(OR($B16=""),0,IF($B16=BK16,20,0)) -> 20 | BM16: Kroatien | BN16: =IF(OR($B16=""),0,IF($B16=BM16,20,0)) -> 20 | BO16: Kroatien | BP16: =IF(OR($B16=""),0,IF($B16=BO16,20,0)) -> 20 | BQ16: Kroatien | BR16: =IF(OR($B16=""),0,IF($B16=BQ16,20,0)) -> 20 | BS16: Kroatien | BT16: =IF(OR($B16=""),0,IF($B16=BS16,20,0)) -> 20 | BU16: Kroatien | BV16: =IF(OR($B16=""),0,IF($B16=BU16,20,0)) -> 20 | BW16: Kroatien | BX16: =IF(OR($B16=""),0,IF($B16=BW16,20,0)) -> 20 | BY16: Italien | BZ16: =IF(OR($B16=""),0,IF($B16=BY16,20,0)) -> 0 | CA16: Italien | CB16: =IF(OR($B16=""),0,IF($B16=CA16,20,0)) -> 0 | CC16: Kroatien | CD16: =IF(OR($B16=""),0,IF($B16=CC16,20,0)) -> 20 | CE16: Italien | CF16: =IF(OR($B16=""),0,IF($B16=CE16,20,0)) -> 0 | CG16: Kroatien | CH16: =IF(OR($B16=""),0,IF($B16=CG16,20,0)) -> 20 | CI16: Kroatien | CJ16: =IF(OR($B16=""),0,IF($B16=CI16,20,0)) -> 20 | CK16: Kroatien | CL16: =IF(OR($B16=""),0,IF($B16=CK16,20,0)) -> 20 | CM16: Italien | CN16: =IF(OR($B16=""),0,IF($B16=CM16,20,0)) -> 0 | CO16: Kroatien | CP16: =IF(OR($B16=""),0,IF($B16=CO16,20,0)) -> 20 | CQ16: Kroatien | CR16: =IF(OR($B16=""),0,IF($B16=CQ16,20,0)) -> 20 | CS16: Spanien | CT16: =IF(OR($B16=""),0,IF($B16=CS16,20,0)) -> 0 | CU16: Kroatien | CV16: =IF(OR($B16=""),0,IF($B16=CU16,20,0)) -> 20 | CW16: Spanien | CX16: =IF(OR($B16=""),0,IF($B16=CW16,20,0)) -> 0 | CY16: Italien | CZ16: =IF(OR($B16=""),0,IF($B16=CY16,20,0)) -> 0
A17: 4 | B17: Albanien | E17: Albanien | F17: =IF(OR($B17=""),0,IF($B17=E17,20,0)) -> 20 | G17: Albanien | H17: =IF(OR($B17=""),0,IF($B17=G17,20,0)) -> 20 | I17: Albanien | J17: =IF(OR($B17=""),0,IF($B17=I17,20,0)) -> 20 | K17: Albanien | L17: =IF(OR($B17=""),0,IF($B17=K17,20,0)) -> 20 | M17: Albanien | N17: =IF(OR($B17=""),0,IF($B17=M17,20,0)) -> 20 | O17: Albanien | P17: =IF(OR($B17=""),0,IF($B17=O17,20,0)) -> 20 | Q17: Albanien | R17: =IF(OR($B17=""),0,IF($B17=Q17,20,0)) -> 20 | S17: Albanien | T17: =IF(OR($B17=""),0,IF($B17=S17,20,0)) -> 20 | U17: Albanien | V17: =IF(OR($B17=""),0,IF($B17=U17,20,0)) -> 20 | W17: Albanien | X17: =IF(OR($B17=""),0,IF($B17=W17,20,0)) -> 20 | Y17: Albanien | Z17: =IF(OR($B17=""),0,IF($B17=Y17,20,0)) -> 20 | AA17: Albanien | AB17: =IF(OR($B17=""),0,IF($B17=AA17,20,0)) -> 20 | AC17: Albanien | AD17: =IF(OR($B17=""),0,IF($B17=AC17,20,0)) -> 20 | AE17: Albanien | AF17: =IF(OR($B17=""),0,IF($B17=AE17,20,0)) -> 20 | AG17: Albanien | AH17: =IF(OR($B17=""),0,IF($B17=AG17,20,0)) -> 20 | AI17: Kroatien | AJ17: =IF(OR($B17=""),0,IF($B17=AI17,20,0)) -> 0 | AK17: Albanien | AL17: =IF(OR($B17=""),0,IF($B17=AK17,20,0)) -> 20 | AM17: Albanien | AN17: =IF(OR($B17=""),0,IF($B17=AM17,20,0)) -> 20 | AO17: Albanien | AP17: =IF(OR($B17=""),0,IF($B17=AO17,20,0)) -> 20 | AQ17: Albanien | AR17: =IF(OR($B17=""),0,IF($B17=AQ17,20,0)) -> 20 | AS17: Albanien | AT17: =IF(OR($B17=""),0,IF($B17=AS17,20,0)) -> 20 | AU17: Albanien | AV17: =IF(OR($B17=""),0,IF($B17=AU17,20,0)) -> 20 | AW17: Albanien | AX17: =IF(OR($B17=""),0,IF($B17=AW17,20,0)) -> 20 | AY17: Albanien | AZ17: =IF(OR($B17=""),0,IF($B17=AY17,20,0)) -> 20 | BA17: Albanien | BB17: =IF(OR($B17=""),0,IF($B17=BA17,20,0)) -> 20 | BC17: Albanien | BD17: =IF(OR($B17=""),0,IF($B17=BC17,20,0)) -> 20 | BE17: Albanien | BF17: =IF(OR($B17=""),0,IF($B17=BE17,20,0)) -> 20 | BG17: Albanien | BH17: =IF(OR($B17=""),0,IF($B17=BG17,20,0)) -> 20 | BI17: Italien | BJ17: =IF(OR($B17=""),0,IF($B17=BI17,20,0)) -> 0 | BK17: Albanien | BL17: =IF(OR($B17=""),0,IF($B17=BK17,20,0)) -> 20 | BM17: Albanien | BN17: =IF(OR($B17=""),0,IF($B17=BM17,20,0)) -> 20 | BO17: Albanien | BP17: =IF(OR($B17=""),0,IF($B17=BO17,20,0)) -> 20 | BQ17: Albanien | BR17: =IF(OR($B17=""),0,IF($B17=BQ17,20,0)) -> 20 | BS17: Albanien | BT17: =IF(OR($B17=""),0,IF($B17=BS17,20,0)) -> 20 | BU17: Albanien | BV17: =IF(OR($B17=""),0,IF($B17=BU17,20,0)) -> 20 | BW17: Albanien | BX17: =IF(OR($B17=""),0,IF($B17=BW17,20,0)) -> 20 | BY17: Albanien | BZ17: =IF(OR($B17=""),0,IF($B17=BY17,20,0)) -> 20 | CA17: Albanien | CB17: =IF(OR($B17=""),0,IF($B17=CA17,20,0)) -> 20 | CC17: Albanien | CD17: =IF(OR($B17=""),0,IF($B17=CC17,20,0)) -> 20 | CE17: Albanien | CF17: =IF(OR($B17=""),0,IF($B17=CE17,20,0)) -> 20 | CG17: Albanien | CH17: =IF(OR($B17=""),0,IF($B17=CG17,20,0)) -> 20 | CI17: Albanien | CJ17: =IF(OR($B17=""),0,IF($B17=CI17,20,0)) -> 20 | CK17: Albanien | CL17: =IF(OR($B17=""),0,IF($B17=CK17,20,0)) -> 20 | CM17: Albanien | CN17: =IF(OR($B17=""),0,IF($B17=CM17,20,0)) -> 20 | CO17: Albanien | CP17: =IF(OR($B17=""),0,IF($B17=CO17,20,0)) -> 20 | CQ17: Albanien | CR17: =IF(OR($B17=""),0,IF($B17=CQ17,20,0)) -> 20 | CS17: Albanien | CT17: =IF(OR($B17=""),0,IF($B17=CS17,20,0)) -> 20 | CU17: Albanien | CV17: =IF(OR($B17=""),0,IF($B17=CU17,20,0)) -> 20 | CW17: Albanien | CX17: =IF(OR($B17=""),0,IF($B17=CW17,20,0)) -> 20 | CY17: Albanien | CZ17: =IF(OR($B17=""),0,IF($B17=CY17,20,0)) -> 20
